Workbook

Sheet Cover
A1: RIIO Price Control Financial Model (PCFM)
B2: Consolidated Version Draft 1
C3: =MID(CELL("filename"),SEARCH("[",CELL("filename"))+1,SEARCH("]",CELL("filename"))-SEARCH("[",CELL("filename"))-1) -> Licence Model IP version - for publication 20120727.xlsm
C4: Purpose: This model is used to calculate Base Revenue (PU) and MOD terms for Licensees on the basis of Financial Handbook and Licence conditions of the relevant Network Operator
B6: Model key
E8: Sample | G8: Calculated value | I8: Sample | K8: Information and interface
E9: Sample | G9: Import | I9: Sample | K9: Opening assumption
E10: Sample | G10: Export | I10: Sample | K10: Annual update input
E11: Sample | G11: Named range | I11: Sample | K11: Input linked from annual update
E12: Sample | G12: Formula change in cells to the right | I12: Sample | K12: Notes and instructions
I13: Sample | K13: Temporary
B15: Contents
E17: INTERFACE > | I17: COMPANY SPECIFIC INPUT SHEETS >
E18: Cover | G18: Model key and content directory | I18: SHETL | K18: Inputs for SHETL TO
E19: UserInterface | G19: Model operation | I19: SPTL | K19: Inputs for SPTL TO
E20: TaxTrigger | G20: Tax trigger calculations | I20: NGET TO | K20: Inputs for NGET TO
E21: INPUT SELECTION > | I21: NGET SO | K21: Inputs for NGET SO
E22: Input | G22: Inputs for selected licensee | I22: NGGT TO | K22: Inputs for NGGT TO
E23: CALCULATION > | I23: NGGT SO | K23: Inputs for NGGT SO
E24: Totex | G24: Totex allowance and actuals | I24: East | K24: Inputs for East DNO
E25: TIM | G25: Totex Incentive Mechanism and capitalisation | I25: London | K25: Inputs for London DNO
E26: DARTs | G26: Direct Allowance Revenue Terms | I26: North West | K26: Inputs for North West DNO
E27: DepnET | G27: Electricity transmission regulatory depreciation | I27: West Midlands | K27: Inputs for West Midlands DNO
E28: DepnGT | G28: Gas transmission regulatory depreciation | I28: Northern | K28: Inputs for Northern DNO
E29: DepnGD | G29: Gas distribution regulatory depreciation | I29: Scotland | K29: Inputs for Scotland DNO
E30: FuelPoor | G30: Fuel poor RAV calculations | I30: Southern | K30: Inputs for Southern DNO
E31: SystemOperator | G31: System operator calculations | I31: Wales & West | K31: Inputs for Wales & West DNO
E32: Return&RAV | G32: RAV and return calculations
E33: TaxPools | G33: Tax pools and capital allowances
E34: Finance&Tax | G34: Net debt, equity issuance, financing costs and tax
E35: NonCore | G35: Calculations for non-core regulatory assets (TIRG)
E36: Revenue | G36: Revenue and MOD
E37: OUTPUT >
E38: ResultsLive | G38: Results for selected company
E39: ResultsLive(SO) | G39: Results for SO (for selected company)
E40: SavedResults | G40: Saved results for all companies
E41: FinancialStatements | G41: Financial statements for selected company
B43: End of sheet

Sheet UserInterface
A1: User Interface
B3: Model operation
C5: Ofgem's view
C6: Instruction: Use the following drop-down list to select whether to use Ofgem's 'Base' view for transmission licensees, or 'Best' view
C7: Note: The choice of view only applies to transmission licensee, distribution licensees are unaffected by the switch
E9: View selection:
C11: PCFM year t
C12: Instruction: Use the following drop-down list to identify year t in the model. Year t is identified here by its end date.
E14: Year t selection:
E16: Year t selected: | G16: =EOMONTH(41364,G60*12) -> 2014-03-31
C18: Active company
C19: Instruction: Use the following drop-down list to select the active company in the model.
E21: Company selection:
E23: Selected company: | G23: =INDEX(E52:E65, E66) -> Wales & West
C25: Model state
C26: Instruction: Use the following drop-down list to set the model state and run it as either the "Licence Model" or the "Tax Trigger Tool."
C27: Note: "Tax Trigger Tool" must be selected here for functionality on the "TaxTrigger" sheet to function.
C28: Selecting "Licence Model" ensures that the Tax Trigger Tool functionality is deactivated and does not affect the calculations in the model.
E30: Model status selection:
E32: Selected model status: | G32: =INDEX(G63:G64, G65) -> Licence Model
C34: Run model for all licensees
C35: Instruction: Click on the left button to save results for the selected company only. Click the right button to save results for all.
C36: Note: Annual iterations must have been completed for all prior years before running the model to generate MOD.
C37: The macros save results and values required for future years which cannot be recreated once inputs are revised.
C38: Running the macro saves the output from year t's iteration for use in future iterations.
C39: Results for the selected company can be found on the "LiveResults" sheet and also on the "SavedResults" sheet once saved by a macro.
B45: User selection lists
B46: Note: The lists below drive the drop-down lists above.
B47: Using the drop-down lists above returns an integer in the "cell link" positioned below their "source list."
B48: The number returned in the cell link corresponds to the position of the selected item in the source list.
B49: The company selection output is set as a "named range." This gives a stable anchor point for the "RunForAll" macro to change the company.
E51: ="Source for ''"&C18&"'' drop-down list" -> Source for ''Active company'' drop-down list | G51: ="Source for ''"&C11&"'' drop-down list" -> Source for ''PCFM year t'' drop-down list
E52: SHETL | G52: 2014-03-31
E53: SPTL | G53: 2015-03-31
E54: NGET TO | G54: 2016-03-31
E55: N/A | G55: 2017-03-31
E56: NGGT TO | G56: 2018-03-31
E57: N/A | G57: 2019-03-31
E58: East | G58: 2020-03-31
E59: London | G59: 2021-03-31
E60: North West | G60: 1
E61: West Midlands
E62: Northern | G62: ="Source for ''"&C25&"'' drop-down list" -> Source for ''Model state'' drop-down list
E63: Scotland | G63: Licence Model
E64: Southern | G64: Tax Trigger Tool
E65: Wales & West | G65: 1
E66: 14
E67: 0
E69: ="Source for ''"&C5&"'' drop-down list" -> Source for ''Ofgem's view'' drop-down list
E70: Base
E71: Best
E72: 2
B74: End of sheet

Sheet TaxTrigger
A1: Tax Trigger
B2: =UserInterface!G23 -> Wales & West
E3: Parameter | G3: Units | I3: Constant | AH3: Annual values
E4: PCFM year ending | I4: =UserInterface!$G$16 -> 2014-03-31 | K4: 1991-03-31 | L4: 1992-03-31 | M4: 1993-03-31 | N4: 1994-03-31 | O4: 1995-03-31 | P4: 1996-03-31 | Q4: 1997-03-31 | R4: 1998-03-31 | S4: 1999-03-31 | T4: 2000-03-31 | U4: 2001-03-31 | V4: 2002-03-31 | W4: 2003-03-31 | X4: 2004-03-31 | Y4: 2005-03-31 | Z4: 2006-03-31 | AA4: 2007-03-31 | AB4: 2008-03-31 | AC4: 2009-03-31 | AD4: 2010-03-31 | AE4: 2011-03-31 | AF4: 2012-03-31 | AG4: 2013-03-31 | AH4: 2014-03-31 | AI4: 2015-03-31 | AJ4: 2016-03-31 | AK4: 2017-03-31 | AL4: 2018-03-31 | AM4: 2019-03-31 | AN4: 2020-03-31 | AO4: 2021-03-31
B6: Tax trigger calculation
C8: Test operation
C9: Instruction: To run the model as the Tax Trigger Tool, the "model state" must be set to "Tax Trigger Tool" on the "UserInterface" sheet. The model state selected is shown below.
C10: Clicking the macro button below runs the "TaxTrigger" macro, performing the Tax Trigger adjustment calculation for the selected licensee for year t.
C11: The output generated by the macro can be replicated manually using the following steps:
C12: 1. Clear any values from previous tests in the "Test state output" section below (named range "m_tax_trigger_results")
C13: 2. Set testing state to "Tax Trigger Test Step 1"
C14: 3. Copy the cells marked as the "m_calculated_tax" named range and paste them at the named range "m_saved_original_test."
C15: 4. Set testing state to "Tax Trigger Test Step 2"
C16: 5. Copy the cells marked as the "m_calculated_tax" named range and paste them at the named range "m_saved_upper_test."
C17: 6. Set testing state to "Tax Trigger Test Step 3"
C18: 7. Copy the cells marked as the "m_calculated_tax" named range and paste them at the named range "m_saved_lower_test."
C19: 8. Set testing state to "Licence Model" to reset the settings to the Licence Model state and reveal the Tax Trigger Adjustment in the "Result and output" section below.
C20: Note: The Tax Trigger Tool is disabled if the "Model state" below reads "Licence Model."
E22: Model state
E23: =UserInterface!G32 -> Licence Model
E26: State selection
E29: State options
E30: Licence Model
E31: Tax Trigger Test Step 1 - testing initial tax settings
E32: Tax Trigger Test Step 2 - test new settings against upper threshold
E33: Tax Trigger Test Step 3 - test new settings against lower threshold
E34: 1 | F34: Adjacent named range: m_tax_trigger_state
E36: State selected
E37: =IF(E23 = "Licence Model", "Licence Model", INDEX(E30:E33, E34)) -> Licence Model
E39: Run macro
C45: Tax calculation
C46: Note: The tax allowance is calculated under three test states. The output recorded at each stage is used to assess whether the Tax Trigger thresholds have been breached and the size of adjustment required.
I48: Instruction
E49: Tax allowance before tax trigger | G49: £m 09/10 prices | AH49: ='Finance&Tax'!AH217 * Input!$AD$61 / Input!AH$61 -> 0 | AI49: ='Finance&Tax'!AI217 * Input!$AD$61 / Input!AI$61 -> 0 | AJ49: ='Finance&Tax'!AJ217 * Input!$AD$61 / Input!AJ$61 -> 0 | AK49: ='Finance&Tax'!AK217 * Input!$AD$61 / Input!AK$61 -> 13.36045474 | AL49: ='Finance&Tax'!AL217 * Input!$AD$61 / Input!AL$61 -> 22.33116102 | AM49: ='Finance&Tax'!AM217 * Input!$AD$61 / Input!AM$61 -> 21.46603204 | AN49: ='Finance&Tax'!AN217 * Input!$AD$61 / Input!AN$61 -> 20.66115658 | AO49: ='Finance&Tax'!AO217 * Input!$AD$61 / Input!AO$61 -> 20.12726701
E50: BCD tax trigger value | G50: £m 09/10 prices | AH50: =AH136 -> 0 | AI50: 0 | AJ50: 0 | AK50: 0 | AL50: 0 | AM50: 0 | AN50: 0 | AO50: 0
E51: Threshold value adjustment | G51: £m 09/10 prices | AH51: =- AH87 -> 0 | AI51: 0 | AJ51: 0 | AK51: 0 | AL51: 0 | AM51: 0 | AN51: 0 | AO51: 0
E52: Tax allowance | G52: £m 09/10 prices | I52: =IF($E$37=E30, "-", "Copy cells -->") -> - | AH52: =SUM(AH49:AH51) -> 0 | AI52: 0 | AJ52: 0 | AK52: 13.36045474 | AL52: 22.33116102 | AM52: 21.46603204 | AN52: 20.66115658 | AO52: 20.12726701
AH53: Adjacent named range: m_calculated_tax
C54: Test state output
C55: Note: Macros act on the cells below, moving through the Tax Trigger test states and pasting the results from each testing state.
I57: Instruction
E58: Value with original settings | G58: £m 09/10 prices | I58: =IF($E$37=E31, "Paste here -->", "-") -> - | AG58: m_tax_trigger_results | AH58: 0 | AI58: 0 | AJ58: 18.98174469 | AK58: 38.38280892 | AL58: 40.31089396 | AM58: 41.23439297 | AN58: 41.49709218 | AO58: 47.0647926
E59: Value with new settings and upper bound adjustment | G59: £m 09/10 prices | I59: =IF($E$37=E32, "Paste here -->", "-") -> - | AH59: -0.5 | AI59: -0.5 | AJ59: 18.48174469 | AK59: 37.88280892 | AL59: 39.81089396 | AM59: 40.73439297 | AN59: 40.99709218 | AO59: 46.5647926
E60: Value with new settings and lower bound adjustment | G60: £m 09/10 prices | I60: =IF($E$37=E33, "Paste here -->", "-") -> - | AH60: 0.5 | AI60: 0.5 | AJ60: 19.48174469 | AK60: 38.88280892 | AL60: 40.81089396 | AM60: 41.73439297 | AN60: 41.99709218 | AO60: 47.5647926
E61: All values required have been created | G61: text | I61: =IF(COUNT(AH58:AO60) = 24, TRUE(), FALSE()) -> TRUE | AH61: Named ranges above: m_saved_original_test, m_saved_upper_test, m_saved_lower_test and m_tax_trigger_results
C63: Result and output
C64: Note: Once the test is complete, the "Tax Trigger adjustment" below can be taken from below and inputted to the PCFM set to run as the Licence Model, rather than the Tax Trigger Tool.
E66: Generate tax trigger adjustment after upper threshold breach | G66: text | AH66: =AND($E30 = $E$37, AH$4 <= $I4, AH59 > AH58, $I$61) -> FALSE | AI66: FALSE | AJ66: FALSE | AK66: FALSE | AL66: FALSE | AM66: FALSE | AN66: FALSE | AO66: FALSE
E67: Generate tax trigger adjustment after lower threshold breach | G67: text | AH67: =AND($E30 = $E$37, AH$4 <= $I4, AH60 < AH58, $I$61) -> FALSE | AI67: FALSE | AJ67: FALSE | AK67: FALSE | AL67: FALSE | AM67: FALSE | AN67: FALSE | AO67: FALSE
E69: Tax trigger adjustment | G69: £m 09/10 prices | AH69: =IF(AH66, AH59-AH58, IF(AH67, AH60-AH58, 0 )) -> 0 | AI69: 0 | AJ69: 0 | AK69: 0 | AL69: 0 | AM69: 0 | AN69: 0 | AO69: 0
B71: Tax trigger parameters
B72: Instruction: Enter values in the yellow cells below for use in the Tax Trigger test.
B73: Note: Flags are used throughout to indicate whether the original or Tax Trigger value is being used. The live values below are exported for use throughout the model.
C75: Active policy
E77: Tax trigger tax settings are used | G77: flag | AH77: =IF(AND(AH$4 <= $I4, OR($E32 = $E$37, $E33 = $E$37)), TRUE(), FALSE()) -> FALSE | AI77: FALSE | AJ77: FALSE | AK77: FALSE | AL77: FALSE | AM77: FALSE | AN77: FALSE | AO77: FALSE
C79: Threshold
E81: Testing upper threshold | G81: text | AH81: =$E32 = $E$37 -> FALSE | AI81: FALSE | AJ81: FALSE | AK81: FALSE | AL81: FALSE | AM81: FALSE | AN81: FALSE | AO81: FALSE
E82: Upper threshold | G82: £m 09/10 prices | AH82: 0.5 | AI82: 0.5 | AJ82: 0.5 | AK82: 0.5 | AL82: 0.5 | AM82: 0.5 | AN82: 0.5 | AO82: 0.5
E84: Testing lower threshold | G84: text | AH84: =$E33 = $E$37 -> FALSE | AI84: FALSE | AJ84: FALSE | AK84: FALSE | AL84: FALSE | AM84: FALSE | AN84: FALSE | AO84: FALSE
E85: Lower threshold | G85: £m 09/10 prices | AH85: -0.5 | AI85: -0.5 | AJ85: -0.5 | AK85: -0.5 | AL85: -0.5 | AM85: -0.5 | AN85: -0.5 | AO85: -0.5
E87: Threshold value | G87: £m 09/10 prices | AH87: =(AH81 * AH82) + (AH84 * AH85) -> 0 | AI87: 0 | AJ87: 0 | AK87: 0 | AL87: 0 | AM87: 0 | AN87: 0 | AO87: 0
C89: Corporation tax rate
E91: Active | G91: text | AH91: =AH$77 = FALSE() -> TRUE | AI91: TRUE | AJ91: TRUE | AK91: TRUE | AL91: TRUE | AM91: TRUE | AN91: TRUE | AO91: TRUE
E92: RIIO | G92: % | J92: > | Y92: =Input!Y496 -> 0.3 | Z92: =Input!Z496 -> 0.3 | AA92: =Input!AA496 -> 0.3 | AB92: =Input!AB496 -> 0.3 | AC92: =Input!AC496 -> 0.28 | AD92: =Input!AD496 -> 0.28 | AE92: =Input!AE496 -> 0.28 | AF92: =Input!AF496 -> 0.26 | AG92: =Input!AG496 -> 0.24 | AH92: =Input!AH496 -> 0.23 | AI92: =Input!AI496 -> 0.22 | AJ92: =Input!AJ496 -> 0.22 | AK92: =Input!AK496 -> 0.22 | AL92: =Input!AL496 -> 0.22 | AM92: =Input!AM496 -> 0.22 | AN92: =Input!AN496 -> 0.22 | AO92: =Input!AO496 -> 0.22
E94: Active | G94: text | AH94: =AH$77 -> FALSE | AI94: FALSE | AJ94: FALSE | AK94: FALSE | AL94: FALSE | AM94: FALSE | AN94: FALSE | AO94: FALSE
E95: Tax trigger | G95: % | AH95: =AH92 -> 0.23 | AI95: 0.22 | AJ95: 0.22 | AK95: 0.22 | AL95: 0.22 | AM95: 0.22 | AN95: 0.22 | AO95: 0.22
E97: Applied | G97: % | J97: > | Y97: =Y92 -> 0.3 | Z97: =Z92 -> 0.3 | AA97: =AA92 -> 0.3 | AB97: 0.3 | AC97: 0.28 | AD97: 0.28 | AE97: 0.28 | AF97: 0.26 | AG97: 0.24 | AH97: =(AH91 * AH92) + (AH94 * AH95) -> 0.23 | AI97: =(AI91 * AI92) + (AI94 * AI95) -> 0.22 | AJ97: 0.22 | AK97: 0.22 | AL97: 0.22 | AM97: 0.22 | AN97: 0.22 | AO97: 0.22
C99: Capital allowance rate
D101: General pool writing down allowance rate
E103: Active | G103: text | AH103: =AH$77 = FALSE() -> TRUE | AI103: TRUE | AJ103: TRUE | AK103: TRUE | AL103: TRUE | AM103: TRUE | AN103: TRUE | AO103: TRUE
E104: RIIO | G104: % | V104: =Input!V498 -> 0.25 | W104: =Input!W498 -> 0.25 | X104: =Input!X498 -> 0.25 | Y104: =Input!Y498 -> 0.25 | Z104: =Input!Z498 -> 0.25 | AA104: =Input!AA498 -> 0.25 | AB104: =Input!AB498 -> 0.25 | AC104: =Input!AC498 -> 0.2 | AD104: =Input!AD498 -> 0.2 | AE104: =Input!AE498 -> 0.2 | AF104: =Input!AF498 -> 0.2 | AG104: =Input!AG498 -> 0.18 | AH104: =Input!AH498 -> 0.18 | AI104: =Input!AI498 -> 0.18 | AJ104: =Input!AJ498 -> 0.18 | AK104: =Input!AK498 -> 0.18 | AL104: =Input!AL498 -> 0.18 | AM104: =Input!AM498 -> 0.18 | AN104: =Input!AN498 -> 0.18 | AO104: =Input!AO498 -> 0.18
E106: Active | G106: text | AH106: =AH$77 -> FALSE | AI106: FALSE | AJ106: FALSE | AK106: FALSE | AL106: FALSE | AM106: FALSE | AN106: FALSE | AO106: FALSE
E107: Tax trigger | G107: % | AH107: =AH104 -> 0.18 | AI107: =AI104 -> 0.18 | AJ107: 0.18 | AK107: 0.18 | AL107: 0.18 | AM107: 0.18 | AN107: 0.18 | AO107: 0.18
E109: Applied | G109: % | V109: =V104 -> 0.25 | W109: 0.25 | X109: 0.25 | Y109: 0.25 | Z109: 0.25 | AA109: 0.25 | AB109: 0.25 | AC109: 0.2 | AD109: 0.2 | AE109: 0.2 | AF109: 0.2 | AG109: =AG104 -> 0.18 | AH109: =(AH103 * AH104) + (AH106 * AH107) -> 0.18 | AI109: 0.18 | AJ109: 0.18 | AK109: 0.18 | AL109: 0.18 | AM109: 0.18 | AN109: 0.18 | AO109: 0.18
D111: Special Rates
E113: Active | G113: text | AH113: =AH$77 = FALSE() -> TRUE | AI113: TRUE | AJ113: TRUE | AK113: TRUE | AL113: TRUE | AM113: TRUE | AN113: TRUE | AO113: TRUE
E114: RIIO | G114: % | J114: > | V114: =Input!V499 -> 0.06 | W114: =Input!W499 -> 0.06 | X114: =Input!X499 -> 0.06 | Y114: =Input!Y499 -> 0.06 | Z114: =Input!Z499 -> 0.06 | AA114: =Input!AA499 -> 0.06 | AB114: =Input!AB499 -> 0.06 | AC114: =Input!AC499 -> 0.1 | AD114: =Input!AD499 -> 0.1 | AE114: =Input!AE499 -> 0.1 | AF114: =Input!AF499 -> 0.1 | AG114: =Input!AG499 -> 0.08 | AH114: =Input!AH499 -> 0.08 | AI114: =Input!AI499 -> 0.08 | AJ114: =Input!AJ499 -> 0.08 | AK114: =Input!AK499 -> 0.08 | AL114: =Input!AL499 -> 0.08 | AM114: =Input!AM499 -> 0.08 | AN114: =Input!AN499 -> 0.08 | AO114: =Input!AO499 -> 0.08
E116: Active | G116: text | AH116: =AH$77 -> FALSE | AI116: FALSE | AJ116: FALSE | AK116: FALSE | AL116: FALSE | AM116: FALSE | AN116: FALSE | AO116: FALSE
E117: Tax trigger | G117: % | AH117: =AH114 -> 0.08 | AI117: =AI114 -> 0.08 | AJ117: 0.08 | AK117: 0.08 | AL117: 0.08 | AM117: 0.08 | AN117: 0.08 | AO117: 0.08
E119: Applied | G119: % | J119: > | V119: =V114 -> 0.06 | W119: =W114 -> 0.06 | X119: =X114 -> 0.06 | Y119: =Y114 -> 0.06 | Z119: =Z114 -> 0.06 | AA119: =AA114 -> 0.06 | AB119: 0.06 | AC119: 0.1 | AD119: 0.1 | AE119: 0.1 | AF119: 0.1 | AG119: 0.08 | AH119: =(AH113 * AH114) + (AH116 * AH117) -> 0.08 | AI119: 0.08 | AJ119: 0.08 | AK119: 0.08 | AL119: 0.08 | AM119: 0.08 | AN119: 0.08 | AO119: 0.08
D121: Deferred revenue writing down allowance rate
E123: Active | G123: text | AH123: =AH$77 = FALSE() -> TRUE | AI123: TRUE | AJ123: TRUE | AK123: TRUE | AL123: TRUE | AM123: TRUE | AN123: TRUE | AO123: TRUE
E124: RIIO | G124: % | J124: > | V124: =Input!V500 -> 0 | W124: =Input!W500 -> 0 | X124: =Input!X500 -> 0 | Y124: =Input!Y500 -> 0 | Z124: =Input!Z500 -> 0 | AA124: =Input!AA500 -> 0 | AB124: =Input!AB500 -> 0 | AC124: =Input!AC500 -> 0 | AD124: =Input!AD500 -> 0 | AE124: =Input!AE500 -> 0 | AF124: =Input!AF500 -> 0 | AG124: =Input!AG500 -> 0 | AH124: =Input!AH500 -> 0.0222 | AI124: =Input!AI500 -> 0.0222 | AJ124: =Input!AJ500 -> 0.0222 | AK124: =Input!AK500 -> 0.0222 | AL124: =Input!AL500 -> 0.0222 | AM124: =Input!AM500 -> 0.0222 | AN124: =Input!AN500 -> 0.0222 | AO124: =Input!AO500 -> 0.0222
E126: Active | G126: text | AH126: =AH$77 -> FALSE | AI126: FALSE | AJ126: FALSE | AK126: FALSE | AL126: FALSE | AM126: FALSE | AN126: FALSE | AO126: FALSE
E127: Tax trigger | G127: % | AH127: =AH124 -> 0.0222 | AI127: =AI124 -> 0.0222 | AJ127: 0.0222 | AK127: 0.0222 | AL127: 0.0222 | AM127: 0.0222 | AN127: 0.0222 | AO127: 0.0222
E129: Applied | G129: % | J129: > | V129: =V124 -> 0 | W129: 0 | X129: 0 | Y129: 0 | Z129: 0 | AA129: 0 | AB129: 0 | AC129: 0 | AD129: 0 | AE129: 0 | AF129: 0 | AG129: =AG124 -> 0 | AH129: =(AH123 * AH124) + (AH126 * AH127) -> 0.0222 | AI129: 0.0222 | AJ129: 0.0222 | AK129: 0.0222 | AL129: 0.0222 | AM129: 0.0222 | AN129: 0.0222 | AO129: 0.0222
C131: BCD event value
E133: Active | G133: text | AH133: =AH$77 -> FALSE | AI133: FALSE | AJ133: FALSE | AK133: FALSE | AL133: FALSE | AM133: FALSE | AN133: FALSE | AO133: FALSE
E134: Tax trigger | G134: £m 09/10 prices | AH134: 0 | AI134: 0 | AJ134: 0 | AK134: 0 | AL134: 0 | AM134: 0 | AN134: 0 | AO134: 0
E136: Applied | G136: £m 09/10 prices | AH136: =AH133 * AH134 -> 0 | AI136: =AI133 * AI134 -> 0 | AJ136: 0 | AK136: 0 | AL136: 0 | AM136: 0 | AN136: 0 | AO136: 0
B138: End of sheet

Sheet Input
A1: Input
B2: =UserInterface!G23 -> Wales & West
E3: Parameter | F3: Source/ Licence condition | G3: Units | I3: Constant | AH3: Annual values
E4: PCFM year ending | F4: =Cover!C3 -> Licence Model IP version - for publication 20120727.xlsm | I4: =UserInterface!$G$16 -> 2014-03-31 | K4: 1991-03-31 | L4: 1992-03-31 | M4: 1993-03-31 | N4: 1994-03-31 | O4: 1995-03-31 | P4: 1996-03-31 | Q4: 1997-03-31 | R4: 1998-03-31 | S4: 1999-03-31 | T4: 2000-03-31 | U4: 2001-03-31 | V4: 2002-03-31 | W4: 2003-03-31 | X4: 2004-03-31 | Y4: 2005-03-31 | Z4: 2006-03-31 | AA4: 2007-03-31 | AB4: 2008-03-31 | AC4: 2009-03-31 | AD4: 2010-03-31 | AE4: 2011-03-31 | AF4: 2012-03-31 | AG4: 2013-03-31 | AH4: 2014-03-31 | AI4: 2015-03-31 | AJ4: 2016-03-31 | AK4: 2017-03-31 | AL4: 2018-03-31 | AM4: 2019-03-31 | AN4: 2020-03-31 | AO4: 2021-03-31
B6: PCFM Variable Values Table
E8: Cost of debt | F8: SC3 | G8: annual real % | AH8: =IF(UserInterface!$E$72 = 1,CHOOSE(m_identity,SHETL!AH8, SPTL!AH8, 'NGET TO (Base)'!AH8, 0, 'NGGT TO (Base)'!AH8, 0, East!AH8, London!AH8, 'North West'!AH8, 'West Midlands'!AH8, Northern!AH8, Scotland!AH8, Southern!AH8, 'Wales & West'!AH8), CHOOSE(m_identity,SHETL!AH8, SPTL!AH8, 'NGET TO (Best)'!AH8, 0, 'NGGT TO (Best)'!AH8, 0, East!AH8, London!AH8, 'North West'!AH8, 'West Midlands'!AH8, Northern!AH8, Scotland!AH8, Southern!AH8, 'Wales & West'!AH8)) -> 0.0303 | AI8: =IF(UserInterface!$E$72 = 1,CHOOSE(m_identity,SHETL!AI8, SPTL!AI8, 'NGET TO (Base)'!AI8, 0, 'NGGT TO (Base)'!AI8, 0, East!AI8, London!AI8, 'North West'!AI8, 'West Midlands'!AI8, Northern!AI8, Scotland!AI8, Southern!AI8, 'Wales & West'!AI8), CHOOSE(m_identity,SHETL!AI8, SPTL!AI8, 'NGET TO (Best)'!AI8, 0, 'NGGT TO (Best)'!AI8, 0, East!AI8, London!AI8, 'North West'!AI8, 'West Midlands'!AI8, Northern!AI8, Scotland!AI8, Southern!AI8, 'Wales & West'!AI8)) -> 0.0303 | AJ8: =IF(UserInterface!$E$72 = 1,CHOOSE(m_identity,SHETL!AJ8, SPTL!AJ8, 'NGET TO (Base)'!AJ8, 0, 'NGGT TO (Base)'!AJ8, 0, East!AJ8, London!AJ8, 'North West'!AJ8, 'West Midlands'!AJ8, Northern!AJ8, Scotland!AJ8, Southern!AJ8, 'Wales & West'!AJ8), CHOOSE(m_identity,SHETL!AJ8, SPTL!AJ8, 'NGET TO (Best)'!AJ8, 0, 'NGGT TO (Best)'!AJ8, 0, East!AJ8, London!AJ8, 'North West'!AJ8, 'West Midlands'!AJ8, Northern!AJ8, Scotland!AJ8, Southern!AJ8, 'Wales & West'!AJ8)) -> 0.0303 | AK8: =IF(UserInterface!$E$72 = 1,CHOOSE(m_identity,SHETL!AK8, SPTL!AK8, 'NGET TO (Base)'!AK8, 0, 'NGGT TO (Base)'!AK8, 0, East!AK8, London!AK8, 'North West'!AK8, 'West Midlands'!AK8, Northern!AK8, Scotland!AK8, Southern!AK8, 'Wales & West'!AK8), CHOOSE(m_identity,SHETL!AK8, SPTL!AK8, 'NGET TO (Best)'!AK8, 0, 'NGGT TO (Best)'!AK8, 0, East!AK8, London!AK8, 'North West'!AK8, 'West Midlands'!AK8, Northern!AK8, Scotland!AK8, Southern!AK8, 'Wales & West'!AK8)) -> 0.0303 | AL8: =IF(UserInterface!$E$72 = 1,CHOOSE(m_identity,SHETL!AL8, SPTL!AL8, 'NGET TO (Base)'!AL8, 0, 'NGGT TO (Base)'!AL8, 0, East!AL8, London!AL8, 'North West'!AL8, 'West Midlands'!AL8, Northern!AL8, Scotland!AL8, Southern!AL8, 'Wales & West'!AL8), CHOOSE(m_identity,SHETL!AL8, SPTL!AL8, 'NGET TO (Best)'!AL8, 0, 'NGGT TO (Best)'!AL8, 0, East!AL8, London!AL8, 'North West'!AL8, 'West Midlands'!AL8, Northern!AL8, Scotland!AL8, Southern!AL8, 'Wales & West'!AL8)) -> 0.0303 | AM8: =IF(UserInterface!$E$72 = 1,CHOOSE(m_identity,SHETL!AM8, SPTL!AM8, 'NGET TO (Base)'!AM8, 0, 'NGGT TO (Base)'!AM8, 0, East!AM8, London!AM8, 'North West'!AM8, 'West Midlands'!AM8, Northern!AM8, Scotland!AM8, Southern!AM8, 'Wales & West'!AM8), CHOOSE(m_identity,SHETL!AM8, SPTL!AM8, 'NGET TO (Best)'!AM8, 0, 'NGGT TO (Best)'!AM8, 0, East!AM8, London!AM8, 'North West'!AM8, 'West Midlands'!AM8, Northern!AM8, Scotland!AM8, Southern!AM8, 'Wales & West'!AM8)) -> 0.0303 | AN8: =IF(UserInterface!$E$72 = 1,CHOOSE(m_identity,SHETL!AN8, SPTL!AN8, 'NGET TO (Base)'!AN8, 0, 'NGGT TO (Base)'!AN8, 0, East!AN8, London!AN8, 'North West'!AN8, 'West Midlands'!AN8, Northern!AN8, Scotland!AN8, Southern!AN8, 'Wales & West'!AN8), CHOOSE(m_identity,SHETL!AN8, SPTL!AN8, 'NGET TO (Best)'!AN8, 0, 'NGGT TO (Best)'!AN8, 0, East!AN8, London!AN8, 'North West'!AN8, 'West Midlands'!AN8, Northern!AN8, Scotland!AN8, Southern!AN8, 'Wales & West'!AN8)) -> 0.0303 | AO8: =IF(UserInterface!$E$72 = 1,CHOOSE(m_identity,SHETL!AO8, SPTL!AO8, 'NGET TO (Base)'!AO8, 0, 'NGGT TO (Base)'!AO8, 0, East!AO8, London!AO8, 'North West'!AO8, 'West Midlands'!AO8, Northern!AO8, Scotland!AO8, Southern!AO8, 'Wales & West'!AO8), CHOOSE(m_identity,SHETL!AO8, SPTL!AO8, 'NGET TO (Best)'!AO8, 0, 'NGGT TO (Best)'!AO8, 0, East!AO8, London!AO8, 'North West'!AO8, 'West Midlands'!AO8, Northern!AO8, Scotland!AO8, Southern!AO8, 'Wales & West'!AO8)) -> 0.0303
E9: Actual load related capex | F9: SC2 | G9: £m 09/10 prices | AH9: =IF(UserInterface!$E$72 = 1,CHOOSE(m_identity,SHETL!AH9, SPTL!AH9, 'NGET TO (Base)'!AH9, 0, 'NGGT TO (Base)'!AH9, 0, East!AH9, London!AH9, 'North West'!AH9, 'West Midlands'!AH9, Northern!AH9, Scotland!AH9, Southern!AH9, 'Wales & West'!AH9), CHOOSE(m_identity,SHETL!AH9, SPTL!AH9, 'NGET TO (Best)'!AH9, 0, 'NGGT TO (Best)'!AH9, 0, East!AH9, London!AH9, 'North West'!AH9, 'West Midlands'!AH9, Northern!AH9, Scotland!AH9, Southern!AH9, 'Wales & West'!AH9)) -> 0 | AI9: =IF(UserInterface!$E$72 = 1,CHOOSE(m_identity,SHETL!AI9, SPTL!AI9, 'NGET TO (Base)'!AI9, 0, 'NGGT TO (Base)'!AI9, 0, East!AI9, London!AI9, 'North West'!AI9, 'West Midlands'!AI9, Northern!AI9, Scotland!AI9, Southern!AI9, 'Wales & West'!AI9), CHOOSE(m_identity,SHETL!AI9, SPTL!AI9, 'NGET TO (Best)'!AI9, 0, 'NGGT TO (Best)'!AI9, 0, East!AI9, London!AI9, 'North West'!AI9, 'West Midlands'!AI9, Northern!AI9, Scotland!AI9, Southern!AI9, 'Wales & West'!AI9)) -> 0 | AJ9: =IF(UserInterface!$E$72 = 1,CHOOSE(m_identity,SHETL!AJ9, SPTL!AJ9, 'NGET TO (Base)'!AJ9, 0, 'NGGT TO (Base)'!AJ9, 0, East!AJ9, London!AJ9, 'North West'!AJ9, 'West Midlands'!AJ9, Northern!AJ9, Scotland!AJ9, Southern!AJ9, 'Wales & West'!AJ9), CHOOSE(m_identity,SHETL!AJ9, SPTL!AJ9, 'NGET TO (Best)'!AJ9, 0, 'NGGT TO (Best)'!AJ9, 0, East!AJ9, London!AJ9, 'North West'!AJ9, 'West Midlands'!AJ9, Northern!AJ9, Scotland!AJ9, Southern!AJ9, 'Wales & West'!AJ9)) -> 0 | AK9: =IF(UserInterface!$E$72 = 1,CHOOSE(m_identity,SHETL!AK9, SPTL!AK9, 'NGET TO (Base)'!AK9, 0, 'NGGT TO (Base)'!AK9, 0, East!AK9, London!AK9, 'North West'!AK9, 'West Midlands'!AK9, Northern!AK9, Scotland!AK9, Southern!AK9, 'Wales & West'!AK9), CHOOSE(m_identity,SHETL!AK9, SPTL!AK9, 'NGET TO (Best)'!AK9, 0, 'NGGT TO (Best)'!AK9, 0, East!AK9, London!AK9, 'North West'!AK9, 'West Midlands'!AK9, Northern!AK9, Scotland!AK9, Southern!AK9, 'Wales & West'!AK9)) -> 0 | AL9: =IF(UserInterface!$E$72 = 1,CHOOSE(m_identity,SHETL!AL9, SPTL!AL9, 'NGET TO (Base)'!AL9, 0, 'NGGT TO (Base)'!AL9, 0, East!AL9, London!AL9, 'North West'!AL9, 'West Midlands'!AL9, Northern!AL9, Scotland!AL9, Southern!AL9, 'Wales & West'!AL9), CHOOSE(m_identity,SHETL!AL9, SPTL!AL9, 'NGET TO (Best)'!AL9, 0, 'NGGT TO (Best)'!AL9, 0, East!AL9, London!AL9, 'North West'!AL9, 'West Midlands'!AL9, Northern!AL9, Scotland!AL9, Southern!AL9, 'Wales & West'!AL9)) -> 0 | AM9: =IF(UserInterface!$E$72 = 1,CHOOSE(m_identity,SHETL!AM9, SPTL!AM9, 'NGET TO (Base)'!AM9, 0, 'NGGT TO (Base)'!AM9, 0, East!AM9, London!AM9, 'North West'!AM9, 'West Midlands'!AM9, Northern!AM9, Scotland!AM9, Southern!AM9, 'Wales & West'!AM9), CHOOSE(m_identity,SHETL!AM9, SPTL!AM9, 'NGET TO (Best)'!AM9, 0, 'NGGT TO (Best)'!AM9, 0, East!AM9, London!AM9, 'North West'!AM9, 'West Midlands'!AM9, Northern!AM9, Scotland!AM9, Southern!AM9, 'Wales & West'!AM9)) -> 0 | AN9: =IF(UserInterface!$E$72 = 1,CHOOSE(m_identity,SHETL!AN9, SPTL!AN9, 'NGET TO (Base)'!AN9, 0, 'NGGT TO (Base)'!AN9, 0, East!AN9, London!AN9, 'North West'!AN9, 'West Midlands'!AN9, Northern!AN9, Scotland!AN9, Southern!AN9, 'Wales & West'!AN9), CHOOSE(m_identity,SHETL!AN9, SPTL!AN9, 'NGET TO (Best)'!AN9, 0, 'NGGT TO (Best)'!AN9, 0, East!AN9, London!AN9, 'North West'!AN9, 'West Midlands'!AN9, Northern!AN9, Scotland!AN9, Southern!AN9, 'Wales & West'!AN9)) -> 0 | AO9: =IF(UserInterface!$E$72 = 1,CHOOSE(m_identity,SHETL!AO9, SPTL!AO9, 'NGET TO (Base)'!AO9, 0, 'NGGT TO (Base)'!AO9, 0, East!AO9, London!AO9, 'North West'!AO9, 'West Midlands'!AO9, Northern!AO9, Scotland!AO9, Southern!AO9, 'Wales & West'!AO9), CHOOSE(m_identity,SHETL!AO9, SPTL!AO9, 'NGET TO (Best)'!AO9, 0, 'NGGT TO (Best)'!AO9, 0, East!AO9, London!AO9, 'North West'!AO9, 'West Midlands'!AO9, Northern!AO9, Scotland!AO9, Southern!AO9, 'Wales & West'!AO9)) -> 0
E10: Actual non-load related capex - asset replacement | F10: SC2 | G10: £m 09/10 prices | AH10: =IF(UserInterface!$E$72 = 1,CHOOSE(m_identity,SHETL!AH10, SPTL!AH10, 'NGET TO (Base)'!AH10, 0, 'NGGT TO (Base)'!AH10, 0, East!AH10, London!AH10, 'North West'!AH10, 'West Midlands'!AH10, Northern!AH10, Scotland!AH10, Southern!AH10, 'Wales & West'!AH10), CHOOSE(m_identity,SHETL!AH10, SPTL!AH10, 'NGET TO (Best)'!AH10, 0, 'NGGT TO (Best)'!AH10, 0, East!AH10, London!AH10, 'North West'!AH10, 'West Midlands'!AH10, Northern!AH10, Scotland!AH10, Southern!AH10, 'Wales & West'!AH10)) -> 0 | AI10: =IF(UserInterface!$E$72 = 1,CHOOSE(m_identity,SHETL!AI10, SPTL!AI10, 'NGET TO (Base)'!AI10, 0, 'NGGT TO (Base)'!AI10, 0, East!AI10, London!AI10, 'North West'!AI10, 'West Midlands'!AI10, Northern!AI10, Scotland!AI10, Southern!AI10, 'Wales & West'!AI10), CHOOSE(m_identity,SHETL!AI10, SPTL!AI10, 'NGET TO (Best)'!AI10, 0, 'NGGT TO (Best)'!AI10, 0, East!AI10, London!AI10, 'North West'!AI10, 'West Midlands'!AI10, Northern!AI10, Scotland!AI10, Southern!AI10, 'Wales & West'!AI10)) -> 0 | AJ10: =IF(UserInterface!$E$72 = 1,CHOOSE(m_identity,SHETL!AJ10, SPTL!AJ10, 'NGET TO (Base)'!AJ10, 0, 'NGGT TO (Base)'!AJ10, 0, East!AJ10, London!AJ10, 'North West'!AJ10, 'West Midlands'!AJ10, Northern!AJ10, Scotland!AJ10, Southern!AJ10, 'Wales & West'!AJ10), CHOOSE(m_identity,SHETL!AJ10, SPTL!AJ10, 'NGET TO (Best)'!AJ10, 0, 'NGGT TO (Best)'!AJ10, 0, East!AJ10, London!AJ10, 'North West'!AJ10, 'West Midlands'!AJ10, Northern!AJ10, Scotland!AJ10, Southern!AJ10, 'Wales & West'!AJ10)) -> 0 | AK10: =IF(UserInterface!$E$72 = 1,CHOOSE(m_identity,SHETL!AK10, SPTL!AK10, 'NGET TO (Base)'!AK10, 0, 'NGGT TO (Base)'!AK10, 0, East!AK10, London!AK10, 'North West'!AK10, 'West Midlands'!AK10, Northern!AK10, Scotland!AK10, Southern!AK10, 'Wales & West'!AK10), CHOOSE(m_identity,SHETL!AK10, SPTL!AK10, 'NGET TO (Best)'!AK10, 0, 'NGGT TO (Best)'!AK10, 0, East!AK10, London!AK10, 'North West'!AK10, 'West Midlands'!AK10, Northern!AK10, Scotland!AK10, Southern!AK10, 'Wales & West'!AK10)) -> 0 | AL10: =IF(UserInterface!$E$72 = 1,CHOOSE(m_identity,SHETL!AL10, SPTL!AL10, 'NGET TO (Base)'!AL10, 0, 'NGGT TO (Base)'!AL10, 0, East!AL10, London!AL10, 'North West'!AL10, 'West Midlands'!AL10, Northern!AL10, Scotland!AL10, Southern!AL10, 'Wales & West'!AL10), CHOOSE(m_identity,SHETL!AL10, SPTL!AL10, 'NGET TO (Best)'!AL10, 0, 'NGGT TO (Best)'!AL10, 0, East!AL10, London!AL10, 'North West'!AL10, 'West Midlands'!AL10, Northern!AL10, Scotland!AL10, Southern!AL10, 'Wales & West'!AL10)) -> 0 | AM10: =IF(UserInterface!$E$72 = 1,CHOOSE(m_identity,SHETL!AM10, SPTL!AM10, 'NGET TO (Base)'!AM10, 0, 'NGGT TO (Base)'!AM10, 0, East!AM10, London!AM10, 'North West'!AM10, 'West Midlands'!AM10, Northern!AM10, Scotland!AM10, Southern!AM10, 'Wales & West'!AM10), CHOOSE(m_identity,SHETL!AM10, SPTL!AM10, 'NGET TO (Best)'!AM10, 0, 'NGGT TO (Best)'!AM10, 0, East!AM10, London!AM10, 'North West'!AM10, 'West Midlands'!AM10, Northern!AM10, Scotland!AM10, Southern!AM10, 'Wales & West'!AM10)) -> 0 | AN10: =IF(UserInterface!$E$72 = 1,CHOOSE(m_identity,SHETL!AN10, SPTL!AN10, 'NGET TO (Base)'!AN10, 0, 'NGGT TO (Base)'!AN10, 0, East!AN10, London!AN10, 'North West'!AN10, 'West Midlands'!AN10, Northern!AN10, Scotland!AN10, Southern!AN10, 'Wales & West'!AN10), CHOOSE(m_identity,SHETL!AN10, SPTL!AN10, 'NGET TO (Best)'!AN10, 0, 'NGGT TO (Best)'!AN10, 0, East!AN10, London!AN10, 'North West'!AN10, 'West Midlands'!AN10, Northern!AN10, Scotland!AN10, Southern!AN10, 'Wales & West'!AN10)) -> 0 | AO10: =IF(UserInterface!$E$72 = 1,CHOOSE(m_identity,SHETL!AO10, SPTL!AO10, 'NGET TO (Base)'!AO10, 0, 'NGGT TO (Base)'!AO10, 0, East!AO10, London!AO10, 'North West'!AO10, 'West Midlands'!AO10, Northern!AO10, Scotland!AO10, Southern!AO10, 'Wales & West'!AO10), CHOOSE(m_identity,SHETL!AO10, SPTL!AO10, 'NGET TO (Best)'!AO10, 0, 'NGGT TO (Best)'!AO10, 0, East!AO10, London!AO10, 'North West'!AO10, 'West Midlands'!AO10, Northern!AO10, Scotland!AO10, Southern!AO10, 'Wales & West'!AO10)) -> 0
E11: Actual non-load related capex - other | F11: SC2 | G11: £m 09/10 prices | AH11: =IF(UserInterface!$E$72 = 1,CHOOSE(m_identity,SHETL!AH11, SPTL!AH11, 'NGET TO (Base)'!AH11, 0, 'NGGT TO (Base)'!AH11, 0, East!AH11, London!AH11, 'North West'!AH11, 'West Midlands'!AH11, Northern!AH11, Scotland!AH11, Southern!AH11, 'Wales & West'!AH11), CHOOSE(m_identity,SHETL!AH11, SPTL!AH11, 'NGET TO (Best)'!AH11, 0, 'NGGT TO (Best)'!AH11, 0, East!AH11, London!AH11, 'North West'!AH11, 'West Midlands'!AH11, Northern!AH11, Scotland!AH11, Southern!AH11, 'Wales & West'!AH11)) -> 0 | AI11: =IF(UserInterface!$E$72 = 1,CHOOSE(m_identity,SHETL!AI11, SPTL!AI11, 'NGET TO (Base)'!AI11, 0, 'NGGT TO (Base)'!AI11, 0, East!AI11, London!AI11, 'North West'!AI11, 'West Midlands'!AI11, Northern!AI11, Scotland!AI11, Southern!AI11, 'Wales & West'!AI11), CHOOSE(m_identity,SHETL!AI11, SPTL!AI11, 'NGET TO (Best)'!AI11, 0, 'NGGT TO (Best)'!AI11, 0, East!AI11, London!AI11, 'North West'!AI11, 'West Midlands'!AI11, Northern!AI11, Scotland!AI11, Southern!AI11, 'Wales & West'!AI11)) -> 0 | AJ11: =IF(UserInterface!$E$72 = 1,CHOOSE(m_identity,SHETL!AJ11, SPTL!AJ11, 'NGET TO (Base)'!AJ11, 0, 'NGGT TO (Base)'!AJ11, 0, East!AJ11, London!AJ11, 'North West'!AJ11, 'West Midlands'!AJ11, Northern!AJ11, Scotland!AJ11, Southern!AJ11, 'Wales & West'!AJ11), CHOOSE(m_identity,SHETL!AJ11, SPTL!AJ11, 'NGET TO (Best)'!AJ11, 0, 'NGGT TO (Best)'!AJ11, 0, East!AJ11, London!AJ11, 'North West'!AJ11, 'West Midlands'!AJ11, Northern!AJ11, Scotland!AJ11, Southern!AJ11, 'Wales & West'!AJ11)) -> 0 | AK11: =IF(UserInterface!$E$72 = 1,CHOOSE(m_identity,SHETL!AK11, SPTL!AK11, 'NGET TO (Base)'!AK11, 0, 'NGGT TO (Base)'!AK11, 0, East!AK11, London!AK11, 'North West'!AK11, 'West Midlands'!AK11, Northern!AK11, Scotland!AK11, Southern!AK11, 'Wales & West'!AK11), CHOOSE(m_identity,SHETL!AK11, SPTL!AK11, 'NGET TO (Best)'!AK11, 0, 'NGGT TO (Best)'!AK11, 0, East!AK11, London!AK11, 'North West'!AK11, 'West Midlands'!AK11, Northern!AK11, Scotland!AK11, Southern!AK11, 'Wales & West'!AK11)) -> 0 | AL11: =IF(UserInterface!$E$72 = 1,CHOOSE(m_identity,SHETL!AL11, SPTL!AL11, 'NGET TO (Base)'!AL11, 0, 'NGGT TO (Base)'!AL11, 0, East!AL11, London!AL11, 'North West'!AL11, 'West Midlands'!AL11, Northern!AL11, Scotland!AL11, Southern!AL11, 'Wales & West'!AL11), CHOOSE(m_identity,SHETL!AL11, SPTL!AL11, 'NGET TO (Best)'!AL11, 0, 'NGGT TO (Best)'!AL11, 0, East!AL11, London!AL11, 'North West'!AL11, 'West Midlands'!AL11, Northern!AL11, Scotland!AL11, Southern!AL11, 'Wales & West'!AL11)) -> 0 | AM11: =IF(UserInterface!$E$72 = 1,CHOOSE(m_identity,SHETL!AM11, SPTL!AM11, 'NGET TO (Base)'!AM11, 0, 'NGGT TO (Base)'!AM11, 0, East!AM11, London!AM11, 'North West'!AM11, 'West Midlands'!AM11, Northern!AM11, Scotland!AM11, Southern!AM11, 'Wales & West'!AM11), CHOOSE(m_identity,SHETL!AM11, SPTL!AM11, 'NGET TO (Best)'!AM11, 0, 'NGGT TO (Best)'!AM11, 0, East!AM11, London!AM11, 'North West'!AM11, 'West Midlands'!AM11, Northern!AM11, Scotland!AM11, Southern!AM11, 'Wales & West'!AM11)) -> 0 | AN11: =IF(UserInterface!$E$72 = 1,CHOOSE(m_identity,SHETL!AN11, SPTL!AN11, 'NGET TO (Base)'!AN11, 0, 'NGGT TO (Base)'!AN11, 0, East!AN11, London!AN11, 'North West'!AN11, 'West Midlands'!AN11, Northern!AN11, Scotland!AN11, Southern!AN11, 'Wales & West'!AN11), CHOOSE(m_identity,SHETL!AN11, SPTL!AN11, 'NGET TO (Best)'!AN11, 0, 'NGGT TO (Best)'!AN11, 0, East!AN11, London!AN11, 'North West'!AN11, 'West Midlands'!AN11, Northern!AN11, Scotland!AN11, Southern!AN11, 'Wales & West'!AN11)) -> 0 | AO11: =IF(UserInterface!$E$72 = 1,CHOOSE(m_identity,SHETL!AO11, SPTL!AO11, 'NGET TO (Base)'!AO11, 0, 'NGGT TO (Base)'!AO11, 0, East!AO11, London!AO11, 'North West'!AO11, 'West Midlands'!AO11, Northern!AO11, Scotland!AO11, Southern!AO11, 'Wales & West'!AO11), CHOOSE(m_identity,SHETL!AO11, SPTL!AO11, 'NGET TO (Best)'!AO11, 0, 'NGGT TO (Best)'!AO11, 0, East!AO11, London!AO11, 'North West'!AO11, 'West Midlands'!AO11, Northern!AO11, Scotland!AO11, Southern!AO11, 'Wales & West'!AO11)) -> 0
E12: Actual controllable opex | F12: SC2 | G12: £m 09/10 prices | AH12: =IF(UserInterface!$E$72 = 1,CHOOSE(m_identity,SHETL!AH12, SPTL!AH12, 'NGET TO (Base)'!AH12, 0, 'NGGT TO (Base)'!AH12, 0, East!AH12, London!AH12, 'North West'!AH12, 'West Midlands'!AH12, Northern!AH12, Scotland!AH12, Southern!AH12, 'Wales & West'!AH12), CHOOSE(m_identity,SHETL!AH12, SPTL!AH12, 'NGET TO (Best)'!AH12, 0, 'NGGT TO (Best)'!AH12, 0, East!AH12, London!AH12, 'North West'!AH12, 'West Midlands'!AH12, Northern!AH12, Scotland!AH12, Southern!AH12, 'Wales & West'!AH12)) -> 0 | AI12: =IF(UserInterface!$E$72 = 1,CHOOSE(m_identity,SHETL!AI12, SPTL!AI12, 'NGET TO (Base)'!AI12, 0, 'NGGT TO (Base)'!AI12, 0, East!AI12, London!AI12, 'North West'!AI12, 'West Midlands'!AI12, Northern!AI12, Scotland!AI12, Southern!AI12, 'Wales & West'!AI12), CHOOSE(m_identity,SHETL!AI12, SPTL!AI12, 'NGET TO (Best)'!AI12, 0, 'NGGT TO (Best)'!AI12, 0, East!AI12, London!AI12, 'North West'!AI12, 'West Midlands'!AI12, Northern!AI12, Scotland!AI12, Southern!AI12, 'Wales & West'!AI12)) -> 0 | AJ12: =IF(UserInterface!$E$72 = 1,CHOOSE(m_identity,SHETL!AJ12, SPTL!AJ12, 'NGET TO (Base)'!AJ12, 0, 'NGGT TO (Base)'!AJ12, 0, East!AJ12, London!AJ12, 'North West'!AJ12, 'West Midlands'!AJ12, Northern!AJ12, Scotland!AJ12, Southern!AJ12, 'Wales & West'!AJ12), CHOOSE(m_identity,SHETL!AJ12, SPTL!AJ12, 'NGET TO (Best)'!AJ12, 0, 'NGGT TO (Best)'!AJ12, 0, East!AJ12, London!AJ12, 'North West'!AJ12, 'West Midlands'!AJ12, Northern!AJ12, Scotland!AJ12, Southern!AJ12, 'Wales & West'!AJ12)) -> 0 | AK12: =IF(UserInterface!$E$72 = 1,CHOOSE(m_identity,SHETL!AK12, SPTL!AK12, 'NGET TO (Base)'!AK12, 0, 'NGGT TO (Base)'!AK12, 0, East!AK12, London!AK12, 'North West'!AK12, 'West Midlands'!AK12, Northern!AK12, Scotland!AK12, Southern!AK12, 'Wales & West'!AK12), CHOOSE(m_identity,SHETL!AK12, SPTL!AK12, 'NGET TO (Best)'!AK12, 0, 'NGGT TO (Best)'!AK12, 0, East!AK12, London!AK12, 'North West'!AK12, 'West Midlands'!AK12, Northern!AK12, Scotland!AK12, Southern!AK12, 'Wales & West'!AK12)) -> 0 | AL12: =IF(UserInterface!$E$72 = 1,CHOOSE(m_identity,SHETL!AL12, SPTL!AL12, 'NGET TO (Base)'!AL12, 0, 'NGGT TO (Base)'!AL12, 0, East!AL12, London!AL12, 'North West'!AL12, 'West Midlands'!AL12, Northern!AL12, Scotland!AL12, Southern!AL12, 'Wales & West'!AL12), CHOOSE(m_identity,SHETL!AL12, SPTL!AL12, 'NGET TO (Best)'!AL12, 0, 'NGGT TO (Best)'!AL12, 0, East!AL12, London!AL12, 'North West'!AL12, 'West Midlands'!AL12, Northern!AL12, Scotland!AL12, Southern!AL12, 'Wales & West'!AL12)) -> 0 | AM12: =IF(UserInterface!$E$72 = 1,CHOOSE(m_identity,SHETL!AM12, SPTL!AM12, 'NGET TO (Base)'!AM12, 0, 'NGGT TO (Base)'!AM12, 0, East!AM12, London!AM12, 'North West'!AM12, 'West Midlands'!AM12, Northern!AM12, Scotland!AM12, Southern!AM12, 'Wales & West'!AM12), CHOOSE(m_identity,SHETL!AM12, SPTL!AM12, 'NGET TO (Best)'!AM12, 0, 'NGGT TO (Best)'!AM12, 0, East!AM12, London!AM12, 'North West'!AM12, 'West Midlands'!AM12, Northern!AM12, Scotland!AM12, Southern!AM12, 'Wales & West'!AM12)) -> 0 | AN12: =IF(UserInterface!$E$72 = 1,CHOOSE(m_identity,SHETL!AN12, SPTL!AN12, 'NGET TO (Base)'!AN12, 0, 'NGGT TO (Base)'!AN12, 0, East!AN12, London!AN12, 'North West'!AN12, 'West Midlands'!AN12, Northern!AN12, Scotland!AN12, Southern!AN12, 'Wales & West'!AN12), CHOOSE(m_identity,SHETL!AN12, SPTL!AN12, 'NGET TO (Best)'!AN12, 0, 'NGGT TO (Best)'!AN12, 0, East!AN12, London!AN12, 'North West'!AN12, 'West Midlands'!AN12, Northern!AN12, Scotland!AN12, Southern!AN12, 'Wales & West'!AN12)) -> 0 | AO12: =IF(UserInterface!$E$72 = 1,CHOOSE(m_identity,SHETL!AO12, SPTL!AO12, 'NGET TO (Base)'!AO12, 0, 'NGGT TO (Base)'!AO12, 0, East!AO12, London!AO12, 'North West'!AO12, 'West Midlands'!AO12, Northern!AO12, Scotland!AO12, Southern!AO12, 'Wales & West'!AO12), CHOOSE(m_identity,SHETL!AO12, SPTL!AO12, 'NGET TO (Best)'!AO12, 0, 'NGGT TO (Best)'!AO12, 0, East!AO12, London!AO12, 'North West'!AO12, 'West Midlands'!AO12, Northern!AO12, Scotland!AO12, Southern!AO12, 'Wales & West'!AO12)) -> 0
E13: Actual repex | F13: SC2/ GDC22 | G13: £m 09/10 prices | AH13: =IF(UserInterface!$E$72 = 1,CHOOSE(m_identity,SHETL!AH13, SPTL!AH13, 'NGET TO (Base)'!AH13, 0, 'NGGT TO (Base)'!AH13, 0, East!AH13, London!AH13, 'North West'!AH13, 'West Midlands'!AH13, Northern!AH13, Scotland!AH13, Southern!AH13, 'Wales & West'!AH13), CHOOSE(m_identity,SHETL!AH13, SPTL!AH13, 'NGET TO (Best)'!AH13, 0, 'NGGT TO (Best)'!AH13, 0, East!AH13, London!AH13, 'North West'!AH13, 'West Midlands'!AH13, Northern!AH13, Scotland!AH13, Southern!AH13, 'Wales & West'!AH13)) -> 0 | AI13: =IF(UserInterface!$E$72 = 1,CHOOSE(m_identity,SHETL!AI13, SPTL!AI13, 'NGET TO (Base)'!AI13, 0, 'NGGT TO (Base)'!AI13, 0, East!AI13, London!AI13, 'North West'!AI13, 'West Midlands'!AI13, Northern!AI13, Scotland!AI13, Southern!AI13, 'Wales & West'!AI13), CHOOSE(m_identity,SHETL!AI13, SPTL!AI13, 'NGET TO (Best)'!AI13, 0, 'NGGT TO (Best)'!AI13, 0, East!AI13, London!AI13, 'North West'!AI13, 'West Midlands'!AI13, Northern!AI13, Scotland!AI13, Southern!AI13, 'Wales & West'!AI13)) -> 0 | AJ13: =IF(UserInterface!$E$72 = 1,CHOOSE(m_identity,SHETL!AJ13, SPTL!AJ13, 'NGET TO (Base)'!AJ13, 0, 'NGGT TO (Base)'!AJ13, 0, East!AJ13, London!AJ13, 'North West'!AJ13, 'West Midlands'!AJ13, Northern!AJ13, Scotland!AJ13, Southern!AJ13, 'Wales & West'!AJ13), CHOOSE(m_identity,SHETL!AJ13, SPTL!AJ13, 'NGET TO (Best)'!AJ13, 0, 'NGGT TO (Best)'!AJ13, 0, East!AJ13, London!AJ13, 'North West'!AJ13, 'West Midlands'!AJ13, Northern!AJ13, Scotland!AJ13, Southern!AJ13, 'Wales & West'!AJ13)) -> 0 | AK13: =IF(UserInterface!$E$72 = 1,CHOOSE(m_identity,SHETL!AK13, SPTL!AK13, 'NGET TO (Base)'!AK13, 0, 'NGGT TO (Base)'!AK13, 0, East!AK13, London!AK13, 'North West'!AK13, 'West Midlands'!AK13, Northern!AK13, Scotland!AK13, Southern!AK13, 'Wales & West'!AK13), CHOOSE(m_identity,SHETL!AK13, SPTL!AK13, 'NGET TO (Best)'!AK13, 0, 'NGGT TO (Best)'!AK13, 0, East!AK13, London!AK13, 'North West'!AK13, 'West Midlands'!AK13, Northern!AK13, Scotland!AK13, Southern!AK13, 'Wales & West'!AK13)) -> 0 | AL13: =IF(UserInterface!$E$72 = 1,CHOOSE(m_identity,SHETL!AL13, SPTL!AL13, 'NGET TO (Base)'!AL13, 0, 'NGGT TO (Base)'!AL13, 0, East!AL13, London!AL13, 'North West'!AL13, 'West Midlands'!AL13, Northern!AL13, Scotland!AL13, Southern!AL13, 'Wales & West'!AL13), CHOOSE(m_identity,SHETL!AL13, SPTL!AL13, 'NGET TO (Best)'!AL13, 0, 'NGGT TO (Best)'!AL13, 0, East!AL13, London!AL13, 'North West'!AL13, 'West Midlands'!AL13, Northern!AL13, Scotland!AL13, Southern!AL13, 'Wales & West'!AL13)) -> 0 | AM13: =IF(UserInterface!$E$72 = 1,CHOOSE(m_identity,SHETL!AM13, SPTL!AM13, 'NGET TO (Base)'!AM13, 0, 'NGGT TO (Base)'!AM13, 0, East!AM13, London!AM13, 'North West'!AM13, 'West Midlands'!AM13, Northern!AM13, Scotland!AM13, Southern!AM13, 'Wales & West'!AM13), CHOOSE(m_identity,SHETL!AM13, SPTL!AM13, 'NGET TO (Best)'!AM13, 0, 'NGGT TO (Best)'!AM13, 0, East!AM13, London!AM13, 'North West'!AM13, 'West Midlands'!AM13, Northern!AM13, Scotland!AM13, Southern!AM13, 'Wales & West'!AM13)) -> 0 | AN13: =IF(UserInterface!$E$72 = 1,CHOOSE(m_identity,SHETL!AN13, SPTL!AN13, 'NGET TO (Base)'!AN13, 0, 'NGGT TO (Base)'!AN13, 0, East!AN13, London!AN13, 'North West'!AN13, 'West Midlands'!AN13, Northern!AN13, Scotland!AN13, Southern!AN13, 'Wales & West'!AN13), CHOOSE(m_identity,SHETL!AN13, SPTL!AN13, 'NGET TO (Best)'!AN13, 0, 'NGGT TO (Best)'!AN13, 0, East!AN13, London!AN13, 'North West'!AN13, 'West Midlands'!AN13, Northern!AN13, Scotland!AN13, Southern!AN13, 'Wales & West'!AN13)) -> 0 | AO13: =IF(UserInterface!$E$72 = 1,CHOOSE(m_identity,SHETL!AO13, SPTL!AO13, 'NGET TO (Base)'!AO13, 0, 'NGGT TO (Base)'!AO13, 0, East!AO13, London!AO13, 'North West'!AO13, 'West Midlands'!AO13, Northern!AO13, Scotland!AO13, Southern!AO13, 'Wales & West'!AO13), CHOOSE(m_identity,SHETL!AO13, SPTL!AO13, 'NGET TO (Best)'!AO13, 0, 'NGGT TO (Best)'!AO13, 0, East!AO13, London!AO13, 'North West'!AO13, 'West Midlands'!AO13, Northern!AO13, Scotland!AO13, Southern!AO13, 'Wales & West'!AO13)) -> 0
E14: Actual non-operational capex | F14: SC2 | G14: £m 09/10 prices | AH14: =IF(UserInterface!$E$72 = 1,CHOOSE(m_identity,SHETL!AH14, SPTL!AH14, 'NGET TO (Base)'!AH14, 0, 'NGGT TO (Base)'!AH14, 0, East!AH14, London!AH14, 'North West'!AH14, 'West Midlands'!AH14, Northern!AH14, Scotland!AH14, Southern!AH14, 'Wales & West'!AH14), CHOOSE(m_identity,SHETL!AH14, SPTL!AH14, 'NGET TO (Best)'!AH14, 0, 'NGGT TO (Best)'!AH14, 0, East!AH14, London!AH14, 'North West'!AH14, 'West Midlands'!AH14, Northern!AH14, Scotland!AH14, Southern!AH14, 'Wales & West'!AH14)) -> 0 | AI14: =IF(UserInterface!$E$72 = 1,CHOOSE(m_identity,SHETL!AI14, SPTL!AI14, 'NGET TO (Base)'!AI14, 0, 'NGGT TO (Base)'!AI14, 0, East!AI14, London!AI14, 'North West'!AI14, 'West Midlands'!AI14, Northern!AI14, Scotland!AI14, Southern!AI14, 'Wales & West'!AI14), CHOOSE(m_identity,SHETL!AI14, SPTL!AI14, 'NGET TO (Best)'!AI14, 0, 'NGGT TO (Best)'!AI14, 0, East!AI14, London!AI14, 'North West'!AI14, 'West Midlands'!AI14, Northern!AI14, Scotland!AI14, Southern!AI14, 'Wales & West'!AI14)) -> 0 | AJ14: =IF(UserInterface!$E$72 = 1,CHOOSE(m_identity,SHETL!AJ14, SPTL!AJ14, 'NGET TO (Base)'!AJ14, 0, 'NGGT TO (Base)'!AJ14, 0, East!AJ14, London!AJ14, 'North West'!AJ14, 'West Midlands'!AJ14, Northern!AJ14, Scotland!AJ14, Southern!AJ14, 'Wales & West'!AJ14), CHOOSE(m_identity,SHETL!AJ14, SPTL!AJ14, 'NGET TO (Best)'!AJ14, 0, 'NGGT TO (Best)'!AJ14, 0, East!AJ14, London!AJ14, 'North West'!AJ14, 'West Midlands'!AJ14, Northern!AJ14, Scotland!AJ14, Southern!AJ14, 'Wales & West'!AJ14)) -> 0 | AK14: =IF(UserInterface!$E$72 = 1,CHOOSE(m_identity,SHETL!AK14, SPTL!AK14, 'NGET TO (Base)'!AK14, 0, 'NGGT TO (Base)'!AK14, 0, East!AK14, London!AK14, 'North West'!AK14, 'West Midlands'!AK14, Northern!AK14, Scotland!AK14, Southern!AK14, 'Wales & West'!AK14), CHOOSE(m_identity,SHETL!AK14, SPTL!AK14, 'NGET TO (Best)'!AK14, 0, 'NGGT TO (Best)'!AK14, 0, East!AK14, London!AK14, 'North West'!AK14, 'West Midlands'!AK14, Northern!AK14, Scotland!AK14, Southern!AK14, 'Wales & West'!AK14)) -> 0 | AL14: =IF(UserInterface!$E$72 = 1,CHOOSE(m_identity,SHETL!AL14, SPTL!AL14, 'NGET TO (Base)'!AL14, 0, 'NGGT TO (Base)'!AL14, 0, East!AL14, London!AL14, 'North West'!AL14, 'West Midlands'!AL14, Northern!AL14, Scotland!AL14, Southern!AL14, 'Wales & West'!AL14), CHOOSE(m_identity,SHETL!AL14, SPTL!AL14, 'NGET TO (Best)'!AL14, 0, 'NGGT TO (Best)'!AL14, 0, East!AL14, London!AL14, 'North West'!AL14, 'West Midlands'!AL14, Northern!AL14, Scotland!AL14, Southern!AL14, 'Wales & West'!AL14)) -> 0 | AM14: =IF(UserInterface!$E$72 = 1,CHOOSE(m_identity,SHETL!AM14, SPTL!AM14, 'NGET TO (Base)'!AM14, 0, 'NGGT TO (Base)'!AM14, 0, East!AM14, London!AM14, 'North West'!AM14, 'West Midlands'!AM14, Northern!AM14, Scotland!AM14, Southern!AM14, 'Wales & West'!AM14), CHOOSE(m_identity,SHETL!AM14, SPTL!AM14, 'NGET TO (Best)'!AM14, 0, 'NGGT TO (Best)'!AM14, 0, East!AM14, London!AM14, 'North West'!AM14, 'West Midlands'!AM14, Northern!AM14, Scotland!AM14, Southern!AM14, 'Wales & West'!AM14)) -> 0 | AN14: =IF(UserInterface!$E$72 = 1,CHOOSE(m_identity,SHETL!AN14, SPTL!AN14, 'NGET TO (Base)'!AN14, 0, 'NGGT TO (Base)'!AN14, 0, East!AN14, London!AN14, 'North West'!AN14, 'West Midlands'!AN14, Northern!AN14, Scotland!AN14, Southern!AN14, 'Wales & West'!AN14), CHOOSE(m_identity,SHETL!AN14, SPTL!AN14, 'NGET TO (Best)'!AN14, 0, 'NGGT TO (Best)'!AN14, 0, East!AN14, London!AN14, 'North West'!AN14, 'West Midlands'!AN14, Northern!AN14, Scotland!AN14, Southern!AN14, 'Wales & West'!AN14)) -> 0 | AO14: =IF(UserInterface!$E$72 = 1,CHOOSE(m_identity,SHETL!AO14, SPTL!AO14, 'NGET TO (Base)'!AO14, 0, 'NGGT TO (Base)'!AO14, 0, East!AO14, London!AO14, 'North West'!AO14, 'West Midlands'!AO14, Northern!AO14, Scotland!AO14, Southern!AO14, 'Wales & West'!AO14), CHOOSE(m_identity,SHETL!AO14, SPTL!AO14, 'NGET TO (Best)'!AO14, 0, 'NGGT TO (Best)'!AO14, 0, East!AO14, London!AO14, 'North West'!AO14, 'West Midlands'!AO14, Northern!AO14, Scotland!AO14, Southern!AO14, 'Wales & West'!AO14)) -> 0
E15: Actual contributions | F15: SC2 | G15: £m 09/10 prices | AH15: =IF(UserInterface!$E$72 = 1,CHOOSE(m_identity,SHETL!AH15, SPTL!AH15, 'NGET TO (Base)'!AH15, 0, 'NGGT TO (Base)'!AH15, 0, East!AH15, London!AH15, 'North West'!AH15, 'West Midlands'!AH15, Northern!AH15, Scotland!AH15, Southern!AH15, 'Wales & West'!AH15), CHOOSE(m_identity,SHETL!AH15, SPTL!AH15, 'NGET TO (Best)'!AH15, 0, 'NGGT TO (Best)'!AH15, 0, East!AH15, London!AH15, 'North West'!AH15, 'West Midlands'!AH15, Northern!AH15, Scotland!AH15, Southern!AH15, 'Wales & West'!AH15)) -> 0 | AI15: =IF(UserInterface!$E$72 = 1,CHOOSE(m_identity,SHETL!AI15, SPTL!AI15, 'NGET TO (Base)'!AI15, 0, 'NGGT TO (Base)'!AI15, 0, East!AI15, London!AI15, 'North West'!AI15, 'West Midlands'!AI15, Northern!AI15, Scotland!AI15, Southern!AI15, 'Wales & West'!AI15), CHOOSE(m_identity,SHETL!AI15, SPTL!AI15, 'NGET TO (Best)'!AI15, 0, 'NGGT TO (Best)'!AI15, 0, East!AI15, London!AI15, 'North West'!AI15, 'West Midlands'!AI15, Northern!AI15, Scotland!AI15, Southern!AI15, 'Wales & West'!AI15)) -> 0 | AJ15: =IF(UserInterface!$E$72 = 1,CHOOSE(m_identity,SHETL!AJ15, SPTL!AJ15, 'NGET TO (Base)'!AJ15, 0, 'NGGT TO (Base)'!AJ15, 0, East!AJ15, London!AJ15, 'North West'!AJ15, 'West Midlands'!AJ15, Northern!AJ15, Scotland!AJ15, Southern!AJ15, 'Wales & West'!AJ15), CHOOSE(m_identity,SHETL!AJ15, SPTL!AJ15, 'NGET TO (Best)'!AJ15, 0, 'NGGT TO (Best)'!AJ15, 0, East!AJ15, London!AJ15, 'North West'!AJ15, 'West Midlands'!AJ15, Northern!AJ15, Scotland!AJ15, Southern!AJ15, 'Wales & West'!AJ15)) -> 0 | AK15: =IF(UserInterface!$E$72 = 1,CHOOSE(m_identity,SHETL!AK15, SPTL!AK15, 'NGET TO (Base)'!AK15, 0, 'NGGT TO (Base)'!AK15, 0, East!AK15, London!AK15, 'North West'!AK15, 'West Midlands'!AK15, Northern!AK15, Scotland!AK15, Southern!AK15, 'Wales & West'!AK15), CHOOSE(m_identity,SHETL!AK15, SPTL!AK15, 'NGET TO (Best)'!AK15, 0, 'NGGT TO (Best)'!AK15, 0, East!AK15, London!AK15, 'North West'!AK15, 'West Midlands'!AK15, Northern!AK15, Scotland!AK15, Southern!AK15, 'Wales & West'!AK15)) -> 0 | AL15: =IF(UserInterface!$E$72 = 1,CHOOSE(m_identity,SHETL!AL15, SPTL!AL15, 'NGET TO (Base)'!AL15, 0, 'NGGT TO (Base)'!AL15, 0, East!AL15, London!AL15, 'North West'!AL15, 'West Midlands'!AL15, Northern!AL15, Scotland!AL15, Southern!AL15, 'Wales & West'!AL15), CHOOSE(m_identity,SHETL!AL15, SPTL!AL15, 'NGET TO (Best)'!AL15, 0, 'NGGT TO (Best)'!AL15, 0, East!AL15, London!AL15, 'North West'!AL15, 'West Midlands'!AL15, Northern!AL15, Scotland!AL15, Southern!AL15, 'Wales & West'!AL15)) -> 0 | AM15: =IF(UserInterface!$E$72 = 1,CHOOSE(m_identity,SHETL!AM15, SPTL!AM15, 'NGET TO (Base)'!AM15, 0, 'NGGT TO (Base)'!AM15, 0, East!AM15, London!AM15, 'North West'!AM15, 'West Midlands'!AM15, Northern!AM15, Scotland!AM15, Southern!AM15, 'Wales & West'!AM15), CHOOSE(m_identity,SHETL!AM15, SPTL!AM15, 'NGET TO (Best)'!AM15, 0, 'NGGT TO (Best)'!AM15, 0, East!AM15, London!AM15, 'North West'!AM15, 'West Midlands'!AM15, Northern!AM15, Scotland!AM15, Southern!AM15, 'Wales & West'!AM15)) -> 0 | AN15: =IF(UserInterface!$E$72 = 1,CHOOSE(m_identity,SHETL!AN15, SPTL!AN15, 'NGET TO (Base)'!AN15, 0, 'NGGT TO (Base)'!AN15, 0, East!AN15, London!AN15, 'North West'!AN15, 'West Midlands'!AN15, Northern!AN15, Scotland!AN15, Southern!AN15, 'Wales & West'!AN15), CHOOSE(m_identity,SHETL!AN15, SPTL!AN15, 'NGET TO (Best)'!AN15, 0, 'NGGT TO (Best)'!AN15, 0, East!AN15, London!AN15, 'North West'!AN15, 'West Midlands'!AN15, Northern!AN15, Scotland!AN15, Southern!AN15, 'Wales & West'!AN15)) -> 0 | AO15: =IF(UserInterface!$E$72 = 1,CHOOSE(m_identity,SHETL!AO15, SPTL!AO15, 'NGET TO (Base)'!AO15, 0, 'NGGT TO (Base)'!AO15, 0, East!AO15, London!AO15, 'North West'!AO15, 'West Midlands'!AO15, Northern!AO15, Scotland!AO15, Southern!AO15, 'Wales & West'!AO15), CHOOSE(m_identity,SHETL!AO15, SPTL!AO15, 'NGET TO (Best)'!AO15, 0, 'NGGT TO (Best)'!AO15, 0, East!AO15, London!AO15, 'North West'!AO15, 'West Midlands'!AO15, Northern!AO15, Scotland!AO15, Southern!AO15, 'Wales & West'!AO15)) -> 0
E16: Allowed Uncertain costs (Enhanced physical site security) | F16: ETC28 & GD equivalent | G16: £m 09/10 prices | AH16: =IF(UserInterface!$E$72 = 1,CHOOSE(m_identity,SHETL!AH16, SPTL!AH16, 'NGET TO (Base)'!AH16, 0, 'NGGT TO (Base)'!AH16, 0, East!AH16, London!AH16, 'North West'!AH16, 'West Midlands'!AH16, Northern!AH16, Scotland!AH16, Southern!AH16, 'Wales & West'!AH16), CHOOSE(m_identity,SHETL!AH16, SPTL!AH16, 'NGET TO (Best)'!AH16, 0, 'NGGT TO (Best)'!AH16, 0, East!AH16, London!AH16, 'North West'!AH16, 'West Midlands'!AH16, Northern!AH16, Scotland!AH16, Southern!AH16, 'Wales & West'!AH16)) -> 0 | AI16: =IF(UserInterface!$E$72 = 1,CHOOSE(m_identity,SHETL!AI16, SPTL!AI16, 'NGET TO (Base)'!AI16, 0, 'NGGT TO (Base)'!AI16, 0, East!AI16, London!AI16, 'North West'!AI16, 'West Midlands'!AI16, Northern!AI16, Scotland!AI16, Southern!AI16, 'Wales & West'!AI16), CHOOSE(m_identity,SHETL!AI16, SPTL!AI16, 'NGET TO (Best)'!AI16, 0, 'NGGT TO (Best)'!AI16, 0, East!AI16, London!AI16, 'North West'!AI16, 'West Midlands'!AI16, Northern!AI16, Scotland!AI16, Southern!AI16, 'Wales & West'!AI16)) -> 0 | AJ16: =IF(UserInterface!$E$72 = 1,CHOOSE(m_identity,SHETL!AJ16, SPTL!AJ16, 'NGET TO (Base)'!AJ16, 0, 'NGGT TO (Base)'!AJ16, 0, East!AJ16, London!AJ16, 'North West'!AJ16, 'West Midlands'!AJ16, Northern!AJ16, Scotland!AJ16, Southern!AJ16, 'Wales & West'!AJ16), CHOOSE(m_identity,SHETL!AJ16, SPTL!AJ16, 'NGET TO (Best)'!AJ16, 0, 'NGGT TO (Best)'!AJ16, 0, East!AJ16, London!AJ16, 'North West'!AJ16, 'West Midlands'!AJ16, Northern!AJ16, Scotland!AJ16, Southern!AJ16, 'Wales & West'!AJ16)) -> 0 | AK16: =IF(UserInterface!$E$72 = 1,CHOOSE(m_identity,SHETL!AK16, SPTL!AK16, 'NGET TO (Base)'!AK16, 0, 'NGGT TO (Base)'!AK16, 0, East!AK16, London!AK16, 'North West'!AK16, 'West Midlands'!AK16, Northern!AK16, Scotland!AK16, Southern!AK16, 'Wales & West'!AK16), CHOOSE(m_identity,SHETL!AK16, SPTL!AK16, 'NGET TO (Best)'!AK16, 0, 'NGGT TO (Best)'!AK16, 0, East!AK16, London!AK16, 'North West'!AK16, 'West Midlands'!AK16, Northern!AK16, Scotland!AK16, Southern!AK16, 'Wales & West'!AK16)) -> 0 | AL16: =IF(UserInterface!$E$72 = 1,CHOOSE(m_identity,SHETL!AL16, SPTL!AL16, 'NGET TO (Base)'!AL16, 0, 'NGGT TO (Base)'!AL16, 0, East!AL16, London!AL16, 'North West'!AL16, 'West Midlands'!AL16, Northern!AL16, Scotland!AL16, Southern!AL16, 'Wales & West'!AL16), CHOOSE(m_identity,SHETL!AL16, SPTL!AL16, 'NGET TO (Best)'!AL16, 0, 'NGGT TO (Best)'!AL16, 0, East!AL16, London!AL16, 'North West'!AL16, 'West Midlands'!AL16, Northern!AL16, Scotland!AL16, Southern!AL16, 'Wales & West'!AL16)) -> 0 | AM16: =IF(UserInterface!$E$72 = 1,CHOOSE(m_identity,SHETL!AM16, SPTL!AM16, 'NGET TO (Base)'!AM16, 0, 'NGGT TO (Base)'!AM16, 0, East!AM16, London!AM16, 'North West'!AM16, 'West Midlands'!AM16, Northern!AM16, Scotland!AM16, Southern!AM16, 'Wales & West'!AM16), CHOOSE(m_identity,SHETL!AM16, SPTL!AM16, 'NGET TO (Best)'!AM16, 0, 'NGGT TO (Best)'!AM16, 0, East!AM16, London!AM16, 'North West'!AM16, 'West Midlands'!AM16, Northern!AM16, Scotland!AM16, Southern!AM16, 'Wales & West'!AM16)) -> 0 | AN16: =IF(UserInterface!$E$72 = 1,CHOOSE(m_identity,SHETL!AN16, SPTL!AN16, 'NGET TO (Base)'!AN16, 0, 'NGGT TO (Base)'!AN16, 0, East!AN16, London!AN16, 'North West'!AN16, 'West Midlands'!AN16, Northern!AN16, Scotland!AN16, Southern!AN16, 'Wales & West'!AN16), CHOOSE(m_identity,SHETL!AN16, SPTL!AN16, 'NGET TO (Best)'!AN16, 0, 'NGGT TO (Best)'!AN16, 0, East!AN16, London!AN16, 'North West'!AN16, 'West Midlands'!AN16, Northern!AN16, Scotland!AN16, Southern!AN16, 'Wales & West'!AN16)) -> 0 | AO16: =IF(UserInterface!$E$72 = 1,CHOOSE(m_identity,SHETL!AO16, SPTL!AO16, 'NGET TO (Base)'!AO16, 0, 'NGGT TO (Base)'!AO16, 0, East!AO16, London!AO16, 'North West'!AO16, 'West Midlands'!AO16, Northern!AO16, Scotland!AO16, Southern!AO16, 'Wales & West'!AO16), CHOOSE(m_identity,SHETL!AO16, SPTL!AO16, 'NGET TO (Best)'!AO16, 0, 'NGGT TO (Best)'!AO16, 0, East!AO16, London!AO16, 'North West'!AO16, 'West Midlands'!AO16, Northern!AO16, Scotland!AO16, Southern!AO16, 'Wales & West'!AO16)) -> 0
E17: Allowed GD Uncertain costs (Street works) | F17: ETC28 & GD equivalent | G17: £m 09/10 prices | AH17: =IF(UserInterface!$E$72 = 1,CHOOSE(m_identity,SHETL!AH17, SPTL!AH17, 'NGET TO (Base)'!AH17, 0, 'NGGT TO (Base)'!AH17, 0, East!AH17, London!AH17, 'North West'!AH17, 'West Midlands'!AH17, Northern!AH17, Scotland!AH17, Southern!AH17, 'Wales & West'!AH17), CHOOSE(m_identity,SHETL!AH17, SPTL!AH17, 'NGET TO (Best)'!AH17, 0, 'NGGT TO (Best)'!AH17, 0, East!AH17, London!AH17, 'North West'!AH17, 'West Midlands'!AH17, Northern!AH17, Scotland!AH17, Southern!AH17, 'Wales & West'!AH17)) -> 0.3623272563 | AI17: =IF(UserInterface!$E$72 = 1,CHOOSE(m_identity,SHETL!AI17, SPTL!AI17, 'NGET TO (Base)'!AI17, 0, 'NGGT TO (Base)'!AI17, 0, East!AI17, London!AI17, 'North West'!AI17, 'West Midlands'!AI17, Northern!AI17, Scotland!AI17, Southern!AI17, 'Wales & West'!AI17), CHOOSE(m_identity,SHETL!AI17, SPTL!AI17, 'NGET TO (Best)'!AI17, 0, 'NGGT TO (Best)'!AI17, 0, East!AI17, London!AI17, 'North West'!AI17, 'West Midlands'!AI17, Northern!AI17, Scotland!AI17, Southern!AI17, 'Wales & West'!AI17)) -> 0.376816516 | AJ17: =IF(UserInterface!$E$72 = 1,CHOOSE(m_identity,SHETL!AJ17, SPTL!AJ17, 'NGET TO (Base)'!AJ17, 0, 'NGGT TO (Base)'!AJ17, 0, East!AJ17, London!AJ17, 'North West'!AJ17, 'West Midlands'!AJ17, Northern!AJ17, Scotland!AJ17, Southern!AJ17, 'Wales & West'!AJ17), CHOOSE(m_identity,SHETL!AJ17, SPTL!AJ17, 'NGET TO (Best)'!AJ17, 0, 'NGGT TO (Best)'!AJ17, 0, East!AJ17, London!AJ17, 'North West'!AJ17, 'West Midlands'!AJ17, Northern!AJ17, Scotland!AJ17, Southern!AJ17, 'Wales & West'!AJ17)) -> 0.3903856523 | AK17: =IF(UserInterface!$E$72 = 1,CHOOSE(m_identity,SHETL!AK17, SPTL!AK17, 'NGET TO (Base)'!AK17, 0, 'NGGT TO (Base)'!AK17, 0, East!AK17, London!AK17, 'North West'!AK17, 'West Midlands'!AK17, Northern!AK17, Scotland!AK17, Southern!AK17, 'Wales & West'!AK17), CHOOSE(m_identity,SHETL!AK17, SPTL!AK17, 'NGET TO (Best)'!AK17, 0, 'NGGT TO (Best)'!AK17, 0, East!AK17, London!AK17, 'North West'!AK17, 'West Midlands'!AK17, Northern!AK17, Scotland!AK17, Southern!AK17, 'Wales & West'!AK17)) -> 0.4047100704 | AL17: =IF(UserInterface!$E$72 = 1,CHOOSE(m_identity,SHETL!AL17, SPTL!AL17, 'NGET TO (Base)'!AL17, 0, 'NGGT TO (Base)'!AL17, 0, East!AL17, London!AL17, 'North West'!AL17, 'West Midlands'!AL17, Northern!AL17, Scotland!AL17, Southern!AL17, 'Wales & West'!AL17), CHOOSE(m_identity,SHETL!AL17, SPTL!AL17, 'NGET TO (Best)'!AL17, 0, 'NGGT TO (Best)'!AL17, 0, East!AL17, London!AL17, 'North West'!AL17, 'West Midlands'!AL17, Northern!AL17, Scotland!AL17, Southern!AL17, 'Wales & West'!AL17)) -> 0.4192186463 | AM17: =IF(UserInterface!$E$72 = 1,CHOOSE(m_identity,SHETL!AM17, SPTL!AM17, 'NGET TO (Base)'!AM17, 0, 'NGGT TO (Base)'!AM17, 0, East!AM17, London!AM17, 'North West'!AM17, 'West Midlands'!AM17, Northern!AM17, Scotland!AM17, Southern!AM17, 'Wales & West'!AM17), CHOOSE(m_identity,SHETL!AM17, SPTL!AM17, 'NGET TO (Best)'!AM17, 0, 'NGGT TO (Best)'!AM17, 0, East!AM17, London!AM17, 'North West'!AM17, 'West Midlands'!AM17, Northern!AM17, Scotland!AM17, Southern!AM17, 'Wales & West'!AM17)) -> 0.4345811681 | AN17: =IF(UserInterface!$E$72 = 1,CHOOSE(m_identity,SHETL!AN17, SPTL!AN17, 'NGET TO (Base)'!AN17, 0, 'NGGT TO (Base)'!AN17, 0, East!AN17, London!AN17, 'North West'!AN17, 'West Midlands'!AN17, Northern!AN17, Scotland!AN17, Southern!AN17, 'Wales & West'!AN17), CHOOSE(m_identity,SHETL!AN17, SPTL!AN17, 'NGET TO (Best)'!AN17, 0, 'NGGT TO (Best)'!AN17, 0, East!AN17, London!AN17, 'North West'!AN17, 'West Midlands'!AN17, Northern!AN17, Scotland!AN17, Southern!AN17, 'Wales & West'!AN17)) -> 0.4508543196 | AO17: =IF(UserInterface!$E$72 = 1,CHOOSE(m_identity,SHETL!AO17, SPTL!AO17, 'NGET TO (Base)'!AO17, 0, 'NGGT TO (Base)'!AO17, 0, East!AO17, London!AO17, 'North West'!AO17, 'West Midlands'!AO17, Northern!AO17, Scotland!AO17, Southern!AO17, 'Wales & West'!AO17), CHOOSE(m_identity,SHETL!AO17, SPTL!AO17, 'NGET TO (Best)'!AO17, 0, 'NGGT TO (Best)'!AO17, 0, East!AO17, London!AO17, 'North West'!AO17, 'West Midlands'!AO17, Northern!AO17, Scotland!AO17, Southern!AO17, 'Wales & West'!AO17)) -> 0.4680988173
E18: Allowed GD Uncertain costs (Connection charging boundary) | F18: ETC28 & GD equivalent | G18: £m 09/10 prices | AH18: =IF(UserInterface!$E$72 = 1,CHOOSE(m_identity,SHETL!AH18, SPTL!AH18, 'NGET TO (Base)'!AH18, 0, 'NGGT TO (Base)'!AH18, 0, East!AH18, London!AH18, 'North West'!AH18, 'West Midlands'!AH18, Northern!AH18, Scotland!AH18, Southern!AH18, 'Wales & West'!AH18), CHOOSE(m_identity,SHETL!AH18, SPTL!AH18, 'NGET TO (Best)'!AH18, 0, 'NGGT TO (Best)'!AH18, 0, East!AH18, London!AH18, 'North West'!AH18, 'West Midlands'!AH18, Northern!AH18, Scotland!AH18, Southern!AH18, 'Wales & West'!AH18)) -> 0 | AI18: =IF(UserInterface!$E$72 = 1,CHOOSE(m_identity,SHETL!AI18, SPTL!AI18, 'NGET TO (Base)'!AI18, 0, 'NGGT TO (Base)'!AI18, 0, East!AI18, London!AI18, 'North West'!AI18, 'West Midlands'!AI18, Northern!AI18, Scotland!AI18, Southern!AI18, 'Wales & West'!AI18), CHOOSE(m_identity,SHETL!AI18, SPTL!AI18, 'NGET TO (Best)'!AI18, 0, 'NGGT TO (Best)'!AI18, 0, East!AI18, London!AI18, 'North West'!AI18, 'West Midlands'!AI18, Northern!AI18, Scotland!AI18, Southern!AI18, 'Wales & West'!AI18)) -> 0 | AJ18: =IF(UserInterface!$E$72 = 1,CHOOSE(m_identity,SHETL!AJ18, SPTL!AJ18, 'NGET TO (Base)'!AJ18, 0, 'NGGT TO (Base)'!AJ18, 0, East!AJ18, London!AJ18, 'North West'!AJ18, 'West Midlands'!AJ18, Northern!AJ18, Scotland!AJ18, Southern!AJ18, 'Wales & West'!AJ18), CHOOSE(m_identity,SHETL!AJ18, SPTL!AJ18, 'NGET TO (Best)'!AJ18, 0, 'NGGT TO (Best)'!AJ18, 0, East!AJ18, London!AJ18, 'North West'!AJ18, 'West Midlands'!AJ18, Northern!AJ18, Scotland!AJ18, Southern!AJ18, 'Wales & West'!AJ18)) -> 0 | AK18: =IF(UserInterface!$E$72 = 1,CHOOSE(m_identity,SHETL!AK18, SPTL!AK18, 'NGET TO (Base)'!AK18, 0, 'NGGT TO (Base)'!AK18, 0, East!AK18, London!AK18, 'North West'!AK18, 'West Midlands'!AK18, Northern!AK18, Scotland!AK18, Southern!AK18, 'Wales & West'!AK18), CHOOSE(m_identity,SHETL!AK18, SPTL!AK18, 'NGET TO (Best)'!AK18, 0, 'NGGT TO (Best)'!AK18, 0, East!AK18, London!AK18, 'North West'!AK18, 'West Midlands'!AK18, Northern!AK18, Scotland!AK18, Southern!AK18, 'Wales & West'!AK18)) -> 0 | AL18: =IF(UserInterface!$E$72 = 1,CHOOSE(m_identity,SHETL!AL18, SPTL!AL18, 'NGET TO (Base)'!AL18, 0, 'NGGT TO (Base)'!AL18, 0, East!AL18, London!AL18, 'North West'!AL18, 'West Midlands'!AL18, Northern!AL18, Scotland!AL18, Southern!AL18, 'Wales & West'!AL18), CHOOSE(m_identity,SHETL!AL18, SPTL!AL18, 'NGET TO (Best)'!AL18, 0, 'NGGT TO (Best)'!AL18, 0, East!AL18, London!AL18, 'North West'!AL18, 'West Midlands'!AL18, Northern!AL18, Scotland!AL18, Southern!AL18, 'Wales & West'!AL18)) -> 0 | AM18: =IF(UserInterface!$E$72 = 1,CHOOSE(m_identity,SHETL!AM18, SPTL!AM18, 'NGET TO (Base)'!AM18, 0, 'NGGT TO (Base)'!AM18, 0, East!AM18, London!AM18, 'North West'!AM18, 'West Midlands'!AM18, Northern!AM18, Scotland!AM18, Southern!AM18, 'Wales & West'!AM18), CHOOSE(m_identity,SHETL!AM18, SPTL!AM18, 'NGET TO (Best)'!AM18, 0, 'NGGT TO (Best)'!AM18, 0, East!AM18, London!AM18, 'North West'!AM18, 'West Midlands'!AM18, Northern!AM18, Scotland!AM18, Southern!AM18, 'Wales & West'!AM18)) -> 0 | AN18: =IF(UserInterface!$E$72 = 1,CHOOSE(m_identity,SHETL!AN18, SPTL!AN18, 'NGET TO (Base)'!AN18, 0, 'NGGT TO (Base)'!AN18, 0, East!AN18, London!AN18, 'North West'!AN18, 'West Midlands'!AN18, Northern!AN18, Scotland!AN18, Southern!AN18, 'Wales & West'!AN18), CHOOSE(m_identity,SHETL!AN18, SPTL!AN18, 'NGET TO (Best)'!AN18, 0, 'NGGT TO (Best)'!AN18, 0, East!AN18, London!AN18, 'North West'!AN18, 'West Midlands'!AN18, Northern!AN18, Scotland!AN18, Southern!AN18, 'Wales & West'!AN18)) -> 0 | AO18: =IF(UserInterface!$E$72 = 1,CHOOSE(m_identity,SHETL!AO18, SPTL!AO18, 'NGET TO (Base)'!AO18, 0, 'NGGT TO (Base)'!AO18, 0, East!AO18, London!AO18, 'North West'!AO18, 'West Midlands'!AO18, Northern!AO18, Scotland!AO18, Southern!AO18, 'Wales & West'!AO18), CHOOSE(m_identity,SHETL!AO18, SPTL!AO18, 'NGET TO (Best)'!AO18, 0, 'NGGT TO (Best)'!AO18, 0, East!AO18, London!AO18, 'North West'!AO18, 'West Midlands'!AO18, Northern!AO18, Scotland!AO18, Southern!AO18, 'Wales & West'!AO18)) -> 0
E19: Allowed GD Uncertain costs (Review of the fuel poor network extension scheme) | F19: ETC28 & GD equivalent | G19: £m 09/10 prices | AH19: =IF(UserInterface!$E$72 = 1,CHOOSE(m_identity,SHETL!AH19, SPTL!AH19, 'NGET TO (Base)'!AH19, 0, 'NGGT TO (Base)'!AH19, 0, East!AH19, London!AH19, 'North West'!AH19, 'West Midlands'!AH19, Northern!AH19, Scotland!AH19, Southern!AH19, 'Wales & West'!AH19), CHOOSE(m_identity,SHETL!AH19, SPTL!AH19, 'NGET TO (Best)'!AH19, 0, 'NGGT TO (Best)'!AH19, 0, East!AH19, London!AH19, 'North West'!AH19, 'West Midlands'!AH19, Northern!AH19, Scotland!AH19, Southern!AH19, 'Wales & West'!AH19)) -> 1.334497073 | AI19: =IF(UserInterface!$E$72 = 1,CHOOSE(m_identity,SHETL!AI19, SPTL!AI19, 'NGET TO (Base)'!AI19, 0, 'NGGT TO (Base)'!AI19, 0, East!AI19, London!AI19, 'North West'!AI19, 'West Midlands'!AI19, Northern!AI19, Scotland!AI19, Southern!AI19, 'Wales & West'!AI19), CHOOSE(m_identity,SHETL!AI19, SPTL!AI19, 'NGET TO (Best)'!AI19, 0, 'NGGT TO (Best)'!AI19, 0, East!AI19, London!AI19, 'North West'!AI19, 'West Midlands'!AI19, Northern!AI19, Scotland!AI19, Southern!AI19, 'Wales & West'!AI19)) -> 1.334497073 | AJ19: =IF(UserInterface!$E$72 = 1,CHOOSE(m_identity,SHETL!AJ19, SPTL!AJ19, 'NGET TO (Base)'!AJ19, 0, 'NGGT TO (Base)'!AJ19, 0, East!AJ19, London!AJ19, 'North West'!AJ19, 'West Midlands'!AJ19, Northern!AJ19, Scotland!AJ19, Southern!AJ19, 'Wales & West'!AJ19), CHOOSE(m_identity,SHETL!AJ19, SPTL!AJ19, 'NGET TO (Best)'!AJ19, 0, 'NGGT TO (Best)'!AJ19, 0, East!AJ19, London!AJ19, 'North West'!AJ19, 'West Midlands'!AJ19, Northern!AJ19, Scotland!AJ19, Southern!AJ19, 'Wales & West'!AJ19)) -> 1.321152103 | AK19: =IF(UserInterface!$E$72 = 1,CHOOSE(m_identity,SHETL!AK19, SPTL!AK19, 'NGET TO (Base)'!AK19, 0, 'NGGT TO (Base)'!AK19, 0, East!AK19, London!AK19, 'North West'!AK19, 'West Midlands'!AK19, Northern!AK19, Scotland!AK19, Southern!AK19, 'Wales & West'!AK19), CHOOSE(m_identity,SHETL!AK19, SPTL!AK19, 'NGET TO (Best)'!AK19, 0, 'NGGT TO (Best)'!AK19, 0, East!AK19, London!AK19, 'North West'!AK19, 'West Midlands'!AK19, Northern!AK19, Scotland!AK19, Southern!AK19, 'Wales & West'!AK19)) -> 1.307940582 | AL19: =IF(UserInterface!$E$72 = 1,CHOOSE(m_identity,SHETL!AL19, SPTL!AL19, 'NGET TO (Base)'!AL19, 0, 'NGGT TO (Base)'!AL19, 0, East!AL19, London!AL19, 'North West'!AL19, 'West Midlands'!AL19, Northern!AL19, Scotland!AL19, Southern!AL19, 'Wales & West'!AL19), CHOOSE(m_identity,SHETL!AL19, SPTL!AL19, 'NGET TO (Best)'!AL19, 0, 'NGGT TO (Best)'!AL19, 0, East!AL19, London!AL19, 'North West'!AL19, 'West Midlands'!AL19, Northern!AL19, Scotland!AL19, Southern!AL19, 'Wales & West'!AL19)) -> 1.026865518 | AM19: =IF(UserInterface!$E$72 = 1,CHOOSE(m_identity,SHETL!AM19, SPTL!AM19, 'NGET TO (Base)'!AM19, 0, 'NGGT TO (Base)'!AM19, 0, East!AM19, London!AM19, 'North West'!AM19, 'West Midlands'!AM19, Northern!AM19, Scotland!AM19, Southern!AM19, 'Wales & West'!AM19), CHOOSE(m_identity,SHETL!AM19, SPTL!AM19, 'NGET TO (Best)'!AM19, 0, 'NGGT TO (Best)'!AM19, 0, East!AM19, London!AM19, 'North West'!AM19, 'West Midlands'!AM19, Northern!AM19, Scotland!AM19, Southern!AM19, 'Wales & West'!AM19)) -> 1.016596863 | AN19: =IF(UserInterface!$E$72 = 1,CHOOSE(m_identity,SHETL!AN19, SPTL!AN19, 'NGET TO (Base)'!AN19, 0, 'NGGT TO (Base)'!AN19, 0, East!AN19, London!AN19, 'North West'!AN19, 'West Midlands'!AN19, Northern!AN19, Scotland!AN19, Southern!AN19, 'Wales & West'!AN19), CHOOSE(m_identity,SHETL!AN19, SPTL!AN19, 'NGET TO (Best)'!AN19, 0, 'NGGT TO (Best)'!AN19, 0, East!AN19, London!AN19, 'North West'!AN19, 'West Midlands'!AN19, Northern!AN19, Scotland!AN19, Southern!AN19, 'Wales & West'!AN19)) -> 1.006430894 | AO19: =IF(UserInterface!$E$72 = 1,CHOOSE(m_identity,SHETL!AO19, SPTL!AO19, 'NGET TO (Base)'!AO19, 0, 'NGGT TO (Base)'!AO19, 0, East!AO19, London!AO19, 'North West'!AO19, 'West Midlands'!AO19, Northern!AO19, Scotland!AO19, Southern!AO19, 'Wales & West'!AO19), CHOOSE(m_identity,SHETL!AO19, SPTL!AO19, 'NGET TO (Best)'!AO19, 0, 'NGGT TO (Best)'!AO19, 0, East!AO19, London!AO19, 'North West'!AO19, 'West Midlands'!AO19, Northern!AO19, Scotland!AO19, Southern!AO19, 'Wales & West'!AO19)) -> 0.996366585
E20: Allowed GD & GT Uncertain costs (Review of xoserve costs) | F20: ETC28 & GD equivalent | G20: £m 09/10 prices | AH20: =IF(UserInterface!$E$72 = 1,CHOOSE(m_identity,SHETL!AH20, SPTL!AH20, 'NGET TO (Base)'!AH20, 0, 'NGGT TO (Base)'!AH20, 0, East!AH20, London!AH20, 'North West'!AH20, 'West Midlands'!AH20, Northern!AH20, Scotland!AH20, Southern!AH20, 'Wales & West'!AH20), CHOOSE(m_identity,SHETL!AH20, SPTL!AH20, 'NGET TO (Best)'!AH20, 0, 'NGGT TO (Best)'!AH20, 0, East!AH20, London!AH20, 'North West'!AH20, 'West Midlands'!AH20, Northern!AH20, Scotland!AH20, Southern!AH20, 'Wales & West'!AH20)) -> 0 | AI20: =IF(UserInterface!$E$72 = 1,CHOOSE(m_identity,SHETL!AI20, SPTL!AI20, 'NGET TO (Base)'!AI20, 0, 'NGGT TO (Base)'!AI20, 0, East!AI20, London!AI20, 'North West'!AI20, 'West Midlands'!AI20, Northern!AI20, Scotland!AI20, Southern!AI20, 'Wales & West'!AI20), CHOOSE(m_identity,SHETL!AI20, SPTL!AI20, 'NGET TO (Best)'!AI20, 0, 'NGGT TO (Best)'!AI20, 0, East!AI20, London!AI20, 'North West'!AI20, 'West Midlands'!AI20, Northern!AI20, Scotland!AI20, Southern!AI20, 'Wales & West'!AI20)) -> 0 | AJ20: =IF(UserInterface!$E$72 = 1,CHOOSE(m_identity,SHETL!AJ20, SPTL!AJ20, 'NGET TO (Base)'!AJ20, 0, 'NGGT TO (Base)'!AJ20, 0, East!AJ20, London!AJ20, 'North West'!AJ20, 'West Midlands'!AJ20, Northern!AJ20, Scotland!AJ20, Southern!AJ20, 'Wales & West'!AJ20), CHOOSE(m_identity,SHETL!AJ20, SPTL!AJ20, 'NGET TO (Best)'!AJ20, 0, 'NGGT TO (Best)'!AJ20, 0, East!AJ20, London!AJ20, 'North West'!AJ20, 'West Midlands'!AJ20, Northern!AJ20, Scotland!AJ20, Southern!AJ20, 'Wales & West'!AJ20)) -> 0 | AK20: =IF(UserInterface!$E$72 = 1,CHOOSE(m_identity,SHETL!AK20, SPTL!AK20, 'NGET TO (Base)'!AK20, 0, 'NGGT TO (Base)'!AK20, 0, East!AK20, London!AK20, 'North West'!AK20, 'West Midlands'!AK20, Northern!AK20, Scotland!AK20, Southern!AK20, 'Wales & West'!AK20), CHOOSE(m_identity,SHETL!AK20, SPTL!AK20, 'NGET TO (Best)'!AK20, 0, 'NGGT TO (Best)'!AK20, 0, East!AK20, London!AK20, 'North West'!AK20, 'West Midlands'!AK20, Northern!AK20, Scotland!AK20, Southern!AK20, 'Wales & West'!AK20)) -> 0 | AL20: =IF(UserInterface!$E$72 = 1,CHOOSE(m_identity,SHETL!AL20, SPTL!AL20, 'NGET TO (Base)'!AL20, 0, 'NGGT TO (Base)'!AL20, 0, East!AL20, London!AL20, 'North West'!AL20, 'West Midlands'!AL20, Northern!AL20, Scotland!AL20, Southern!AL20, 'Wales & West'!AL20), CHOOSE(m_identity,SHETL!AL20, SPTL!AL20, 'NGET TO (Best)'!AL20, 0, 'NGGT TO (Best)'!AL20, 0, East!AL20, London!AL20, 'North West'!AL20, 'West Midlands'!AL20, Northern!AL20, Scotland!AL20, Southern!AL20, 'Wales & West'!AL20)) -> 0 | AM20: =IF(UserInterface!$E$72 = 1,CHOOSE(m_identity,SHETL!AM20, SPTL!AM20, 'NGET TO (Base)'!AM20, 0, 'NGGT TO (Base)'!AM20, 0, East!AM20, London!AM20, 'North West'!AM20, 'West Midlands'!AM20, Northern!AM20, Scotland!AM20, Southern!AM20, 'Wales & West'!AM20), CHOOSE(m_identity,SHETL!AM20, SPTL!AM20, 'NGET TO (Best)'!AM20, 0, 'NGGT TO (Best)'!AM20, 0, East!AM20, London!AM20, 'North West'!AM20, 'West Midlands'!AM20, Northern!AM20, Scotland!AM20, Southern!AM20, 'Wales & West'!AM20)) -> 0 | AN20: =IF(UserInterface!$E$72 = 1,CHOOSE(m_identity,SHETL!AN20, SPTL!AN20, 'NGET TO (Base)'!AN20, 0, 'NGGT TO (Base)'!AN20, 0, East!AN20, London!AN20, 'North West'!AN20, 'West Midlands'!AN20, Northern!AN20, Scotland!AN20, Southern!AN20, 'Wales & West'!AN20), CHOOSE(m_identity,SHETL!AN20, SPTL!AN20, 'NGET TO (Best)'!AN20, 0, 'NGGT TO (Best)'!AN20, 0, East!AN20, London!AN20, 'North West'!AN20, 'West Midlands'!AN20, Northern!AN20, Scotland!AN20, Southern!AN20, 'Wales & West'!AN20)) -> 0 | AO20: =IF(UserInterface!$E$72 = 1,CHOOSE(m_identity,SHETL!AO20, SPTL!AO20, 'NGET TO (Base)'!AO20, 0, 'NGGT TO (Base)'!AO20, 0, East!AO20, London!AO20, 'North West'!AO20, 'West Midlands'!AO20, Northern!AO20, Scotland!AO20, Southern!AO20, 'Wales & West'!AO20), CHOOSE(m_identity,SHETL!AO20, SPTL!AO20, 'NGET TO (Best)'!AO20, 0, 'NGGT TO (Best)'!AO20, 0, East!AO20, London!AO20, 'North West'!AO20, 'West Midlands'!AO20, Northern!AO20, Scotland!AO20, Southern!AO20, 'Wales & West'!AO20)) -> 0
E21: Allowed GD Uncertain costs (Smart metering) | F21: ETC28 & GD equivalent | G21: £m 09/10 prices | AH21: =IF(UserInterface!$E$72 = 1,CHOOSE(m_identity,SHETL!AH21, SPTL!AH21, 'NGET TO (Base)'!AH21, 0, 'NGGT TO (Base)'!AH21, 0, East!AH21, London!AH21, 'North West'!AH21, 'West Midlands'!AH21, Northern!AH21, Scotland!AH21, Southern!AH21, 'Wales & West'!AH21), CHOOSE(m_identity,SHETL!AH21, SPTL!AH21, 'NGET TO (Best)'!AH21, 0, 'NGGT TO (Best)'!AH21, 0, East!AH21, London!AH21, 'North West'!AH21, 'West Midlands'!AH21, Northern!AH21, Scotland!AH21, Southern!AH21, 'Wales & West'!AH21)) -> 0 | AI21: =IF(UserInterface!$E$72 = 1,CHOOSE(m_identity,SHETL!AI21, SPTL!AI21, 'NGET TO (Base)'!AI21, 0, 'NGGT TO (Base)'!AI21, 0, East!AI21, London!AI21, 'North West'!AI21, 'West Midlands'!AI21, Northern!AI21, Scotland!AI21, Southern!AI21, 'Wales & West'!AI21), CHOOSE(m_identity,SHETL!AI21, SPTL!AI21, 'NGET TO (Best)'!AI21, 0, 'NGGT TO (Best)'!AI21, 0, East!AI21, London!AI21, 'North West'!AI21, 'West Midlands'!AI21, Northern!AI21, Scotland!AI21, Southern!AI21, 'Wales & West'!AI21)) -> 0 | AJ21: =IF(UserInterface!$E$72 = 1,CHOOSE(m_identity,SHETL!AJ21, SPTL!AJ21, 'NGET TO (Base)'!AJ21, 0, 'NGGT TO (Base)'!AJ21, 0, East!AJ21, London!AJ21, 'North West'!AJ21, 'West Midlands'!AJ21, Northern!AJ21, Scotland!AJ21, Southern!AJ21, 'Wales & West'!AJ21), CHOOSE(m_identity,SHETL!AJ21, SPTL!AJ21, 'NGET TO (Best)'!AJ21, 0, 'NGGT TO (Best)'!AJ21, 0, East!AJ21, London!AJ21, 'North West'!AJ21, 'West Midlands'!AJ21, Northern!AJ21, Scotland!AJ21, Southern!AJ21, 'Wales & West'!AJ21)) -> 0 | AK21: =IF(UserInterface!$E$72 = 1,CHOOSE(m_identity,SHETL!AK21, SPTL!AK21, 'NGET TO (Base)'!AK21, 0, 'NGGT TO (Base)'!AK21, 0, East!AK21, London!AK21, 'North West'!AK21, 'West Midlands'!AK21, Northern!AK21, Scotland!AK21, Southern!AK21, 'Wales & West'!AK21), CHOOSE(m_identity,SHETL!AK21, SPTL!AK21, 'NGET TO (Best)'!AK21, 0, 'NGGT TO (Best)'!AK21, 0, East!AK21, London!AK21, 'North West'!AK21, 'West Midlands'!AK21, Northern!AK21, Scotland!AK21, Southern!AK21, 'Wales & West'!AK21)) -> 0 | AL21: =IF(UserInterface!$E$72 = 1,CHOOSE(m_identity,SHETL!AL21, SPTL!AL21, 'NGET TO (Base)'!AL21, 0, 'NGGT TO (Base)'!AL21, 0, East!AL21, London!AL21, 'North West'!AL21, 'West Midlands'!AL21, Northern!AL21, Scotland!AL21, Southern!AL21, 'Wales & West'!AL21), CHOOSE(m_identity,SHETL!AL21, SPTL!AL21, 'NGET TO (Best)'!AL21, 0, 'NGGT TO (Best)'!AL21, 0, East!AL21, London!AL21, 'North West'!AL21, 'West Midlands'!AL21, Northern!AL21, Scotland!AL21, Southern!AL21, 'Wales & West'!AL21)) -> 0 | AM21: =IF(UserInterface!$E$72 = 1,CHOOSE(m_identity,SHETL!AM21, SPTL!AM21, 'NGET TO (Base)'!AM21, 0, 'NGGT TO (Base)'!AM21, 0, East!AM21, London!AM21, 'North West'!AM21, 'West Midlands'!AM21, Northern!AM21, Scotland!AM21, Southern!AM21, 'Wales & West'!AM21), CHOOSE(m_identity,SHETL!AM21, SPTL!AM21, 'NGET TO (Best)'!AM21, 0, 'NGGT TO (Best)'!AM21, 0, East!AM21, London!AM21, 'North West'!AM21, 'West Midlands'!AM21, Northern!AM21, Scotland!AM21, Southern!AM21, 'Wales & West'!AM21)) -> 0 | AN21: =IF(UserInterface!$E$72 = 1,CHOOSE(m_identity,SHETL!AN21, SPTL!AN21, 'NGET TO (Base)'!AN21, 0, 'NGGT TO (Base)'!AN21, 0, East!AN21, London!AN21, 'North West'!AN21, 'West Midlands'!AN21, Northern!AN21, Scotland!AN21, Southern!AN21, 'Wales & West'!AN21), CHOOSE(m_identity,SHETL!AN21, SPTL!AN21, 'NGET TO (Best)'!AN21, 0, 'NGGT TO (Best)'!AN21, 0, East!AN21, London!AN21, 'North West'!AN21, 'West Midlands'!AN21, Northern!AN21, Scotland!AN21, Southern!AN21, 'Wales & West'!AN21)) -> 0 | AO21: =IF(UserInterface!$E$72 = 1,CHOOSE(m_identity,SHETL!AO21, SPTL!AO21, 'NGET TO (Base)'!AO21, 0, 'NGGT TO (Base)'!AO21, 0, East!AO21, London!AO21, 'North West'!AO21, 'West Midlands'!AO21, Northern!AO21, Scotland!AO21, Southern!AO21, 'Wales & West'!AO21), CHOOSE(m_identity,SHETL!AO21, SPTL!AO21, 'NGET TO (Best)'!AO21, 0, 'NGGT TO (Best)'!AO21, 0, East!AO21, London!AO21, 'North West'!AO21, 'West Midlands'!AO21, Northern!AO21, Scotland!AO21, Southern!AO21, 'Wales & West'!AO21)) -> 0
E22: Allowed SPTL Uncertain costs (Workforce Renewals) | F22: ETC28 & GD equivalent | G22: £m 09/10 prices | AH22: =IF(UserInterface!$E$72 = 1,CHOOSE(m_identity,SHETL!AH22, SPTL!AH22, 'NGET TO (Base)'!AH22, 0, 'NGGT TO (Base)'!AH22, 0, East!AH22, London!AH22, 'North West'!AH22, 'West Midlands'!AH22, Northern!AH22, Scotland!AH22, Southern!AH22, 'Wales & West'!AH22), CHOOSE(m_identity,SHETL!AH22, SPTL!AH22, 'NGET TO (Best)'!AH22, 0, 'NGGT TO (Best)'!AH22, 0, East!AH22, London!AH22, 'North West'!AH22, 'West Midlands'!AH22, Northern!AH22, Scotland!AH22, Southern!AH22, 'Wales & West'!AH22)) -> 0 | AI22: =IF(UserInterface!$E$72 = 1,CHOOSE(m_identity,SHETL!AI22, SPTL!AI22, 'NGET TO (Base)'!AI22, 0, 'NGGT TO (Base)'!AI22, 0, East!AI22, London!AI22, 'North West'!AI22, 'West Midlands'!AI22, Northern!AI22, Scotland!AI22, Southern!AI22, 'Wales & West'!AI22), CHOOSE(m_identity,SHETL!AI22, SPTL!AI22, 'NGET TO (Best)'!AI22, 0, 'NGGT TO (Best)'!AI22, 0, East!AI22, London!AI22, 'North West'!AI22, 'West Midlands'!AI22, Northern!AI22, Scotland!AI22, Southern!AI22, 'Wales & West'!AI22)) -> 0 | AJ22: =IF(UserInterface!$E$72 = 1,CHOOSE(m_identity,SHETL!AJ22, SPTL!AJ22, 'NGET TO (Base)'!AJ22, 0, 'NGGT TO (Base)'!AJ22, 0, East!AJ22, London!AJ22, 'North West'!AJ22, 'West Midlands'!AJ22, Northern!AJ22, Scotland!AJ22, Southern!AJ22, 'Wales & West'!AJ22), CHOOSE(m_identity,SHETL!AJ22, SPTL!AJ22, 'NGET TO (Best)'!AJ22, 0, 'NGGT TO (Best)'!AJ22, 0, East!AJ22, London!AJ22, 'North West'!AJ22, 'West Midlands'!AJ22, Northern!AJ22, Scotland!AJ22, Southern!AJ22, 'Wales & West'!AJ22)) -> 0 | AK22: =IF(UserInterface!$E$72 = 1,CHOOSE(m_identity,SHETL!AK22, SPTL!AK22, 'NGET TO (Base)'!AK22, 0, 'NGGT TO (Base)'!AK22, 0, East!AK22, London!AK22, 'North West'!AK22, 'West Midlands'!AK22, Northern!AK22, Scotland!AK22, Southern!AK22, 'Wales & West'!AK22), CHOOSE(m_identity,SHETL!AK22, SPTL!AK22, 'NGET TO (Best)'!AK22, 0, 'NGGT TO (Best)'!AK22, 0, East!AK22, London!AK22, 'North West'!AK22, 'West Midlands'!AK22, Northern!AK22, Scotland!AK22, Southern!AK22, 'Wales & West'!AK22)) -> 0 | AL22: =IF(UserInterface!$E$72 = 1,CHOOSE(m_identity,SHETL!AL22, SPTL!AL22, 'NGET TO (Base)'!AL22, 0, 'NGGT TO (Base)'!AL22, 0, East!AL22, London!AL22, 'North West'!AL22, 'West Midlands'!AL22, Northern!AL22, Scotland!AL22, Southern!AL22, 'Wales & West'!AL22), CHOOSE(m_identity,SHETL!AL22, SPTL!AL22, 'NGET TO (Best)'!AL22, 0, 'NGGT TO (Best)'!AL22, 0, East!AL22, London!AL22, 'North West'!AL22, 'West Midlands'!AL22, Northern!AL22, Scotland!AL22, Southern!AL22, 'Wales & West'!AL22)) -> 0 | AM22: =IF(UserInterface!$E$72 = 1,CHOOSE(m_identity,SHETL!AM22, SPTL!AM22, 'NGET TO (Base)'!AM22, 0, 'NGGT TO (Base)'!AM22, 0, East!AM22, London!AM22, 'North West'!AM22, 'West Midlands'!AM22, Northern!AM22, Scotland!AM22, Southern!AM22, 'Wales & West'!AM22), CHOOSE(m_identity,SHETL!AM22, SPTL!AM22, 'NGET TO (Best)'!AM22, 0, 'NGGT TO (Best)'!AM22, 0, East!AM22, London!AM22, 'North West'!AM22, 'West Midlands'!AM22, Northern!AM22, Scotland!AM22, Southern!AM22, 'Wales & West'!AM22)) -> 0 | AN22: =IF(UserInterface!$E$72 = 1,CHOOSE(m_identity,SHETL!AN22, SPTL!AN22, 'NGET TO (Base)'!AN22, 0, 'NGGT TO (Base)'!AN22, 0, East!AN22, London!AN22, 'North West'!AN22, 'West Midlands'!AN22, Northern!AN22, Scotland!AN22, Southern!AN22, 'Wales & West'!AN22), CHOOSE(m_identity,SHETL!AN22, SPTL!AN22, 'NGET TO (Best)'!AN22, 0, 'NGGT TO (Best)'!AN22, 0, East!AN22, London!AN22, 'North West'!AN22, 'West Midlands'!AN22, Northern!AN22, Scotland!AN22, Southern!AN22, 'Wales & West'!AN22)) -> 0 | AO22: =IF(UserInterface!$E$72 = 1,CHOOSE(m_identity,SHETL!AO22, SPTL!AO22, 'NGET TO (Base)'!AO22, 0, 'NGGT TO (Base)'!AO22, 0, East!AO22, London!AO22, 'North West'!AO22, 'West Midlands'!AO22, Northern!AO22, Scotland!AO22, Southern!AO22, 'Wales & West'!AO22), CHOOSE(m_identity,SHETL!AO22, SPTL!AO22, 'NGET TO (Best)'!AO22, 0, 'NGGT TO (Best)'!AO22, 0, East!AO22, London!AO22, 'North West'!AO22, 'West Midlands'!AO22, Northern!AO22, Scotland!AO22, Southern!AO22, 'Wales & West'!AO22)) -> 0
E23: Allowed SHETL Uncertain costs (BT 21st Century) | F23: ETC28 & GD equivalent | G23: £m 09/10 prices | AH23: =IF(UserInterface!$E$72 = 1,CHOOSE(m_identity,SHETL!AH23, SPTL!AH23, 'NGET TO (Base)'!AH23, 0, 'NGGT TO (Base)'!AH23, 0, East!AH23, London!AH23, 'North West'!AH23, 'West Midlands'!AH23, Northern!AH23, Scotland!AH23, Southern!AH23, 'Wales & West'!AH23), CHOOSE(m_identity,SHETL!AH23, SPTL!AH23, 'NGET TO (Best)'!AH23, 0, 'NGGT TO (Best)'!AH23, 0, East!AH23, London!AH23, 'North West'!AH23, 'West Midlands'!AH23, Northern!AH23, Scotland!AH23, Southern!AH23, 'Wales & West'!AH23)) -> 0 | AI23: =IF(UserInterface!$E$72 = 1,CHOOSE(m_identity,SHETL!AI23, SPTL!AI23, 'NGET TO (Base)'!AI23, 0, 'NGGT TO (Base)'!AI23, 0, East!AI23, London!AI23, 'North West'!AI23, 'West Midlands'!AI23, Northern!AI23, Scotland!AI23, Southern!AI23, 'Wales & West'!AI23), CHOOSE(m_identity,SHETL!AI23, SPTL!AI23, 'NGET TO (Best)'!AI23, 0, 'NGGT TO (Best)'!AI23, 0, East!AI23, London!AI23, 'North West'!AI23, 'West Midlands'!AI23, Northern!AI23, Scotland!AI23, Southern!AI23, 'Wales & West'!AI23)) -> 0 | AJ23: =IF(UserInterface!$E$72 = 1,CHOOSE(m_identity,SHETL!AJ23, SPTL!AJ23, 'NGET TO (Base)'!AJ23, 0, 'NGGT TO (Base)'!AJ23, 0, East!AJ23, London!AJ23, 'North West'!AJ23, 'West Midlands'!AJ23, Northern!AJ23, Scotland!AJ23, Southern!AJ23, 'Wales & West'!AJ23), CHOOSE(m_identity,SHETL!AJ23, SPTL!AJ23, 'NGET TO (Best)'!AJ23, 0, 'NGGT TO (Best)'!AJ23, 0, East!AJ23, London!AJ23, 'North West'!AJ23, 'West Midlands'!AJ23, Northern!AJ23, Scotland!AJ23, Southern!AJ23, 'Wales & West'!AJ23)) -> 0 | AK23: =IF(UserInterface!$E$72 = 1,CHOOSE(m_identity,SHETL!AK23, SPTL!AK23, 'NGET TO (Base)'!AK23, 0, 'NGGT TO (Base)'!AK23, 0, East!AK23, London!AK23, 'North West'!AK23, 'West Midlands'!AK23, Northern!AK23, Scotland!AK23, Southern!AK23, 'Wales & West'!AK23), CHOOSE(m_identity,SHETL!AK23, SPTL!AK23, 'NGET TO (Best)'!AK23, 0, 'NGGT TO (Best)'!AK23, 0, East!AK23, London!AK23, 'North West'!AK23, 'West Midlands'!AK23, Northern!AK23, Scotland!AK23, Southern!AK23, 'Wales & West'!AK23)) -> 0 | AL23: =IF(UserInterface!$E$72 = 1,CHOOSE(m_identity,SHETL!AL23, SPTL!AL23, 'NGET TO (Base)'!AL23, 0, 'NGGT TO (Base)'!AL23, 0, East!AL23, London!AL23, 'North West'!AL23, 'West Midlands'!AL23, Northern!AL23, Scotland!AL23, Southern!AL23, 'Wales & West'!AL23), CHOOSE(m_identity,SHETL!AL23, SPTL!AL23, 'NGET TO (Best)'!AL23, 0, 'NGGT TO (Best)'!AL23, 0, East!AL23, London!AL23, 'North West'!AL23, 'West Midlands'!AL23, Northern!AL23, Scotland!AL23, Southern!AL23, 'Wales & West'!AL23)) -> 0 | AM23: =IF(UserInterface!$E$72 = 1,CHOOSE(m_identity,SHETL!AM23, SPTL!AM23, 'NGET TO (Base)'!AM23, 0, 'NGGT TO (Base)'!AM23, 0, East!AM23, London!AM23, 'North West'!AM23, 'West Midlands'!AM23, Northern!AM23, Scotland!AM23, Southern!AM23, 'Wales & West'!AM23), CHOOSE(m_identity,SHETL!AM23, SPTL!AM23, 'NGET TO (Best)'!AM23, 0, 'NGGT TO (Best)'!AM23, 0, East!AM23, London!AM23, 'North West'!AM23, 'West Midlands'!AM23, Northern!AM23, Scotland!AM23, Southern!AM23, 'Wales & West'!AM23)) -> 0 | AN23: =IF(UserInterface!$E$72 = 1,CHOOSE(m_identity,SHETL!AN23, SPTL!AN23, 'NGET TO (Base)'!AN23, 0, 'NGGT TO (Base)'!AN23, 0, East!AN23, London!AN23, 'North West'!AN23, 'West Midlands'!AN23, Northern!AN23, Scotland!AN23, Southern!AN23, 'Wales & West'!AN23), CHOOSE(m_identity,SHETL!AN23, SPTL!AN23, 'NGET TO (Best)'!AN23, 0, 'NGGT TO (Best)'!AN23, 0, East!AN23, London!AN23, 'North West'!AN23, 'West Midlands'!AN23, Northern!AN23, Scotland!AN23, Southern!AN23, 'Wales & West'!AN23)) -> 0 | AO23: =IF(UserInterface!$E$72 = 1,CHOOSE(m_identity,SHETL!AO23, SPTL!AO23, 'NGET TO (Base)'!AO23, 0, 'NGGT TO (Base)'!AO23, 0, East!AO23, London!AO23, 'North West'!AO23, 'West Midlands'!AO23, Northern!AO23, Scotland!AO23, Southern!AO23, 'Wales & West'!AO23), CHOOSE(m_identity,SHETL!AO23, SPTL!AO23, 'NGET TO (Best)'!AO23, 0, 'NGGT TO (Best)'!AO23, 0, East!AO23, London!AO23, 'North West'!AO23, 'West Midlands'!AO23, Northern!AO23, Scotland!AO23, Southern!AO23, 'Wales & West'!AO23)) -> 0
E24: Allowed SHETL Uncertain costs (Compensation costs to landowners for wayleaves) | F24: ETC28 & GD equivalent | G24: £m 09/10 prices | AH24: =IF(UserInterface!$E$72 = 1,CHOOSE(m_identity,SHETL!AH24, SPTL!AH24, 'NGET TO (Base)'!AH24, 0, 'NGGT TO (Base)'!AH24, 0, East!AH24, London!AH24, 'North West'!AH24, 'West Midlands'!AH24, Northern!AH24, Scotland!AH24, Southern!AH24, 'Wales & West'!AH24), CHOOSE(m_identity,SHETL!AH24, SPTL!AH24, 'NGET TO (Best)'!AH24, 0, 'NGGT TO (Best)'!AH24, 0, East!AH24, London!AH24, 'North West'!AH24, 'West Midlands'!AH24, Northern!AH24, Scotland!AH24, Southern!AH24, 'Wales & West'!AH24)) -> 0 | AI24: =IF(UserInterface!$E$72 = 1,CHOOSE(m_identity,SHETL!AI24, SPTL!AI24, 'NGET TO (Base)'!AI24, 0, 'NGGT TO (Base)'!AI24, 0, East!AI24, London!AI24, 'North West'!AI24, 'West Midlands'!AI24, Northern!AI24, Scotland!AI24, Southern!AI24, 'Wales & West'!AI24), CHOOSE(m_identity,SHETL!AI24, SPTL!AI24, 'NGET TO (Best)'!AI24, 0, 'NGGT TO (Best)'!AI24, 0, East!AI24, London!AI24, 'North West'!AI24, 'West Midlands'!AI24, Northern!AI24, Scotland!AI24, Southern!AI24, 'Wales & West'!AI24)) -> 0 | AJ24: =IF(UserInterface!$E$72 = 1,CHOOSE(m_identity,SHETL!AJ24, SPTL!AJ24, 'NGET TO (Base)'!AJ24, 0, 'NGGT TO (Base)'!AJ24, 0, East!AJ24, London!AJ24, 'North West'!AJ24, 'West Midlands'!AJ24, Northern!AJ24, Scotland!AJ24, Southern!AJ24, 'Wales & West'!AJ24), CHOOSE(m_identity,SHETL!AJ24, SPTL!AJ24, 'NGET TO (Best)'!AJ24, 0, 'NGGT TO (Best)'!AJ24, 0, East!AJ24, London!AJ24, 'North West'!AJ24, 'West Midlands'!AJ24, Northern!AJ24, Scotland!AJ24, Southern!AJ24, 'Wales & West'!AJ24)) -> 0 | AK24: =IF(UserInterface!$E$72 = 1,CHOOSE(m_identity,SHETL!AK24, SPTL!AK24, 'NGET TO (Base)'!AK24, 0, 'NGGT TO (Base)'!AK24, 0, East!AK24, London!AK24, 'North West'!AK24, 'West Midlands'!AK24, Northern!AK24, Scotland!AK24, Southern!AK24, 'Wales & West'!AK24), CHOOSE(m_identity,SHETL!AK24, SPTL!AK24, 'NGET TO (Best)'!AK24, 0, 'NGGT TO (Best)'!AK24, 0, East!AK24, London!AK24, 'North West'!AK24, 'West Midlands'!AK24, Northern!AK24, Scotland!AK24, Southern!AK24, 'Wales & West'!AK24)) -> 0 | AL24: =IF(UserInterface!$E$72 = 1,CHOOSE(m_identity,SHETL!AL24, SPTL!AL24, 'NGET TO (Base)'!AL24, 0, 'NGGT TO (Base)'!AL24, 0, East!AL24, London!AL24, 'North West'!AL24, 'West Midlands'!AL24, Northern!AL24, Scotland!AL24, Southern!AL24, 'Wales & West'!AL24), CHOOSE(m_identity,SHETL!AL24, SPTL!AL24, 'NGET TO (Best)'!AL24, 0, 'NGGT TO (Best)'!AL24, 0, East!AL24, London!AL24, 'North West'!AL24, 'West Midlands'!AL24, Northern!AL24, Scotland!AL24, Southern!AL24, 'Wales & West'!AL24)) -> 0 | AM24: =IF(UserInterface!$E$72 = 1,CHOOSE(m_identity,SHETL!AM24, SPTL!AM24, 'NGET TO (Base)'!AM24, 0, 'NGGT TO (Base)'!AM24, 0, East!AM24, London!AM24, 'North West'!AM24, 'West Midlands'!AM24, Northern!AM24, Scotland!AM24, Southern!AM24, 'Wales & West'!AM24), CHOOSE(m_identity,SHETL!AM24, SPTL!AM24, 'NGET TO (Best)'!AM24, 0, 'NGGT TO (Best)'!AM24, 0, East!AM24, London!AM24, 'North West'!AM24, 'West Midlands'!AM24, Northern!AM24, Scotland!AM24, Southern!AM24, 'Wales & West'!AM24)) -> 0 | AN24: =IF(UserInterface!$E$72 = 1,CHOOSE(m_identity,SHETL!AN24, SPTL!AN24, 'NGET TO (Base)'!AN24, 0, 'NGGT TO (Base)'!AN24, 0, East!AN24, London!AN24, 'North West'!AN24, 'West Midlands'!AN24, Northern!AN24, Scotland!AN24, Southern!AN24, 'Wales & West'!AN24), CHOOSE(m_identity,SHETL!AN24, SPTL!AN24, 'NGET TO (Best)'!AN24, 0, 'NGGT TO (Best)'!AN24, 0, East!AN24, London!AN24, 'North West'!AN24, 'West Midlands'!AN24, Northern!AN24, Scotland!AN24, Southern!AN24, 'Wales & West'!AN24)) -> 0 | AO24: =IF(UserInterface!$E$72 = 1,CHOOSE(m_identity,SHETL!AO24, SPTL!AO24, 'NGET TO (Base)'!AO24, 0, 'NGGT TO (Base)'!AO24, 0, East!AO24, London!AO24, 'North West'!AO24, 'West Midlands'!AO24, Northern!AO24, Scotland!AO24, Southern!AO24, 'Wales & West'!AO24), CHOOSE(m_identity,SHETL!AO24, SPTL!AO24, 'NGET TO (Best)'!AO24, 0, 'NGGT TO (Best)'!AO24, 0, East!AO24, London!AO24, 'North West'!AO24, 'West Midlands'!AO24, Northern!AO24, Scotland!AO24, Southern!AO24, 'Wales & West'!AO24)) -> 0
E25: Allowed ET strategic wider works | F25: ETC39 - (aggregated total bestline allowance and within year determinations) | G25: £m 09/10 prices | AH25: =IF(UserInterface!$E$72 = 1,CHOOSE(m_identity,SHETL!AH25, SPTL!AH25, 'NGET TO (Base)'!AH25, 0, 'NGGT TO (Base)'!AH25, 0, East!AH25, London!AH25, 'North West'!AH25, 'West Midlands'!AH25, Northern!AH25, Scotland!AH25, Southern!AH25, 'Wales & West'!AH25), CHOOSE(m_identity,SHETL!AH25, SPTL!AH25, 'NGET TO (Best)'!AH25, 0, 'NGGT TO (Best)'!AH25, 0, East!AH25, London!AH25, 'North West'!AH25, 'West Midlands'!AH25, Northern!AH25, Scotland!AH25, Southern!AH25, 'Wales & West'!AH25)) -> 0 | AI25: =IF(UserInterface!$E$72 = 1,CHOOSE(m_identity,SHETL!AI25, SPTL!AI25, 'NGET TO (Base)'!AI25, 0, 'NGGT TO (Base)'!AI25, 0, East!AI25, London!AI25, 'North West'!AI25, 'West Midlands'!AI25, Northern!AI25, Scotland!AI25, Southern!AI25, 'Wales & West'!AI25), CHOOSE(m_identity,SHETL!AI25, SPTL!AI25, 'NGET TO (Best)'!AI25, 0, 'NGGT TO (Best)'!AI25, 0, East!AI25, London!AI25, 'North West'!AI25, 'West Midlands'!AI25, Northern!AI25, Scotland!AI25, Southern!AI25, 'Wales & West'!AI25)) -> 0 | AJ25: =IF(UserInterface!$E$72 = 1,CHOOSE(m_identity,SHETL!AJ25, SPTL!AJ25, 'NGET TO (Base)'!AJ25, 0, 'NGGT TO (Base)'!AJ25, 0, East!AJ25, London!AJ25, 'North West'!AJ25, 'West Midlands'!AJ25, Northern!AJ25, Scotland!AJ25, Southern!AJ25, 'Wales & West'!AJ25), CHOOSE(m_identity,SHETL!AJ25, SPTL!AJ25, 'NGET TO (Best)'!AJ25, 0, 'NGGT TO (Best)'!AJ25, 0, East!AJ25, London!AJ25, 'North West'!AJ25, 'West Midlands'!AJ25, Northern!AJ25, Scotland!AJ25, Southern!AJ25, 'Wales & West'!AJ25)) -> 0 | AK25: =IF(UserInterface!$E$72 = 1,CHOOSE(m_identity,SHETL!AK25, SPTL!AK25, 'NGET TO (Base)'!AK25, 0, 'NGGT TO (Base)'!AK25, 0, East!AK25, London!AK25, 'North West'!AK25, 'West Midlands'!AK25, Northern!AK25, Scotland!AK25, Southern!AK25, 'Wales & West'!AK25), CHOOSE(m_identity,SHETL!AK25, SPTL!AK25, 'NGET TO (Best)'!AK25, 0, 'NGGT TO (Best)'!AK25, 0, East!AK25, London!AK25, 'North West'!AK25, 'West Midlands'!AK25, Northern!AK25, Scotland!AK25, Southern!AK25, 'Wales & West'!AK25)) -> 0 | AL25: =IF(UserInterface!$E$72 = 1,CHOOSE(m_identity,SHETL!AL25, SPTL!AL25, 'NGET TO (Base)'!AL25, 0, 'NGGT TO (Base)'!AL25, 0, East!AL25, London!AL25, 'North West'!AL25, 'West Midlands'!AL25, Northern!AL25, Scotland!AL25, Southern!AL25, 'Wales & West'!AL25), CHOOSE(m_identity,SHETL!AL25, SPTL!AL25, 'NGET TO (Best)'!AL25, 0, 'NGGT TO (Best)'!AL25, 0, East!AL25, London!AL25, 'North West'!AL25, 'West Midlands'!AL25, Northern!AL25, Scotland!AL25, Southern!AL25, 'Wales & West'!AL25)) -> 0 | AM25: =IF(UserInterface!$E$72 = 1,CHOOSE(m_identity,SHETL!AM25, SPTL!AM25, 'NGET TO (Base)'!AM25, 0, 'NGGT TO (Base)'!AM25, 0, East!AM25, London!AM25, 'North West'!AM25, 'West Midlands'!AM25, Northern!AM25, Scotland!AM25, Southern!AM25, 'Wales & West'!AM25), CHOOSE(m_identity,SHETL!AM25, SPTL!AM25, 'NGET TO (Best)'!AM25, 0, 'NGGT TO (Best)'!AM25, 0, East!AM25, London!AM25, 'North West'!AM25, 'West Midlands'!AM25, Northern!AM25, Scotland!AM25, Southern!AM25, 'Wales & West'!AM25)) -> 0 | AN25: =IF(UserInterface!$E$72 = 1,CHOOSE(m_identity,SHETL!AN25, SPTL!AN25, 'NGET TO (Base)'!AN25, 0, 'NGGT TO (Base)'!AN25, 0, East!AN25, London!AN25, 'North West'!AN25, 'West Midlands'!AN25, Northern!AN25, Scotland!AN25, Southern!AN25, 'Wales & West'!AN25), CHOOSE(m_identity,SHETL!AN25, SPTL!AN25, 'NGET TO (Best)'!AN25, 0, 'NGGT TO (Best)'!AN25, 0, East!AN25, London!AN25, 'North West'!AN25, 'West Midlands'!AN25, Northern!AN25, Scotland!AN25, Southern!AN25, 'Wales & West'!AN25)) -> 0 | AO25: =IF(UserInterface!$E$72 = 1,CHOOSE(m_identity,SHETL!AO25, SPTL!AO25, 'NGET TO (Base)'!AO25, 0, 'NGGT TO (Base)'!AO25, 0, East!AO25, London!AO25, 'North West'!AO25, 'West Midlands'!AO25, Northern!AO25, Scotland!AO25, Southern!AO25, 'Wales & West'!AO25), CHOOSE(m_identity,SHETL!AO25, SPTL!AO25, 'NGET TO (Best)'!AO25, 0, 'NGGT TO (Best)'!AO25, 0, East!AO25, London!AO25, 'North West'!AO25, 'West Midlands'!AO25, Northern!AO25, Scotland!AO25, Southern!AO25, 'Wales & West'!AO25)) -> 0
E26: Allowed ET wider works volume drivers | F26: ETC39 - (aggregated total bestline allowance and within year determinations) | G26: £m 09/10 prices | AH26: =IF(UserInterface!$E$72 = 1,CHOOSE(m_identity,SHETL!AH26, SPTL!AH26, 'NGET TO (Base)'!AH26, 0, 'NGGT TO (Base)'!AH26, 0, East!AH26, London!AH26, 'North West'!AH26, 'West Midlands'!AH26, Northern!AH26, Scotland!AH26, Southern!AH26, 'Wales & West'!AH26), CHOOSE(m_identity,SHETL!AH26, SPTL!AH26, 'NGET TO (Best)'!AH26, 0, 'NGGT TO (Best)'!AH26, 0, East!AH26, London!AH26, 'North West'!AH26, 'West Midlands'!AH26, Northern!AH26, Scotland!AH26, Southern!AH26, 'Wales & West'!AH26)) -> 0 | AI26: =IF(UserInterface!$E$72 = 1,CHOOSE(m_identity,SHETL!AI26, SPTL!AI26, 'NGET TO (Base)'!AI26, 0, 'NGGT TO (Base)'!AI26, 0, East!AI26, London!AI26, 'North West'!AI26, 'West Midlands'!AI26, Northern!AI26, Scotland!AI26, Southern!AI26, 'Wales & West'!AI26), CHOOSE(m_identity,SHETL!AI26, SPTL!AI26, 'NGET TO (Best)'!AI26, 0, 'NGGT TO (Best)'!AI26, 0, East!AI26, London!AI26, 'North West'!AI26, 'West Midlands'!AI26, Northern!AI26, Scotland!AI26, Southern!AI26, 'Wales & West'!AI26)) -> 0 | AJ26: =IF(UserInterface!$E$72 = 1,CHOOSE(m_identity,SHETL!AJ26, SPTL!AJ26, 'NGET TO (Base)'!AJ26, 0, 'NGGT TO (Base)'!AJ26, 0, East!AJ26, London!AJ26, 'North West'!AJ26, 'West Midlands'!AJ26, Northern!AJ26, Scotland!AJ26, Southern!AJ26, 'Wales & West'!AJ26), CHOOSE(m_identity,SHETL!AJ26, SPTL!AJ26, 'NGET TO (Best)'!AJ26, 0, 'NGGT TO (Best)'!AJ26, 0, East!AJ26, London!AJ26, 'North West'!AJ26, 'West Midlands'!AJ26, Northern!AJ26, Scotland!AJ26, Southern!AJ26, 'Wales & West'!AJ26)) -> 0 | AK26: =IF(UserInterface!$E$72 = 1,CHOOSE(m_identity,SHETL!AK26, SPTL!AK26, 'NGET TO (Base)'!AK26, 0, 'NGGT TO (Base)'!AK26, 0, East!AK26, London!AK26, 'North West'!AK26, 'West Midlands'!AK26, Northern!AK26, Scotland!AK26, Southern!AK26, 'Wales & West'!AK26), CHOOSE(m_identity,SHETL!AK26, SPTL!AK26, 'NGET TO (Best)'!AK26, 0, 'NGGT TO (Best)'!AK26, 0, East!AK26, London!AK26, 'North West'!AK26, 'West Midlands'!AK26, Northern!AK26, Scotland!AK26, Southern!AK26, 'Wales & West'!AK26)) -> 0 | AL26: =IF(UserInterface!$E$72 = 1,CHOOSE(m_identity,SHETL!AL26, SPTL!AL26, 'NGET TO (Base)'!AL26, 0, 'NGGT TO (Base)'!AL26, 0, East!AL26, London!AL26, 'North West'!AL26, 'West Midlands'!AL26, Northern!AL26, Scotland!AL26, Southern!AL26, 'Wales & West'!AL26), CHOOSE(m_identity,SHETL!AL26, SPTL!AL26, 'NGET TO (Best)'!AL26, 0, 'NGGT TO (Best)'!AL26, 0, East!AL26, London!AL26, 'North West'!AL26, 'West Midlands'!AL26, Northern!AL26, Scotland!AL26, Southern!AL26, 'Wales & West'!AL26)) -> 0 | AM26: =IF(UserInterface!$E$72 = 1,CHOOSE(m_identity,SHETL!AM26, SPTL!AM26, 'NGET TO (Base)'!AM26, 0, 'NGGT TO (Base)'!AM26, 0, East!AM26, London!AM26, 'North West'!AM26, 'West Midlands'!AM26, Northern!AM26, Scotland!AM26, Southern!AM26, 'Wales & West'!AM26), CHOOSE(m_identity,SHETL!AM26, SPTL!AM26, 'NGET TO (Best)'!AM26, 0, 'NGGT TO (Best)'!AM26, 0, East!AM26, London!AM26, 'North West'!AM26, 'West Midlands'!AM26, Northern!AM26, Scotland!AM26, Southern!AM26, 'Wales & West'!AM26)) -> 0 | AN26: =IF(UserInterface!$E$72 = 1,CHOOSE(m_identity,SHETL!AN26, SPTL!AN26, 'NGET TO (Base)'!AN26, 0, 'NGGT TO (Base)'!AN26, 0, East!AN26, London!AN26, 'North West'!AN26, 'West Midlands'!AN26, Northern!AN26, Scotland!AN26, Southern!AN26, 'Wales & West'!AN26), CHOOSE(m_identity,SHETL!AN26, SPTL!AN26, 'NGET TO (Best)'!AN26, 0, 'NGGT TO (Best)'!AN26, 0, East!AN26, London!AN26, 'North West'!AN26, 'West Midlands'!AN26, Northern!AN26, Scotland!AN26, Southern!AN26, 'Wales & West'!AN26)) -> 0 | AO26: =IF(UserInterface!$E$72 = 1,CHOOSE(m_identity,SHETL!AO26, SPTL!AO26, 'NGET TO (Base)'!AO26, 0, 'NGGT TO (Base)'!AO26, 0, East!AO26, London!AO26, 'North West'!AO26, 'West Midlands'!AO26, Northern!AO26, Scotland!AO26, Southern!AO26, 'Wales & West'!AO26), CHOOSE(m_identity,SHETL!AO26, SPTL!AO26, 'NGET TO (Best)'!AO26, 0, 'NGGT TO (Best)'!AO26, 0, East!AO26, London!AO26, 'North West'!AO26, 'West Midlands'!AO26, Northern!AO26, Scotland!AO26, Southern!AO26, 'Wales & West'!AO26)) -> 0
E27: Allowed ET visual amenity | G27: £m 09/10 prices | AH27: =IF(UserInterface!$E$72 = 1,CHOOSE(m_identity,SHETL!AH27, SPTL!AH27, 'NGET TO (Base)'!AH27, 0, 'NGGT TO (Base)'!AH27, 0, East!AH27, London!AH27, 'North West'!AH27, 'West Midlands'!AH27, Northern!AH27, Scotland!AH27, Southern!AH27, 'Wales & West'!AH27), CHOOSE(m_identity,SHETL!AH27, SPTL!AH27, 'NGET TO (Best)'!AH27, 0, 'NGGT TO (Best)'!AH27, 0, East!AH27, London!AH27, 'North West'!AH27, 'West Midlands'!AH27, Northern!AH27, Scotland!AH27, Southern!AH27, 'Wales & West'!AH27)) -> 0 | AI27: =IF(UserInterface!$E$72 = 1,CHOOSE(m_identity,SHETL!AI27, SPTL!AI27, 'NGET TO (Base)'!AI27, 0, 'NGGT TO (Base)'!AI27, 0, East!AI27, London!AI27, 'North West'!AI27, 'West Midlands'!AI27, Northern!AI27, Scotland!AI27, Southern!AI27, 'Wales & West'!AI27), CHOOSE(m_identity,SHETL!AI27, SPTL!AI27, 'NGET TO (Best)'!AI27, 0, 'NGGT TO (Best)'!AI27, 0, East!AI27, London!AI27, 'North West'!AI27, 'West Midlands'!AI27, Northern!AI27, Scotland!AI27, Southern!AI27, 'Wales & West'!AI27)) -> 0 | AJ27: =IF(UserInterface!$E$72 = 1,CHOOSE(m_identity,SHETL!AJ27, SPTL!AJ27, 'NGET TO (Base)'!AJ27, 0, 'NGGT TO (Base)'!AJ27, 0, East!AJ27, London!AJ27, 'North West'!AJ27, 'West Midlands'!AJ27, Northern!AJ27, Scotland!AJ27, Southern!AJ27, 'Wales & West'!AJ27), CHOOSE(m_identity,SHETL!AJ27, SPTL!AJ27, 'NGET TO (Best)'!AJ27, 0, 'NGGT TO (Best)'!AJ27, 0, East!AJ27, London!AJ27, 'North West'!AJ27, 'West Midlands'!AJ27, Northern!AJ27, Scotland!AJ27, Southern!AJ27, 'Wales & West'!AJ27)) -> 0 | AK27: =IF(UserInterface!$E$72 = 1,CHOOSE(m_identity,SHETL!AK27, SPTL!AK27, 'NGET TO (Base)'!AK27, 0, 'NGGT TO (Base)'!AK27, 0, East!AK27, London!AK27, 'North West'!AK27, 'West Midlands'!AK27, Northern!AK27, Scotland!AK27, Southern!AK27, 'Wales & West'!AK27), CHOOSE(m_identity,SHETL!AK27, SPTL!AK27, 'NGET TO (Best)'!AK27, 0, 'NGGT TO (Best)'!AK27, 0, East!AK27, London!AK27, 'North West'!AK27, 'West Midlands'!AK27, Northern!AK27, Scotland!AK27, Southern!AK27, 'Wales & West'!AK27)) -> 0 | AL27: =IF(UserInterface!$E$72 = 1,CHOOSE(m_identity,SHETL!AL27, SPTL!AL27, 'NGET TO (Base)'!AL27, 0, 'NGGT TO (Base)'!AL27, 0, East!AL27, London!AL27, 'North West'!AL27, 'West Midlands'!AL27, Northern!AL27, Scotland!AL27, Southern!AL27, 'Wales & West'!AL27), CHOOSE(m_identity,SHETL!AL27, SPTL!AL27, 'NGET TO (Best)'!AL27, 0, 'NGGT TO (Best)'!AL27, 0, East!AL27, London!AL27, 'North West'!AL27, 'West Midlands'!AL27, Northern!AL27, Scotland!AL27, Southern!AL27, 'Wales & West'!AL27)) -> 0 | AM27: =IF(UserInterface!$E$72 = 1,CHOOSE(m_identity,SHETL!AM27, SPTL!AM27, 'NGET TO (Base)'!AM27, 0, 'NGGT TO (Base)'!AM27, 0, East!AM27, London!AM27, 'North West'!AM27, 'West Midlands'!AM27, Northern!AM27, Scotland!AM27, Southern!AM27, 'Wales & West'!AM27), CHOOSE(m_identity,SHETL!AM27, SPTL!AM27, 'NGET TO (Best)'!AM27, 0, 'NGGT TO (Best)'!AM27, 0, East!AM27, London!AM27, 'North West'!AM27, 'West Midlands'!AM27, Northern!AM27, Scotland!AM27, Southern!AM27, 'Wales & West'!AM27)) -> 0 | AN27: =IF(UserInterface!$E$72 = 1,CHOOSE(m_identity,SHETL!AN27, SPTL!AN27, 'NGET TO (Base)'!AN27, 0, 'NGGT TO (Base)'!AN27, 0, East!AN27, London!AN27, 'North West'!AN27, 'West Midlands'!AN27, Northern!AN27, Scotland!AN27, Southern!AN27, 'Wales & West'!AN27), CHOOSE(m_identity,SHETL!AN27, SPTL!AN27, 'NGET TO (Best)'!AN27, 0, 'NGGT TO (Best)'!AN27, 0, East!AN27, London!AN27, 'North West'!AN27, 'West Midlands'!AN27, Northern!AN27, Scotland!AN27, Southern!AN27, 'Wales & West'!AN27)) -> 0 | AO27: =IF(UserInterface!$E$72 = 1,CHOOSE(m_identity,SHETL!AO27, SPTL!AO27, 'NGET TO (Base)'!AO27, 0, 'NGGT TO (Base)'!AO27, 0, East!AO27, London!AO27, 'North West'!AO27, 'West Midlands'!AO27, Northern!AO27, Scotland!AO27, Southern!AO27, 'Wales & West'!AO27), CHOOSE(m_identity,SHETL!AO27, SPTL!AO27, 'NGET TO (Best)'!AO27, 0, 'NGGT TO (Best)'!AO27, 0, East!AO27, London!AO27, 'North West'!AO27, 'West Midlands'!AO27, Northern!AO27, Scotland!AO27, Southern!AO27, 'Wales & West'!AO27)) -> 0
E28: Allowed demand related infrastructure | G28: £m 09/10 prices | AH28: =IF(UserInterface!$E$72 = 1,CHOOSE(m_identity,SHETL!AH28, SPTL!AH28, 'NGET TO (Base)'!AH28, 0, 'NGGT TO (Base)'!AH28, 0, East!AH28, London!AH28, 'North West'!AH28, 'West Midlands'!AH28, Northern!AH28, Scotland!AH28, Southern!AH28, 'Wales & West'!AH28), CHOOSE(m_identity,SHETL!AH28, SPTL!AH28, 'NGET TO (Best)'!AH28, 0, 'NGGT TO (Best)'!AH28, 0, East!AH28, London!AH28, 'North West'!AH28, 'West Midlands'!AH28, Northern!AH28, Scotland!AH28, Southern!AH28, 'Wales & West'!AH28)) -> 0 | AI28: =IF(UserInterface!$E$72 = 1,CHOOSE(m_identity,SHETL!AI28, SPTL!AI28, 'NGET TO (Base)'!AI28, 0, 'NGGT TO (Base)'!AI28, 0, East!AI28, London!AI28, 'North West'!AI28, 'West Midlands'!AI28, Northern!AI28, Scotland!AI28, Southern!AI28, 'Wales & West'!AI28), CHOOSE(m_identity,SHETL!AI28, SPTL!AI28, 'NGET TO (Best)'!AI28, 0, 'NGGT TO (Best)'!AI28, 0, East!AI28, London!AI28, 'North West'!AI28, 'West Midlands'!AI28, Northern!AI28, Scotland!AI28, Southern!AI28, 'Wales & West'!AI28)) -> 0 | AJ28: =IF(UserInterface!$E$72 = 1,CHOOSE(m_identity,SHETL!AJ28, SPTL!AJ28, 'NGET TO (Base)'!AJ28, 0, 'NGGT TO (Base)'!AJ28, 0, East!AJ28, London!AJ28, 'North West'!AJ28, 'West Midlands'!AJ28, Northern!AJ28, Scotland!AJ28, Southern!AJ28, 'Wales & West'!AJ28), CHOOSE(m_identity,SHETL!AJ28, SPTL!AJ28, 'NGET TO (Best)'!AJ28, 0, 'NGGT TO (Best)'!AJ28, 0, East!AJ28, London!AJ28, 'North West'!AJ28, 'West Midlands'!AJ28, Northern!AJ28, Scotland!AJ28, Southern!AJ28, 'Wales & West'!AJ28)) -> 0 | AK28: =IF(UserInterface!$E$72 = 1,CHOOSE(m_identity,SHETL!AK28, SPTL!AK28, 'NGET TO (Base)'!AK28, 0, 'NGGT TO (Base)'!AK28, 0, East!AK28, London!AK28, 'North West'!AK28, 'West Midlands'!AK28, Northern!AK28, Scotland!AK28, Southern!AK28, 'Wales & West'!AK28), CHOOSE(m_identity,SHETL!AK28, SPTL!AK28, 'NGET TO (Best)'!AK28, 0, 'NGGT TO (Best)'!AK28, 0, East!AK28, London!AK28, 'North West'!AK28, 'West Midlands'!AK28, Northern!AK28, Scotland!AK28, Southern!AK28, 'Wales & West'!AK28)) -> 0 | AL28: =IF(UserInterface!$E$72 = 1,CHOOSE(m_identity,SHETL!AL28, SPTL!AL28, 'NGET TO (Base)'!AL28, 0, 'NGGT TO (Base)'!AL28, 0, East!AL28, London!AL28, 'North West'!AL28, 'West Midlands'!AL28, Northern!AL28, Scotland!AL28, Southern!AL28, 'Wales & West'!AL28), CHOOSE(m_identity,SHETL!AL28, SPTL!AL28, 'NGET TO (Best)'!AL28, 0, 'NGGT TO (Best)'!AL28, 0, East!AL28, London!AL28, 'North West'!AL28, 'West Midlands'!AL28, Northern!AL28, Scotland!AL28, Southern!AL28, 'Wales & West'!AL28)) -> 0 | AM28: =IF(UserInterface!$E$72 = 1,CHOOSE(m_identity,SHETL!AM28, SPTL!AM28, 'NGET TO (Base)'!AM28, 0, 'NGGT TO (Base)'!AM28, 0, East!AM28, London!AM28, 'North West'!AM28, 'West Midlands'!AM28, Northern!AM28, Scotland!AM28, Southern!AM28, 'Wales & West'!AM28), CHOOSE(m_identity,SHETL!AM28, SPTL!AM28, 'NGET TO (Best)'!AM28, 0, 'NGGT TO (Best)'!AM28, 0, East!AM28, London!AM28, 'North West'!AM28, 'West Midlands'!AM28, Northern!AM28, Scotland!AM28, Southern!AM28, 'Wales & West'!AM28)) -> 0 | AN28: =IF(UserInterface!$E$72 = 1,CHOOSE(m_identity,SHETL!AN28, SPTL!AN28, 'NGET TO (Base)'!AN28, 0, 'NGGT TO (Base)'!AN28, 0, East!AN28, London!AN28, 'North West'!AN28, 'West Midlands'!AN28, Northern!AN28, Scotland!AN28, Southern!AN28, 'Wales & West'!AN28), CHOOSE(m_identity,SHETL!AN28, SPTL!AN28, 'NGET TO (Best)'!AN28, 0, 'NGGT TO (Best)'!AN28, 0, East!AN28, London!AN28, 'North West'!AN28, 'West Midlands'!AN28, Northern!AN28, Scotland!AN28, Southern!AN28, 'Wales & West'!AN28)) -> 0 | AO28: =IF(UserInterface!$E$72 = 1,CHOOSE(m_identity,SHETL!AO28, SPTL!AO28, 'NGET TO (Base)'!AO28, 0, 'NGGT TO (Base)'!AO28, 0, East!AO28, London!AO28, 'North West'!AO28, 'West Midlands'!AO28, Northern!AO28, Scotland!AO28, Southern!AO28, 'Wales & West'!AO28), CHOOSE(m_identity,SHETL!AO28, SPTL!AO28, 'NGET TO (Best)'!AO28, 0, 'NGGT TO (Best)'!AO28, 0, East!AO28, London!AO28, 'North West'!AO28, 'West Midlands'!AO28, Northern!AO28, Scotland!AO28, Southern!AO28, 'Wales & West'!AO28)) -> 0
E29: Allowed ET planning requirements | G29: £m 09/10 prices | AH29: =IF(UserInterface!$E$72 = 1,CHOOSE(m_identity,SHETL!AH29, SPTL!AH29, 'NGET TO (Base)'!AH29, 0, 'NGGT TO (Base)'!AH29, 0, East!AH29, London!AH29, 'North West'!AH29, 'West Midlands'!AH29, Northern!AH29, Scotland!AH29, Southern!AH29, 'Wales & West'!AH29), CHOOSE(m_identity,SHETL!AH29, SPTL!AH29, 'NGET TO (Best)'!AH29, 0, 'NGGT TO (Best)'!AH29, 0, East!AH29, London!AH29, 'North West'!AH29, 'West Midlands'!AH29, Northern!AH29, Scotland!AH29, Southern!AH29, 'Wales & West'!AH29)) -> 0 | AI29: =IF(UserInterface!$E$72 = 1,CHOOSE(m_identity,SHETL!AI29, SPTL!AI29, 'NGET TO (Base)'!AI29, 0, 'NGGT TO (Base)'!AI29, 0, East!AI29, London!AI29, 'North West'!AI29, 'West Midlands'!AI29, Northern!AI29, Scotland!AI29, Southern!AI29, 'Wales & West'!AI29), CHOOSE(m_identity,SHETL!AI29, SPTL!AI29, 'NGET TO (Best)'!AI29, 0, 'NGGT TO (Best)'!AI29, 0, East!AI29, London!AI29, 'North West'!AI29, 'West Midlands'!AI29, Northern!AI29, Scotland!AI29, Southern!AI29, 'Wales & West'!AI29)) -> 0 | AJ29: =IF(UserInterface!$E$72 = 1,CHOOSE(m_identity,SHETL!AJ29, SPTL!AJ29, 'NGET TO (Base)'!AJ29, 0, 'NGGT TO (Base)'!AJ29, 0, East!AJ29, London!AJ29, 'North West'!AJ29, 'West Midlands'!AJ29, Northern!AJ29, Scotland!AJ29, Southern!AJ29, 'Wales & West'!AJ29), CHOOSE(m_identity,SHETL!AJ29, SPTL!AJ29, 'NGET TO (Best)'!AJ29, 0, 'NGGT TO (Best)'!AJ29, 0, East!AJ29, London!AJ29, 'North West'!AJ29, 'West Midlands'!AJ29, Northern!AJ29, Scotland!AJ29, Southern!AJ29, 'Wales & West'!AJ29)) -> 0 | AK29: =IF(UserInterface!$E$72 = 1,CHOOSE(m_identity,SHETL!AK29, SPTL!AK29, 'NGET TO (Base)'!AK29, 0, 'NGGT TO (Base)'!AK29, 0, East!AK29, London!AK29, 'North West'!AK29, 'West Midlands'!AK29, Northern!AK29, Scotland!AK29, Southern!AK29, 'Wales & West'!AK29), CHOOSE(m_identity,SHETL!AK29, SPTL!AK29, 'NGET TO (Best)'!AK29, 0, 'NGGT TO (Best)'!AK29, 0, East!AK29, London!AK29, 'North West'!AK29, 'West Midlands'!AK29, Northern!AK29, Scotland!AK29, Southern!AK29, 'Wales & West'!AK29)) -> 0 | AL29: =IF(UserInterface!$E$72 = 1,CHOOSE(m_identity,SHETL!AL29, SPTL!AL29, 'NGET TO (Base)'!AL29, 0, 'NGGT TO (Base)'!AL29, 0, East!AL29, London!AL29, 'North West'!AL29, 'West Midlands'!AL29, Northern!AL29, Scotland!AL29, Southern!AL29, 'Wales & West'!AL29), CHOOSE(m_identity,SHETL!AL29, SPTL!AL29, 'NGET TO (Best)'!AL29, 0, 'NGGT TO (Best)'!AL29, 0, East!AL29, London!AL29, 'North West'!AL29, 'West Midlands'!AL29, Northern!AL29, Scotland!AL29, Southern!AL29, 'Wales & West'!AL29)) -> 0 | AM29: =IF(UserInterface!$E$72 = 1,CHOOSE(m_identity,SHETL!AM29, SPTL!AM29, 'NGET TO (Base)'!AM29, 0, 'NGGT TO (Base)'!AM29, 0, East!AM29, London!AM29, 'North West'!AM29, 'West Midlands'!AM29, Northern!AM29, Scotland!AM29, Southern!AM29, 'Wales & West'!AM29), CHOOSE(m_identity,SHETL!AM29, SPTL!AM29, 'NGET TO (Best)'!AM29, 0, 'NGGT TO (Best)'!AM29, 0, East!AM29, London!AM29, 'North West'!AM29, 'West Midlands'!AM29, Northern!AM29, Scotland!AM29, Southern!AM29, 'Wales & West'!AM29)) -> 0 | AN29: =IF(UserInterface!$E$72 = 1,CHOOSE(m_identity,SHETL!AN29, SPTL!AN29, 'NGET TO (Base)'!AN29, 0, 'NGGT TO (Base)'!AN29, 0, East!AN29, London!AN29, 'North West'!AN29, 'West Midlands'!AN29, Northern!AN29, Scotland!AN29, Southern!AN29, 'Wales & West'!AN29), CHOOSE(m_identity,SHETL!AN29, SPTL!AN29, 'NGET TO (Best)'!AN29, 0, 'NGGT TO (Best)'!AN29, 0, East!AN29, London!AN29, 'North West'!AN29, 'West Midlands'!AN29, Northern!AN29, Scotland!AN29, Southern!AN29, 'Wales & West'!AN29)) -> 0 | AO29: =IF(UserInterface!$E$72 = 1,CHOOSE(m_identity,SHETL!AO29, SPTL!AO29, 'NGET TO (Base)'!AO29, 0, 'NGGT TO (Base)'!AO29, 0, East!AO29, London!AO29, 'North West'!AO29, 'West Midlands'!AO29, Northern!AO29, Scotland!AO29, Southern!AO29, 'Wales & West'!AO29), CHOOSE(m_identity,SHETL!AO29, SPTL!AO29, 'NGET TO (Best)'!AO29, 0, 'NGGT TO (Best)'!AO29, 0, East!AO29, London!AO29, 'North West'!AO29, 'West Midlands'!AO29, Northern!AO29, Scotland!AO29, Southern!AO29, 'Wales & West'!AO29)) -> 0
E30: Allowed ET & GT CNI | G30: £m 09/10 prices | AH30: =IF(UserInterface!$E$72 = 1,CHOOSE(m_identity,SHETL!AH30, SPTL!AH30, 'NGET TO (Base)'!AH30, 0, 'NGGT TO (Base)'!AH30, 0, East!AH30, London!AH30, 'North West'!AH30, 'West Midlands'!AH30, Northern!AH30, Scotland!AH30, Southern!AH30, 'Wales & West'!AH30), CHOOSE(m_identity,SHETL!AH30, SPTL!AH30, 'NGET TO (Best)'!AH30, 0, 'NGGT TO (Best)'!AH30, 0, East!AH30, London!AH30, 'North West'!AH30, 'West Midlands'!AH30, Northern!AH30, Scotland!AH30, Southern!AH30, 'Wales & West'!AH30)) -> 0 | AI30: =IF(UserInterface!$E$72 = 1,CHOOSE(m_identity,SHETL!AI30, SPTL!AI30, 'NGET TO (Base)'!AI30, 0, 'NGGT TO (Base)'!AI30, 0, East!AI30, London!AI30, 'North West'!AI30, 'West Midlands'!AI30, Northern!AI30, Scotland!AI30, Southern!AI30, 'Wales & West'!AI30), CHOOSE(m_identity,SHETL!AI30, SPTL!AI30, 'NGET TO (Best)'!AI30, 0, 'NGGT TO (Best)'!AI30, 0, East!AI30, London!AI30, 'North West'!AI30, 'West Midlands'!AI30, Northern!AI30, Scotland!AI30, Southern!AI30, 'Wales & West'!AI30)) -> 0 | AJ30: =IF(UserInterface!$E$72 = 1,CHOOSE(m_identity,SHETL!AJ30, SPTL!AJ30, 'NGET TO (Base)'!AJ30, 0, 'NGGT TO (Base)'!AJ30, 0, East!AJ30, London!AJ30, 'North West'!AJ30, 'West Midlands'!AJ30, Northern!AJ30, Scotland!AJ30, Southern!AJ30, 'Wales & West'!AJ30), CHOOSE(m_identity,SHETL!AJ30, SPTL!AJ30, 'NGET TO (Best)'!AJ30, 0, 'NGGT TO (Best)'!AJ30, 0, East!AJ30, London!AJ30, 'North West'!AJ30, 'West Midlands'!AJ30, Northern!AJ30, Scotland!AJ30, Southern!AJ30, 'Wales & West'!AJ30)) -> 0 | AK30: =IF(UserInterface!$E$72 = 1,CHOOSE(m_identity,SHETL!AK30, SPTL!AK30, 'NGET TO (Base)'!AK30, 0, 'NGGT TO (Base)'!AK30, 0, East!AK30, London!AK30, 'North West'!AK30, 'West Midlands'!AK30, Northern!AK30, Scotland!AK30, Southern!AK30, 'Wales & West'!AK30), CHOOSE(m_identity,SHETL!AK30, SPTL!AK30, 'NGET TO (Best)'!AK30, 0, 'NGGT TO (Best)'!AK30, 0, East!AK30, London!AK30, 'North West'!AK30, 'West Midlands'!AK30, Northern!AK30, Scotland!AK30, Southern!AK30, 'Wales & West'!AK30)) -> 0 | AL30: =IF(UserInterface!$E$72 = 1,CHOOSE(m_identity,SHETL!AL30, SPTL!AL30, 'NGET TO (Base)'!AL30, 0, 'NGGT TO (Base)'!AL30, 0, East!AL30, London!AL30, 'North West'!AL30, 'West Midlands'!AL30, Northern!AL30, Scotland!AL30, Southern!AL30, 'Wales & West'!AL30), CHOOSE(m_identity,SHETL!AL30, SPTL!AL30, 'NGET TO (Best)'!AL30, 0, 'NGGT TO (Best)'!AL30, 0, East!AL30, London!AL30, 'North West'!AL30, 'West Midlands'!AL30, Northern!AL30, Scotland!AL30, Southern!AL30, 'Wales & West'!AL30)) -> 0 | AM30: =IF(UserInterface!$E$72 = 1,CHOOSE(m_identity,SHETL!AM30, SPTL!AM30, 'NGET TO (Base)'!AM30, 0, 'NGGT TO (Base)'!AM30, 0, East!AM30, London!AM30, 'North West'!AM30, 'West Midlands'!AM30, Northern!AM30, Scotland!AM30, Southern!AM30, 'Wales & West'!AM30), CHOOSE(m_identity,SHETL!AM30, SPTL!AM30, 'NGET TO (Best)'!AM30, 0, 'NGGT TO (Best)'!AM30, 0, East!AM30, London!AM30, 'North West'!AM30, 'West Midlands'!AM30, Northern!AM30, Scotland!AM30, Southern!AM30, 'Wales & West'!AM30)) -> 0 | AN30: =IF(UserInterface!$E$72 = 1,CHOOSE(m_identity,SHETL!AN30, SPTL!AN30, 'NGET TO (Base)'!AN30, 0, 'NGGT TO (Base)'!AN30, 0, East!AN30, London!AN30, 'North West'!AN30, 'West Midlands'!AN30, Northern!AN30, Scotland!AN30, Southern!AN30, 'Wales & West'!AN30), CHOOSE(m_identity,SHETL!AN30, SPTL!AN30, 'NGET TO (Best)'!AN30, 0, 'NGGT TO (Best)'!AN30, 0, East!AN30, London!AN30, 'North West'!AN30, 'West Midlands'!AN30, Northern!AN30, Scotland!AN30, Southern!AN30, 'Wales & West'!AN30)) -> 0 | AO30: =IF(UserInterface!$E$72 = 1,CHOOSE(m_identity,SHETL!AO30, SPTL!AO30, 'NGET TO (Base)'!AO30, 0, 'NGGT TO (Base)'!AO30, 0, East!AO30, London!AO30, 'North West'!AO30, 'West Midlands'!AO30, Northern!AO30, Scotland!AO30, Southern!AO30, 'Wales & West'!AO30), CHOOSE(m_identity,SHETL!AO30, SPTL!AO30, 'NGET TO (Best)'!AO30, 0, 'NGGT TO (Best)'!AO30, 0, East!AO30, London!AO30, 'North West'!AO30, 'West Midlands'!AO30, Northern!AO30, Scotland!AO30, Southern!AO30, 'Wales & West'!AO30)) -> 0
E31: Allowed GT entry | F31: SpC C8D | G31: £m 09/10 prices | AH31: =IF(UserInterface!$E$72 = 1,CHOOSE(m_identity,SHETL!AH31, SPTL!AH31, 'NGET TO (Base)'!AH31, 0, 'NGGT TO (Base)'!AH31, 0, East!AH31, London!AH31, 'North West'!AH31, 'West Midlands'!AH31, Northern!AH31, Scotland!AH31, Southern!AH31, 'Wales & West'!AH31), CHOOSE(m_identity,SHETL!AH31, SPTL!AH31, 'NGET TO (Best)'!AH31, 0, 'NGGT TO (Best)'!AH31, 0, East!AH31, London!AH31, 'North West'!AH31, 'West Midlands'!AH31, Northern!AH31, Scotland!AH31, Southern!AH31, 'Wales & West'!AH31)) -> 0 | AI31: =IF(UserInterface!$E$72 = 1,CHOOSE(m_identity,SHETL!AI31, SPTL!AI31, 'NGET TO (Base)'!AI31, 0, 'NGGT TO (Base)'!AI31, 0, East!AI31, London!AI31, 'North West'!AI31, 'West Midlands'!AI31, Northern!AI31, Scotland!AI31, Southern!AI31, 'Wales & West'!AI31), CHOOSE(m_identity,SHETL!AI31, SPTL!AI31, 'NGET TO (Best)'!AI31, 0, 'NGGT TO (Best)'!AI31, 0, East!AI31, London!AI31, 'North West'!AI31, 'West Midlands'!AI31, Northern!AI31, Scotland!AI31, Southern!AI31, 'Wales & West'!AI31)) -> 0 | AJ31: =IF(UserInterface!$E$72 = 1,CHOOSE(m_identity,SHETL!AJ31, SPTL!AJ31, 'NGET TO (Base)'!AJ31, 0, 'NGGT TO (Base)'!AJ31, 0, East!AJ31, London!AJ31, 'North West'!AJ31, 'West Midlands'!AJ31, Northern!AJ31, Scotland!AJ31, Southern!AJ31, 'Wales & West'!AJ31), CHOOSE(m_identity,SHETL!AJ31, SPTL!AJ31, 'NGET TO (Best)'!AJ31, 0, 'NGGT TO (Best)'!AJ31, 0, East!AJ31, London!AJ31, 'North West'!AJ31, 'West Midlands'!AJ31, Northern!AJ31, Scotland!AJ31, Southern!AJ31, 'Wales & West'!AJ31)) -> 0 | AK31: =IF(UserInterface!$E$72 = 1,CHOOSE(m_identity,SHETL!AK31, SPTL!AK31, 'NGET TO (Base)'!AK31, 0, 'NGGT TO (Base)'!AK31, 0, East!AK31, London!AK31, 'North West'!AK31, 'West Midlands'!AK31, Northern!AK31, Scotland!AK31, Southern!AK31, 'Wales & West'!AK31), CHOOSE(m_identity,SHETL!AK31, SPTL!AK31, 'NGET TO (Best)'!AK31, 0, 'NGGT TO (Best)'!AK31, 0, East!AK31, London!AK31, 'North West'!AK31, 'West Midlands'!AK31, Northern!AK31, Scotland!AK31, Southern!AK31, 'Wales & West'!AK31)) -> 0 | AL31: =IF(UserInterface!$E$72 = 1,CHOOSE(m_identity,SHETL!AL31, SPTL!AL31, 'NGET TO (Base)'!AL31, 0, 'NGGT TO (Base)'!AL31, 0, East!AL31, London!AL31, 'North West'!AL31, 'West Midlands'!AL31, Northern!AL31, Scotland!AL31, Southern!AL31, 'Wales & West'!AL31), CHOOSE(m_identity,SHETL!AL31, SPTL!AL31, 'NGET TO (Best)'!AL31, 0, 'NGGT TO (Best)'!AL31, 0, East!AL31, London!AL31, 'North West'!AL31, 'West Midlands'!AL31, Northern!AL31, Scotland!AL31, Southern!AL31, 'Wales & West'!AL31)) -> 0 | AM31: =IF(UserInterface!$E$72 = 1,CHOOSE(m_identity,SHETL!AM31, SPTL!AM31, 'NGET TO (Base)'!AM31, 0, 'NGGT TO (Base)'!AM31, 0, East!AM31, London!AM31, 'North West'!AM31, 'West Midlands'!AM31, Northern!AM31, Scotland!AM31, Southern!AM31, 'Wales & West'!AM31), CHOOSE(m_identity,SHETL!AM31, SPTL!AM31, 'NGET TO (Best)'!AM31, 0, 'NGGT TO (Best)'!AM31, 0, East!AM31, London!AM31, 'North West'!AM31, 'West Midlands'!AM31, Northern!AM31, Scotland!AM31, Southern!AM31, 'Wales & West'!AM31)) -> 0 | AN31: =IF(UserInterface!$E$72 = 1,CHOOSE(m_identity,SHETL!AN31, SPTL!AN31, 'NGET TO (Base)'!AN31, 0, 'NGGT TO (Base)'!AN31, 0, East!AN31, London!AN31, 'North West'!AN31, 'West Midlands'!AN31, Northern!AN31, Scotland!AN31, Southern!AN31, 'Wales & West'!AN31), CHOOSE(m_identity,SHETL!AN31, SPTL!AN31, 'NGET TO (Best)'!AN31, 0, 'NGGT TO (Best)'!AN31, 0, East!AN31, London!AN31, 'North West'!AN31, 'West Midlands'!AN31, Northern!AN31, Scotland!AN31, Southern!AN31, 'Wales & West'!AN31)) -> 0 | AO31: =IF(UserInterface!$E$72 = 1,CHOOSE(m_identity,SHETL!AO31, SPTL!AO31, 'NGET TO (Base)'!AO31, 0, 'NGGT TO (Base)'!AO31, 0, East!AO31, London!AO31, 'North West'!AO31, 'West Midlands'!AO31, Northern!AO31, Scotland!AO31, Southern!AO31, 'Wales & West'!AO31), CHOOSE(m_identity,SHETL!AO31, SPTL!AO31, 'NGET TO (Best)'!AO31, 0, 'NGGT TO (Best)'!AO31, 0, East!AO31, London!AO31, 'North West'!AO31, 'West Midlands'!AO31, Northern!AO31, Scotland!AO31, Southern!AO31, 'Wales & West'!AO31)) -> 0
E32: Allowed GT exit | F32: SpC C8E | G32: £m 09/10 prices | AH32: =IF(UserInterface!$E$72 = 1,CHOOSE(m_identity,SHETL!AH32, SPTL!AH32, 'NGET TO (Base)'!AH32, 0, 'NGGT TO (Base)'!AH32, 0, East!AH32, London!AH32, 'North West'!AH32, 'West Midlands'!AH32, Northern!AH32, Scotland!AH32, Southern!AH32, 'Wales & West'!AH32), CHOOSE(m_identity,SHETL!AH32, SPTL!AH32, 'NGET TO (Best)'!AH32, 0, 'NGGT TO (Best)'!AH32, 0, East!AH32, London!AH32, 'North West'!AH32, 'West Midlands'!AH32, Northern!AH32, Scotland!AH32, Southern!AH32, 'Wales & West'!AH32)) -> 0 | AI32: =IF(UserInterface!$E$72 = 1,CHOOSE(m_identity,SHETL!AI32, SPTL!AI32, 'NGET TO (Base)'!AI32, 0, 'NGGT TO (Base)'!AI32, 0, East!AI32, London!AI32, 'North West'!AI32, 'West Midlands'!AI32, Northern!AI32, Scotland!AI32, Southern!AI32, 'Wales & West'!AI32), CHOOSE(m_identity,SHETL!AI32, SPTL!AI32, 'NGET TO (Best)'!AI32, 0, 'NGGT TO (Best)'!AI32, 0, East!AI32, London!AI32, 'North West'!AI32, 'West Midlands'!AI32, Northern!AI32, Scotland!AI32, Southern!AI32, 'Wales & West'!AI32)) -> 0 | AJ32: =IF(UserInterface!$E$72 = 1,CHOOSE(m_identity,SHETL!AJ32, SPTL!AJ32, 'NGET TO (Base)'!AJ32, 0, 'NGGT TO (Base)'!AJ32, 0, East!AJ32, London!AJ32, 'North West'!AJ32, 'West Midlands'!AJ32, Northern!AJ32, Scotland!AJ32, Southern!AJ32, 'Wales & West'!AJ32), CHOOSE(m_identity,SHETL!AJ32, SPTL!AJ32, 'NGET TO (Best)'!AJ32, 0, 'NGGT TO (Best)'!AJ32, 0, East!AJ32, London!AJ32, 'North West'!AJ32, 'West Midlands'!AJ32, Northern!AJ32, Scotland!AJ32, Southern!AJ32, 'Wales & West'!AJ32)) -> 0 | AK32: =IF(UserInterface!$E$72 = 1,CHOOSE(m_identity,SHETL!AK32, SPTL!AK32, 'NGET TO (Base)'!AK32, 0, 'NGGT TO (Base)'!AK32, 0, East!AK32, London!AK32, 'North West'!AK32, 'West Midlands'!AK32, Northern!AK32, Scotland!AK32, Southern!AK32, 'Wales & West'!AK32), CHOOSE(m_identity,SHETL!AK32, SPTL!AK32, 'NGET TO (Best)'!AK32, 0, 'NGGT TO (Best)'!AK32, 0, East!AK32, London!AK32, 'North West'!AK32, 'West Midlands'!AK32, Northern!AK32, Scotland!AK32, Southern!AK32, 'Wales & West'!AK32)) -> 0 | AL32: =IF(UserInterface!$E$72 = 1,CHOOSE(m_identity,SHETL!AL32, SPTL!AL32, 'NGET TO (Base)'!AL32, 0, 'NGGT TO (Base)'!AL32, 0, East!AL32, London!AL32, 'North West'!AL32, 'West Midlands'!AL32, Northern!AL32, Scotland!AL32, Southern!AL32, 'Wales & West'!AL32), CHOOSE(m_identity,SHETL!AL32, SPTL!AL32, 'NGET TO (Best)'!AL32, 0, 'NGGT TO (Best)'!AL32, 0, East!AL32, London!AL32, 'North West'!AL32, 'West Midlands'!AL32, Northern!AL32, Scotland!AL32, Southern!AL32, 'Wales & West'!AL32)) -> 0 | AM32: =IF(UserInterface!$E$72 = 1,CHOOSE(m_identity,SHETL!AM32, SPTL!AM32, 'NGET TO (Base)'!AM32, 0, 'NGGT TO (Base)'!AM32, 0, East!AM32, London!AM32, 'North West'!AM32, 'West Midlands'!AM32, Northern!AM32, Scotland!AM32, Southern!AM32, 'Wales & West'!AM32), CHOOSE(m_identity,SHETL!AM32, SPTL!AM32, 'NGET TO (Best)'!AM32, 0, 'NGGT TO (Best)'!AM32, 0, East!AM32, London!AM32, 'North West'!AM32, 'West Midlands'!AM32, Northern!AM32, Scotland!AM32, Southern!AM32, 'Wales & West'!AM32)) -> 0 | AN32: =IF(UserInterface!$E$72 = 1,CHOOSE(m_identity,SHETL!AN32, SPTL!AN32, 'NGET TO (Base)'!AN32, 0, 'NGGT TO (Base)'!AN32, 0, East!AN32, London!AN32, 'North West'!AN32, 'West Midlands'!AN32, Northern!AN32, Scotland!AN32, Southern!AN32, 'Wales & West'!AN32), CHOOSE(m_identity,SHETL!AN32, SPTL!AN32, 'NGET TO (Best)'!AN32, 0, 'NGGT TO (Best)'!AN32, 0, East!AN32, London!AN32, 'North West'!AN32, 'West Midlands'!AN32, Northern!AN32, Scotland!AN32, Southern!AN32, 'Wales & West'!AN32)) -> 0 | AO32: =IF(UserInterface!$E$72 = 1,CHOOSE(m_identity,SHETL!AO32, SPTL!AO32, 'NGET TO (Base)'!AO32, 0, 'NGGT TO (Base)'!AO32, 0, East!AO32, London!AO32, 'North West'!AO32, 'West Midlands'!AO32, Northern!AO32, Scotland!AO32, Southern!AO32, 'Wales & West'!AO32), CHOOSE(m_identity,SHETL!AO32, SPTL!AO32, 'NGET TO (Best)'!AO32, 0, 'NGGT TO (Best)'!AO32, 0, East!AO32, London!AO32, 'North West'!AO32, 'West Midlands'!AO32, Northern!AO32, Scotland!AO32, Southern!AO32, 'Wales & West'!AO32)) -> 0
E33: Allowed GT Bi-directional | F33: ETC39 - (aggregated total bestline allowance and within year determinations) | G33: £m 09/10 prices | AH33: =IF(UserInterface!$E$72 = 1,CHOOSE(m_identity,SHETL!AH33, SPTL!AH33, 'NGET TO (Base)'!AH33, 0, 'NGGT TO (Base)'!AH33, 0, East!AH33, London!AH33, 'North West'!AH33, 'West Midlands'!AH33, Northern!AH33, Scotland!AH33, Southern!AH33, 'Wales & West'!AH33), CHOOSE(m_identity,SHETL!AH33, SPTL!AH33, 'NGET TO (Best)'!AH33, 0, 'NGGT TO (Best)'!AH33, 0, East!AH33, London!AH33, 'North West'!AH33, 'West Midlands'!AH33, Northern!AH33, Scotland!AH33, Southern!AH33, 'Wales & West'!AH33)) -> 0 | AI33: =IF(UserInterface!$E$72 = 1,CHOOSE(m_identity,SHETL!AI33, SPTL!AI33, 'NGET TO (Base)'!AI33, 0, 'NGGT TO (Base)'!AI33, 0, East!AI33, London!AI33, 'North West'!AI33, 'West Midlands'!AI33, Northern!AI33, Scotland!AI33, Southern!AI33, 'Wales & West'!AI33), CHOOSE(m_identity,SHETL!AI33, SPTL!AI33, 'NGET TO (Best)'!AI33, 0, 'NGGT TO (Best)'!AI33, 0, East!AI33, London!AI33, 'North West'!AI33, 'West Midlands'!AI33, Northern!AI33, Scotland!AI33, Southern!AI33, 'Wales & West'!AI33)) -> 0 | AJ33: =IF(UserInterface!$E$72 = 1,CHOOSE(m_identity,SHETL!AJ33, SPTL!AJ33, 'NGET TO (Base)'!AJ33, 0, 'NGGT TO (Base)'!AJ33, 0, East!AJ33, London!AJ33, 'North West'!AJ33, 'West Midlands'!AJ33, Northern!AJ33, Scotland!AJ33, Southern!AJ33, 'Wales & West'!AJ33), CHOOSE(m_identity,SHETL!AJ33, SPTL!AJ33, 'NGET TO (Best)'!AJ33, 0, 'NGGT TO (Best)'!AJ33, 0, East!AJ33, London!AJ33, 'North West'!AJ33, 'West Midlands'!AJ33, Northern!AJ33, Scotland!AJ33, Southern!AJ33, 'Wales & West'!AJ33)) -> 0 | AK33: =IF(UserInterface!$E$72 = 1,CHOOSE(m_identity,SHETL!AK33, SPTL!AK33, 'NGET TO (Base)'!AK33, 0, 'NGGT TO (Base)'!AK33, 0, East!AK33, London!AK33, 'North West'!AK33, 'West Midlands'!AK33, Northern!AK33, Scotland!AK33, Southern!AK33, 'Wales & West'!AK33), CHOOSE(m_identity,SHETL!AK33, SPTL!AK33, 'NGET TO (Best)'!AK33, 0, 'NGGT TO (Best)'!AK33, 0, East!AK33, London!AK33, 'North West'!AK33, 'West Midlands'!AK33, Northern!AK33, Scotland!AK33, Southern!AK33, 'Wales & West'!AK33)) -> 0 | AL33: =IF(UserInterface!$E$72 = 1,CHOOSE(m_identity,SHETL!AL33, SPTL!AL33, 'NGET TO (Base)'!AL33, 0, 'NGGT TO (Base)'!AL33, 0, East!AL33, London!AL33, 'North West'!AL33, 'West Midlands'!AL33, Northern!AL33, Scotland!AL33, Southern!AL33, 'Wales & West'!AL33), CHOOSE(m_identity,SHETL!AL33, SPTL!AL33, 'NGET TO (Best)'!AL33, 0, 'NGGT TO (Best)'!AL33, 0, East!AL33, London!AL33, 'North West'!AL33, 'West Midlands'!AL33, Northern!AL33, Scotland!AL33, Southern!AL33, 'Wales & West'!AL33)) -> 0 | AM33: =IF(UserInterface!$E$72 = 1,CHOOSE(m_identity,SHETL!AM33, SPTL!AM33, 'NGET TO (Base)'!AM33, 0, 'NGGT TO (Base)'!AM33, 0, East!AM33, London!AM33, 'North West'!AM33, 'West Midlands'!AM33, Northern!AM33, Scotland!AM33, Southern!AM33, 'Wales & West'!AM33), CHOOSE(m_identity,SHETL!AM33, SPTL!AM33, 'NGET TO (Best)'!AM33, 0, 'NGGT TO (Best)'!AM33, 0, East!AM33, London!AM33, 'North West'!AM33, 'West Midlands'!AM33, Northern!AM33, Scotland!AM33, Southern!AM33, 'Wales & West'!AM33)) -> 0 | AN33: =IF(UserInterface!$E$72 = 1,CHOOSE(m_identity,SHETL!AN33, SPTL!AN33, 'NGET TO (Base)'!AN33, 0, 'NGGT TO (Base)'!AN33, 0, East!AN33, London!AN33, 'North West'!AN33, 'West Midlands'!AN33, Northern!AN33, Scotland!AN33, Southern!AN33, 'Wales & West'!AN33), CHOOSE(m_identity,SHETL!AN33, SPTL!AN33, 'NGET TO (Best)'!AN33, 0, 'NGGT TO (Best)'!AN33, 0, East!AN33, London!AN33, 'North West'!AN33, 'West Midlands'!AN33, Northern!AN33, Scotland!AN33, Southern!AN33, 'Wales & West'!AN33)) -> 0 | AO33: =IF(UserInterface!$E$72 = 1,CHOOSE(m_identity,SHETL!AO33, SPTL!AO33, 'NGET TO (Base)'!AO33, 0, 'NGGT TO (Base)'!AO33, 0, East!AO33, London!AO33, 'North West'!AO33, 'West Midlands'!AO33, Northern!AO33, Scotland!AO33, Southern!AO33, 'Wales & West'!AO33), CHOOSE(m_identity,SHETL!AO33, SPTL!AO33, 'NGET TO (Best)'!AO33, 0, 'NGGT TO (Best)'!AO33, 0, East!AO33, London!AO33, 'North West'!AO33, 'West Midlands'!AO33, Northern!AO33, Scotland!AO33, Southern!AO33, 'Wales & West'!AO33)) -> 0
E34: Allowed GT Network flexibility | F34: ETC39 - (aggregated total bestline allowance and within year determinations) | G34: £m 09/10 prices | AH34: =IF(UserInterface!$E$72 = 1,CHOOSE(m_identity,SHETL!AH34, SPTL!AH34, 'NGET TO (Base)'!AH34, 0, 'NGGT TO (Base)'!AH34, 0, East!AH34, London!AH34, 'North West'!AH34, 'West Midlands'!AH34, Northern!AH34, Scotland!AH34, Southern!AH34, 'Wales & West'!AH34), CHOOSE(m_identity,SHETL!AH34, SPTL!AH34, 'NGET TO (Best)'!AH34, 0, 'NGGT TO (Best)'!AH34, 0, East!AH34, London!AH34, 'North West'!AH34, 'West Midlands'!AH34, Northern!AH34, Scotland!AH34, Southern!AH34, 'Wales & West'!AH34)) -> 0 | AI34: =IF(UserInterface!$E$72 = 1,CHOOSE(m_identity,SHETL!AI34, SPTL!AI34, 'NGET TO (Base)'!AI34, 0, 'NGGT TO (Base)'!AI34, 0, East!AI34, London!AI34, 'North West'!AI34, 'West Midlands'!AI34, Northern!AI34, Scotland!AI34, Southern!AI34, 'Wales & West'!AI34), CHOOSE(m_identity,SHETL!AI34, SPTL!AI34, 'NGET TO (Best)'!AI34, 0, 'NGGT TO (Best)'!AI34, 0, East!AI34, London!AI34, 'North West'!AI34, 'West Midlands'!AI34, Northern!AI34, Scotland!AI34, Southern!AI34, 'Wales & West'!AI34)) -> 0 | AJ34: =IF(UserInterface!$E$72 = 1,CHOOSE(m_identity,SHETL!AJ34, SPTL!AJ34, 'NGET TO (Base)'!AJ34, 0, 'NGGT TO (Base)'!AJ34, 0, East!AJ34, London!AJ34, 'North West'!AJ34, 'West Midlands'!AJ34, Northern!AJ34, Scotland!AJ34, Southern!AJ34, 'Wales & West'!AJ34), CHOOSE(m_identity,SHETL!AJ34, SPTL!AJ34, 'NGET TO (Best)'!AJ34, 0, 'NGGT TO (Best)'!AJ34, 0, East!AJ34, London!AJ34, 'North West'!AJ34, 'West Midlands'!AJ34, Northern!AJ34, Scotland!AJ34, Southern!AJ34, 'Wales & West'!AJ34)) -> 0 | AK34: =IF(UserInterface!$E$72 = 1,CHOOSE(m_identity,SHETL!AK34, SPTL!AK34, 'NGET TO (Base)'!AK34, 0, 'NGGT TO (Base)'!AK34, 0, East!AK34, London!AK34, 'North West'!AK34, 'West Midlands'!AK34, Northern!AK34, Scotland!AK34, Southern!AK34, 'Wales & West'!AK34), CHOOSE(m_identity,SHETL!AK34, SPTL!AK34, 'NGET TO (Best)'!AK34, 0, 'NGGT TO (Best)'!AK34, 0, East!AK34, London!AK34, 'North West'!AK34, 'West Midlands'!AK34, Northern!AK34, Scotland!AK34, Southern!AK34, 'Wales & West'!AK34)) -> 0 | AL34: =IF(UserInterface!$E$72 = 1,CHOOSE(m_identity,SHETL!AL34, SPTL!AL34, 'NGET TO (Base)'!AL34, 0, 'NGGT TO (Base)'!AL34, 0, East!AL34, London!AL34, 'North West'!AL34, 'West Midlands'!AL34, Northern!AL34, Scotland!AL34, Southern!AL34, 'Wales & West'!AL34), CHOOSE(m_identity,SHETL!AL34, SPTL!AL34, 'NGET TO (Best)'!AL34, 0, 'NGGT TO (Best)'!AL34, 0, East!AL34, London!AL34, 'North West'!AL34, 'West Midlands'!AL34, Northern!AL34, Scotland!AL34, Southern!AL34, 'Wales & West'!AL34)) -> 0 | AM34: =IF(UserInterface!$E$72 = 1,CHOOSE(m_identity,SHETL!AM34, SPTL!AM34, 'NGET TO (Base)'!AM34, 0, 'NGGT TO (Base)'!AM34, 0, East!AM34, London!AM34, 'North West'!AM34, 'West Midlands'!AM34, Northern!AM34, Scotland!AM34, Southern!AM34, 'Wales & West'!AM34), CHOOSE(m_identity,SHETL!AM34, SPTL!AM34, 'NGET TO (Best)'!AM34, 0, 'NGGT TO (Best)'!AM34, 0, East!AM34, London!AM34, 'North West'!AM34, 'West Midlands'!AM34, Northern!AM34, Scotland!AM34, Southern!AM34, 'Wales & West'!AM34)) -> 0 | AN34: =IF(UserInterface!$E$72 = 1,CHOOSE(m_identity,SHETL!AN34, SPTL!AN34, 'NGET TO (Base)'!AN34, 0, 'NGGT TO (Base)'!AN34, 0, East!AN34, London!AN34, 'North West'!AN34, 'West Midlands'!AN34, Northern!AN34, Scotland!AN34, Southern!AN34, 'Wales & West'!AN34), CHOOSE(m_identity,SHETL!AN34, SPTL!AN34, 'NGET TO (Best)'!AN34, 0, 'NGGT TO (Best)'!AN34, 0, East!AN34, London!AN34, 'North West'!AN34, 'West Midlands'!AN34, Northern!AN34, Scotland!AN34, Southern!AN34, 'Wales & West'!AN34)) -> 0 | AO34: =IF(UserInterface!$E$72 = 1,CHOOSE(m_identity,SHETL!AO34, SPTL!AO34, 'NGET TO (Base)'!AO34, 0, 'NGGT TO (Base)'!AO34, 0, East!AO34, London!AO34, 'North West'!AO34, 'West Midlands'!AO34, Northern!AO34, Scotland!AO34, Southern!AO34, 'Wales & West'!AO34), CHOOSE(m_identity,SHETL!AO34, SPTL!AO34, 'NGET TO (Best)'!AO34, 0, 'NGGT TO (Best)'!AO34, 0, East!AO34, London!AO34, 'North West'!AO34, 'West Midlands'!AO34, Northern!AO34, Scotland!AO34, Southern!AO34, 'Wales & West'!AO34)) -> 0
E35: Allowed GT Industrial Emissions Directive | G35: £m 09/10 prices | AH35: =IF(UserInterface!$E$72 = 1,CHOOSE(m_identity,SHETL!AH35, SPTL!AH35, 'NGET TO (Base)'!AH35, 0, 'NGGT TO (Base)'!AH35, 0, East!AH35, London!AH35, 'North West'!AH35, 'West Midlands'!AH35, Northern!AH35, Scotland!AH35, Southern!AH35, 'Wales & West'!AH35), CHOOSE(m_identity,SHETL!AH35, SPTL!AH35, 'NGET TO (Best)'!AH35, 0, 'NGGT TO (Best)'!AH35, 0, East!AH35, London!AH35, 'North West'!AH35, 'West Midlands'!AH35, Northern!AH35, Scotland!AH35, Southern!AH35, 'Wales & West'!AH35)) -> 0 | AI35: =IF(UserInterface!$E$72 = 1,CHOOSE(m_identity,SHETL!AI35, SPTL!AI35, 'NGET TO (Base)'!AI35, 0, 'NGGT TO (Base)'!AI35, 0, East!AI35, London!AI35, 'North West'!AI35, 'West Midlands'!AI35, Northern!AI35, Scotland!AI35, Southern!AI35, 'Wales & West'!AI35), CHOOSE(m_identity,SHETL!AI35, SPTL!AI35, 'NGET TO (Best)'!AI35, 0, 'NGGT TO (Best)'!AI35, 0, East!AI35, London!AI35, 'North West'!AI35, 'West Midlands'!AI35, Northern!AI35, Scotland!AI35, Southern!AI35, 'Wales & West'!AI35)) -> 0 | AJ35: =IF(UserInterface!$E$72 = 1,CHOOSE(m_identity,SHETL!AJ35, SPTL!AJ35, 'NGET TO (Base)'!AJ35, 0, 'NGGT TO (Base)'!AJ35, 0, East!AJ35, London!AJ35, 'North West'!AJ35, 'West Midlands'!AJ35, Northern!AJ35, Scotland!AJ35, Southern!AJ35, 'Wales & West'!AJ35), CHOOSE(m_identity,SHETL!AJ35, SPTL!AJ35, 'NGET TO (Best)'!AJ35, 0, 'NGGT TO (Best)'!AJ35, 0, East!AJ35, London!AJ35, 'North West'!AJ35, 'West Midlands'!AJ35, Northern!AJ35, Scotland!AJ35, Southern!AJ35, 'Wales & West'!AJ35)) -> 0 | AK35: =IF(UserInterface!$E$72 = 1,CHOOSE(m_identity,SHETL!AK35, SPTL!AK35, 'NGET TO (Base)'!AK35, 0, 'NGGT TO (Base)'!AK35, 0, East!AK35, London!AK35, 'North West'!AK35, 'West Midlands'!AK35, Northern!AK35, Scotland!AK35, Southern!AK35, 'Wales & West'!AK35), CHOOSE(m_identity,SHETL!AK35, SPTL!AK35, 'NGET TO (Best)'!AK35, 0, 'NGGT TO (Best)'!AK35, 0, East!AK35, London!AK35, 'North West'!AK35, 'West Midlands'!AK35, Northern!AK35, Scotland!AK35, Southern!AK35, 'Wales & West'!AK35)) -> 0 | AL35: =IF(UserInterface!$E$72 = 1,CHOOSE(m_identity,SHETL!AL35, SPTL!AL35, 'NGET TO (Base)'!AL35, 0, 'NGGT TO (Base)'!AL35, 0, East!AL35, London!AL35, 'North West'!AL35, 'West Midlands'!AL35, Northern!AL35, Scotland!AL35, Southern!AL35, 'Wales & West'!AL35), CHOOSE(m_identity,SHETL!AL35, SPTL!AL35, 'NGET TO (Best)'!AL35, 0, 'NGGT TO (Best)'!AL35, 0, East!AL35, London!AL35, 'North West'!AL35, 'West Midlands'!AL35, Northern!AL35, Scotland!AL35, Southern!AL35, 'Wales & West'!AL35)) -> 0 | AM35: =IF(UserInterface!$E$72 = 1,CHOOSE(m_identity,SHETL!AM35, SPTL!AM35, 'NGET TO (Base)'!AM35, 0, 'NGGT TO (Base)'!AM35, 0, East!AM35, London!AM35, 'North West'!AM35, 'West Midlands'!AM35, Northern!AM35, Scotland!AM35, Southern!AM35, 'Wales & West'!AM35), CHOOSE(m_identity,SHETL!AM35, SPTL!AM35, 'NGET TO (Best)'!AM35, 0, 'NGGT TO (Best)'!AM35, 0, East!AM35, London!AM35, 'North West'!AM35, 'West Midlands'!AM35, Northern!AM35, Scotland!AM35, Southern!AM35, 'Wales & West'!AM35)) -> 0 | AN35: =IF(UserInterface!$E$72 = 1,CHOOSE(m_identity,SHETL!AN35, SPTL!AN35, 'NGET TO (Base)'!AN35, 0, 'NGGT TO (Base)'!AN35, 0, East!AN35, London!AN35, 'North West'!AN35, 'West Midlands'!AN35, Northern!AN35, Scotland!AN35, Southern!AN35, 'Wales & West'!AN35), CHOOSE(m_identity,SHETL!AN35, SPTL!AN35, 'NGET TO (Best)'!AN35, 0, 'NGGT TO (Best)'!AN35, 0, East!AN35, London!AN35, 'North West'!AN35, 'West Midlands'!AN35, Northern!AN35, Scotland!AN35, Southern!AN35, 'Wales & West'!AN35)) -> 0 | AO35: =IF(UserInterface!$E$72 = 1,CHOOSE(m_identity,SHETL!AO35, SPTL!AO35, 'NGET TO (Base)'!AO35, 0, 'NGGT TO (Base)'!AO35, 0, East!AO35, London!AO35, 'North West'!AO35, 'West Midlands'!AO35, Northern!AO35, Scotland!AO35, Southern!AO35, 'Wales & West'!AO35), CHOOSE(m_identity,SHETL!AO35, SPTL!AO35, 'NGET TO (Best)'!AO35, 0, 'NGGT TO (Best)'!AO35, 0, East!AO35, London!AO35, 'North West'!AO35, 'West Midlands'!AO35, Northern!AO35, Scotland!AO35, Southern!AO35, 'Wales & West'!AO35)) -> 0
E36: Allowed GT Asset health | G36: £m 09/10 prices | AH36: =IF(UserInterface!$E$72 = 1,CHOOSE(m_identity,SHETL!AH36, SPTL!AH36, 'NGET TO (Base)'!AH36, 0, 'NGGT TO (Base)'!AH36, 0, East!AH36, London!AH36, 'North West'!AH36, 'West Midlands'!AH36, Northern!AH36, Scotland!AH36, Southern!AH36, 'Wales & West'!AH36), CHOOSE(m_identity,SHETL!AH36, SPTL!AH36, 'NGET TO (Best)'!AH36, 0, 'NGGT TO (Best)'!AH36, 0, East!AH36, London!AH36, 'North West'!AH36, 'West Midlands'!AH36, Northern!AH36, Scotland!AH36, Southern!AH36, 'Wales & West'!AH36)) -> 0 | AI36: =IF(UserInterface!$E$72 = 1,CHOOSE(m_identity,SHETL!AI36, SPTL!AI36, 'NGET TO (Base)'!AI36, 0, 'NGGT TO (Base)'!AI36, 0, East!AI36, London!AI36, 'North West'!AI36, 'West Midlands'!AI36, Northern!AI36, Scotland!AI36, Southern!AI36, 'Wales & West'!AI36), CHOOSE(m_identity,SHETL!AI36, SPTL!AI36, 'NGET TO (Best)'!AI36, 0, 'NGGT TO (Best)'!AI36, 0, East!AI36, London!AI36, 'North West'!AI36, 'West Midlands'!AI36, Northern!AI36, Scotland!AI36, Southern!AI36, 'Wales & West'!AI36)) -> 0 | AJ36: =IF(UserInterface!$E$72 = 1,CHOOSE(m_identity,SHETL!AJ36, SPTL!AJ36, 'NGET TO (Base)'!AJ36, 0, 'NGGT TO (Base)'!AJ36, 0, East!AJ36, London!AJ36, 'North West'!AJ36, 'West Midlands'!AJ36, Northern!AJ36, Scotland!AJ36, Southern!AJ36, 'Wales & West'!AJ36), CHOOSE(m_identity,SHETL!AJ36, SPTL!AJ36, 'NGET TO (Best)'!AJ36, 0, 'NGGT TO (Best)'!AJ36, 0, East!AJ36, London!AJ36, 'North West'!AJ36, 'West Midlands'!AJ36, Northern!AJ36, Scotland!AJ36, Southern!AJ36, 'Wales & West'!AJ36)) -> 0 | AK36: =IF(UserInterface!$E$72 = 1,CHOOSE(m_identity,SHETL!AK36, SPTL!AK36, 'NGET TO (Base)'!AK36, 0, 'NGGT TO (Base)'!AK36, 0, East!AK36, London!AK36, 'North West'!AK36, 'West Midlands'!AK36, Northern!AK36, Scotland!AK36, Southern!AK36, 'Wales & West'!AK36), CHOOSE(m_identity,SHETL!AK36, SPTL!AK36, 'NGET TO (Best)'!AK36, 0, 'NGGT TO (Best)'!AK36, 0, East!AK36, London!AK36, 'North West'!AK36, 'West Midlands'!AK36, Northern!AK36, Scotland!AK36, Southern!AK36, 'Wales & West'!AK36)) -> 0 | AL36: =IF(UserInterface!$E$72 = 1,CHOOSE(m_identity,SHETL!AL36, SPTL!AL36, 'NGET TO (Base)'!AL36, 0, 'NGGT TO (Base)'!AL36, 0, East!AL36, London!AL36, 'North West'!AL36, 'West Midlands'!AL36, Northern!AL36, Scotland!AL36, Southern!AL36, 'Wales & West'!AL36), CHOOSE(m_identity,SHETL!AL36, SPTL!AL36, 'NGET TO (Best)'!AL36, 0, 'NGGT TO (Best)'!AL36, 0, East!AL36, London!AL36, 'North West'!AL36, 'West Midlands'!AL36, Northern!AL36, Scotland!AL36, Southern!AL36, 'Wales & West'!AL36)) -> 0 | AM36: =IF(UserInterface!$E$72 = 1,CHOOSE(m_identity,SHETL!AM36, SPTL!AM36, 'NGET TO (Base)'!AM36, 0, 'NGGT TO (Base)'!AM36, 0, East!AM36, London!AM36, 'North West'!AM36, 'West Midlands'!AM36, Northern!AM36, Scotland!AM36, Southern!AM36, 'Wales & West'!AM36), CHOOSE(m_identity,SHETL!AM36, SPTL!AM36, 'NGET TO (Best)'!AM36, 0, 'NGGT TO (Best)'!AM36, 0, East!AM36, London!AM36, 'North West'!AM36, 'West Midlands'!AM36, Northern!AM36, Scotland!AM36, Southern!AM36, 'Wales & West'!AM36)) -> 0 | AN36: =IF(UserInterface!$E$72 = 1,CHOOSE(m_identity,SHETL!AN36, SPTL!AN36, 'NGET TO (Base)'!AN36, 0, 'NGGT TO (Base)'!AN36, 0, East!AN36, London!AN36, 'North West'!AN36, 'West Midlands'!AN36, Northern!AN36, Scotland!AN36, Southern!AN36, 'Wales & West'!AN36), CHOOSE(m_identity,SHETL!AN36, SPTL!AN36, 'NGET TO (Best)'!AN36, 0, 'NGGT TO (Best)'!AN36, 0, East!AN36, London!AN36, 'North West'!AN36, 'West Midlands'!AN36, Northern!AN36, Scotland!AN36, Southern!AN36, 'Wales & West'!AN36)) -> 0 | AO36: =IF(UserInterface!$E$72 = 1,CHOOSE(m_identity,SHETL!AO36, SPTL!AO36, 'NGET TO (Base)'!AO36, 0, 'NGGT TO (Base)'!AO36, 0, East!AO36, London!AO36, 'North West'!AO36, 'West Midlands'!AO36, Northern!AO36, Scotland!AO36, Southern!AO36, 'Wales & West'!AO36), CHOOSE(m_identity,SHETL!AO36, SPTL!AO36, 'NGET TO (Best)'!AO36, 0, 'NGGT TO (Best)'!AO36, 0, East!AO36, London!AO36, 'North West'!AO36, 'West Midlands'!AO36, Northern!AO36, Scotland!AO36, Southern!AO36, 'Wales & West'!AO36)) -> 0
E37: Allowed GD repex | F37: GDC22 | G37: £m 09/10 prices | AH37: =IF(UserInterface!$E$72 = 1,CHOOSE(m_identity,SHETL!AH37, SPTL!AH37, 'NGET TO (Base)'!AH37, 0, 'NGGT TO (Base)'!AH37, 0, East!AH37, London!AH37, 'North West'!AH37, 'West Midlands'!AH37, Northern!AH37, Scotland!AH37, Southern!AH37, 'Wales & West'!AH37), CHOOSE(m_identity,SHETL!AH37, SPTL!AH37, 'NGET TO (Best)'!AH37, 0, 'NGGT TO (Best)'!AH37, 0, East!AH37, London!AH37, 'North West'!AH37, 'West Midlands'!AH37, Northern!AH37, Scotland!AH37, Southern!AH37, 'Wales & West'!AH37)) -> 0 | AI37: =IF(UserInterface!$E$72 = 1,CHOOSE(m_identity,SHETL!AI37, SPTL!AI37, 'NGET TO (Base)'!AI37, 0, 'NGGT TO (Base)'!AI37, 0, East!AI37, London!AI37, 'North West'!AI37, 'West Midlands'!AI37, Northern!AI37, Scotland!AI37, Southern!AI37, 'Wales & West'!AI37), CHOOSE(m_identity,SHETL!AI37, SPTL!AI37, 'NGET TO (Best)'!AI37, 0, 'NGGT TO (Best)'!AI37, 0, East!AI37, London!AI37, 'North West'!AI37, 'West Midlands'!AI37, Northern!AI37, Scotland!AI37, Southern!AI37, 'Wales & West'!AI37)) -> 0 | AJ37: =IF(UserInterface!$E$72 = 1,CHOOSE(m_identity,SHETL!AJ37, SPTL!AJ37, 'NGET TO (Base)'!AJ37, 0, 'NGGT TO (Base)'!AJ37, 0, East!AJ37, London!AJ37, 'North West'!AJ37, 'West Midlands'!AJ37, Northern!AJ37, Scotland!AJ37, Southern!AJ37, 'Wales & West'!AJ37), CHOOSE(m_identity,SHETL!AJ37, SPTL!AJ37, 'NGET TO (Best)'!AJ37, 0, 'NGGT TO (Best)'!AJ37, 0, East!AJ37, London!AJ37, 'North West'!AJ37, 'West Midlands'!AJ37, Northern!AJ37, Scotland!AJ37, Southern!AJ37, 'Wales & West'!AJ37)) -> 0 | AK37: =IF(UserInterface!$E$72 = 1,CHOOSE(m_identity,SHETL!AK37, SPTL!AK37, 'NGET TO (Base)'!AK37, 0, 'NGGT TO (Base)'!AK37, 0, East!AK37, London!AK37, 'North West'!AK37, 'West Midlands'!AK37, Northern!AK37, Scotland!AK37, Southern!AK37, 'Wales & West'!AK37), CHOOSE(m_identity,SHETL!AK37, SPTL!AK37, 'NGET TO (Best)'!AK37, 0, 'NGGT TO (Best)'!AK37, 0, East!AK37, London!AK37, 'North West'!AK37, 'West Midlands'!AK37, Northern!AK37, Scotland!AK37, Southern!AK37, 'Wales & West'!AK37)) -> 0 | AL37: =IF(UserInterface!$E$72 = 1,CHOOSE(m_identity,SHETL!AL37, SPTL!AL37, 'NGET TO (Base)'!AL37, 0, 'NGGT TO (Base)'!AL37, 0, East!AL37, London!AL37, 'North West'!AL37, 'West Midlands'!AL37, Northern!AL37, Scotland!AL37, Southern!AL37, 'Wales & West'!AL37), CHOOSE(m_identity,SHETL!AL37, SPTL!AL37, 'NGET TO (Best)'!AL37, 0, 'NGGT TO (Best)'!AL37, 0, East!AL37, London!AL37, 'North West'!AL37, 'West Midlands'!AL37, Northern!AL37, Scotland!AL37, Southern!AL37, 'Wales & West'!AL37)) -> 0 | AM37: =IF(UserInterface!$E$72 = 1,CHOOSE(m_identity,SHETL!AM37, SPTL!AM37, 'NGET TO (Base)'!AM37, 0, 'NGGT TO (Base)'!AM37, 0, East!AM37, London!AM37, 'North West'!AM37, 'West Midlands'!AM37, Northern!AM37, Scotland!AM37, Southern!AM37, 'Wales & West'!AM37), CHOOSE(m_identity,SHETL!AM37, SPTL!AM37, 'NGET TO (Best)'!AM37, 0, 'NGGT TO (Best)'!AM37, 0, East!AM37, London!AM37, 'North West'!AM37, 'West Midlands'!AM37, Northern!AM37, Scotland!AM37, Southern!AM37, 'Wales & West'!AM37)) -> 0 | AN37: =IF(UserInterface!$E$72 = 1,CHOOSE(m_identity,SHETL!AN37, SPTL!AN37, 'NGET TO (Base)'!AN37, 0, 'NGGT TO (Base)'!AN37, 0, East!AN37, London!AN37, 'North West'!AN37, 'West Midlands'!AN37, Northern!AN37, Scotland!AN37, Southern!AN37, 'Wales & West'!AN37), CHOOSE(m_identity,SHETL!AN37, SPTL!AN37, 'NGET TO (Best)'!AN37, 0, 'NGGT TO (Best)'!AN37, 0, East!AN37, London!AN37, 'North West'!AN37, 'West Midlands'!AN37, Northern!AN37, Scotland!AN37, Southern!AN37, 'Wales & West'!AN37)) -> 0 | AO37: =IF(UserInterface!$E$72 = 1,CHOOSE(m_identity,SHETL!AO37, SPTL!AO37, 'NGET TO (Base)'!AO37, 0, 'NGGT TO (Base)'!AO37, 0, East!AO37, London!AO37, 'North West'!AO37, 'West Midlands'!AO37, Northern!AO37, Scotland!AO37, Southern!AO37, 'Wales & West'!AO37), CHOOSE(m_identity,SHETL!AO37, SPTL!AO37, 'NGET TO (Best)'!AO37, 0, 'NGGT TO (Best)'!AO37, 0, East!AO37, London!AO37, 'North West'!AO37, 'West Midlands'!AO37, Northern!AO37, Scotland!AO37, Southern!AO37, 'Wales & West'!AO37)) -> 0
E38: Allowed GD & ET connections volume drivers | F38: SpC J7, SpC D9 | G38: £m 09/10 prices | AH38: =IF(UserInterface!$E$72 = 1,CHOOSE(m_identity,SHETL!AH38, SPTL!AH38, 'NGET TO (Base)'!AH38, 0, 'NGGT TO (Base)'!AH38, 0, East!AH38, London!AH38, 'North West'!AH38, 'West Midlands'!AH38, Northern!AH38, Scotland!AH38, Southern!AH38, 'Wales & West'!AH38), CHOOSE(m_identity,SHETL!AH38, SPTL!AH38, 'NGET TO (Best)'!AH38, 0, 'NGGT TO (Best)'!AH38, 0, East!AH38, London!AH38, 'North West'!AH38, 'West Midlands'!AH38, Northern!AH38, Scotland!AH38, Southern!AH38, 'Wales & West'!AH38)) -> 0 | AI38: =IF(UserInterface!$E$72 = 1,CHOOSE(m_identity,SHETL!AI38, SPTL!AI38, 'NGET TO (Base)'!AI38, 0, 'NGGT TO (Base)'!AI38, 0, East!AI38, London!AI38, 'North West'!AI38, 'West Midlands'!AI38, Northern!AI38, Scotland!AI38, Southern!AI38, 'Wales & West'!AI38), CHOOSE(m_identity,SHETL!AI38, SPTL!AI38, 'NGET TO (Best)'!AI38, 0, 'NGGT TO (Best)'!AI38, 0, East!AI38, London!AI38, 'North West'!AI38, 'West Midlands'!AI38, Northern!AI38, Scotland!AI38, Southern!AI38, 'Wales & West'!AI38)) -> 0 | AJ38: =IF(UserInterface!$E$72 = 1,CHOOSE(m_identity,SHETL!AJ38, SPTL!AJ38, 'NGET TO (Base)'!AJ38, 0, 'NGGT TO (Base)'!AJ38, 0, East!AJ38, London!AJ38, 'North West'!AJ38, 'West Midlands'!AJ38, Northern!AJ38, Scotland!AJ38, Southern!AJ38, 'Wales & West'!AJ38), CHOOSE(m_identity,SHETL!AJ38, SPTL!AJ38, 'NGET TO (Best)'!AJ38, 0, 'NGGT TO (Best)'!AJ38, 0, East!AJ38, London!AJ38, 'North West'!AJ38, 'West Midlands'!AJ38, Northern!AJ38, Scotland!AJ38, Southern!AJ38, 'Wales & West'!AJ38)) -> 0 | AK38: =IF(UserInterface!$E$72 = 1,CHOOSE(m_identity,SHETL!AK38, SPTL!AK38, 'NGET TO (Base)'!AK38, 0, 'NGGT TO (Base)'!AK38, 0, East!AK38, London!AK38, 'North West'!AK38, 'West Midlands'!AK38, Northern!AK38, Scotland!AK38, Southern!AK38, 'Wales & West'!AK38), CHOOSE(m_identity,SHETL!AK38, SPTL!AK38, 'NGET TO (Best)'!AK38, 0, 'NGGT TO (Best)'!AK38, 0, East!AK38, London!AK38, 'North West'!AK38, 'West Midlands'!AK38, Northern!AK38, Scotland!AK38, Southern!AK38, 'Wales & West'!AK38)) -> 0 | AL38: =IF(UserInterface!$E$72 = 1,CHOOSE(m_identity,SHETL!AL38, SPTL!AL38, 'NGET TO (Base)'!AL38, 0, 'NGGT TO (Base)'!AL38, 0, East!AL38, London!AL38, 'North West'!AL38, 'West Midlands'!AL38, Northern!AL38, Scotland!AL38, Southern!AL38, 'Wales & West'!AL38), CHOOSE(m_identity,SHETL!AL38, SPTL!AL38, 'NGET TO (Best)'!AL38, 0, 'NGGT TO (Best)'!AL38, 0, East!AL38, London!AL38, 'North West'!AL38, 'West Midlands'!AL38, Northern!AL38, Scotland!AL38, Southern!AL38, 'Wales & West'!AL38)) -> 0 | AM38: =IF(UserInterface!$E$72 = 1,CHOOSE(m_identity,SHETL!AM38, SPTL!AM38, 'NGET TO (Base)'!AM38, 0, 'NGGT TO (Base)'!AM38, 0, East!AM38, London!AM38, 'North West'!AM38, 'West Midlands'!AM38, Northern!AM38, Scotland!AM38, Southern!AM38, 'Wales & West'!AM38), CHOOSE(m_identity,SHETL!AM38, SPTL!AM38, 'NGET TO (Best)'!AM38, 0, 'NGGT TO (Best)'!AM38, 0, East!AM38, London!AM38, 'North West'!AM38, 'West Midlands'!AM38, Northern!AM38, Scotland!AM38, Southern!AM38, 'Wales & West'!AM38)) -> 0 | AN38: =IF(UserInterface!$E$72 = 1,CHOOSE(m_identity,SHETL!AN38, SPTL!AN38, 'NGET TO (Base)'!AN38, 0, 'NGGT TO (Base)'!AN38, 0, East!AN38, London!AN38, 'North West'!AN38, 'West Midlands'!AN38, Northern!AN38, Scotland!AN38, Southern!AN38, 'Wales & West'!AN38), CHOOSE(m_identity,SHETL!AN38, SPTL!AN38, 'NGET TO (Best)'!AN38, 0, 'NGGT TO (Best)'!AN38, 0, East!AN38, London!AN38, 'North West'!AN38, 'West Midlands'!AN38, Northern!AN38, Scotland!AN38, Southern!AN38, 'Wales & West'!AN38)) -> 0 | AO38: =IF(UserInterface!$E$72 = 1,CHOOSE(m_identity,SHETL!AO38, SPTL!AO38, 'NGET TO (Base)'!AO38, 0, 'NGGT TO (Base)'!AO38, 0, East!AO38, London!AO38, 'North West'!AO38, 'West Midlands'!AO38, Northern!AO38, Scotland!AO38, Southern!AO38, 'Wales & West'!AO38), CHOOSE(m_identity,SHETL!AO38, SPTL!AO38, 'NGET TO (Best)'!AO38, 0, 'NGGT TO (Best)'!AO38, 0, East!AO38, London!AO38, 'North West'!AO38, 'West Midlands'!AO38, Northern!AO38, Scotland!AO38, Southern!AO38, 'Wales & West'!AO38)) -> 0
E39: Allowed GT revenue driver actual spend (Fleetwood) | G39: £m 09/10 prices | AH39: =IF(UserInterface!$E$72 = 1,CHOOSE(m_identity,SHETL!AH39, SPTL!AH39, 'NGET TO (Base)'!AH39, 0, 'NGGT TO (Base)'!AH39, 0, East!AH39, London!AH39, 'North West'!AH39, 'West Midlands'!AH39, Northern!AH39, Scotland!AH39, Southern!AH39, 'Wales & West'!AH39), CHOOSE(m_identity,SHETL!AH39, SPTL!AH39, 'NGET TO (Best)'!AH39, 0, 'NGGT TO (Best)'!AH39, 0, East!AH39, London!AH39, 'North West'!AH39, 'West Midlands'!AH39, Northern!AH39, Scotland!AH39, Southern!AH39, 'Wales & West'!AH39)) -> 0 | AI39: =IF(UserInterface!$E$72 = 1,CHOOSE(m_identity,SHETL!AI39, SPTL!AI39, 'NGET TO (Base)'!AI39, 0, 'NGGT TO (Base)'!AI39, 0, East!AI39, London!AI39, 'North West'!AI39, 'West Midlands'!AI39, Northern!AI39, Scotland!AI39, Southern!AI39, 'Wales & West'!AI39), CHOOSE(m_identity,SHETL!AI39, SPTL!AI39, 'NGET TO (Best)'!AI39, 0, 'NGGT TO (Best)'!AI39, 0, East!AI39, London!AI39, 'North West'!AI39, 'West Midlands'!AI39, Northern!AI39, Scotland!AI39, Southern!AI39, 'Wales & West'!AI39)) -> 0 | AJ39: =IF(UserInterface!$E$72 = 1,CHOOSE(m_identity,SHETL!AJ39, SPTL!AJ39, 'NGET TO (Base)'!AJ39, 0, 'NGGT TO (Base)'!AJ39, 0, East!AJ39, London!AJ39, 'North West'!AJ39, 'West Midlands'!AJ39, Northern!AJ39, Scotland!AJ39, Southern!AJ39, 'Wales & West'!AJ39), CHOOSE(m_identity,SHETL!AJ39, SPTL!AJ39, 'NGET TO (Best)'!AJ39, 0, 'NGGT TO (Best)'!AJ39, 0, East!AJ39, London!AJ39, 'North West'!AJ39, 'West Midlands'!AJ39, Northern!AJ39, Scotland!AJ39, Southern!AJ39, 'Wales & West'!AJ39)) -> 0 | AK39: =IF(UserInterface!$E$72 = 1,CHOOSE(m_identity,SHETL!AK39, SPTL!AK39, 'NGET TO (Base)'!AK39, 0, 'NGGT TO (Base)'!AK39, 0, East!AK39, London!AK39, 'North West'!AK39, 'West Midlands'!AK39, Northern!AK39, Scotland!AK39, Southern!AK39, 'Wales & West'!AK39), CHOOSE(m_identity,SHETL!AK39, SPTL!AK39, 'NGET TO (Best)'!AK39, 0, 'NGGT TO (Best)'!AK39, 0, East!AK39, London!AK39, 'North West'!AK39, 'West Midlands'!AK39, Northern!AK39, Scotland!AK39, Southern!AK39, 'Wales & West'!AK39)) -> 0 | AL39: =IF(UserInterface!$E$72 = 1,CHOOSE(m_identity,SHETL!AL39, SPTL!AL39, 'NGET TO (Base)'!AL39, 0, 'NGGT TO (Base)'!AL39, 0, East!AL39, London!AL39, 'North West'!AL39, 'West Midlands'!AL39, Northern!AL39, Scotland!AL39, Southern!AL39, 'Wales & West'!AL39), CHOOSE(m_identity,SHETL!AL39, SPTL!AL39, 'NGET TO (Best)'!AL39, 0, 'NGGT TO (Best)'!AL39, 0, East!AL39, London!AL39, 'North West'!AL39, 'West Midlands'!AL39, Northern!AL39, Scotland!AL39, Southern!AL39, 'Wales & West'!AL39)) -> 0 | AM39: =IF(UserInterface!$E$72 = 1,CHOOSE(m_identity,SHETL!AM39, SPTL!AM39, 'NGET TO (Base)'!AM39, 0, 'NGGT TO (Base)'!AM39, 0, East!AM39, London!AM39, 'North West'!AM39, 'West Midlands'!AM39, Northern!AM39, Scotland!AM39, Southern!AM39, 'Wales & West'!AM39), CHOOSE(m_identity,SHETL!AM39, SPTL!AM39, 'NGET TO (Best)'!AM39, 0, 'NGGT TO (Best)'!AM39, 0, East!AM39, London!AM39, 'North West'!AM39, 'West Midlands'!AM39, Northern!AM39, Scotland!AM39, Southern!AM39, 'Wales & West'!AM39)) -> 0 | AN39: =IF(UserInterface!$E$72 = 1,CHOOSE(m_identity,SHETL!AN39, SPTL!AN39, 'NGET TO (Base)'!AN39, 0, 'NGGT TO (Base)'!AN39, 0, East!AN39, London!AN39, 'North West'!AN39, 'West Midlands'!AN39, Northern!AN39, Scotland!AN39, Southern!AN39, 'Wales & West'!AN39), CHOOSE(m_identity,SHETL!AN39, SPTL!AN39, 'NGET TO (Best)'!AN39, 0, 'NGGT TO (Best)'!AN39, 0, East!AN39, London!AN39, 'North West'!AN39, 'West Midlands'!AN39, Northern!AN39, Scotland!AN39, Southern!AN39, 'Wales & West'!AN39)) -> 0 | AO39: =IF(UserInterface!$E$72 = 1,CHOOSE(m_identity,SHETL!AO39, SPTL!AO39, 'NGET TO (Base)'!AO39, 0, 'NGGT TO (Base)'!AO39, 0, East!AO39, London!AO39, 'North West'!AO39, 'West Midlands'!AO39, Northern!AO39, Scotland!AO39, Southern!AO39, 'Wales & West'!AO39), CHOOSE(m_identity,SHETL!AO39, SPTL!AO39, 'NGET TO (Best)'!AO39, 0, 'NGGT TO (Best)'!AO39, 0, East!AO39, London!AO39, 'North West'!AO39, 'West Midlands'!AO39, Northern!AO39, Scotland!AO39, Southern!AO39, 'Wales & West'!AO39)) -> 0
E40: Allowed GT revenue driver actual spend (SW Quad 2008/09) | G40: £m 09/10 prices | AH40: =IF(UserInterface!$E$72 = 1,CHOOSE(m_identity,SHETL!AH40, SPTL!AH40, 'NGET TO (Base)'!AH40, 0, 'NGGT TO (Base)'!AH40, 0, East!AH40, London!AH40, 'North West'!AH40, 'West Midlands'!AH40, Northern!AH40, Scotland!AH40, Southern!AH40, 'Wales & West'!AH40), CHOOSE(m_identity,SHETL!AH40, SPTL!AH40, 'NGET TO (Best)'!AH40, 0, 'NGGT TO (Best)'!AH40, 0, East!AH40, London!AH40, 'North West'!AH40, 'West Midlands'!AH40, Northern!AH40, Scotland!AH40, Southern!AH40, 'Wales & West'!AH40)) -> 0 | AI40: =IF(UserInterface!$E$72 = 1,CHOOSE(m_identity,SHETL!AI40, SPTL!AI40, 'NGET TO (Base)'!AI40, 0, 'NGGT TO (Base)'!AI40, 0, East!AI40, London!AI40, 'North West'!AI40, 'West Midlands'!AI40, Northern!AI40, Scotland!AI40, Southern!AI40, 'Wales & West'!AI40), CHOOSE(m_identity,SHETL!AI40, SPTL!AI40, 'NGET TO (Best)'!AI40, 0, 'NGGT TO (Best)'!AI40, 0, East!AI40, London!AI40, 'North West'!AI40, 'West Midlands'!AI40, Northern!AI40, Scotland!AI40, Southern!AI40, 'Wales & West'!AI40)) -> 0 | AJ40: =IF(UserInterface!$E$72 = 1,CHOOSE(m_identity,SHETL!AJ40, SPTL!AJ40, 'NGET TO (Base)'!AJ40, 0, 'NGGT TO (Base)'!AJ40, 0, East!AJ40, London!AJ40, 'North West'!AJ40, 'West Midlands'!AJ40, Northern!AJ40, Scotland!AJ40, Southern!AJ40, 'Wales & West'!AJ40), CHOOSE(m_identity,SHETL!AJ40, SPTL!AJ40, 'NGET TO (Best)'!AJ40, 0, 'NGGT TO (Best)'!AJ40, 0, East!AJ40, London!AJ40, 'North West'!AJ40, 'West Midlands'!AJ40, Northern!AJ40, Scotland!AJ40, Southern!AJ40, 'Wales & West'!AJ40)) -> 0 | AK40: =IF(UserInterface!$E$72 = 1,CHOOSE(m_identity,SHETL!AK40, SPTL!AK40, 'NGET TO (Base)'!AK40, 0, 'NGGT TO (Base)'!AK40, 0, East!AK40, London!AK40, 'North West'!AK40, 'West Midlands'!AK40, Northern!AK40, Scotland!AK40, Southern!AK40, 'Wales & West'!AK40), CHOOSE(m_identity,SHETL!AK40, SPTL!AK40, 'NGET TO (Best)'!AK40, 0, 'NGGT TO (Best)'!AK40, 0, East!AK40, London!AK40, 'North West'!AK40, 'West Midlands'!AK40, Northern!AK40, Scotland!AK40, Southern!AK40, 'Wales & West'!AK40)) -> 0 | AL40: =IF(UserInterface!$E$72 = 1,CHOOSE(m_identity,SHETL!AL40, SPTL!AL40, 'NGET TO (Base)'!AL40, 0, 'NGGT TO (Base)'!AL40, 0, East!AL40, London!AL40, 'North West'!AL40, 'West Midlands'!AL40, Northern!AL40, Scotland!AL40, Southern!AL40, 'Wales & West'!AL40), CHOOSE(m_identity,SHETL!AL40, SPTL!AL40, 'NGET TO (Best)'!AL40, 0, 'NGGT TO (Best)'!AL40, 0, East!AL40, London!AL40, 'North West'!AL40, 'West Midlands'!AL40, Northern!AL40, Scotland!AL40, Southern!AL40, 'Wales & West'!AL40)) -> 0 | AM40: =IF(UserInterface!$E$72 = 1,CHOOSE(m_identity,SHETL!AM40, SPTL!AM40, 'NGET TO (Base)'!AM40, 0, 'NGGT TO (Base)'!AM40, 0, East!AM40, London!AM40, 'North West'!AM40, 'West Midlands'!AM40, Northern!AM40, Scotland!AM40, Southern!AM40, 'Wales & West'!AM40), CHOOSE(m_identity,SHETL!AM40, SPTL!AM40, 'NGET TO (Best)'!AM40, 0, 'NGGT TO (Best)'!AM40, 0, East!AM40, London!AM40, 'North West'!AM40, 'West Midlands'!AM40, Northern!AM40, Scotland!AM40, Southern!AM40, 'Wales & West'!AM40)) -> 0 | AN40: =IF(UserInterface!$E$72 = 1,CHOOSE(m_identity,SHETL!AN40, SPTL!AN40, 'NGET TO (Base)'!AN40, 0, 'NGGT TO (Base)'!AN40, 0, East!AN40, London!AN40, 'North West'!AN40, 'West Midlands'!AN40, Northern!AN40, Scotland!AN40, Southern!AN40, 'Wales & West'!AN40), CHOOSE(m_identity,SHETL!AN40, SPTL!AN40, 'NGET TO (Best)'!AN40, 0, 'NGGT TO (Best)'!AN40, 0, East!AN40, London!AN40, 'North West'!AN40, 'West Midlands'!AN40, Northern!AN40, Scotland!AN40, Southern!AN40, 'Wales & West'!AN40)) -> 0 | AO40: =IF(UserInterface!$E$72 = 1,CHOOSE(m_identity,SHETL!AO40, SPTL!AO40, 'NGET TO (Base)'!AO40, 0, 'NGGT TO (Base)'!AO40, 0, East!AO40, London!AO40, 'North West'!AO40, 'West Midlands'!AO40, Northern!AO40, Scotland!AO40, Southern!AO40, 'Wales & West'!AO40), CHOOSE(m_identity,SHETL!AO40, SPTL!AO40, 'NGET TO (Best)'!AO40, 0, 'NGGT TO (Best)'!AO40, 0, East!AO40, London!AO40, 'North West'!AO40, 'West Midlands'!AO40, Northern!AO40, Scotland!AO40, Southern!AO40, 'Wales & West'!AO40)) -> 0
E41: Allowed GT revenue driver actual spend (SW Quad 2009/10) | G41: £m 09/10 prices | AH41: =IF(UserInterface!$E$72 = 1,CHOOSE(m_identity,SHETL!AH41, SPTL!AH41, 'NGET TO (Base)'!AH41, 0, 'NGGT TO (Base)'!AH41, 0, East!AH41, London!AH41, 'North West'!AH41, 'West Midlands'!AH41, Northern!AH41, Scotland!AH41, Southern!AH41, 'Wales & West'!AH41), CHOOSE(m_identity,SHETL!AH41, SPTL!AH41, 'NGET TO (Best)'!AH41, 0, 'NGGT TO (Best)'!AH41, 0, East!AH41, London!AH41, 'North West'!AH41, 'West Midlands'!AH41, Northern!AH41, Scotland!AH41, Southern!AH41, 'Wales & West'!AH41)) -> 0 | AI41: =IF(UserInterface!$E$72 = 1,CHOOSE(m_identity,SHETL!AI41, SPTL!AI41, 'NGET TO (Base)'!AI41, 0, 'NGGT TO (Base)'!AI41, 0, East!AI41, London!AI41, 'North West'!AI41, 'West Midlands'!AI41, Northern!AI41, Scotland!AI41, Southern!AI41, 'Wales & West'!AI41), CHOOSE(m_identity,SHETL!AI41, SPTL!AI41, 'NGET TO (Best)'!AI41, 0, 'NGGT TO (Best)'!AI41, 0, East!AI41, London!AI41, 'North West'!AI41, 'West Midlands'!AI41, Northern!AI41, Scotland!AI41, Southern!AI41, 'Wales & West'!AI41)) -> 0 | AJ41: =IF(UserInterface!$E$72 = 1,CHOOSE(m_identity,SHETL!AJ41, SPTL!AJ41, 'NGET TO (Base)'!AJ41, 0, 'NGGT TO (Base)'!AJ41, 0, East!AJ41, London!AJ41, 'North West'!AJ41, 'West Midlands'!AJ41, Northern!AJ41, Scotland!AJ41, Southern!AJ41, 'Wales & West'!AJ41), CHOOSE(m_identity,SHETL!AJ41, SPTL!AJ41, 'NGET TO (Best)'!AJ41, 0, 'NGGT TO (Best)'!AJ41, 0, East!AJ41, London!AJ41, 'North West'!AJ41, 'West Midlands'!AJ41, Northern!AJ41, Scotland!AJ41, Southern!AJ41, 'Wales & West'!AJ41)) -> 0 | AK41: =IF(UserInterface!$E$72 = 1,CHOOSE(m_identity,SHETL!AK41, SPTL!AK41, 'NGET TO (Base)'!AK41, 0, 'NGGT TO (Base)'!AK41, 0, East!AK41, London!AK41, 'North West'!AK41, 'West Midlands'!AK41, Northern!AK41, Scotland!AK41, Southern!AK41, 'Wales & West'!AK41), CHOOSE(m_identity,SHETL!AK41, SPTL!AK41, 'NGET TO (Best)'!AK41, 0, 'NGGT TO (Best)'!AK41, 0, East!AK41, London!AK41, 'North West'!AK41, 'West Midlands'!AK41, Northern!AK41, Scotland!AK41, Southern!AK41, 'Wales & West'!AK41)) -> 0 | AL41: =IF(UserInterface!$E$72 = 1,CHOOSE(m_identity,SHETL!AL41, SPTL!AL41, 'NGET TO (Base)'!AL41, 0, 'NGGT TO (Base)'!AL41, 0, East!AL41, London!AL41, 'North West'!AL41, 'West Midlands'!AL41, Northern!AL41, Scotland!AL41, Southern!AL41, 'Wales & West'!AL41), CHOOSE(m_identity,SHETL!AL41, SPTL!AL41, 'NGET TO (Best)'!AL41, 0, 'NGGT TO (Best)'!AL41, 0, East!AL41, London!AL41, 'North West'!AL41, 'West Midlands'!AL41, Northern!AL41, Scotland!AL41, Southern!AL41, 'Wales & West'!AL41)) -> 0 | AM41: =IF(UserInterface!$E$72 = 1,CHOOSE(m_identity,SHETL!AM41, SPTL!AM41, 'NGET TO (Base)'!AM41, 0, 'NGGT TO (Base)'!AM41, 0, East!AM41, London!AM41, 'North West'!AM41, 'West Midlands'!AM41, Northern!AM41, Scotland!AM41, Southern!AM41, 'Wales & West'!AM41), CHOOSE(m_identity,SHETL!AM41, SPTL!AM41, 'NGET TO (Best)'!AM41, 0, 'NGGT TO (Best)'!AM41, 0, East!AM41, London!AM41, 'North West'!AM41, 'West Midlands'!AM41, Northern!AM41, Scotland!AM41, Southern!AM41, 'Wales & West'!AM41)) -> 0 | AN41: =IF(UserInterface!$E$72 = 1,CHOOSE(m_identity,SHETL!AN41, SPTL!AN41, 'NGET TO (Base)'!AN41, 0, 'NGGT TO (Base)'!AN41, 0, East!AN41, London!AN41, 'North West'!AN41, 'West Midlands'!AN41, Northern!AN41, Scotland!AN41, Southern!AN41, 'Wales & West'!AN41), CHOOSE(m_identity,SHETL!AN41, SPTL!AN41, 'NGET TO (Best)'!AN41, 0, 'NGGT TO (Best)'!AN41, 0, East!AN41, London!AN41, 'North West'!AN41, 'West Midlands'!AN41, Northern!AN41, Scotland!AN41, Southern!AN41, 'Wales & West'!AN41)) -> 0 | AO41: =IF(UserInterface!$E$72 = 1,CHOOSE(m_identity,SHETL!AO41, SPTL!AO41, 'NGET TO (Base)'!AO41, 0, 'NGGT TO (Base)'!AO41, 0, East!AO41, London!AO41, 'North West'!AO41, 'West Midlands'!AO41, Northern!AO41, Scotland!AO41, Southern!AO41, 'Wales & West'!AO41), CHOOSE(m_identity,SHETL!AO41, SPTL!AO41, 'NGET TO (Best)'!AO41, 0, 'NGGT TO (Best)'!AO41, 0, East!AO41, London!AO41, 'North West'!AO41, 'West Midlands'!AO41, Northern!AO41, Scotland!AO41, Southern!AO41, 'Wales & West'!AO41)) -> 0
E42: Tax clawback | F42: SC3 | G42: £m nominal | AH42: =IF(UserInterface!$E$72 = 1,CHOOSE(m_identity,SHETL!AH42, SPTL!AH42, 'NGET TO (Base)'!AH42, 0, 'NGGT TO (Base)'!AH42, 0, East!AH42, London!AH42, 'North West'!AH42, 'West Midlands'!AH42, Northern!AH42, Scotland!AH42, Southern!AH42, 'Wales & West'!AH42), CHOOSE(m_identity,SHETL!AH42, SPTL!AH42, 'NGET TO (Best)'!AH42, 0, 'NGGT TO (Best)'!AH42, 0, East!AH42, London!AH42, 'North West'!AH42, 'West Midlands'!AH42, Northern!AH42, Scotland!AH42, Southern!AH42, 'Wales & West'!AH42)) -> 0 | AI42: =IF(UserInterface!$E$72 = 1,CHOOSE(m_identity,SHETL!AI42, SPTL!AI42, 'NGET TO (Base)'!AI42, 0, 'NGGT TO (Base)'!AI42, 0, East!AI42, London!AI42, 'North West'!AI42, 'West Midlands'!AI42, Northern!AI42, Scotland!AI42, Southern!AI42, 'Wales & West'!AI42), CHOOSE(m_identity,SHETL!AI42, SPTL!AI42, 'NGET TO (Best)'!AI42, 0, 'NGGT TO (Best)'!AI42, 0, East!AI42, London!AI42, 'North West'!AI42, 'West Midlands'!AI42, Northern!AI42, Scotland!AI42, Southern!AI42, 'Wales & West'!AI42)) -> 0 | AJ42: =IF(UserInterface!$E$72 = 1,CHOOSE(m_identity,SHETL!AJ42, SPTL!AJ42, 'NGET TO (Base)'!AJ42, 0, 'NGGT TO (Base)'!AJ42, 0, East!AJ42, London!AJ42, 'North West'!AJ42, 'West Midlands'!AJ42, Northern!AJ42, Scotland!AJ42, Southern!AJ42, 'Wales & West'!AJ42), CHOOSE(m_identity,SHETL!AJ42, SPTL!AJ42, 'NGET TO (Best)'!AJ42, 0, 'NGGT TO (Best)'!AJ42, 0, East!AJ42, London!AJ42, 'North West'!AJ42, 'West Midlands'!AJ42, Northern!AJ42, Scotland!AJ42, Southern!AJ42, 'Wales & West'!AJ42)) -> 0 | AK42: =IF(UserInterface!$E$72 = 1,CHOOSE(m_identity,SHETL!AK42, SPTL!AK42, 'NGET TO (Base)'!AK42, 0, 'NGGT TO (Base)'!AK42, 0, East!AK42, London!AK42, 'North West'!AK42, 'West Midlands'!AK42, Northern!AK42, Scotland!AK42, Southern!AK42, 'Wales & West'!AK42), CHOOSE(m_identity,SHETL!AK42, SPTL!AK42, 'NGET TO (Best)'!AK42, 0, 'NGGT TO (Best)'!AK42, 0, East!AK42, London!AK42, 'North West'!AK42, 'West Midlands'!AK42, Northern!AK42, Scotland!AK42, Southern!AK42, 'Wales & West'!AK42)) -> 0 | AL42: =IF(UserInterface!$E$72 = 1,CHOOSE(m_identity,SHETL!AL42, SPTL!AL42, 'NGET TO (Base)'!AL42, 0, 'NGGT TO (Base)'!AL42, 0, East!AL42, London!AL42, 'North West'!AL42, 'West Midlands'!AL42, Northern!AL42, Scotland!AL42, Southern!AL42, 'Wales & West'!AL42), CHOOSE(m_identity,SHETL!AL42, SPTL!AL42, 'NGET TO (Best)'!AL42, 0, 'NGGT TO (Best)'!AL42, 0, East!AL42, London!AL42, 'North West'!AL42, 'West Midlands'!AL42, Northern!AL42, Scotland!AL42, Southern!AL42, 'Wales & West'!AL42)) -> 0 | AM42: =IF(UserInterface!$E$72 = 1,CHOOSE(m_identity,SHETL!AM42, SPTL!AM42, 'NGET TO (Base)'!AM42, 0, 'NGGT TO (Base)'!AM42, 0, East!AM42, London!AM42, 'North West'!AM42, 'West Midlands'!AM42, Northern!AM42, Scotland!AM42, Southern!AM42, 'Wales & West'!AM42), CHOOSE(m_identity,SHETL!AM42, SPTL!AM42, 'NGET TO (Best)'!AM42, 0, 'NGGT TO (Best)'!AM42, 0, East!AM42, London!AM42, 'North West'!AM42, 'West Midlands'!AM42, Northern!AM42, Scotland!AM42, Southern!AM42, 'Wales & West'!AM42)) -> 0 | AN42: =IF(UserInterface!$E$72 = 1,CHOOSE(m_identity,SHETL!AN42, SPTL!AN42, 'NGET TO (Base)'!AN42, 0, 'NGGT TO (Base)'!AN42, 0, East!AN42, London!AN42, 'North West'!AN42, 'West Midlands'!AN42, Northern!AN42, Scotland!AN42, Southern!AN42, 'Wales & West'!AN42), CHOOSE(m_identity,SHETL!AN42, SPTL!AN42, 'NGET TO (Best)'!AN42, 0, 'NGGT TO (Best)'!AN42, 0, East!AN42, London!AN42, 'North West'!AN42, 'West Midlands'!AN42, Northern!AN42, Scotland!AN42, Southern!AN42, 'Wales & West'!AN42)) -> 0 | AO42: =IF(UserInterface!$E$72 = 1,CHOOSE(m_identity,SHETL!AO42, SPTL!AO42, 'NGET TO (Base)'!AO42, 0, 'NGGT TO (Base)'!AO42, 0, East!AO42, London!AO42, 'North West'!AO42, 'West Midlands'!AO42, Northern!AO42, Scotland!AO42, Southern!AO42, 'Wales & West'!AO42), CHOOSE(m_identity,SHETL!AO42, SPTL!AO42, 'NGET TO (Best)'!AO42, 0, 'NGGT TO (Best)'!AO42, 0, East!AO42, London!AO42, 'North West'!AO42, 'West Midlands'!AO42, Northern!AO42, Scotland!AO42, Southern!AO42, 'Wales & West'!AO42)) -> 0
E43: Tax trigger adjustment | F43: SC3 | G43: £m 09/10 prices | AH43: =IF(UserInterface!$E$72 = 1,CHOOSE(m_identity,SHETL!AH43, SPTL!AH43, 'NGET TO (Base)'!AH43, 0, 'NGGT TO (Base)'!AH43, 0, East!AH43, London!AH43, 'North West'!AH43, 'West Midlands'!AH43, Northern!AH43, Scotland!AH43, Southern!AH43, 'Wales & West'!AH43), CHOOSE(m_identity,SHETL!AH43, SPTL!AH43, 'NGET TO (Best)'!AH43, 0, 'NGGT TO (Best)'!AH43, 0, East!AH43, London!AH43, 'North West'!AH43, 'West Midlands'!AH43, Northern!AH43, Scotland!AH43, Southern!AH43, 'Wales & West'!AH43)) -> 0 | AI43: =IF(UserInterface!$E$72 = 1,CHOOSE(m_identity,SHETL!AI43, SPTL!AI43, 'NGET TO (Base)'!AI43, 0, 'NGGT TO (Base)'!AI43, 0, East!AI43, London!AI43, 'North West'!AI43, 'West Midlands'!AI43, Northern!AI43, Scotland!AI43, Southern!AI43, 'Wales & West'!AI43), CHOOSE(m_identity,SHETL!AI43, SPTL!AI43, 'NGET TO (Best)'!AI43, 0, 'NGGT TO (Best)'!AI43, 0, East!AI43, London!AI43, 'North West'!AI43, 'West Midlands'!AI43, Northern!AI43, Scotland!AI43, Southern!AI43, 'Wales & West'!AI43)) -> 0 | AJ43: =IF(UserInterface!$E$72 = 1,CHOOSE(m_identity,SHETL!AJ43, SPTL!AJ43, 'NGET TO (Base)'!AJ43, 0, 'NGGT TO (Base)'!AJ43, 0, East!AJ43, London!AJ43, 'North West'!AJ43, 'West Midlands'!AJ43, Northern!AJ43, Scotland!AJ43, Southern!AJ43, 'Wales & West'!AJ43), CHOOSE(m_identity,SHETL!AJ43, SPTL!AJ43, 'NGET TO (Best)'!AJ43, 0, 'NGGT TO (Best)'!AJ43, 0, East!AJ43, London!AJ43, 'North West'!AJ43, 'West Midlands'!AJ43, Northern!AJ43, Scotland!AJ43, Southern!AJ43, 'Wales & West'!AJ43)) -> 0 | AK43: =IF(UserInterface!$E$72 = 1,CHOOSE(m_identity,SHETL!AK43, SPTL!AK43, 'NGET TO (Base)'!AK43, 0, 'NGGT TO (Base)'!AK43, 0, East!AK43, London!AK43, 'North West'!AK43, 'West Midlands'!AK43, Northern!AK43, Scotland!AK43, Southern!AK43, 'Wales & West'!AK43), CHOOSE(m_identity,SHETL!AK43, SPTL!AK43, 'NGET TO (Best)'!AK43, 0, 'NGGT TO (Best)'!AK43, 0, East!AK43, London!AK43, 'North West'!AK43, 'West Midlands'!AK43, Northern!AK43, Scotland!AK43, Southern!AK43, 'Wales & West'!AK43)) -> 0 | AL43: =IF(UserInterface!$E$72 = 1,CHOOSE(m_identity,SHETL!AL43, SPTL!AL43, 'NGET TO (Base)'!AL43, 0, 'NGGT TO (Base)'!AL43, 0, East!AL43, London!AL43, 'North West'!AL43, 'West Midlands'!AL43, Northern!AL43, Scotland!AL43, Southern!AL43, 'Wales & West'!AL43), CHOOSE(m_identity,SHETL!AL43, SPTL!AL43, 'NGET TO (Best)'!AL43, 0, 'NGGT TO (Best)'!AL43, 0, East!AL43, London!AL43, 'North West'!AL43, 'West Midlands'!AL43, Northern!AL43, Scotland!AL43, Southern!AL43, 'Wales & West'!AL43)) -> 0 | AM43: =IF(UserInterface!$E$72 = 1,CHOOSE(m_identity,SHETL!AM43, SPTL!AM43, 'NGET TO (Base)'!AM43, 0, 'NGGT TO (Base)'!AM43, 0, East!AM43, London!AM43, 'North West'!AM43, 'West Midlands'!AM43, Northern!AM43, Scotland!AM43, Southern!AM43, 'Wales & West'!AM43), CHOOSE(m_identity,SHETL!AM43, SPTL!AM43, 'NGET TO (Best)'!AM43, 0, 'NGGT TO (Best)'!AM43, 0, East!AM43, London!AM43, 'North West'!AM43, 'West Midlands'!AM43, Northern!AM43, Scotland!AM43, Southern!AM43, 'Wales & West'!AM43)) -> 0 | AN43: =IF(UserInterface!$E$72 = 1,CHOOSE(m_identity,SHETL!AN43, SPTL!AN43, 'NGET TO (Base)'!AN43, 0, 'NGGT TO (Base)'!AN43, 0, East!AN43, London!AN43, 'North West'!AN43, 'West Midlands'!AN43, Northern!AN43, Scotland!AN43, Southern!AN43, 'Wales & West'!AN43), CHOOSE(m_identity,SHETL!AN43, SPTL!AN43, 'NGET TO (Best)'!AN43, 0, 'NGGT TO (Best)'!AN43, 0, East!AN43, London!AN43, 'North West'!AN43, 'West Midlands'!AN43, Northern!AN43, Scotland!AN43, Southern!AN43, 'Wales & West'!AN43)) -> 0 | AO43: =IF(UserInterface!$E$72 = 1,CHOOSE(m_identity,SHETL!AO43, SPTL!AO43, 'NGET TO (Base)'!AO43, 0, 'NGGT TO (Base)'!AO43, 0, East!AO43, London!AO43, 'North West'!AO43, 'West Midlands'!AO43, Northern!AO43, Scotland!AO43, Southern!AO43, 'Wales & West'!AO43), CHOOSE(m_identity,SHETL!AO43, SPTL!AO43, 'NGET TO (Best)'!AO43, 0, 'NGGT TO (Best)'!AO43, 0, East!AO43, London!AO43, 'North West'!AO43, 'West Midlands'!AO43, Northern!AO43, Scotland!AO43, Southern!AO43, 'Wales & West'!AO43)) -> 0
E44: Pension admin and PPF levy | F44: SC3 | G44: £m 09/10 prices | AH44: =IF(UserInterface!$E$72 = 1,CHOOSE(m_identity,SHETL!AH44, SPTL!AH44, 'NGET TO (Base)'!AH44, 0, 'NGGT TO (Base)'!AH44, 0, East!AH44, London!AH44, 'North West'!AH44, 'West Midlands'!AH44, Northern!AH44, Scotland!AH44, Southern!AH44, 'Wales & West'!AH44), CHOOSE(m_identity,SHETL!AH44, SPTL!AH44, 'NGET TO (Best)'!AH44, 0, 'NGGT TO (Best)'!AH44, 0, East!AH44, London!AH44, 'North West'!AH44, 'West Midlands'!AH44, Northern!AH44, Scotland!AH44, Southern!AH44, 'Wales & West'!AH44)) -> 0.8546697872 | AI44: =IF(UserInterface!$E$72 = 1,CHOOSE(m_identity,SHETL!AI44, SPTL!AI44, 'NGET TO (Base)'!AI44, 0, 'NGGT TO (Base)'!AI44, 0, East!AI44, London!AI44, 'North West'!AI44, 'West Midlands'!AI44, Northern!AI44, Scotland!AI44, Southern!AI44, 'Wales & West'!AI44), CHOOSE(m_identity,SHETL!AI44, SPTL!AI44, 'NGET TO (Best)'!AI44, 0, 'NGGT TO (Best)'!AI44, 0, East!AI44, London!AI44, 'North West'!AI44, 'West Midlands'!AI44, Northern!AI44, Scotland!AI44, Southern!AI44, 'Wales & West'!AI44)) -> 0.8350910823 | AJ44: =IF(UserInterface!$E$72 = 1,CHOOSE(m_identity,SHETL!AJ44, SPTL!AJ44, 'NGET TO (Base)'!AJ44, 0, 'NGGT TO (Base)'!AJ44, 0, East!AJ44, London!AJ44, 'North West'!AJ44, 'West Midlands'!AJ44, Northern!AJ44, Scotland!AJ44, Southern!AJ44, 'Wales & West'!AJ44), CHOOSE(m_identity,SHETL!AJ44, SPTL!AJ44, 'NGET TO (Best)'!AJ44, 0, 'NGGT TO (Best)'!AJ44, 0, East!AJ44, London!AJ44, 'North West'!AJ44, 'West Midlands'!AJ44, Northern!AJ44, Scotland!AJ44, Southern!AJ44, 'Wales & West'!AJ44)) -> 0.8337716007 | AK44: =IF(UserInterface!$E$72 = 1,CHOOSE(m_identity,SHETL!AK44, SPTL!AK44, 'NGET TO (Base)'!AK44, 0, 'NGGT TO (Base)'!AK44, 0, East!AK44, London!AK44, 'North West'!AK44, 'West Midlands'!AK44, Northern!AK44, Scotland!AK44, Southern!AK44, 'Wales & West'!AK44), CHOOSE(m_identity,SHETL!AK44, SPTL!AK44, 'NGET TO (Best)'!AK44, 0, 'NGGT TO (Best)'!AK44, 0, East!AK44, London!AK44, 'North West'!AK44, 'West Midlands'!AK44, Northern!AK44, Scotland!AK44, Southern!AK44, 'Wales & West'!AK44)) -> 0.8084668301 | AL44: =IF(UserInterface!$E$72 = 1,CHOOSE(m_identity,SHETL!AL44, SPTL!AL44, 'NGET TO (Base)'!AL44, 0, 'NGGT TO (Base)'!AL44, 0, East!AL44, London!AL44, 'North West'!AL44, 'West Midlands'!AL44, Northern!AL44, Scotland!AL44, Southern!AL44, 'Wales & West'!AL44), CHOOSE(m_identity,SHETL!AL44, SPTL!AL44, 'NGET TO (Best)'!AL44, 0, 'NGGT TO (Best)'!AL44, 0, East!AL44, London!AL44, 'North West'!AL44, 'West Midlands'!AL44, Northern!AL44, Scotland!AL44, Southern!AL44, 'Wales & West'!AL44)) -> 0.8014792013 | AM44: =IF(UserInterface!$E$72 = 1,CHOOSE(m_identity,SHETL!AM44, SPTL!AM44, 'NGET TO (Base)'!AM44, 0, 'NGGT TO (Base)'!AM44, 0, East!AM44, London!AM44, 'North West'!AM44, 'West Midlands'!AM44, Northern!AM44, Scotland!AM44, Southern!AM44, 'Wales & West'!AM44), CHOOSE(m_identity,SHETL!AM44, SPTL!AM44, 'NGET TO (Best)'!AM44, 0, 'NGGT TO (Best)'!AM44, 0, East!AM44, London!AM44, 'North West'!AM44, 'West Midlands'!AM44, Northern!AM44, Scotland!AM44, Southern!AM44, 'Wales & West'!AM44)) -> 0.7867165827 | AN44: =IF(UserInterface!$E$72 = 1,CHOOSE(m_identity,SHETL!AN44, SPTL!AN44, 'NGET TO (Base)'!AN44, 0, 'NGGT TO (Base)'!AN44, 0, East!AN44, London!AN44, 'North West'!AN44, 'West Midlands'!AN44, Northern!AN44, Scotland!AN44, Southern!AN44, 'Wales & West'!AN44), CHOOSE(m_identity,SHETL!AN44, SPTL!AN44, 'NGET TO (Best)'!AN44, 0, 'NGGT TO (Best)'!AN44, 0, East!AN44, London!AN44, 'North West'!AN44, 'West Midlands'!AN44, Northern!AN44, Scotland!AN44, Southern!AN44, 'Wales & West'!AN44)) -> 0.7778855329 | AO44: =IF(UserInterface!$E$72 = 1,CHOOSE(m_identity,SHETL!AO44, SPTL!AO44, 'NGET TO (Base)'!AO44, 0, 'NGGT TO (Base)'!AO44, 0, East!AO44, London!AO44, 'North West'!AO44, 'West Midlands'!AO44, Northern!AO44, Scotland!AO44, Southern!AO44, 'Wales & West'!AO44), CHOOSE(m_identity,SHETL!AO44, SPTL!AO44, 'NGET TO (Best)'!AO44, 0, 'NGGT TO (Best)'!AO44, 0, East!AO44, London!AO44, 'North West'!AO44, 'West Midlands'!AO44, Northern!AO44, Scotland!AO44, Southern!AO44, 'Wales & West'!AO44)) -> 0.7703930538
E45: Pension deficit repair | F45: SC3 | G45: £m 09/10 prices | AH45: =IF(UserInterface!$E$72 = 1,CHOOSE(m_identity,SHETL!AH45, SPTL!AH45, 'NGET TO (Base)'!AH45, 0, 'NGGT TO (Base)'!AH45, 0, East!AH45, London!AH45, 'North West'!AH45, 'West Midlands'!AH45, Northern!AH45, Scotland!AH45, Southern!AH45, 'Wales & West'!AH45), CHOOSE(m_identity,SHETL!AH45, SPTL!AH45, 'NGET TO (Best)'!AH45, 0, 'NGGT TO (Best)'!AH45, 0, East!AH45, London!AH45, 'North West'!AH45, 'West Midlands'!AH45, Northern!AH45, Scotland!AH45, Southern!AH45, 'Wales & West'!AH45)) -> 6.477466644 | AI45: =IF(UserInterface!$E$72 = 1,CHOOSE(m_identity,SHETL!AI45, SPTL!AI45, 'NGET TO (Base)'!AI45, 0, 'NGGT TO (Base)'!AI45, 0, East!AI45, London!AI45, 'North West'!AI45, 'West Midlands'!AI45, Northern!AI45, Scotland!AI45, Southern!AI45, 'Wales & West'!AI45), CHOOSE(m_identity,SHETL!AI45, SPTL!AI45, 'NGET TO (Best)'!AI45, 0, 'NGGT TO (Best)'!AI45, 0, East!AI45, London!AI45, 'North West'!AI45, 'West Midlands'!AI45, Northern!AI45, Scotland!AI45, Southern!AI45, 'Wales & West'!AI45)) -> 6.477466644 | AJ45: =IF(UserInterface!$E$72 = 1,CHOOSE(m_identity,SHETL!AJ45, SPTL!AJ45, 'NGET TO (Base)'!AJ45, 0, 'NGGT TO (Base)'!AJ45, 0, East!AJ45, London!AJ45, 'North West'!AJ45, 'West Midlands'!AJ45, Northern!AJ45, Scotland!AJ45, Southern!AJ45, 'Wales & West'!AJ45), CHOOSE(m_identity,SHETL!AJ45, SPTL!AJ45, 'NGET TO (Best)'!AJ45, 0, 'NGGT TO (Best)'!AJ45, 0, East!AJ45, London!AJ45, 'North West'!AJ45, 'West Midlands'!AJ45, Northern!AJ45, Scotland!AJ45, Southern!AJ45, 'Wales & West'!AJ45)) -> 6.477466644 | AK45: =IF(UserInterface!$E$72 = 1,CHOOSE(m_identity,SHETL!AK45, SPTL!AK45, 'NGET TO (Base)'!AK45, 0, 'NGGT TO (Base)'!AK45, 0, East!AK45, London!AK45, 'North West'!AK45, 'West Midlands'!AK45, Northern!AK45, Scotland!AK45, Southern!AK45, 'Wales & West'!AK45), CHOOSE(m_identity,SHETL!AK45, SPTL!AK45, 'NGET TO (Best)'!AK45, 0, 'NGGT TO (Best)'!AK45, 0, East!AK45, London!AK45, 'North West'!AK45, 'West Midlands'!AK45, Northern!AK45, Scotland!AK45, Southern!AK45, 'Wales & West'!AK45)) -> 6.477466644 | AL45: =IF(UserInterface!$E$72 = 1,CHOOSE(m_identity,SHETL!AL45, SPTL!AL45, 'NGET TO (Base)'!AL45, 0, 'NGGT TO (Base)'!AL45, 0, East!AL45, London!AL45, 'North West'!AL45, 'West Midlands'!AL45, Northern!AL45, Scotland!AL45, Southern!AL45, 'Wales & West'!AL45), CHOOSE(m_identity,SHETL!AL45, SPTL!AL45, 'NGET TO (Best)'!AL45, 0, 'NGGT TO (Best)'!AL45, 0, East!AL45, London!AL45, 'North West'!AL45, 'West Midlands'!AL45, Northern!AL45, Scotland!AL45, Southern!AL45, 'Wales & West'!AL45)) -> 6.477466644 | AM45: =IF(UserInterface!$E$72 = 1,CHOOSE(m_identity,SHETL!AM45, SPTL!AM45, 'NGET TO (Base)'!AM45, 0, 'NGGT TO (Base)'!AM45, 0, East!AM45, London!AM45, 'North West'!AM45, 'West Midlands'!AM45, Northern!AM45, Scotland!AM45, Southern!AM45, 'Wales & West'!AM45), CHOOSE(m_identity,SHETL!AM45, SPTL!AM45, 'NGET TO (Best)'!AM45, 0, 'NGGT TO (Best)'!AM45, 0, East!AM45, London!AM45, 'North West'!AM45, 'West Midlands'!AM45, Northern!AM45, Scotland!AM45, Southern!AM45, 'Wales & West'!AM45)) -> 6.477466644 | AN45: =IF(UserInterface!$E$72 = 1,CHOOSE(m_identity,SHETL!AN45, SPTL!AN45, 'NGET TO (Base)'!AN45, 0, 'NGGT TO (Base)'!AN45, 0, East!AN45, London!AN45, 'North West'!AN45, 'West Midlands'!AN45, Northern!AN45, Scotland!AN45, Southern!AN45, 'Wales & West'!AN45), CHOOSE(m_identity,SHETL!AN45, SPTL!AN45, 'NGET TO (Best)'!AN45, 0, 'NGGT TO (Best)'!AN45, 0, East!AN45, London!AN45, 'North West'!AN45, 'West Midlands'!AN45, Northern!AN45, Scotland!AN45, Southern!AN45, 'Wales & West'!AN45)) -> 6.477466644 | AO45: =IF(UserInterface!$E$72 = 1,CHOOSE(m_identity,SHETL!AO45, SPTL!AO45, 'NGET TO (Base)'!AO45, 0, 'NGGT TO (Base)'!AO45, 0, East!AO45, London!AO45, 'North West'!AO45, 'West Midlands'!AO45, Northern!AO45, Scotland!AO45, Southern!AO45, 'Wales & West'!AO45), CHOOSE(m_identity,SHETL!AO45, SPTL!AO45, 'NGET TO (Best)'!AO45, 0, 'NGGT TO (Best)'!AO45, 0, East!AO45, London!AO45, 'North West'!AO45, 'West Midlands'!AO45, Northern!AO45, Scotland!AO45, Southern!AO45, 'Wales & West'!AO45)) -> 6.477466644
E46: Revenue adjustment from previous controls | F46: SC1 | G46: £m 09/10 prices | AH46: =IF(UserInterface!$E$72 = 1,CHOOSE(m_identity,SHETL!AH46, SPTL!AH46, 'NGET TO (Base)'!AH46, 0, 'NGGT TO (Base)'!AH46, 0, East!AH46, London!AH46, 'North West'!AH46, 'West Midlands'!AH46, Northern!AH46, Scotland!AH46, Southern!AH46, 'Wales & West'!AH46), CHOOSE(m_identity,SHETL!AH46, SPTL!AH46, 'NGET TO (Best)'!AH46, 0, 'NGGT TO (Best)'!AH46, 0, East!AH46, London!AH46, 'North West'!AH46, 'West Midlands'!AH46, Northern!AH46, Scotland!AH46, Southern!AH46, 'Wales & West'!AH46)) -> 0.03947698412 | AI46: =IF(UserInterface!$E$72 = 1,CHOOSE(m_identity,SHETL!AI46, SPTL!AI46, 'NGET TO (Base)'!AI46, 0, 'NGGT TO (Base)'!AI46, 0, East!AI46, London!AI46, 'North West'!AI46, 'West Midlands'!AI46, Northern!AI46, Scotland!AI46, Southern!AI46, 'Wales & West'!AI46), CHOOSE(m_identity,SHETL!AI46, SPTL!AI46, 'NGET TO (Best)'!AI46, 0, 'NGGT TO (Best)'!AI46, 0, East!AI46, London!AI46, 'North West'!AI46, 'West Midlands'!AI46, Northern!AI46, Scotland!AI46, Southern!AI46, 'Wales & West'!AI46)) -> 0.0411802186 | AJ46: =IF(UserInterface!$E$72 = 1,CHOOSE(m_identity,SHETL!AJ46, SPTL!AJ46, 'NGET TO (Base)'!AJ46, 0, 'NGGT TO (Base)'!AJ46, 0, East!AJ46, London!AJ46, 'North West'!AJ46, 'West Midlands'!AJ46, Northern!AJ46, Scotland!AJ46, Southern!AJ46, 'Wales & West'!AJ46), CHOOSE(m_identity,SHETL!AJ46, SPTL!AJ46, 'NGET TO (Best)'!AJ46, 0, 'NGGT TO (Best)'!AJ46, 0, East!AJ46, London!AJ46, 'North West'!AJ46, 'West Midlands'!AJ46, Northern!AJ46, Scotland!AJ46, Southern!AJ46, 'Wales & West'!AJ46)) -> 0.04295693914 | AK46: =IF(UserInterface!$E$72 = 1,CHOOSE(m_identity,SHETL!AK46, SPTL!AK46, 'NGET TO (Base)'!AK46, 0, 'NGGT TO (Base)'!AK46, 0, East!AK46, London!AK46, 'North West'!AK46, 'West Midlands'!AK46, Northern!AK46, Scotland!AK46, Southern!AK46, 'Wales & West'!AK46), CHOOSE(m_identity,SHETL!AK46, SPTL!AK46, 'NGET TO (Best)'!AK46, 0, 'NGGT TO (Best)'!AK46, 0, East!AK46, London!AK46, 'North West'!AK46, 'West Midlands'!AK46, Northern!AK46, Scotland!AK46, Southern!AK46, 'Wales & West'!AK46)) -> 0.04481031628 | AL46: =IF(UserInterface!$E$72 = 1,CHOOSE(m_identity,SHETL!AL46, SPTL!AL46, 'NGET TO (Base)'!AL46, 0, 'NGGT TO (Base)'!AL46, 0, East!AL46, London!AL46, 'North West'!AL46, 'West Midlands'!AL46, Northern!AL46, Scotland!AL46, Southern!AL46, 'Wales & West'!AL46), CHOOSE(m_identity,SHETL!AL46, SPTL!AL46, 'NGET TO (Best)'!AL46, 0, 'NGGT TO (Best)'!AL46, 0, East!AL46, London!AL46, 'North West'!AL46, 'West Midlands'!AL46, Northern!AL46, Scotland!AL46, Southern!AL46, 'Wales & West'!AL46)) -> 0.04674365737 | AM46: =IF(UserInterface!$E$72 = 1,CHOOSE(m_identity,SHETL!AM46, SPTL!AM46, 'NGET TO (Base)'!AM46, 0, 'NGGT TO (Base)'!AM46, 0, East!AM46, London!AM46, 'North West'!AM46, 'West Midlands'!AM46, Northern!AM46, Scotland!AM46, Southern!AM46, 'Wales & West'!AM46), CHOOSE(m_identity,SHETL!AM46, SPTL!AM46, 'NGET TO (Best)'!AM46, 0, 'NGGT TO (Best)'!AM46, 0, East!AM46, London!AM46, 'North West'!AM46, 'West Midlands'!AM46, Northern!AM46, Scotland!AM46, Southern!AM46, 'Wales & West'!AM46)) -> 0.04876041247 | AN46: =IF(UserInterface!$E$72 = 1,CHOOSE(m_identity,SHETL!AN46, SPTL!AN46, 'NGET TO (Base)'!AN46, 0, 'NGGT TO (Base)'!AN46, 0, East!AN46, London!AN46, 'North West'!AN46, 'West Midlands'!AN46, Northern!AN46, Scotland!AN46, Southern!AN46, 'Wales & West'!AN46), CHOOSE(m_identity,SHETL!AN46, SPTL!AN46, 'NGET TO (Best)'!AN46, 0, 'NGGT TO (Best)'!AN46, 0, East!AN46, London!AN46, 'North West'!AN46, 'West Midlands'!AN46, Northern!AN46, Scotland!AN46, Southern!AN46, 'Wales & West'!AN46)) -> 0.05086418046 | AO46: =IF(UserInterface!$E$72 = 1,CHOOSE(m_identity,SHETL!AO46, SPTL!AO46, 'NGET TO (Base)'!AO46, 0, 'NGGT TO (Base)'!AO46, 0, East!AO46, London!AO46, 'North West'!AO46, 'West Midlands'!AO46, Northern!AO46, Scotland!AO46, Southern!AO46, 'Wales & West'!AO46), CHOOSE(m_identity,SHETL!AO46, SPTL!AO46, 'NGET TO (Best)'!AO46, 0, 'NGGT TO (Best)'!AO46, 0, East!AO46, London!AO46, 'North West'!AO46, 'West Midlands'!AO46, Northern!AO46, Scotland!AO46, Southern!AO46, 'Wales & West'!AO46)) -> 0.05305871553
E47: Net RAV addition adjustment | F47: SC1 | G47: £m 09/10 prices | AH47: =IF(UserInterface!$E$72 = 1,CHOOSE(m_identity,SHETL!AH47, SPTL!AH47, 'NGET TO (Base)'!AH47, 0, 'NGGT TO (Base)'!AH47, 0, East!AH47, London!AH47, 'North West'!AH47, 'West Midlands'!AH47, Northern!AH47, Scotland!AH47, Southern!AH47, 'Wales & West'!AH47), CHOOSE(m_identity,SHETL!AH47, SPTL!AH47, 'NGET TO (Best)'!AH47, 0, 'NGGT TO (Best)'!AH47, 0, East!AH47, London!AH47, 'North West'!AH47, 'West Midlands'!AH47, Northern!AH47, Scotland!AH47, Southern!AH47, 'Wales & West'!AH47)) -> 0 | AI47: =IF(UserInterface!$E$72 = 1,CHOOSE(m_identity,SHETL!AI47, SPTL!AI47, 'NGET TO (Base)'!AI47, 0, 'NGGT TO (Base)'!AI47, 0, East!AI47, London!AI47, 'North West'!AI47, 'West Midlands'!AI47, Northern!AI47, Scotland!AI47, Southern!AI47, 'Wales & West'!AI47), CHOOSE(m_identity,SHETL!AI47, SPTL!AI47, 'NGET TO (Best)'!AI47, 0, 'NGGT TO (Best)'!AI47, 0, East!AI47, London!AI47, 'North West'!AI47, 'West Midlands'!AI47, Northern!AI47, Scotland!AI47, Southern!AI47, 'Wales & West'!AI47)) -> 0 | AJ47: =IF(UserInterface!$E$72 = 1,CHOOSE(m_identity,SHETL!AJ47, SPTL!AJ47, 'NGET TO (Base)'!AJ47, 0, 'NGGT TO (Base)'!AJ47, 0, East!AJ47, London!AJ47, 'North West'!AJ47, 'West Midlands'!AJ47, Northern!AJ47, Scotland!AJ47, Southern!AJ47, 'Wales & West'!AJ47), CHOOSE(m_identity,SHETL!AJ47, SPTL!AJ47, 'NGET TO (Best)'!AJ47, 0, 'NGGT TO (Best)'!AJ47, 0, East!AJ47, London!AJ47, 'North West'!AJ47, 'West Midlands'!AJ47, Northern!AJ47, Scotland!AJ47, Southern!AJ47, 'Wales & West'!AJ47)) -> 0 | AK47: =IF(UserInterface!$E$72 = 1,CHOOSE(m_identity,SHETL!AK47, SPTL!AK47, 'NGET TO (Base)'!AK47, 0, 'NGGT TO (Base)'!AK47, 0, East!AK47, London!AK47, 'North West'!AK47, 'West Midlands'!AK47, Northern!AK47, Scotland!AK47, Southern!AK47, 'Wales & West'!AK47), CHOOSE(m_identity,SHETL!AK47, SPTL!AK47, 'NGET TO (Best)'!AK47, 0, 'NGGT TO (Best)'!AK47, 0, East!AK47, London!AK47, 'North West'!AK47, 'West Midlands'!AK47, Northern!AK47, Scotland!AK47, Southern!AK47, 'Wales & West'!AK47)) -> 0 | AL47: =IF(UserInterface!$E$72 = 1,CHOOSE(m_identity,SHETL!AL47, SPTL!AL47, 'NGET TO (Base)'!AL47, 0, 'NGGT TO (Base)'!AL47, 0, East!AL47, London!AL47, 'North West'!AL47, 'West Midlands'!AL47, Northern!AL47, Scotland!AL47, Southern!AL47, 'Wales & West'!AL47), CHOOSE(m_identity,SHETL!AL47, SPTL!AL47, 'NGET TO (Best)'!AL47, 0, 'NGGT TO (Best)'!AL47, 0, East!AL47, London!AL47, 'North West'!AL47, 'West Midlands'!AL47, Northern!AL47, Scotland!AL47, Southern!AL47, 'Wales & West'!AL47)) -> 0 | AM47: =IF(UserInterface!$E$72 = 1,CHOOSE(m_identity,SHETL!AM47, SPTL!AM47, 'NGET TO (Base)'!AM47, 0, 'NGGT TO (Base)'!AM47, 0, East!AM47, London!AM47, 'North West'!AM47, 'West Midlands'!AM47, Northern!AM47, Scotland!AM47, Southern!AM47, 'Wales & West'!AM47), CHOOSE(m_identity,SHETL!AM47, SPTL!AM47, 'NGET TO (Best)'!AM47, 0, 'NGGT TO (Best)'!AM47, 0, East!AM47, London!AM47, 'North West'!AM47, 'West Midlands'!AM47, Northern!AM47, Scotland!AM47, Southern!AM47, 'Wales & West'!AM47)) -> 0 | AN47: =IF(UserInterface!$E$72 = 1,CHOOSE(m_identity,SHETL!AN47, SPTL!AN47, 'NGET TO (Base)'!AN47, 0, 'NGGT TO (Base)'!AN47, 0, East!AN47, London!AN47, 'North West'!AN47, 'West Midlands'!AN47, Northern!AN47, Scotland!AN47, Southern!AN47, 'Wales & West'!AN47), CHOOSE(m_identity,SHETL!AN47, SPTL!AN47, 'NGET TO (Best)'!AN47, 0, 'NGGT TO (Best)'!AN47, 0, East!AN47, London!AN47, 'North West'!AN47, 'West Midlands'!AN47, Northern!AN47, Scotland!AN47, Southern!AN47, 'Wales & West'!AN47)) -> 0 | AO47: =IF(UserInterface!$E$72 = 1,CHOOSE(m_identity,SHETL!AO47, SPTL!AO47, 'NGET TO (Base)'!AO47, 0, 'NGGT TO (Base)'!AO47, 0, East!AO47, London!AO47, 'North West'!AO47, 'West Midlands'!AO47, Northern!AO47, Scotland!AO47, Southern!AO47, 'Wales & West'!AO47), CHOOSE(m_identity,SHETL!AO47, SPTL!AO47, 'NGET TO (Best)'!AO47, 0, 'NGGT TO (Best)'!AO47, 0, East!AO47, London!AO47, 'North West'!AO47, 'West Midlands'!AO47, Northern!AO47, Scotland!AO47, Southern!AO47, 'Wales & West'!AO47)) -> 0
B49: Policy
C51: Cost of capital
E53: Cost of debt | G53: annual real % | AH53: =AH8 -> 0.0303 | AI53: 0.0303 | AJ53: 0.0303 | AK53: 0.0303 | AL53: 0.0303 | AM53: 0.0303 | AN53: 0.0303 | AO53: 0.0303
E54: Cost of equity | G54: annual real % | AH54: =CHOOSE(m_identity,SHETL!AH54, SPTL!AH54, 'NGET TO (Base)'!AH54, 0, 'NGGT TO (Base)'!AH54, 0, East!AH54, London!AH54, 'North West'!AH54, 'West Midlands'!AH54, Northern!AH54, Scotland!AH54, Southern!AH54, 'Wales & West'!AH54) -> 0.067 | AI54: =CHOOSE(m_identity,SHETL!AI54, SPTL!AI54, 'NGET TO (Base)'!AI54, 0, 'NGGT TO (Base)'!AI54, 0, East!AI54, London!AI54, 'North West'!AI54, 'West Midlands'!AI54, Northern!AI54, Scotland!AI54, Southern!AI54, 'Wales & West'!AI54) -> 0.067 | AJ54: =CHOOSE(m_identity,SHETL!AJ54, SPTL!AJ54, 'NGET TO (Base)'!AJ54, 0, 'NGGT TO (Base)'!AJ54, 0, East!AJ54, London!AJ54, 'North West'!AJ54, 'West Midlands'!AJ54, Northern!AJ54, Scotland!AJ54, Southern!AJ54, 'Wales & West'!AJ54) -> 0.067 | AK54: =CHOOSE(m_identity,SHETL!AK54, SPTL!AK54, 'NGET TO (Base)'!AK54, 0, 'NGGT TO (Base)'!AK54, 0, East!AK54, London!AK54, 'North West'!AK54, 'West Midlands'!AK54, Northern!AK54, Scotland!AK54, Southern!AK54, 'Wales & West'!AK54) -> 0.067 | AL54: =CHOOSE(m_identity,SHETL!AL54, SPTL!AL54, 'NGET TO (Base)'!AL54, 0, 'NGGT TO (Base)'!AL54, 0, East!AL54, London!AL54, 'North West'!AL54, 'West Midlands'!AL54, Northern!AL54, Scotland!AL54, Southern!AL54, 'Wales & West'!AL54) -> 0.067 | AM54: =CHOOSE(m_identity,SHETL!AM54, SPTL!AM54, 'NGET TO (Base)'!AM54, 0, 'NGGT TO (Base)'!AM54, 0, East!AM54, London!AM54, 'North West'!AM54, 'West Midlands'!AM54, Northern!AM54, Scotland!AM54, Southern!AM54, 'Wales & West'!AM54) -> 0.067 | AN54: =CHOOSE(m_identity,SHETL!AN54, SPTL!AN54, 'NGET TO (Base)'!AN54, 0, 'NGGT TO (Base)'!AN54, 0, East!AN54, London!AN54, 'North West'!AN54, 'West Midlands'!AN54, Northern!AN54, Scotland!AN54, Southern!AN54, 'Wales & West'!AN54) -> 0.067 | AO54: =CHOOSE(m_identity,SHETL!AO54, SPTL!AO54, 'NGET TO (Base)'!AO54, 0, 'NGGT TO (Base)'!AO54, 0, East!AO54, London!AO54, 'North West'!AO54, 'West Midlands'!AO54, Northern!AO54, Scotland!AO54, Southern!AO54, 'Wales & West'!AO54) -> 0.067
E55: Notional gearing | G55: % | J55: > | AG55: =CHOOSE(m_identity,SHETL!AG55, SPTL!AG55, 'NGET TO (Base)'!AG55, 0, 'NGGT TO (Base)'!AG55, 0, East!AG55, London!AG55, 'North West'!AG55, 'West Midlands'!AG55, Northern!AG55, Scotland!AG55, Southern!AG55, 'Wales & West'!AG55) -> 0.625 | AH55: =CHOOSE(m_identity,SHETL!AH55, SPTL!AH55, 'NGET TO (Base)'!AH55, 0, 'NGGT TO (Base)'!AH55, 0, East!AH55, London!AH55, 'North West'!AH55, 'West Midlands'!AH55, Northern!AH55, Scotland!AH55, Southern!AH55, 'Wales & West'!AH55) -> 0.65 | AI55: =CHOOSE(m_identity,SHETL!AI55, SPTL!AI55, 'NGET TO (Base)'!AI55, 0, 'NGGT TO (Base)'!AI55, 0, East!AI55, London!AI55, 'North West'!AI55, 'West Midlands'!AI55, Northern!AI55, Scotland!AI55, Southern!AI55, 'Wales & West'!AI55) -> 0.65 | AJ55: =CHOOSE(m_identity,SHETL!AJ55, SPTL!AJ55, 'NGET TO (Base)'!AJ55, 0, 'NGGT TO (Base)'!AJ55, 0, East!AJ55, London!AJ55, 'North West'!AJ55, 'West Midlands'!AJ55, Northern!AJ55, Scotland!AJ55, Southern!AJ55, 'Wales & West'!AJ55) -> 0.65 | AK55: =CHOOSE(m_identity,SHETL!AK55, SPTL!AK55, 'NGET TO (Base)'!AK55, 0, 'NGGT TO (Base)'!AK55, 0, East!AK55, London!AK55, 'North West'!AK55, 'West Midlands'!AK55, Northern!AK55, Scotland!AK55, Southern!AK55, 'Wales & West'!AK55) -> 0.65 | AL55: =CHOOSE(m_identity,SHETL!AL55, SPTL!AL55, 'NGET TO (Base)'!AL55, 0, 'NGGT TO (Base)'!AL55, 0, East!AL55, London!AL55, 'North West'!AL55, 'West Midlands'!AL55, Northern!AL55, Scotland!AL55, Southern!AL55, 'Wales & West'!AL55) -> 0.65 | AM55: =CHOOSE(m_identity,SHETL!AM55, SPTL!AM55, 'NGET TO (Base)'!AM55, 0, 'NGGT TO (Base)'!AM55, 0, East!AM55, London!AM55, 'North West'!AM55, 'West Midlands'!AM55, Northern!AM55, Scotland!AM55, Southern!AM55, 'Wales & West'!AM55) -> 0.65 | AN55: =CHOOSE(m_identity,SHETL!AN55, SPTL!AN55, 'NGET TO (Base)'!AN55, 0, 'NGGT TO (Base)'!AN55, 0, East!AN55, London!AN55, 'North West'!AN55, 'West Midlands'!AN55, Northern!AN55, Scotland!AN55, Southern!AN55, 'Wales & West'!AN55) -> 0.65 | AO55: =CHOOSE(m_identity,SHETL!AO55, SPTL!AO55, 'NGET TO (Base)'!AO55, 0, 'NGGT TO (Base)'!AO55, 0, East!AO55, London!AO55, 'North West'!AO55, 'West Midlands'!AO55, Northern!AO55, Scotland!AO55, Southern!AO55, 'Wales & West'!AO55) -> 0.65
E57: Vanilla WACC | G57: annual real % | AH57: =(AH53 * AH55) + (AH54 * (1 - AH55)) -> 0.043145 | AI57: 0.043145 | AJ57: 0.043145 | AK57: 0.043145 | AL57: 0.043145 | AM57: 0.043145 | AN57: 0.043145 | AO57: 0.043145
E59: Pre-RIIO closing notional gearing | G59: % | I59: =CHOOSE(m_identity,SHETL!I59, SPTL!I59, 'NGET TO (Base)'!I59, 0, 'NGGT TO (Base)'!I59, 0, East!I59, London!I59, 'North West'!I59, 'West Midlands'!I59, Northern!I59, Scotland!I59, Southern!I59, 'Wales & West'!I59) -> 0.625
E61: Forecast RPI (simple average year to March) | G61: index value | J61: > | V61: 173.875 | W61: 177.5166667 | X61: 182.475 | Y61: 188.15 | Z61: 193.1083333 | AA61: 200.3166667 | AB61: 208.5916667 | AC61: 214.7833333 | AD61: 215.7666667 | AE61: 226.475 | AF61: 236.8535865 | AG61: 245.5775775 | AH61: 253.6262157 | AI61: 261.053395 | AJ61: 268.1436277 | AK61: 275.1376196 | AL61: 282.1818699 | AM61: 289.3511422 | AN61: 296.6807729 | AO61: 304.1878524
C63: TIM and capitalisation
E65: Years from t until normal reporting of actual costs | G65: years | I65: =CHOOSE(m_identity,SHETL!I65, SPTL!I65, 'NGET TO (Base)'!I65, 0, 'NGGT TO (Base)'!I65, 0, East!I65, London!I65, 'North West'!I65, 'West Midlands'!I65, Northern!I65, Scotland!I65, Southern!I65, 'Wales & West'!I65) -> 2
E67: Capitalised share of totex | G67: % | AH67: =CHOOSE(m_identity,SHETL!AH67, SPTL!AH67, 'NGET TO (Base)'!AH67, 0, 'NGGT TO (Base)'!AH67, 0, East!AH67, London!AH67, 'North West'!AH67, 'West Midlands'!AH67, Northern!AH67, Scotland!AH67, Southern!AH67, 'Wales & West'!AH67) -> 0.3945378481 | AI67: =CHOOSE(m_identity,SHETL!AI67, SPTL!AI67, 'NGET TO (Base)'!AI67, 0, 'NGGT TO (Base)'!AI67, 0, East!AI67, London!AI67, 'North West'!AI67, 'West Midlands'!AI67, Northern!AI67, Scotland!AI67, Southern!AI67, 'Wales & West'!AI67) -> 0.4176746245 | AJ67: =CHOOSE(m_identity,SHETL!AJ67, SPTL!AJ67, 'NGET TO (Base)'!AJ67, 0, 'NGGT TO (Base)'!AJ67, 0, East!AJ67, London!AJ67, 'North West'!AJ67, 'West Midlands'!AJ67, Northern!AJ67, Scotland!AJ67, Southern!AJ67, 'Wales & West'!AJ67) -> 0.4414546822 | AK67: =CHOOSE(m_identity,SHETL!AK67, SPTL!AK67, 'NGET TO (Base)'!AK67, 0, 'NGGT TO (Base)'!AK67, 0, East!AK67, London!AK67, 'North West'!AK67, 'West Midlands'!AK67, Northern!AK67, Scotland!AK67, Southern!AK67, 'Wales & West'!AK67) -> 0.4641400856 | AL67: =CHOOSE(m_identity,SHETL!AL67, SPTL!AL67, 'NGET TO (Base)'!AL67, 0, 'NGGT TO (Base)'!AL67, 0, East!AL67, London!AL67, 'North West'!AL67, 'West Midlands'!AL67, Northern!AL67, Scotland!AL67, Southern!AL67, 'Wales & West'!AL67) -> 0.4870751664 | AM67: =CHOOSE(m_identity,SHETL!AM67, SPTL!AM67, 'NGET TO (Base)'!AM67, 0, 'NGGT TO (Base)'!AM67, 0, East!AM67, London!AM67, 'North West'!AM67, 'West Midlands'!AM67, Northern!AM67, Scotland!AM67, Southern!AM67, 'Wales & West'!AM67) -> 0.510208832 | AN67: =CHOOSE(m_identity,SHETL!AN67, SPTL!AN67, 'NGET TO (Base)'!AN67, 0, 'NGGT TO (Base)'!AN67, 0, East!AN67, London!AN67, 'North West'!AN67, 'West Midlands'!AN67, Northern!AN67, Scotland!AN67, Southern!AN67, 'Wales & West'!AN67) -> 0.5337752028 | AO67: =CHOOSE(m_identity,SHETL!AO67, SPTL!AO67, 'NGET TO (Base)'!AO67, 0, 'NGGT TO (Base)'!AO67, 0, East!AO67, London!AO67, 'North West'!AO67, 'West Midlands'!AO67, Northern!AO67, Scotland!AO67, Southern!AO67, 'Wales & West'!AO67) -> 0.5540628187
E68: Capitalised share of wider works | AH68: =CHOOSE(m_identity,SHETL!AH68, SPTL!AH68, 'NGET TO (Base)'!AH68, 0, 'NGGT TO (Base)'!AH68, 0, East!AH68, London!AH68, 'North West'!AH68, 'West Midlands'!AH68, Northern!AH68, Scotland!AH68, Southern!AH68, 'Wales & West'!AH68) -> 0 | AI68: =CHOOSE(m_identity,SHETL!AI68, SPTL!AI68, 'NGET TO (Base)'!AI68, 0, 'NGGT TO (Base)'!AI68, 0, East!AI68, London!AI68, 'North West'!AI68, 'West Midlands'!AI68, Northern!AI68, Scotland!AI68, Southern!AI68, 'Wales & West'!AI68) -> 0 | AJ68: =CHOOSE(m_identity,SHETL!AJ68, SPTL!AJ68, 'NGET TO (Base)'!AJ68, 0, 'NGGT TO (Base)'!AJ68, 0, East!AJ68, London!AJ68, 'North West'!AJ68, 'West Midlands'!AJ68, Northern!AJ68, Scotland!AJ68, Southern!AJ68, 'Wales & West'!AJ68) -> 0 | AK68: =CHOOSE(m_identity,SHETL!AK68, SPTL!AK68, 'NGET TO (Base)'!AK68, 0, 'NGGT TO (Base)'!AK68, 0, East!AK68, London!AK68, 'North West'!AK68, 'West Midlands'!AK68, Northern!AK68, Scotland!AK68, Southern!AK68, 'Wales & West'!AK68) -> 0 | AL68: =CHOOSE(m_identity,SHETL!AL68, SPTL!AL68, 'NGET TO (Base)'!AL68, 0, 'NGGT TO (Base)'!AL68, 0, East!AL68, London!AL68, 'North West'!AL68, 'West Midlands'!AL68, Northern!AL68, Scotland!AL68, Southern!AL68, 'Wales & West'!AL68) -> 0 | AM68: =CHOOSE(m_identity,SHETL!AM68, SPTL!AM68, 'NGET TO (Base)'!AM68, 0, 'NGGT TO (Base)'!AM68, 0, East!AM68, London!AM68, 'North West'!AM68, 'West Midlands'!AM68, Northern!AM68, Scotland!AM68, Southern!AM68, 'Wales & West'!AM68) -> 0 | AN68: =CHOOSE(m_identity,SHETL!AN68, SPTL!AN68, 'NGET TO (Base)'!AN68, 0, 'NGGT TO (Base)'!AN68, 0, East!AN68, London!AN68, 'North West'!AN68, 'West Midlands'!AN68, Northern!AN68, Scotland!AN68, Southern!AN68, 'Wales & West'!AN68) -> 0 | AO68: =CHOOSE(m_identity,SHETL!AO68, SPTL!AO68, 'NGET TO (Base)'!AO68, 0, 'NGGT TO (Base)'!AO68, 0, East!AO68, London!AO68, 'North West'!AO68, 'West Midlands'!AO68, Northern!AO68, Scotland!AO68, Southern!AO68, 'Wales & West'!AO68) -> 0
E69: Capitalised share of entry, exit, network flexibility, bi-directional, industrial emission directive and asset health | AH69: =CHOOSE(m_identity,SHETL!AH69, SPTL!AH69, 'NGET TO (Base)'!AH69, 0, 'NGGT TO (Base)'!AH69, 0, East!AH69, London!AH69, 'North West'!AH69, 'West Midlands'!AH69, Northern!AH69, Scotland!AH69, Southern!AH69, 'Wales & West'!AH69) -> 0 | AI69: =CHOOSE(m_identity,SHETL!AI69, SPTL!AI69, 'NGET TO (Base)'!AI69, 0, 'NGGT TO (Base)'!AI69, 0, East!AI69, London!AI69, 'North West'!AI69, 'West Midlands'!AI69, Northern!AI69, Scotland!AI69, Southern!AI69, 'Wales & West'!AI69) -> 0 | AJ69: =CHOOSE(m_identity,SHETL!AJ69, SPTL!AJ69, 'NGET TO (Base)'!AJ69, 0, 'NGGT TO (Base)'!AJ69, 0, East!AJ69, London!AJ69, 'North West'!AJ69, 'West Midlands'!AJ69, Northern!AJ69, Scotland!AJ69, Southern!AJ69, 'Wales & West'!AJ69) -> 0 | AK69: =CHOOSE(m_identity,SHETL!AK69, SPTL!AK69, 'NGET TO (Base)'!AK69, 0, 'NGGT TO (Base)'!AK69, 0, East!AK69, London!AK69, 'North West'!AK69, 'West Midlands'!AK69, Northern!AK69, Scotland!AK69, Southern!AK69, 'Wales & West'!AK69) -> 0 | AL69: =CHOOSE(m_identity,SHETL!AL69, SPTL!AL69, 'NGET TO (Base)'!AL69, 0, 'NGGT TO (Base)'!AL69, 0, East!AL69, London!AL69, 'North West'!AL69, 'West Midlands'!AL69, Northern!AL69, Scotland!AL69, Southern!AL69, 'Wales & West'!AL69) -> 0 | AM69: =CHOOSE(m_identity,SHETL!AM69, SPTL!AM69, 'NGET TO (Base)'!AM69, 0, 'NGGT TO (Base)'!AM69, 0, East!AM69, London!AM69, 'North West'!AM69, 'West Midlands'!AM69, Northern!AM69, Scotland!AM69, Southern!AM69, 'Wales & West'!AM69) -> 0 | AN69: =CHOOSE(m_identity,SHETL!AN69, SPTL!AN69, 'NGET TO (Base)'!AN69, 0, 'NGGT TO (Base)'!AN69, 0, East!AN69, London!AN69, 'North West'!AN69, 'West Midlands'!AN69, Northern!AN69, Scotland!AN69, Southern!AN69, 'Wales & West'!AN69) -> 0 | AO69: =CHOOSE(m_identity,SHETL!AO69, SPTL!AO69, 'NGET TO (Base)'!AO69, 0, 'NGGT TO (Base)'!AO69, 0, East!AO69, London!AO69, 'North West'!AO69, 'West Midlands'!AO69, Northern!AO69, Scotland!AO69, Southern!AO69, 'Wales & West'!AO69) -> 0
E71: Incentive rate (slope) | G71: % | I71: =CHOOSE(m_identity,SHETL!I71, SPTL!I71, 'NGET TO (Base)'!I71, 0, 'NGGT TO (Base)'!I71, 0, East!I71, London!I71, 'North West'!I71, 'West Midlands'!I71, Northern!I71, Scotland!I71, Southern!I71, 'Wales & West'!I71) -> -0.001666666667
E72: Incentive rate (intercept) | G72: scalar | I72: =CHOOSE(m_identity,SHETL!I72, SPTL!I72, 'NGET TO (Base)'!I72, 0, 'NGGT TO (Base)'!I72, 0, East!I72, London!I72, 'North West'!I72, 'West Midlands'!I72, Northern!I72, Scotland!I72, Southern!I72, 'Wales & West'!I72) -> 0.8166666667
E73: Additional income (intercept) | G73: scalar | I73: =CHOOSE(m_identity,SHETL!I73, SPTL!I73, 'NGET TO (Base)'!I73, 0, 'NGGT TO (Base)'!I73, 0, East!I73, London!I73, 'North West'!I73, 'West Midlands'!I73, Northern!I73, Scotland!I73, Southern!I73, 'Wales & West'!I73) -> 14.58333333
E75: Weight of Ofgem's view on price control totex | G75: % | I75: =CHOOSE(m_identity,SHETL!I75, SPTL!I75, 'NGET TO (Base)'!I75, 0, 'NGGT TO (Base)'!I75, 0, East!I75, London!I75, 'North West'!I75, 'West Midlands'!I75, Northern!I75, Scotland!I75, Southern!I75, 'Wales & West'!I75) -> 0.75
E76: Weight of operator's view on price control totex | G76: % | I76: =CHOOSE(m_identity,SHETL!I76, SPTL!I76, 'NGET TO (Base)'!I76, 0, 'NGGT TO (Base)'!I76, 0, East!I76, London!I76, 'North West'!I76, 'West Midlands'!I76, Northern!I76, Scotland!I76, Southern!I76, 'Wales & West'!I76) -> 0.25
E78: GD TIM group ratio | G78: scalar | I78: =CHOOSE(m_identity,SHETL!I78, SPTL!I78, 'NGET TO (Base)'!I78, 0, 'NGGT TO (Base)'!I78, 0, East!I78, London!I78, 'North West'!I78, 'West Midlands'!I78, Northern!I78, Scotland!I78, Southern!I78, 'Wales & West'!I78) -> 119.1
E80: Ofgem's view of licencee totex | G80: £m 09/10 prices | I80: =CHOOSE(m_identity,SHETL!I80, SPTL!I80, 'NGET TO (Base)'!I80, 0, 'NGGT TO (Base)'!I80, 0, East!I80, London!I80, 'North West'!I80, 'West Midlands'!I80, Northern!I80, Scotland!I80, Southern!I80, 'Wales & West'!I80) -> 1379.518755
E81: Operator's view of licencee totex | G81: £m 09/10 prices | I81: =CHOOSE(m_identity,SHETL!I81, SPTL!I81, 'NGET TO (Base)'!I81, 0, 'NGGT TO (Base)'!I81, 0, East!I81, London!I81, 'North West'!I81, 'West Midlands'!I81, Northern!I81, Scotland!I81, Southern!I81, 'Wales & West'!I81) -> 1631.829744
E83: Ofgem's view of group price control totex | G83: £m 09/10 prices | I83: =CHOOSE(m_identity,SHETL!I83, SPTL!I83, 'NGET TO (Base)'!I83, 0, 'NGGT TO (Base)'!I83, 0, East!I83, London!I83, 'North West'!I83, 'West Midlands'!I83, Northern!I83, Scotland!I83, Southern!I83, 'Wales & West'!I83) -> 1379.518755
E84: Operator's view of group price control totex | G84: £m 09/10 prices | I84: =CHOOSE(m_identity,SHETL!I84, SPTL!I84, 'NGET TO (Base)'!I84, 0, 'NGGT TO (Base)'!I84, 0, East!I84, London!I84, 'North West'!I84, 'West Midlands'!I84, Northern!I84, Scotland!I84, Southern!I84, 'Wales & West'!I84) -> 1631.829744
C86: Finance
E88: Minimum equity issuance threshold | G88: % | I88: =CHOOSE(m_identity,SHETL!I88, SPTL!I88, 'NGET TO (Base)'!I88, 0, 'NGGT TO (Base)'!I88, 0, East!I88, London!I88, 'North West'!I88, 'West Midlands'!I88, Northern!I88, Scotland!I88, Southern!I88, 'Wales & West'!I88) -> 0.05
E89: Equity issuance costs | G89: % | I89: =CHOOSE(m_identity,SHETL!I89, SPTL!I89, 'NGET TO (Base)'!I89, 0, 'NGGT TO (Base)'!I89, 0, East!I89, London!I89, 'North West'!I89, 'West Midlands'!I89, Northern!I89, Scotland!I89, Southern!I89, 'Wales & West'!I89) -> 0.05
E90: Assumed dividends as % of notional equity portion of RAV | G90: % | I90: =CHOOSE(m_identity,SHETL!I90, SPTL!I90, 'NGET TO (Base)'!I90, 0, 'NGGT TO (Base)'!I90, 0, East!I90, London!I90, 'North West'!I90, 'West Midlands'!I90, Northern!I90, Scotland!I90, Southern!I90, 'Wales & West'!I90) -> 0.05
E92: Equity issuance gearing target | G92: % | AH92: =CHOOSE(m_identity,SHETL!AH92, SPTL!AH92, 'NGET TO (Base)'!AH92, 0, 'NGGT TO (Base)'!AH92, 0, East!AH92, London!AH92, 'North West'!AH92, 'West Midlands'!AH92, Northern!AH92, Scotland!AH92, Southern!AH92, 'Wales & West'!AH92) -> 0.65 | AI92: =CHOOSE(m_identity,SHETL!AI92, SPTL!AI92, 'NGET TO (Base)'!AI92, 0, 'NGGT TO (Base)'!AI92, 0, East!AI92, London!AI92, 'North West'!AI92, 'West Midlands'!AI92, Northern!AI92, Scotland!AI92, Southern!AI92, 'Wales & West'!AI92) -> 0.65 | AJ92: =CHOOSE(m_identity,SHETL!AJ92, SPTL!AJ92, 'NGET TO (Base)'!AJ92, 0, 'NGGT TO (Base)'!AJ92, 0, East!AJ92, London!AJ92, 'North West'!AJ92, 'West Midlands'!AJ92, Northern!AJ92, Scotland!AJ92, Southern!AJ92, 'Wales & West'!AJ92) -> 0.65 | AK92: =CHOOSE(m_identity,SHETL!AK92, SPTL!AK92, 'NGET TO (Base)'!AK92, 0, 'NGGT TO (Base)'!AK92, 0, East!AK92, London!AK92, 'North West'!AK92, 'West Midlands'!AK92, Northern!AK92, Scotland!AK92, Southern!AK92, 'Wales & West'!AK92) -> 0.65 | AL92: =CHOOSE(m_identity,SHETL!AL92, SPTL!AL92, 'NGET TO (Base)'!AL92, 0, 'NGGT TO (Base)'!AL92, 0, East!AL92, London!AL92, 'North West'!AL92, 'West Midlands'!AL92, Northern!AL92, Scotland!AL92, Southern!AL92, 'Wales & West'!AL92) -> 0.65 | AM92: =CHOOSE(m_identity,SHETL!AM92, SPTL!AM92, 'NGET TO (Base)'!AM92, 0, 'NGGT TO (Base)'!AM92, 0, East!AM92, London!AM92, 'North West'!AM92, 'West Midlands'!AM92, Northern!AM92, Scotland!AM92, Southern!AM92, 'Wales & West'!AM92) -> 0.65 | AN92: =CHOOSE(m_identity,SHETL!AN92, SPTL!AN92, 'NGET TO (Base)'!AN92, 0, 'NGGT TO (Base)'!AN92, 0, East!AN92, London!AN92, 'North West'!AN92, 'West Midlands'!AN92, Northern!AN92, Scotland!AN92, Southern!AN92, 'Wales & West'!AN92) -> 0.65 | AO92: =CHOOSE(m_identity,SHETL!AO92, SPTL!AO92, 'NGET TO (Base)'!AO92, 0, 'NGGT TO (Base)'!AO92, 0, East!AO92, London!AO92, 'North West'!AO92, 'West Midlands'!AO92, Northern!AO92, Scotland!AO92, Southern!AO92, 'Wales & West'!AO92) -> 0.65
E94: Index-linked debt as a percentage of net debt | G94: % | AH94: =CHOOSE(m_identity,SHETL!AH94, SPTL!AH94, 'NGET TO (Base)'!AH94, 0, 'NGGT TO (Base)'!AH94, 0, East!AH94, London!AH94, 'North West'!AH94, 'West Midlands'!AH94, Northern!AH94, Scotland!AH94, Southern!AH94, 'Wales & West'!AH94) -> 0.25 | AI94: =CHOOSE(m_identity,SHETL!AI94, SPTL!AI94, 'NGET TO (Base)'!AI94, 0, 'NGGT TO (Base)'!AI94, 0, East!AI94, London!AI94, 'North West'!AI94, 'West Midlands'!AI94, Northern!AI94, Scotland!AI94, Southern!AI94, 'Wales & West'!AI94) -> 0.25 | AJ94: =CHOOSE(m_identity,SHETL!AJ94, SPTL!AJ94, 'NGET TO (Base)'!AJ94, 0, 'NGGT TO (Base)'!AJ94, 0, East!AJ94, London!AJ94, 'North West'!AJ94, 'West Midlands'!AJ94, Northern!AJ94, Scotland!AJ94, Southern!AJ94, 'Wales & West'!AJ94) -> 0.25 | AK94: =CHOOSE(m_identity,SHETL!AK94, SPTL!AK94, 'NGET TO (Base)'!AK94, 0, 'NGGT TO (Base)'!AK94, 0, East!AK94, London!AK94, 'North West'!AK94, 'West Midlands'!AK94, Northern!AK94, Scotland!AK94, Southern!AK94, 'Wales & West'!AK94) -> 0.25 | AL94: =CHOOSE(m_identity,SHETL!AL94, SPTL!AL94, 'NGET TO (Base)'!AL94, 0, 'NGGT TO (Base)'!AL94, 0, East!AL94, London!AL94, 'North West'!AL94, 'West Midlands'!AL94, Northern!AL94, Scotland!AL94, Southern!AL94, 'Wales & West'!AL94) -> 0.25 | AM94: =CHOOSE(m_identity,SHETL!AM94, SPTL!AM94, 'NGET TO (Base)'!AM94, 0, 'NGGT TO (Base)'!AM94, 0, East!AM94, London!AM94, 'North West'!AM94, 'West Midlands'!AM94, Northern!AM94, Scotland!AM94, Southern!AM94, 'Wales & West'!AM94) -> 0.25 | AN94: =CHOOSE(m_identity,SHETL!AN94, SPTL!AN94, 'NGET TO (Base)'!AN94, 0, 'NGGT TO (Base)'!AN94, 0, East!AN94, London!AN94, 'North West'!AN94, 'West Midlands'!AN94, Northern!AN94, Scotland!AN94, Southern!AN94, 'Wales & West'!AN94) -> 0.25 | AO94: =CHOOSE(m_identity,SHETL!AO94, SPTL!AO94, 'NGET TO (Base)'!AO94, 0, 'NGGT TO (Base)'!AO94, 0, East!AO94, London!AO94, 'North West'!AO94, 'West Midlands'!AO94, Northern!AO94, Scotland!AO94, Southern!AO94, 'Wales & West'!AO94) -> 0.25
B96: Expenditure
C98: Totex
D100: Non-variant allowances
E102: Non-variant allowed load related capex | G102: £m 09/10 prices | AH102: =CHOOSE(m_identity,SHETL!AH102, SPTL!AH102, 'NGET TO (Base)'!AH102, 0, 'NGGT TO (Base)'!AH102, 0, East!AH102, London!AH102, 'North West'!AH102, 'West Midlands'!AH102, Northern!AH102, Scotland!AH102, Southern!AH102, 'Wales & West'!AH102) -> 31.01424083 | AI102: =CHOOSE(m_identity,SHETL!AI102, SPTL!AI102, 'NGET TO (Base)'!AI102, 0, 'NGGT TO (Base)'!AI102, 0, East!AI102, London!AI102, 'North West'!AI102, 'West Midlands'!AI102, Northern!AI102, Scotland!AI102, Southern!AI102, 'Wales & West'!AI102) -> 31.0813896 | AJ102: =CHOOSE(m_identity,SHETL!AJ102, SPTL!AJ102, 'NGET TO (Base)'!AJ102, 0, 'NGGT TO (Base)'!AJ102, 0, East!AJ102, London!AJ102, 'North West'!AJ102, 'West Midlands'!AJ102, Northern!AJ102, Scotland!AJ102, Southern!AJ102, 'Wales & West'!AJ102) -> 36.00691264 | AK102: =CHOOSE(m_identity,SHETL!AK102, SPTL!AK102, 'NGET TO (Base)'!AK102, 0, 'NGGT TO (Base)'!AK102, 0, East!AK102, London!AK102, 'North West'!AK102, 'West Midlands'!AK102, Northern!AK102, Scotland!AK102, Southern!AK102, 'Wales & West'!AK102) -> 37.04532686 | AL102: =CHOOSE(m_identity,SHETL!AL102, SPTL!AL102, 'NGET TO (Base)'!AL102, 0, 'NGGT TO (Base)'!AL102, 0, East!AL102, London!AL102, 'North West'!AL102, 'West Midlands'!AL102, Northern!AL102, Scotland!AL102, Southern!AL102, 'Wales & West'!AL102) -> 37.57273954 | AM102: =CHOOSE(m_identity,SHETL!AM102, SPTL!AM102, 'NGET TO (Base)'!AM102, 0, 'NGGT TO (Base)'!AM102, 0, East!AM102, London!AM102, 'North West'!AM102, 'West Midlands'!AM102, Northern!AM102, Scotland!AM102, Southern!AM102, 'Wales & West'!AM102) -> 37.21833668 | AN102: =CHOOSE(m_identity,SHETL!AN102, SPTL!AN102, 'NGET TO (Base)'!AN102, 0, 'NGGT TO (Base)'!AN102, 0, East!AN102, London!AN102, 'North West'!AN102, 'West Midlands'!AN102, Northern!AN102, Scotland!AN102, Southern!AN102, 'Wales & West'!AN102) -> 35.66100866 | AO102: =CHOOSE(m_identity,SHETL!AO102, SPTL!AO102, 'NGET TO (Base)'!AO102, 0, 'NGGT TO (Base)'!AO102, 0, East!AO102, London!AO102, 'North West'!AO102, 'West Midlands'!AO102, Northern!AO102, Scotland!AO102, Southern!AO102, 'Wales & West'!AO102) -> 34.75191346
E103: Non-variant allowed non-load related capex - asset replacement | G103: £m 09/10 prices | AH103: =CHOOSE(m_identity,SHETL!AH103, SPTL!AH103, 'NGET TO (Base)'!AH103, 0, 'NGGT TO (Base)'!AH103, 0, East!AH103, London!AH103, 'North West'!AH103, 'West Midlands'!AH103, Northern!AH103, Scotland!AH103, Southern!AH103, 'Wales & West'!AH103) -> 0 | AI103: =CHOOSE(m_identity,SHETL!AI103, SPTL!AI103, 'NGET TO (Base)'!AI103, 0, 'NGGT TO (Base)'!AI103, 0, East!AI103, London!AI103, 'North West'!AI103, 'West Midlands'!AI103, Northern!AI103, Scotland!AI103, Southern!AI103, 'Wales & West'!AI103) -> 0 | AJ103: =CHOOSE(m_identity,SHETL!AJ103, SPTL!AJ103, 'NGET TO (Base)'!AJ103, 0, 'NGGT TO (Base)'!AJ103, 0, East!AJ103, London!AJ103, 'North West'!AJ103, 'West Midlands'!AJ103, Northern!AJ103, Scotland!AJ103, Southern!AJ103, 'Wales & West'!AJ103) -> 0 | AK103: =CHOOSE(m_identity,SHETL!AK103, SPTL!AK103, 'NGET TO (Base)'!AK103, 0, 'NGGT TO (Base)'!AK103, 0, East!AK103, London!AK103, 'North West'!AK103, 'West Midlands'!AK103, Northern!AK103, Scotland!AK103, Southern!AK103, 'Wales & West'!AK103) -> 0 | AL103: =CHOOSE(m_identity,SHETL!AL103, SPTL!AL103, 'NGET TO (Base)'!AL103, 0, 'NGGT TO (Base)'!AL103, 0, East!AL103, London!AL103, 'North West'!AL103, 'West Midlands'!AL103, Northern!AL103, Scotland!AL103, Southern!AL103, 'Wales & West'!AL103) -> 0 | AM103: =CHOOSE(m_identity,SHETL!AM103, SPTL!AM103, 'NGET TO (Base)'!AM103, 0, 'NGGT TO (Base)'!AM103, 0, East!AM103, London!AM103, 'North West'!AM103, 'West Midlands'!AM103, Northern!AM103, Scotland!AM103, Southern!AM103, 'Wales & West'!AM103) -> 0 | AN103: =CHOOSE(m_identity,SHETL!AN103, SPTL!AN103, 'NGET TO (Base)'!AN103, 0, 'NGGT TO (Base)'!AN103, 0, East!AN103, London!AN103, 'North West'!AN103, 'West Midlands'!AN103, Northern!AN103, Scotland!AN103, Southern!AN103, 'Wales & West'!AN103) -> 0 | AO103: =CHOOSE(m_identity,SHETL!AO103, SPTL!AO103, 'NGET TO (Base)'!AO103, 0, 'NGGT TO (Base)'!AO103, 0, East!AO103, London!AO103, 'North West'!AO103, 'West Midlands'!AO103, Northern!AO103, Scotland!AO103, Southern!AO103, 'Wales & West'!AO103) -> 0
E104: Non-variant allowed non-load related capex - other | G104: £m 09/10 prices | AH104: =CHOOSE(m_identity,SHETL!AH104, SPTL!AH104, 'NGET TO (Base)'!AH104, 0, 'NGGT TO (Base)'!AH104, 0, East!AH104, London!AH104, 'North West'!AH104, 'West Midlands'!AH104, Northern!AH104, Scotland!AH104, Southern!AH104, 'Wales & West'!AH104) -> 18.49916566 | AI104: =CHOOSE(m_identity,SHETL!AI104, SPTL!AI104, 'NGET TO (Base)'!AI104, 0, 'NGGT TO (Base)'!AI104, 0, East!AI104, London!AI104, 'North West'!AI104, 'West Midlands'!AI104, Northern!AI104, Scotland!AI104, Southern!AI104, 'Wales & West'!AI104) -> 18.53738237 | AJ104: =CHOOSE(m_identity,SHETL!AJ104, SPTL!AJ104, 'NGET TO (Base)'!AJ104, 0, 'NGGT TO (Base)'!AJ104, 0, East!AJ104, London!AJ104, 'North West'!AJ104, 'West Midlands'!AJ104, Northern!AJ104, Scotland!AJ104, Southern!AJ104, 'Wales & West'!AJ104) -> 15.70456572 | AK104: =CHOOSE(m_identity,SHETL!AK104, SPTL!AK104, 'NGET TO (Base)'!AK104, 0, 'NGGT TO (Base)'!AK104, 0, East!AK104, London!AK104, 'North West'!AK104, 'West Midlands'!AK104, Northern!AK104, Scotland!AK104, Southern!AK104, 'Wales & West'!AK104) -> 13.5582217 | AL104: =CHOOSE(m_identity,SHETL!AL104, SPTL!AL104, 'NGET TO (Base)'!AL104, 0, 'NGGT TO (Base)'!AL104, 0, East!AL104, London!AL104, 'North West'!AL104, 'West Midlands'!AL104, Northern!AL104, Scotland!AL104, Southern!AL104, 'Wales & West'!AL104) -> 11.91151495 | AM104: =CHOOSE(m_identity,SHETL!AM104, SPTL!AM104, 'NGET TO (Base)'!AM104, 0, 'NGGT TO (Base)'!AM104, 0, East!AM104, London!AM104, 'North West'!AM104, 'West Midlands'!AM104, Northern!AM104, Scotland!AM104, Southern!AM104, 'Wales & West'!AM104) -> 11.49209815 | AN104: =CHOOSE(m_identity,SHETL!AN104, SPTL!AN104, 'NGET TO (Base)'!AN104, 0, 'NGGT TO (Base)'!AN104, 0, East!AN104, London!AN104, 'North West'!AN104, 'West Midlands'!AN104, Northern!AN104, Scotland!AN104, Southern!AN104, 'Wales & West'!AN104) -> 14.58530637 | AO104: =CHOOSE(m_identity,SHETL!AO104, SPTL!AO104, 'NGET TO (Base)'!AO104, 0, 'NGGT TO (Base)'!AO104, 0, East!AO104, London!AO104, 'North West'!AO104, 'West Midlands'!AO104, Northern!AO104, Scotland!AO104, Southern!AO104, 'Wales & West'!AO104) -> 14.03972179
E105: Non-variant allowed controllable opex | G105: £m 09/10 prices | AH105: =CHOOSE(m_identity,SHETL!AH105, SPTL!AH105, 'NGET TO (Base)'!AH105, 0, 'NGGT TO (Base)'!AH105, 0, East!AH105, London!AH105, 'North West'!AH105, 'West Midlands'!AH105, Northern!AH105, Scotland!AH105, Southern!AH105, 'Wales & West'!AH105) -> 79.54565976 | AI105: =CHOOSE(m_identity,SHETL!AI105, SPTL!AI105, 'NGET TO (Base)'!AI105, 0, 'NGGT TO (Base)'!AI105, 0, East!AI105, London!AI105, 'North West'!AI105, 'West Midlands'!AI105, Northern!AI105, Scotland!AI105, Southern!AI105, 'Wales & West'!AI105) -> 80.39405512 | AJ105: =CHOOSE(m_identity,SHETL!AJ105, SPTL!AJ105, 'NGET TO (Base)'!AJ105, 0, 'NGGT TO (Base)'!AJ105, 0, East!AJ105, London!AJ105, 'North West'!AJ105, 'West Midlands'!AJ105, Northern!AJ105, Scotland!AJ105, Southern!AJ105, 'Wales & West'!AJ105) -> 81.56567815 | AK105: =CHOOSE(m_identity,SHETL!AK105, SPTL!AK105, 'NGET TO (Base)'!AK105, 0, 'NGGT TO (Base)'!AK105, 0, East!AK105, London!AK105, 'North West'!AK105, 'West Midlands'!AK105, Northern!AK105, Scotland!AK105, Southern!AK105, 'Wales & West'!AK105) -> 83.30965807 | AL105: =CHOOSE(m_identity,SHETL!AL105, SPTL!AL105, 'NGET TO (Base)'!AL105, 0, 'NGGT TO (Base)'!AL105, 0, East!AL105, London!AL105, 'North West'!AL105, 'West Midlands'!AL105, Northern!AL105, Scotland!AL105, Southern!AL105, 'Wales & West'!AL105) -> 79.14815914 | AM105: =CHOOSE(m_identity,SHETL!AM105, SPTL!AM105, 'NGET TO (Base)'!AM105, 0, 'NGGT TO (Base)'!AM105, 0, East!AM105, London!AM105, 'North West'!AM105, 'West Midlands'!AM105, Northern!AM105, Scotland!AM105, Southern!AM105, 'Wales & West'!AM105) -> 79.6974314 | AN105: =CHOOSE(m_identity,SHETL!AN105, SPTL!AN105, 'NGET TO (Base)'!AN105, 0, 'NGGT TO (Base)'!AN105, 0, East!AN105, London!AN105, 'North West'!AN105, 'West Midlands'!AN105, Northern!AN105, Scotland!AN105, Southern!AN105, 'Wales & West'!AN105) -> 81.13073649 | AO105: =CHOOSE(m_identity,SHETL!AO105, SPTL!AO105, 'NGET TO (Base)'!AO105, 0, 'NGGT TO (Base)'!AO105, 0, East!AO105, London!AO105, 'North West'!AO105, 'West Midlands'!AO105, Northern!AO105, Scotland!AO105, Southern!AO105, 'Wales & West'!AO105) -> 78.59172329
E106: Non-variant allowed repex | G106: £m 09/10 prices | AH106: =CHOOSE(m_identity,SHETL!AH106, SPTL!AH106, 'NGET TO (Base)'!AH106, 0, 'NGGT TO (Base)'!AH106, 0, East!AH106, London!AH106, 'North West'!AH106, 'West Midlands'!AH106, Northern!AH106, Scotland!AH106, Southern!AH106, 'Wales & West'!AH106) -> 58.84603199 | AI106: =CHOOSE(m_identity,SHETL!AI106, SPTL!AI106, 'NGET TO (Base)'!AI106, 0, 'NGGT TO (Base)'!AI106, 0, East!AI106, London!AI106, 'North West'!AI106, 'West Midlands'!AI106, Northern!AI106, Scotland!AI106, Southern!AI106, 'Wales & West'!AI106) -> 58.8544372 | AJ106: =CHOOSE(m_identity,SHETL!AJ106, SPTL!AJ106, 'NGET TO (Base)'!AJ106, 0, 'NGGT TO (Base)'!AJ106, 0, East!AJ106, London!AJ106, 'North West'!AJ106, 'West Midlands'!AJ106, Northern!AJ106, Scotland!AJ106, Southern!AJ106, 'Wales & West'!AJ106) -> 59.43858322 | AK106: =CHOOSE(m_identity,SHETL!AK106, SPTL!AK106, 'NGET TO (Base)'!AK106, 0, 'NGGT TO (Base)'!AK106, 0, East!AK106, London!AK106, 'North West'!AK106, 'West Midlands'!AK106, Northern!AK106, Scotland!AK106, Southern!AK106, 'Wales & West'!AK106) -> 58.99788901 | AL106: =CHOOSE(m_identity,SHETL!AL106, SPTL!AL106, 'NGET TO (Base)'!AL106, 0, 'NGGT TO (Base)'!AL106, 0, East!AL106, London!AL106, 'North West'!AL106, 'West Midlands'!AL106, Northern!AL106, Scotland!AL106, Southern!AL106, 'Wales & West'!AL106) -> 58.85186165 | AM106: =CHOOSE(m_identity,SHETL!AM106, SPTL!AM106, 'NGET TO (Base)'!AM106, 0, 'NGGT TO (Base)'!AM106, 0, East!AM106, London!AM106, 'North West'!AM106, 'West Midlands'!AM106, Northern!AM106, Scotland!AM106, Southern!AM106, 'Wales & West'!AM106) -> 58.84973706 | AN106: =CHOOSE(m_identity,SHETL!AN106, SPTL!AN106, 'NGET TO (Base)'!AN106, 0, 'NGGT TO (Base)'!AN106, 0, East!AN106, London!AN106, 'North West'!AN106, 'West Midlands'!AN106, Northern!AN106, Scotland!AN106, Southern!AN106, 'Wales & West'!AN106) -> 59.04659649 | AO106: =CHOOSE(m_identity,SHETL!AO106, SPTL!AO106, 'NGET TO (Base)'!AO106, 0, 'NGGT TO (Base)'!AO106, 0, East!AO106, London!AO106, 'North West'!AO106, 'West Midlands'!AO106, Northern!AO106, Scotland!AO106, Southern!AO106, 'Wales & West'!AO106) -> 57.85983054
E107: Non-variant allowed non-operational capex | G107: £m 09/10 prices | AH107: =CHOOSE(m_identity,SHETL!AH107, SPTL!AH107, 'NGET TO (Base)'!AH107, 0, 'NGGT TO (Base)'!AH107, 0, East!AH107, London!AH107, 'North West'!AH107, 'West Midlands'!AH107, Northern!AH107, Scotland!AH107, Southern!AH107, 'Wales & West'!AH107) -> 0 | AI107: =CHOOSE(m_identity,SHETL!AI107, SPTL!AI107, 'NGET TO (Base)'!AI107, 0, 'NGGT TO (Base)'!AI107, 0, East!AI107, London!AI107, 'North West'!AI107, 'West Midlands'!AI107, Northern!AI107, Scotland!AI107, Southern!AI107, 'Wales & West'!AI107) -> 0 | AJ107: =CHOOSE(m_identity,SHETL!AJ107, SPTL!AJ107, 'NGET TO (Base)'!AJ107, 0, 'NGGT TO (Base)'!AJ107, 0, East!AJ107, London!AJ107, 'North West'!AJ107, 'West Midlands'!AJ107, Northern!AJ107, Scotland!AJ107, Southern!AJ107, 'Wales & West'!AJ107) -> 0 | AK107: =CHOOSE(m_identity,SHETL!AK107, SPTL!AK107, 'NGET TO (Base)'!AK107, 0, 'NGGT TO (Base)'!AK107, 0, East!AK107, London!AK107, 'North West'!AK107, 'West Midlands'!AK107, Northern!AK107, Scotland!AK107, Southern!AK107, 'Wales & West'!AK107) -> 0 | AL107: =CHOOSE(m_identity,SHETL!AL107, SPTL!AL107, 'NGET TO (Base)'!AL107, 0, 'NGGT TO (Base)'!AL107, 0, East!AL107, London!AL107, 'North West'!AL107, 'West Midlands'!AL107, Northern!AL107, Scotland!AL107, Southern!AL107, 'Wales & West'!AL107) -> 0 | AM107: =CHOOSE(m_identity,SHETL!AM107, SPTL!AM107, 'NGET TO (Base)'!AM107, 0, 'NGGT TO (Base)'!AM107, 0, East!AM107, London!AM107, 'North West'!AM107, 'West Midlands'!AM107, Northern!AM107, Scotland!AM107, Southern!AM107, 'Wales & West'!AM107) -> 0 | AN107: =CHOOSE(m_identity,SHETL!AN107, SPTL!AN107, 'NGET TO (Base)'!AN107, 0, 'NGGT TO (Base)'!AN107, 0, East!AN107, London!AN107, 'North West'!AN107, 'West Midlands'!AN107, Northern!AN107, Scotland!AN107, Southern!AN107, 'Wales & West'!AN107) -> 0 | AO107: =CHOOSE(m_identity,SHETL!AO107, SPTL!AO107, 'NGET TO (Base)'!AO107, 0, 'NGGT TO (Base)'!AO107, 0, East!AO107, London!AO107, 'North West'!AO107, 'West Midlands'!AO107, Northern!AO107, Scotland!AO107, Southern!AO107, 'Wales & West'!AO107) -> 0
E108: Non-variant allowed totex contributions | G108: £m 09/10 prices | AH108: =CHOOSE(m_identity,SHETL!AH108, SPTL!AH108, 'NGET TO (Base)'!AH108, 0, 'NGGT TO (Base)'!AH108, 0, East!AH108, London!AH108, 'North West'!AH108, 'West Midlands'!AH108, Northern!AH108, Scotland!AH108, Southern!AH108, 'Wales & West'!AH108) -> -8.931980616 | AI108: =CHOOSE(m_identity,SHETL!AI108, SPTL!AI108, 'NGET TO (Base)'!AI108, 0, 'NGGT TO (Base)'!AI108, 0, East!AI108, London!AI108, 'North West'!AI108, 'West Midlands'!AI108, Northern!AI108, Scotland!AI108, Southern!AI108, 'Wales & West'!AI108) -> -8.841319402 | AJ108: =CHOOSE(m_identity,SHETL!AJ108, SPTL!AJ108, 'NGET TO (Base)'!AJ108, 0, 'NGGT TO (Base)'!AJ108, 0, East!AJ108, London!AJ108, 'North West'!AJ108, 'West Midlands'!AJ108, Northern!AJ108, Scotland!AJ108, Southern!AJ108, 'Wales & West'!AJ108) -> -8.829447277 | AK108: =CHOOSE(m_identity,SHETL!AK108, SPTL!AK108, 'NGET TO (Base)'!AK108, 0, 'NGGT TO (Base)'!AK108, 0, East!AK108, London!AK108, 'North West'!AK108, 'West Midlands'!AK108, Northern!AK108, Scotland!AK108, Southern!AK108, 'Wales & West'!AK108) -> -8.764057088 | AL108: =CHOOSE(m_identity,SHETL!AL108, SPTL!AL108, 'NGET TO (Base)'!AL108, 0, 'NGGT TO (Base)'!AL108, 0, East!AL108, London!AL108, 'North West'!AL108, 'West Midlands'!AL108, Northern!AL108, Scotland!AL108, Southern!AL108, 'Wales & West'!AL108) -> -8.70253091 | AM108: =CHOOSE(m_identity,SHETL!AM108, SPTL!AM108, 'NGET TO (Base)'!AM108, 0, 'NGGT TO (Base)'!AM108, 0, East!AM108, London!AM108, 'North West'!AM108, 'West Midlands'!AM108, Northern!AM108, Scotland!AM108, Southern!AM108, 'Wales & West'!AM108) -> -8.77031191 | AN108: =CHOOSE(m_identity,SHETL!AN108, SPTL!AN108, 'NGET TO (Base)'!AN108, 0, 'NGGT TO (Base)'!AN108, 0, East!AN108, London!AN108, 'North West'!AN108, 'West Midlands'!AN108, Northern!AN108, Scotland!AN108, Southern!AN108, 'Wales & West'!AN108) -> -8.671015218 | AO108: =CHOOSE(m_identity,SHETL!AO108, SPTL!AO108, 'NGET TO (Base)'!AO108, 0, 'NGGT TO (Base)'!AO108, 0, East!AO108, London!AO108, 'North West'!AO108, 'West Midlands'!AO108, Northern!AO108, Scotland!AO108, Southern!AO108, 'Wales & West'!AO108) -> -8.700748776
D110: Variant allowances
E112: Allowed Uncertain costs (Enhanced physical site security) | G112: £m 09/10 prices | AH112: =AH16 -> 0 | AI112: =AI16 -> 0 | AJ112: 0 | AK112: 0 | AL112: 0 | AM112: 0 | AN112: 0 | AO112: 0
E113: Uncertain costs (Enhanced physical site security) allocation to load related capex | G113: % | AH113: =CHOOSE(m_identity,SHETL!AH113, SPTL!AH113, 'NGET TO (Base)'!AH113, 0, 'NGGT TO (Base)'!AH113, 0, East!AH113, London!AH113, 'North West'!AH113, 'West Midlands'!AH113, Northern!AH113, Scotland!AH113, Southern!AH113, 'Wales & West'!AH113) -> 0 | AI113: =CHOOSE(m_identity,SHETL!AI113, SPTL!AI113, 'NGET TO (Base)'!AI113, 0, 'NGGT TO (Base)'!AI113, 0, East!AI113, London!AI113, 'North West'!AI113, 'West Midlands'!AI113, Northern!AI113, Scotland!AI113, Southern!AI113, 'Wales & West'!AI113) -> 0 | AJ113: =CHOOSE(m_identity,SHETL!AJ113, SPTL!AJ113, 'NGET TO (Base)'!AJ113, 0, 'NGGT TO (Base)'!AJ113, 0, East!AJ113, London!AJ113, 'North West'!AJ113, 'West Midlands'!AJ113, Northern!AJ113, Scotland!AJ113, Southern!AJ113, 'Wales & West'!AJ113) -> 0 | AK113: =CHOOSE(m_identity,SHETL!AK113, SPTL!AK113, 'NGET TO (Base)'!AK113, 0, 'NGGT TO (Base)'!AK113, 0, East!AK113, London!AK113, 'North West'!AK113, 'West Midlands'!AK113, Northern!AK113, Scotland!AK113, Southern!AK113, 'Wales & West'!AK113) -> 0 | AL113: =CHOOSE(m_identity,SHETL!AL113, SPTL!AL113, 'NGET TO (Base)'!AL113, 0, 'NGGT TO (Base)'!AL113, 0, East!AL113, London!AL113, 'North West'!AL113, 'West Midlands'!AL113, Northern!AL113, Scotland!AL113, Southern!AL113, 'Wales & West'!AL113) -> 0 | AM113: =CHOOSE(m_identity,SHETL!AM113, SPTL!AM113, 'NGET TO (Base)'!AM113, 0, 'NGGT TO (Base)'!AM113, 0, East!AM113, London!AM113, 'North West'!AM113, 'West Midlands'!AM113, Northern!AM113, Scotland!AM113, Southern!AM113, 'Wales & West'!AM113) -> 0 | AN113: =CHOOSE(m_identity,SHETL!AN113, SPTL!AN113, 'NGET TO (Base)'!AN113, 0, 'NGGT TO (Base)'!AN113, 0, East!AN113, London!AN113, 'North West'!AN113, 'West Midlands'!AN113, Northern!AN113, Scotland!AN113, Southern!AN113, 'Wales & West'!AN113) -> 0 | AO113: =CHOOSE(m_identity,SHETL!AO113, SPTL!AO113, 'NGET TO (Base)'!AO113, 0, 'NGGT TO (Base)'!AO113, 0, East!AO113, London!AO113, 'North West'!AO113, 'West Midlands'!AO113, Northern!AO113, Scotland!AO113, Southern!AO113, 'Wales & West'!AO113) -> 0
E114: Uncertain costs (Enhanced physical site security) allocation to non-load related capex - asset replacement | G114: % | AH114: =CHOOSE(m_identity,SHETL!AH114, SPTL!AH114, 'NGET TO (Base)'!AH114, 0, 'NGGT TO (Base)'!AH114, 0, East!AH114, London!AH114, 'North West'!AH114, 'West Midlands'!AH114, Northern!AH114, Scotland!AH114, Southern!AH114, 'Wales & West'!AH114) -> 0 | AI114: =CHOOSE(m_identity,SHETL!AI114, SPTL!AI114, 'NGET TO (Base)'!AI114, 0, 'NGGT TO (Base)'!AI114, 0, East!AI114, London!AI114, 'North West'!AI114, 'West Midlands'!AI114, Northern!AI114, Scotland!AI114, Southern!AI114, 'Wales & West'!AI114) -> 0 | AJ114: =CHOOSE(m_identity,SHETL!AJ114, SPTL!AJ114, 'NGET TO (Base)'!AJ114, 0, 'NGGT TO (Base)'!AJ114, 0, East!AJ114, London!AJ114, 'North West'!AJ114, 'West Midlands'!AJ114, Northern!AJ114, Scotland!AJ114, Southern!AJ114, 'Wales & West'!AJ114) -> 0 | AK114: =CHOOSE(m_identity,SHETL!AK114, SPTL!AK114, 'NGET TO (Base)'!AK114, 0, 'NGGT TO (Base)'!AK114, 0, East!AK114, London!AK114, 'North West'!AK114, 'West Midlands'!AK114, Northern!AK114, Scotland!AK114, Southern!AK114, 'Wales & West'!AK114) -> 0 | AL114: =CHOOSE(m_identity,SHETL!AL114, SPTL!AL114, 'NGET TO (Base)'!AL114, 0, 'NGGT TO (Base)'!AL114, 0, East!AL114, London!AL114, 'North West'!AL114, 'West Midlands'!AL114, Northern!AL114, Scotland!AL114, Southern!AL114, 'Wales & West'!AL114) -> 0 | AM114: =CHOOSE(m_identity,SHETL!AM114, SPTL!AM114, 'NGET TO (Base)'!AM114, 0, 'NGGT TO (Base)'!AM114, 0, East!AM114, London!AM114, 'North West'!AM114, 'West Midlands'!AM114, Northern!AM114, Scotland!AM114, Southern!AM114, 'Wales & West'!AM114) -> 0 | AN114: =CHOOSE(m_identity,SHETL!AN114, SPTL!AN114, 'NGET TO (Base)'!AN114, 0, 'NGGT TO (Base)'!AN114, 0, East!AN114, London!AN114, 'North West'!AN114, 'West Midlands'!AN114, Northern!AN114, Scotland!AN114, Southern!AN114, 'Wales & West'!AN114) -> 0 | AO114: =CHOOSE(m_identity,SHETL!AO114, SPTL!AO114, 'NGET TO (Base)'!AO114, 0, 'NGGT TO (Base)'!AO114, 0, East!AO114, London!AO114, 'North West'!AO114, 'West Midlands'!AO114, Northern!AO114, Scotland!AO114, Southern!AO114, 'Wales & West'!AO114) -> 0
E115: Uncertain costs (Enhanced physical site security) allocation to non-load related capex - other | G115: % | AH115: =CHOOSE(m_identity,SHETL!AH115, SPTL!AH115, 'NGET TO (Base)'!AH115, 0, 'NGGT TO (Base)'!AH115, 0, East!AH115, London!AH115, 'North West'!AH115, 'West Midlands'!AH115, Northern!AH115, Scotland!AH115, Southern!AH115, 'Wales & West'!AH115) -> 1 | AI115: =CHOOSE(m_identity,SHETL!AI115, SPTL!AI115, 'NGET TO (Base)'!AI115, 0, 'NGGT TO (Base)'!AI115, 0, East!AI115, London!AI115, 'North West'!AI115, 'West Midlands'!AI115, Northern!AI115, Scotland!AI115, Southern!AI115, 'Wales & West'!AI115) -> 1 | AJ115: =CHOOSE(m_identity,SHETL!AJ115, SPTL!AJ115, 'NGET TO (Base)'!AJ115, 0, 'NGGT TO (Base)'!AJ115, 0, East!AJ115, London!AJ115, 'North West'!AJ115, 'West Midlands'!AJ115, Northern!AJ115, Scotland!AJ115, Southern!AJ115, 'Wales & West'!AJ115) -> 1 | AK115: =CHOOSE(m_identity,SHETL!AK115, SPTL!AK115, 'NGET TO (Base)'!AK115, 0, 'NGGT TO (Base)'!AK115, 0, East!AK115, London!AK115, 'North West'!AK115, 'West Midlands'!AK115, Northern!AK115, Scotland!AK115, Southern!AK115, 'Wales & West'!AK115) -> 1 | AL115: =CHOOSE(m_identity,SHETL!AL115, SPTL!AL115, 'NGET TO (Base)'!AL115, 0, 'NGGT TO (Base)'!AL115, 0, East!AL115, London!AL115, 'North West'!AL115, 'West Midlands'!AL115, Northern!AL115, Scotland!AL115, Southern!AL115, 'Wales & West'!AL115) -> 1 | AM115: =CHOOSE(m_identity,SHETL!AM115, SPTL!AM115, 'NGET TO (Base)'!AM115, 0, 'NGGT TO (Base)'!AM115, 0, East!AM115, London!AM115, 'North West'!AM115, 'West Midlands'!AM115, Northern!AM115, Scotland!AM115, Southern!AM115, 'Wales & West'!AM115) -> 1 | AN115: =CHOOSE(m_identity,SHETL!AN115, SPTL!AN115, 'NGET TO (Base)'!AN115, 0, 'NGGT TO (Base)'!AN115, 0, East!AN115, London!AN115, 'North West'!AN115, 'West Midlands'!AN115, Northern!AN115, Scotland!AN115, Southern!AN115, 'Wales & West'!AN115) -> 1 | AO115: =CHOOSE(m_identity,SHETL!AO115, SPTL!AO115, 'NGET TO (Base)'!AO115, 0, 'NGGT TO (Base)'!AO115, 0, East!AO115, London!AO115, 'North West'!AO115, 'West Midlands'!AO115, Northern!AO115, Scotland!AO115, Southern!AO115, 'Wales & West'!AO115) -> 1
E116: Uncertain costs (Enhanced physical site security) allocation to controllable opex | G116: % | AH116: =CHOOSE(m_identity,SHETL!AH116, SPTL!AH116, 'NGET TO (Base)'!AH116, 0, 'NGGT TO (Base)'!AH116, 0, East!AH116, London!AH116, 'North West'!AH116, 'West Midlands'!AH116, Northern!AH116, Scotland!AH116, Southern!AH116, 'Wales & West'!AH116) -> 0 | AI116: =CHOOSE(m_identity,SHETL!AI116, SPTL!AI116, 'NGET TO (Base)'!AI116, 0, 'NGGT TO (Base)'!AI116, 0, East!AI116, London!AI116, 'North West'!AI116, 'West Midlands'!AI116, Northern!AI116, Scotland!AI116, Southern!AI116, 'Wales & West'!AI116) -> 0 | AJ116: =CHOOSE(m_identity,SHETL!AJ116, SPTL!AJ116, 'NGET TO (Base)'!AJ116, 0, 'NGGT TO (Base)'!AJ116, 0, East!AJ116, London!AJ116, 'North West'!AJ116, 'West Midlands'!AJ116, Northern!AJ116, Scotland!AJ116, Southern!AJ116, 'Wales & West'!AJ116) -> 0 | AK116: =CHOOSE(m_identity,SHETL!AK116, SPTL!AK116, 'NGET TO (Base)'!AK116, 0, 'NGGT TO (Base)'!AK116, 0, East!AK116, London!AK116, 'North West'!AK116, 'West Midlands'!AK116, Northern!AK116, Scotland!AK116, Southern!AK116, 'Wales & West'!AK116) -> 0 | AL116: =CHOOSE(m_identity,SHETL!AL116, SPTL!AL116, 'NGET TO (Base)'!AL116, 0, 'NGGT TO (Base)'!AL116, 0, East!AL116, London!AL116, 'North West'!AL116, 'West Midlands'!AL116, Northern!AL116, Scotland!AL116, Southern!AL116, 'Wales & West'!AL116) -> 0 | AM116: =CHOOSE(m_identity,SHETL!AM116, SPTL!AM116, 'NGET TO (Base)'!AM116, 0, 'NGGT TO (Base)'!AM116, 0, East!AM116, London!AM116, 'North West'!AM116, 'West Midlands'!AM116, Northern!AM116, Scotland!AM116, Southern!AM116, 'Wales & West'!AM116) -> 0 | AN116: =CHOOSE(m_identity,SHETL!AN116, SPTL!AN116, 'NGET TO (Base)'!AN116, 0, 'NGGT TO (Base)'!AN116, 0, East!AN116, London!AN116, 'North West'!AN116, 'West Midlands'!AN116, Northern!AN116, Scotland!AN116, Southern!AN116, 'Wales & West'!AN116) -> 0 | AO116: =CHOOSE(m_identity,SHETL!AO116, SPTL!AO116, 'NGET TO (Base)'!AO116, 0, 'NGGT TO (Base)'!AO116, 0, East!AO116, London!AO116, 'North West'!AO116, 'West Midlands'!AO116, Northern!AO116, Scotland!AO116, Southern!AO116, 'Wales & West'!AO116) -> 0
E117: Uncertain costs (Enhanced physical site security) allocation to repex | G117: % | AH117: =CHOOSE(m_identity,SHETL!AH117, SPTL!AH117, 'NGET TO (Base)'!AH117, 0, 'NGGT TO (Base)'!AH117, 0, East!AH117, London!AH117, 'North West'!AH117, 'West Midlands'!AH117, Northern!AH117, Scotland!AH117, Southern!AH117, 'Wales & West'!AH117) -> 0 | AI117: =CHOOSE(m_identity,SHETL!AI117, SPTL!AI117, 'NGET TO (Base)'!AI117, 0, 'NGGT TO (Base)'!AI117, 0, East!AI117, London!AI117, 'North West'!AI117, 'West Midlands'!AI117, Northern!AI117, Scotland!AI117, Southern!AI117, 'Wales & West'!AI117) -> 0 | AJ117: =CHOOSE(m_identity,SHETL!AJ117, SPTL!AJ117, 'NGET TO (Base)'!AJ117, 0, 'NGGT TO (Base)'!AJ117, 0, East!AJ117, London!AJ117, 'North West'!AJ117, 'West Midlands'!AJ117, Northern!AJ117, Scotland!AJ117, Southern!AJ117, 'Wales & West'!AJ117) -> 0 | AK117: =CHOOSE(m_identity,SHETL!AK117, SPTL!AK117, 'NGET TO (Base)'!AK117, 0, 'NGGT TO (Base)'!AK117, 0, East!AK117, London!AK117, 'North West'!AK117, 'West Midlands'!AK117, Northern!AK117, Scotland!AK117, Southern!AK117, 'Wales & West'!AK117) -> 0 | AL117: =CHOOSE(m_identity,SHETL!AL117, SPTL!AL117, 'NGET TO (Base)'!AL117, 0, 'NGGT TO (Base)'!AL117, 0, East!AL117, London!AL117, 'North West'!AL117, 'West Midlands'!AL117, Northern!AL117, Scotland!AL117, Southern!AL117, 'Wales & West'!AL117) -> 0 | AM117: =CHOOSE(m_identity,SHETL!AM117, SPTL!AM117, 'NGET TO (Base)'!AM117, 0, 'NGGT TO (Base)'!AM117, 0, East!AM117, London!AM117, 'North West'!AM117, 'West Midlands'!AM117, Northern!AM117, Scotland!AM117, Southern!AM117, 'Wales & West'!AM117) -> 0 | AN117: =CHOOSE(m_identity,SHETL!AN117, SPTL!AN117, 'NGET TO (Base)'!AN117, 0, 'NGGT TO (Base)'!AN117, 0, East!AN117, London!AN117, 'North West'!AN117, 'West Midlands'!AN117, Northern!AN117, Scotland!AN117, Southern!AN117, 'Wales & West'!AN117) -> 0 | AO117: =CHOOSE(m_identity,SHETL!AO117, SPTL!AO117, 'NGET TO (Base)'!AO117, 0, 'NGGT TO (Base)'!AO117, 0, East!AO117, London!AO117, 'North West'!AO117, 'West Midlands'!AO117, Northern!AO117, Scotland!AO117, Southern!AO117, 'Wales & West'!AO117) -> 0
E118: Uncertain costs (Enhanced physical site security) allocation to non-operational capex | G118: % | AH118: =CHOOSE(m_identity,SHETL!AH118, SPTL!AH118, 'NGET TO (Base)'!AH118, 0, 'NGGT TO (Base)'!AH118, 0, East!AH118, London!AH118, 'North West'!AH118, 'West Midlands'!AH118, Northern!AH118, Scotland!AH118, Southern!AH118, 'Wales & West'!AH118) -> 0 | AI118: =CHOOSE(m_identity,SHETL!AI118, SPTL!AI118, 'NGET TO (Base)'!AI118, 0, 'NGGT TO (Base)'!AI118, 0, East!AI118, London!AI118, 'North West'!AI118, 'West Midlands'!AI118, Northern!AI118, Scotland!AI118, Southern!AI118, 'Wales & West'!AI118) -> 0 | AJ118: =CHOOSE(m_identity,SHETL!AJ118, SPTL!AJ118, 'NGET TO (Base)'!AJ118, 0, 'NGGT TO (Base)'!AJ118, 0, East!AJ118, London!AJ118, 'North West'!AJ118, 'West Midlands'!AJ118, Northern!AJ118, Scotland!AJ118, Southern!AJ118, 'Wales & West'!AJ118) -> 0 | AK118: =CHOOSE(m_identity,SHETL!AK118, SPTL!AK118, 'NGET TO (Base)'!AK118, 0, 'NGGT TO (Base)'!AK118, 0, East!AK118, London!AK118, 'North West'!AK118, 'West Midlands'!AK118, Northern!AK118, Scotland!AK118, Southern!AK118, 'Wales & West'!AK118) -> 0 | AL118: =CHOOSE(m_identity,SHETL!AL118, SPTL!AL118, 'NGET TO (Base)'!AL118, 0, 'NGGT TO (Base)'!AL118, 0, East!AL118, London!AL118, 'North West'!AL118, 'West Midlands'!AL118, Northern!AL118, Scotland!AL118, Southern!AL118, 'Wales & West'!AL118) -> 0 | AM118: =CHOOSE(m_identity,SHETL!AM118, SPTL!AM118, 'NGET TO (Base)'!AM118, 0, 'NGGT TO (Base)'!AM118, 0, East!AM118, London!AM118, 'North West'!AM118, 'West Midlands'!AM118, Northern!AM118, Scotland!AM118, Southern!AM118, 'Wales & West'!AM118) -> 0 | AN118: =CHOOSE(m_identity,SHETL!AN118, SPTL!AN118, 'NGET TO (Base)'!AN118, 0, 'NGGT TO (Base)'!AN118, 0, East!AN118, London!AN118, 'North West'!AN118, 'West Midlands'!AN118, Northern!AN118, Scotland!AN118, Southern!AN118, 'Wales & West'!AN118) -> 0 | AO118: =CHOOSE(m_identity,SHETL!AO118, SPTL!AO118, 'NGET TO (Base)'!AO118, 0, 'NGGT TO (Base)'!AO118, 0, East!AO118, London!AO118, 'North West'!AO118, 'West Midlands'!AO118, Northern!AO118, Scotland!AO118, Southern!AO118, 'Wales & West'!AO118) -> 0
E119: Uncertain costs (Enhanced physical site security) allocation to totex contributions | G119: % | AH119: =CHOOSE(m_identity,SHETL!AH119, SPTL!AH119, 'NGET TO (Base)'!AH119, 0, 'NGGT TO (Base)'!AH119, 0, East!AH119, London!AH119, 'North West'!AH119, 'West Midlands'!AH119, Northern!AH119, Scotland!AH119, Southern!AH119, 'Wales & West'!AH119) -> 0 | AI119: =CHOOSE(m_identity,SHETL!AI119, SPTL!AI119, 'NGET TO (Base)'!AI119, 0, 'NGGT TO (Base)'!AI119, 0, East!AI119, London!AI119, 'North West'!AI119, 'West Midlands'!AI119, Northern!AI119, Scotland!AI119, Southern!AI119, 'Wales & West'!AI119) -> 0 | AJ119: =CHOOSE(m_identity,SHETL!AJ119, SPTL!AJ119, 'NGET TO (Base)'!AJ119, 0, 'NGGT TO (Base)'!AJ119, 0, East!AJ119, London!AJ119, 'North West'!AJ119, 'West Midlands'!AJ119, Northern!AJ119, Scotland!AJ119, Southern!AJ119, 'Wales & West'!AJ119) -> 0 | AK119: =CHOOSE(m_identity,SHETL!AK119, SPTL!AK119, 'NGET TO (Base)'!AK119, 0, 'NGGT TO (Base)'!AK119, 0, East!AK119, London!AK119, 'North West'!AK119, 'West Midlands'!AK119, Northern!AK119, Scotland!AK119, Southern!AK119, 'Wales & West'!AK119) -> 0 | AL119: =CHOOSE(m_identity,SHETL!AL119, SPTL!AL119, 'NGET TO (Base)'!AL119, 0, 'NGGT TO (Base)'!AL119, 0, East!AL119, London!AL119, 'North West'!AL119, 'West Midlands'!AL119, Northern!AL119, Scotland!AL119, Southern!AL119, 'Wales & West'!AL119) -> 0 | AM119: =CHOOSE(m_identity,SHETL!AM119, SPTL!AM119, 'NGET TO (Base)'!AM119, 0, 'NGGT TO (Base)'!AM119, 0, East!AM119, London!AM119, 'North West'!AM119, 'West Midlands'!AM119, Northern!AM119, Scotland!AM119, Southern!AM119, 'Wales & West'!AM119) -> 0 | AN119: =CHOOSE(m_identity,SHETL!AN119, SPTL!AN119, 'NGET TO (Base)'!AN119, 0, 'NGGT TO (Base)'!AN119, 0, East!AN119, London!AN119, 'North West'!AN119, 'West Midlands'!AN119, Northern!AN119, Scotland!AN119, Southern!AN119, 'Wales & West'!AN119) -> 0 | AO119: =CHOOSE(m_identity,SHETL!AO119, SPTL!AO119, 'NGET TO (Base)'!AO119, 0, 'NGGT TO (Base)'!AO119, 0, East!AO119, London!AO119, 'North West'!AO119, 'West Midlands'!AO119, Northern!AO119, Scotland!AO119, Southern!AO119, 'Wales & West'!AO119) -> 0
E121: Allowed GD Uncertain costs (Street works) | G121: £m 09/10 prices | AH121: =AH17 -> 0.3623272563 | AI121: 0.376816516 | AJ121: 0.3903856523 | AK121: 0.4047100704 | AL121: 0.4192186463 | AM121: 0.4345811681 | AN121: 0.4508543196 | AO121: 0.4680988173
E122: Uncertain costs (Street works) allocation to load related capex | G122: % | AH122: =CHOOSE(m_identity,SHETL!AH122, SPTL!AH122, 'NGET TO (Base)'!AH122, 0, 'NGGT TO (Base)'!AH122, 0, East!AH122, London!AH122, 'North West'!AH122, 'West Midlands'!AH122, Northern!AH122, Scotland!AH122, Southern!AH122, 'Wales & West'!AH122) -> 0.2207906196 | AI122: =CHOOSE(m_identity,SHETL!AI122, SPTL!AI122, 'NGET TO (Base)'!AI122, 0, 'NGGT TO (Base)'!AI122, 0, East!AI122, London!AI122, 'North West'!AI122, 'West Midlands'!AI122, Northern!AI122, Scotland!AI122, Southern!AI122, 'Wales & West'!AI122) -> 0.2207906196 | AJ122: =CHOOSE(m_identity,SHETL!AJ122, SPTL!AJ122, 'NGET TO (Base)'!AJ122, 0, 'NGGT TO (Base)'!AJ122, 0, East!AJ122, London!AJ122, 'North West'!AJ122, 'West Midlands'!AJ122, Northern!AJ122, Scotland!AJ122, Southern!AJ122, 'Wales & West'!AJ122) -> 0.2207906196 | AK122: =CHOOSE(m_identity,SHETL!AK122, SPTL!AK122, 'NGET TO (Base)'!AK122, 0, 'NGGT TO (Base)'!AK122, 0, East!AK122, London!AK122, 'North West'!AK122, 'West Midlands'!AK122, Northern!AK122, Scotland!AK122, Southern!AK122, 'Wales & West'!AK122) -> 0.2207906196 | AL122: =CHOOSE(m_identity,SHETL!AL122, SPTL!AL122, 'NGET TO (Base)'!AL122, 0, 'NGGT TO (Base)'!AL122, 0, East!AL122, London!AL122, 'North West'!AL122, 'West Midlands'!AL122, Northern!AL122, Scotland!AL122, Southern!AL122, 'Wales & West'!AL122) -> 0.2207906196 | AM122: =CHOOSE(m_identity,SHETL!AM122, SPTL!AM122, 'NGET TO (Base)'!AM122, 0, 'NGGT TO (Base)'!AM122, 0, East!AM122, London!AM122, 'North West'!AM122, 'West Midlands'!AM122, Northern!AM122, Scotland!AM122, Southern!AM122, 'Wales & West'!AM122) -> 0.2207906196 | AN122: =CHOOSE(m_identity,SHETL!AN122, SPTL!AN122, 'NGET TO (Base)'!AN122, 0, 'NGGT TO (Base)'!AN122, 0, East!AN122, London!AN122, 'North West'!AN122, 'West Midlands'!AN122, Northern!AN122, Scotland!AN122, Southern!AN122, 'Wales & West'!AN122) -> 0.2207906196 | AO122: =CHOOSE(m_identity,SHETL!AO122, SPTL!AO122, 'NGET TO (Base)'!AO122, 0, 'NGGT TO (Base)'!AO122, 0, East!AO122, London!AO122, 'North West'!AO122, 'West Midlands'!AO122, Northern!AO122, Scotland!AO122, Southern!AO122, 'Wales & West'!AO122) -> 0.2207906196
E123: Uncertain costs (Street works) allocation to non-load related capex - asset replacement | G123: % | AH123: =CHOOSE(m_identity,SHETL!AH123, SPTL!AH123, 'NGET TO (Base)'!AH123, 0, 'NGGT TO (Base)'!AH123, 0, East!AH123, London!AH123, 'North West'!AH123, 'West Midlands'!AH123, Northern!AH123, Scotland!AH123, Southern!AH123, 'Wales & West'!AH123) -> 0 | AI123: =CHOOSE(m_identity,SHETL!AI123, SPTL!AI123, 'NGET TO (Base)'!AI123, 0, 'NGGT TO (Base)'!AI123, 0, East!AI123, London!AI123, 'North West'!AI123, 'West Midlands'!AI123, Northern!AI123, Scotland!AI123, Southern!AI123, 'Wales & West'!AI123) -> 0 | AJ123: =CHOOSE(m_identity,SHETL!AJ123, SPTL!AJ123, 'NGET TO (Base)'!AJ123, 0, 'NGGT TO (Base)'!AJ123, 0, East!AJ123, London!AJ123, 'North West'!AJ123, 'West Midlands'!AJ123, Northern!AJ123, Scotland!AJ123, Southern!AJ123, 'Wales & West'!AJ123) -> 0 | AK123: =CHOOSE(m_identity,SHETL!AK123, SPTL!AK123, 'NGET TO (Base)'!AK123, 0, 'NGGT TO (Base)'!AK123, 0, East!AK123, London!AK123, 'North West'!AK123, 'West Midlands'!AK123, Northern!AK123, Scotland!AK123, Southern!AK123, 'Wales & West'!AK123) -> 0 | AL123: =CHOOSE(m_identity,SHETL!AL123, SPTL!AL123, 'NGET TO (Base)'!AL123, 0, 'NGGT TO (Base)'!AL123, 0, East!AL123, London!AL123, 'North West'!AL123, 'West Midlands'!AL123, Northern!AL123, Scotland!AL123, Southern!AL123, 'Wales & West'!AL123) -> 0 | AM123: =CHOOSE(m_identity,SHETL!AM123, SPTL!AM123, 'NGET TO (Base)'!AM123, 0, 'NGGT TO (Base)'!AM123, 0, East!AM123, London!AM123, 'North West'!AM123, 'West Midlands'!AM123, Northern!AM123, Scotland!AM123, Southern!AM123, 'Wales & West'!AM123) -> 0 | AN123: =CHOOSE(m_identity,SHETL!AN123, SPTL!AN123, 'NGET TO (Base)'!AN123, 0, 'NGGT TO (Base)'!AN123, 0, East!AN123, London!AN123, 'North West'!AN123, 'West Midlands'!AN123, Northern!AN123, Scotland!AN123, Southern!AN123, 'Wales & West'!AN123) -> 0 | AO123: =CHOOSE(m_identity,SHETL!AO123, SPTL!AO123, 'NGET TO (Base)'!AO123, 0, 'NGGT TO (Base)'!AO123, 0, East!AO123, London!AO123, 'North West'!AO123, 'West Midlands'!AO123, Northern!AO123, Scotland!AO123, Southern!AO123, 'Wales & West'!AO123) -> 0
E124: Uncertain costs (Street works) allocation to non-load related capex - other | G124: % | AH124: =CHOOSE(m_identity,SHETL!AH124, SPTL!AH124, 'NGET TO (Base)'!AH124, 0, 'NGGT TO (Base)'!AH124, 0, East!AH124, London!AH124, 'North West'!AH124, 'West Midlands'!AH124, Northern!AH124, Scotland!AH124, Southern!AH124, 'Wales & West'!AH124) -> 0 | AI124: =CHOOSE(m_identity,SHETL!AI124, SPTL!AI124, 'NGET TO (Base)'!AI124, 0, 'NGGT TO (Base)'!AI124, 0, East!AI124, London!AI124, 'North West'!AI124, 'West Midlands'!AI124, Northern!AI124, Scotland!AI124, Southern!AI124, 'Wales & West'!AI124) -> 0 | AJ124: =CHOOSE(m_identity,SHETL!AJ124, SPTL!AJ124, 'NGET TO (Base)'!AJ124, 0, 'NGGT TO (Base)'!AJ124, 0, East!AJ124, London!AJ124, 'North West'!AJ124, 'West Midlands'!AJ124, Northern!AJ124, Scotland!AJ124, Southern!AJ124, 'Wales & West'!AJ124) -> 0 | AK124: =CHOOSE(m_identity,SHETL!AK124, SPTL!AK124, 'NGET TO (Base)'!AK124, 0, 'NGGT TO (Base)'!AK124, 0, East!AK124, London!AK124, 'North West'!AK124, 'West Midlands'!AK124, Northern!AK124, Scotland!AK124, Southern!AK124, 'Wales & West'!AK124) -> 0 | AL124: =CHOOSE(m_identity,SHETL!AL124, SPTL!AL124, 'NGET TO (Base)'!AL124, 0, 'NGGT TO (Base)'!AL124, 0, East!AL124, London!AL124, 'North West'!AL124, 'West Midlands'!AL124, Northern!AL124, Scotland!AL124, Southern!AL124, 'Wales & West'!AL124) -> 0 | AM124: =CHOOSE(m_identity,SHETL!AM124, SPTL!AM124, 'NGET TO (Base)'!AM124, 0, 'NGGT TO (Base)'!AM124, 0, East!AM124, London!AM124, 'North West'!AM124, 'West Midlands'!AM124, Northern!AM124, Scotland!AM124, Southern!AM124, 'Wales & West'!AM124) -> 0 | AN124: =CHOOSE(m_identity,SHETL!AN124, SPTL!AN124, 'NGET TO (Base)'!AN124, 0, 'NGGT TO (Base)'!AN124, 0, East!AN124, London!AN124, 'North West'!AN124, 'West Midlands'!AN124, Northern!AN124, Scotland!AN124, Southern!AN124, 'Wales & West'!AN124) -> 0 | AO124: =CHOOSE(m_identity,SHETL!AO124, SPTL!AO124, 'NGET TO (Base)'!AO124, 0, 'NGGT TO (Base)'!AO124, 0, East!AO124, London!AO124, 'North West'!AO124, 'West Midlands'!AO124, Northern!AO124, Scotland!AO124, Southern!AO124, 'Wales & West'!AO124) -> 0
E125: Uncertain costs (Street works) allocation to controllable opex | G125: % | AH125: =CHOOSE(m_identity,SHETL!AH125, SPTL!AH125, 'NGET TO (Base)'!AH125, 0, 'NGGT TO (Base)'!AH125, 0, East!AH125, London!AH125, 'North West'!AH125, 'West Midlands'!AH125, Northern!AH125, Scotland!AH125, Southern!AH125, 'Wales & West'!AH125) -> 0.6337983266 | AI125: =CHOOSE(m_identity,SHETL!AI125, SPTL!AI125, 'NGET TO (Base)'!AI125, 0, 'NGGT TO (Base)'!AI125, 0, East!AI125, London!AI125, 'North West'!AI125, 'West Midlands'!AI125, Northern!AI125, Scotland!AI125, Southern!AI125, 'Wales & West'!AI125) -> 0.6337983266 | AJ125: =CHOOSE(m_identity,SHETL!AJ125, SPTL!AJ125, 'NGET TO (Base)'!AJ125, 0, 'NGGT TO (Base)'!AJ125, 0, East!AJ125, London!AJ125, 'North West'!AJ125, 'West Midlands'!AJ125, Northern!AJ125, Scotland!AJ125, Southern!AJ125, 'Wales & West'!AJ125) -> 0.6337983266 | AK125: =CHOOSE(m_identity,SHETL!AK125, SPTL!AK125, 'NGET TO (Base)'!AK125, 0, 'NGGT TO (Base)'!AK125, 0, East!AK125, London!AK125, 'North West'!AK125, 'West Midlands'!AK125, Northern!AK125, Scotland!AK125, Southern!AK125, 'Wales & West'!AK125) -> 0.6337983266 | AL125: =CHOOSE(m_identity,SHETL!AL125, SPTL!AL125, 'NGET TO (Base)'!AL125, 0, 'NGGT TO (Base)'!AL125, 0, East!AL125, London!AL125, 'North West'!AL125, 'West Midlands'!AL125, Northern!AL125, Scotland!AL125, Southern!AL125, 'Wales & West'!AL125) -> 0.6337983266 | AM125: =CHOOSE(m_identity,SHETL!AM125, SPTL!AM125, 'NGET TO (Base)'!AM125, 0, 'NGGT TO (Base)'!AM125, 0, East!AM125, London!AM125, 'North West'!AM125, 'West Midlands'!AM125, Northern!AM125, Scotland!AM125, Southern!AM125, 'Wales & West'!AM125) -> 0.6337983266 | AN125: =CHOOSE(m_identity,SHETL!AN125, SPTL!AN125, 'NGET TO (Base)'!AN125, 0, 'NGGT TO (Base)'!AN125, 0, East!AN125, London!AN125, 'North West'!AN125, 'West Midlands'!AN125, Northern!AN125, Scotland!AN125, Southern!AN125, 'Wales & West'!AN125) -> 0.6337983266 | AO125: =CHOOSE(m_identity,SHETL!AO125, SPTL!AO125, 'NGET TO (Base)'!AO125, 0, 'NGGT TO (Base)'!AO125, 0, East!AO125, London!AO125, 'North West'!AO125, 'West Midlands'!AO125, Northern!AO125, Scotland!AO125, Southern!AO125, 'Wales & West'!AO125) -> 0.6337983266
E126: Uncertain costs (Street works) allocation to repex | G126: % | AH126: =CHOOSE(m_identity,SHETL!AH126, SPTL!AH126, 'NGET TO (Base)'!AH126, 0, 'NGGT TO (Base)'!AH126, 0, East!AH126, London!AH126, 'North West'!AH126, 'West Midlands'!AH126, Northern!AH126, Scotland!AH126, Southern!AH126, 'Wales & West'!AH126) -> 0.1454110539 | AI126: =CHOOSE(m_identity,SHETL!AI126, SPTL!AI126, 'NGET TO (Base)'!AI126, 0, 'NGGT TO (Base)'!AI126, 0, East!AI126, London!AI126, 'North West'!AI126, 'West Midlands'!AI126, Northern!AI126, Scotland!AI126, Southern!AI126, 'Wales & West'!AI126) -> 0.1454110539 | AJ126: =CHOOSE(m_identity,SHETL!AJ126, SPTL!AJ126, 'NGET TO (Base)'!AJ126, 0, 'NGGT TO (Base)'!AJ126, 0, East!AJ126, London!AJ126, 'North West'!AJ126, 'West Midlands'!AJ126, Northern!AJ126, Scotland!AJ126, Southern!AJ126, 'Wales & West'!AJ126) -> 0.1454110539 | AK126: =CHOOSE(m_identity,SHETL!AK126, SPTL!AK126, 'NGET TO (Base)'!AK126, 0, 'NGGT TO (Base)'!AK126, 0, East!AK126, London!AK126, 'North West'!AK126, 'West Midlands'!AK126, Northern!AK126, Scotland!AK126, Southern!AK126, 'Wales & West'!AK126) -> 0.1454110539 | AL126: =CHOOSE(m_identity,SHETL!AL126, SPTL!AL126, 'NGET TO (Base)'!AL126, 0, 'NGGT TO (Base)'!AL126, 0, East!AL126, London!AL126, 'North West'!AL126, 'West Midlands'!AL126, Northern!AL126, Scotland!AL126, Southern!AL126, 'Wales & West'!AL126) -> 0.1454110539 | AM126: =CHOOSE(m_identity,SHETL!AM126, SPTL!AM126, 'NGET TO (Base)'!AM126, 0, 'NGGT TO (Base)'!AM126, 0, East!AM126, London!AM126, 'North West'!AM126, 'West Midlands'!AM126, Northern!AM126, Scotland!AM126, Southern!AM126, 'Wales & West'!AM126) -> 0.1454110539 | AN126: =CHOOSE(m_identity,SHETL!AN126, SPTL!AN126, 'NGET TO (Base)'!AN126, 0, 'NGGT TO (Base)'!AN126, 0, East!AN126, London!AN126, 'North West'!AN126, 'West Midlands'!AN126, Northern!AN126, Scotland!AN126, Southern!AN126, 'Wales & West'!AN126) -> 0.1454110539 | AO126: =CHOOSE(m_identity,SHETL!AO126, SPTL!AO126, 'NGET TO (Base)'!AO126, 0, 'NGGT TO (Base)'!AO126, 0, East!AO126, London!AO126, 'North West'!AO126, 'West Midlands'!AO126, Northern!AO126, Scotland!AO126, Southern!AO126, 'Wales & West'!AO126) -> 0.1454110539
E127: Uncertain costs (Street works) allocation to non-operational capex | G127: % | AH127: =CHOOSE(m_identity,SHETL!AH127, SPTL!AH127, 'NGET TO (Base)'!AH127, 0, 'NGGT TO (Base)'!AH127, 0, East!AH127, London!AH127, 'North West'!AH127, 'West Midlands'!AH127, Northern!AH127, Scotland!AH127, Southern!AH127, 'Wales & West'!AH127) -> 0 | AI127: =CHOOSE(m_identity,SHETL!AI127, SPTL!AI127, 'NGET TO (Base)'!AI127, 0, 'NGGT TO (Base)'!AI127, 0, East!AI127, London!AI127, 'North West'!AI127, 'West Midlands'!AI127, Northern!AI127, Scotland!AI127, Southern!AI127, 'Wales & West'!AI127) -> 0 | AJ127: =CHOOSE(m_identity,SHETL!AJ127, SPTL!AJ127, 'NGET TO (Base)'!AJ127, 0, 'NGGT TO (Base)'!AJ127, 0, East!AJ127, London!AJ127, 'North West'!AJ127, 'West Midlands'!AJ127, Northern!AJ127, Scotland!AJ127, Southern!AJ127, 'Wales & West'!AJ127) -> 0 | AK127: =CHOOSE(m_identity,SHETL!AK127, SPTL!AK127, 'NGET TO (Base)'!AK127, 0, 'NGGT TO (Base)'!AK127, 0, East!AK127, London!AK127, 'North West'!AK127, 'West Midlands'!AK127, Northern!AK127, Scotland!AK127, Southern!AK127, 'Wales & West'!AK127) -> 0 | AL127: =CHOOSE(m_identity,SHETL!AL127, SPTL!AL127, 'NGET TO (Base)'!AL127, 0, 'NGGT TO (Base)'!AL127, 0, East!AL127, London!AL127, 'North West'!AL127, 'West Midlands'!AL127, Northern!AL127, Scotland!AL127, Southern!AL127, 'Wales & West'!AL127) -> 0 | AM127: =CHOOSE(m_identity,SHETL!AM127, SPTL!AM127, 'NGET TO (Base)'!AM127, 0, 'NGGT TO (Base)'!AM127, 0, East!AM127, London!AM127, 'North West'!AM127, 'West Midlands'!AM127, Northern!AM127, Scotland!AM127, Southern!AM127, 'Wales & West'!AM127) -> 0 | AN127: =CHOOSE(m_identity,SHETL!AN127, SPTL!AN127, 'NGET TO (Base)'!AN127, 0, 'NGGT TO (Base)'!AN127, 0, East!AN127, London!AN127, 'North West'!AN127, 'West Midlands'!AN127, Northern!AN127, Scotland!AN127, Southern!AN127, 'Wales & West'!AN127) -> 0 | AO127: =CHOOSE(m_identity,SHETL!AO127, SPTL!AO127, 'NGET TO (Base)'!AO127, 0, 'NGGT TO (Base)'!AO127, 0, East!AO127, London!AO127, 'North West'!AO127, 'West Midlands'!AO127, Northern!AO127, Scotland!AO127, Southern!AO127, 'Wales & West'!AO127) -> 0
E128: Uncertain costs (Street works) allocation to totex contributions | G128: % | AH128: =CHOOSE(m_identity,SHETL!AH128, SPTL!AH128, 'NGET TO (Base)'!AH128, 0, 'NGGT TO (Base)'!AH128, 0, East!AH128, London!AH128, 'North West'!AH128, 'West Midlands'!AH128, Northern!AH128, Scotland!AH128, Southern!AH128, 'Wales & West'!AH128) -> 0 | AI128: =CHOOSE(m_identity,SHETL!AI128, SPTL!AI128, 'NGET TO (Base)'!AI128, 0, 'NGGT TO (Base)'!AI128, 0, East!AI128, London!AI128, 'North West'!AI128, 'West Midlands'!AI128, Northern!AI128, Scotland!AI128, Southern!AI128, 'Wales & West'!AI128) -> 0 | AJ128: =CHOOSE(m_identity,SHETL!AJ128, SPTL!AJ128, 'NGET TO (Base)'!AJ128, 0, 'NGGT TO (Base)'!AJ128, 0, East!AJ128, London!AJ128, 'North West'!AJ128, 'West Midlands'!AJ128, Northern!AJ128, Scotland!AJ128, Southern!AJ128, 'Wales & West'!AJ128) -> 0 | AK128: =CHOOSE(m_identity,SHETL!AK128, SPTL!AK128, 'NGET TO (Base)'!AK128, 0, 'NGGT TO (Base)'!AK128, 0, East!AK128, London!AK128, 'North West'!AK128, 'West Midlands'!AK128, Northern!AK128, Scotland!AK128, Southern!AK128, 'Wales & West'!AK128) -> 0 | AL128: =CHOOSE(m_identity,SHETL!AL128, SPTL!AL128, 'NGET TO (Base)'!AL128, 0, 'NGGT TO (Base)'!AL128, 0, East!AL128, London!AL128, 'North West'!AL128, 'West Midlands'!AL128, Northern!AL128, Scotland!AL128, Southern!AL128, 'Wales & West'!AL128) -> 0 | AM128: =CHOOSE(m_identity,SHETL!AM128, SPTL!AM128, 'NGET TO (Base)'!AM128, 0, 'NGGT TO (Base)'!AM128, 0, East!AM128, London!AM128, 'North West'!AM128, 'West Midlands'!AM128, Northern!AM128, Scotland!AM128, Southern!AM128, 'Wales & West'!AM128) -> 0 | AN128: =CHOOSE(m_identity,SHETL!AN128, SPTL!AN128, 'NGET TO (Base)'!AN128, 0, 'NGGT TO (Base)'!AN128, 0, East!AN128, London!AN128, 'North West'!AN128, 'West Midlands'!AN128, Northern!AN128, Scotland!AN128, Southern!AN128, 'Wales & West'!AN128) -> 0 | AO128: =CHOOSE(m_identity,SHETL!AO128, SPTL!AO128, 'NGET TO (Base)'!AO128, 0, 'NGGT TO (Base)'!AO128, 0, East!AO128, London!AO128, 'North West'!AO128, 'West Midlands'!AO128, Northern!AO128, Scotland!AO128, Southern!AO128, 'Wales & West'!AO128) -> 0
E130: Allowed GD Uncertain costs (Connection charging boundary) | G130: £m 09/10 prices | AH130: =AH18 -> 0 | AI130: =AI18 -> 0 | AJ130: 0 | AK130: 0 | AL130: 0 | AM130: 0 | AN130: 0 | AO130: 0
E131: Uncertain costs (Connection charging boundary) allocation to load related capex | G131: % | AH131: =CHOOSE(m_identity,SHETL!AH131, SPTL!AH131, 'NGET TO (Base)'!AH131, 0, 'NGGT TO (Base)'!AH131, 0, East!AH131, London!AH131, 'North West'!AH131, 'West Midlands'!AH131, Northern!AH131, Scotland!AH131, Southern!AH131, 'Wales & West'!AH131) -> 0 | AI131: =CHOOSE(m_identity,SHETL!AI131, SPTL!AI131, 'NGET TO (Base)'!AI131, 0, 'NGGT TO (Base)'!AI131, 0, East!AI131, London!AI131, 'North West'!AI131, 'West Midlands'!AI131, Northern!AI131, Scotland!AI131, Southern!AI131, 'Wales & West'!AI131) -> 0 | AJ131: =CHOOSE(m_identity,SHETL!AJ131, SPTL!AJ131, 'NGET TO (Base)'!AJ131, 0, 'NGGT TO (Base)'!AJ131, 0, East!AJ131, London!AJ131, 'North West'!AJ131, 'West Midlands'!AJ131, Northern!AJ131, Scotland!AJ131, Southern!AJ131, 'Wales & West'!AJ131) -> 0 | AK131: =CHOOSE(m_identity,SHETL!AK131, SPTL!AK131, 'NGET TO (Base)'!AK131, 0, 'NGGT TO (Base)'!AK131, 0, East!AK131, London!AK131, 'North West'!AK131, 'West Midlands'!AK131, Northern!AK131, Scotland!AK131, Southern!AK131, 'Wales & West'!AK131) -> 0 | AL131: =CHOOSE(m_identity,SHETL!AL131, SPTL!AL131, 'NGET TO (Base)'!AL131, 0, 'NGGT TO (Base)'!AL131, 0, East!AL131, London!AL131, 'North West'!AL131, 'West Midlands'!AL131, Northern!AL131, Scotland!AL131, Southern!AL131, 'Wales & West'!AL131) -> 0 | AM131: =CHOOSE(m_identity,SHETL!AM131, SPTL!AM131, 'NGET TO (Base)'!AM131, 0, 'NGGT TO (Base)'!AM131, 0, East!AM131, London!AM131, 'North West'!AM131, 'West Midlands'!AM131, Northern!AM131, Scotland!AM131, Southern!AM131, 'Wales & West'!AM131) -> 0 | AN131: =CHOOSE(m_identity,SHETL!AN131, SPTL!AN131, 'NGET TO (Base)'!AN131, 0, 'NGGT TO (Base)'!AN131, 0, East!AN131, London!AN131, 'North West'!AN131, 'West Midlands'!AN131, Northern!AN131, Scotland!AN131, Southern!AN131, 'Wales & West'!AN131) -> 0 | AO131: =CHOOSE(m_identity,SHETL!AO131, SPTL!AO131, 'NGET TO (Base)'!AO131, 0, 'NGGT TO (Base)'!AO131, 0, East!AO131, London!AO131, 'North West'!AO131, 'West Midlands'!AO131, Northern!AO131, Scotland!AO131, Southern!AO131, 'Wales & West'!AO131) -> 0
E132: Uncertain costs (Connection charging boundary) allocation to non-load related capex - asset replacement | G132: % | AH132: =CHOOSE(m_identity,SHETL!AH132, SPTL!AH132, 'NGET TO (Base)'!AH132, 0, 'NGGT TO (Base)'!AH132, 0, East!AH132, London!AH132, 'North West'!AH132, 'West Midlands'!AH132, Northern!AH132, Scotland!AH132, Southern!AH132, 'Wales & West'!AH132) -> 0 | AI132: =CHOOSE(m_identity,SHETL!AI132, SPTL!AI132, 'NGET TO (Base)'!AI132, 0, 'NGGT TO (Base)'!AI132, 0, East!AI132, London!AI132, 'North West'!AI132, 'West Midlands'!AI132, Northern!AI132, Scotland!AI132, Southern!AI132, 'Wales & West'!AI132) -> 0 | AJ132: =CHOOSE(m_identity,SHETL!AJ132, SPTL!AJ132, 'NGET TO (Base)'!AJ132, 0, 'NGGT TO (Base)'!AJ132, 0, East!AJ132, London!AJ132, 'North West'!AJ132, 'West Midlands'!AJ132, Northern!AJ132, Scotland!AJ132, Southern!AJ132, 'Wales & West'!AJ132) -> 0 | AK132: =CHOOSE(m_identity,SHETL!AK132, SPTL!AK132, 'NGET TO (Base)'!AK132, 0, 'NGGT TO (Base)'!AK132, 0, East!AK132, London!AK132, 'North West'!AK132, 'West Midlands'!AK132, Northern!AK132, Scotland!AK132, Southern!AK132, 'Wales & West'!AK132) -> 0 | AL132: =CHOOSE(m_identity,SHETL!AL132, SPTL!AL132, 'NGET TO (Base)'!AL132, 0, 'NGGT TO (Base)'!AL132, 0, East!AL132, London!AL132, 'North West'!AL132, 'West Midlands'!AL132, Northern!AL132, Scotland!AL132, Southern!AL132, 'Wales & West'!AL132) -> 0 | AM132: =CHOOSE(m_identity,SHETL!AM132, SPTL!AM132, 'NGET TO (Base)'!AM132, 0, 'NGGT TO (Base)'!AM132, 0, East!AM132, London!AM132, 'North West'!AM132, 'West Midlands'!AM132, Northern!AM132, Scotland!AM132, Southern!AM132, 'Wales & West'!AM132) -> 0 | AN132: =CHOOSE(m_identity,SHETL!AN132, SPTL!AN132, 'NGET TO (Base)'!AN132, 0, 'NGGT TO (Base)'!AN132, 0, East!AN132, London!AN132, 'North West'!AN132, 'West Midlands'!AN132, Northern!AN132, Scotland!AN132, Southern!AN132, 'Wales & West'!AN132) -> 0 | AO132: =CHOOSE(m_identity,SHETL!AO132, SPTL!AO132, 'NGET TO (Base)'!AO132, 0, 'NGGT TO (Base)'!AO132, 0, East!AO132, London!AO132, 'North West'!AO132, 'West Midlands'!AO132, Northern!AO132, Scotland!AO132, Southern!AO132, 'Wales & West'!AO132) -> 0
E133: Uncertain costs (Connection charging boundary) allocation to non-load related capex - other | G133: % | AH133: =CHOOSE(m_identity,SHETL!AH133, SPTL!AH133, 'NGET TO (Base)'!AH133, 0, 'NGGT TO (Base)'!AH133, 0, East!AH133, London!AH133, 'North West'!AH133, 'West Midlands'!AH133, Northern!AH133, Scotland!AH133, Southern!AH133, 'Wales & West'!AH133) -> 1 | AI133: =CHOOSE(m_identity,SHETL!AI133, SPTL!AI133, 'NGET TO (Base)'!AI133, 0, 'NGGT TO (Base)'!AI133, 0, East!AI133, London!AI133, 'North West'!AI133, 'West Midlands'!AI133, Northern!AI133, Scotland!AI133, Southern!AI133, 'Wales & West'!AI133) -> 1 | AJ133: =CHOOSE(m_identity,SHETL!AJ133, SPTL!AJ133, 'NGET TO (Base)'!AJ133, 0, 'NGGT TO (Base)'!AJ133, 0, East!AJ133, London!AJ133, 'North West'!AJ133, 'West Midlands'!AJ133, Northern!AJ133, Scotland!AJ133, Southern!AJ133, 'Wales & West'!AJ133) -> 1 | AK133: =CHOOSE(m_identity,SHETL!AK133, SPTL!AK133, 'NGET TO (Base)'!AK133, 0, 'NGGT TO (Base)'!AK133, 0, East!AK133, London!AK133, 'North West'!AK133, 'West Midlands'!AK133, Northern!AK133, Scotland!AK133, Southern!AK133, 'Wales & West'!AK133) -> 1 | AL133: =CHOOSE(m_identity,SHETL!AL133, SPTL!AL133, 'NGET TO (Base)'!AL133, 0, 'NGGT TO (Base)'!AL133, 0, East!AL133, London!AL133, 'North West'!AL133, 'West Midlands'!AL133, Northern!AL133, Scotland!AL133, Southern!AL133, 'Wales & West'!AL133) -> 1 | AM133: =CHOOSE(m_identity,SHETL!AM133, SPTL!AM133, 'NGET TO (Base)'!AM133, 0, 'NGGT TO (Base)'!AM133, 0, East!AM133, London!AM133, 'North West'!AM133, 'West Midlands'!AM133, Northern!AM133, Scotland!AM133, Southern!AM133, 'Wales & West'!AM133) -> 1 | AN133: =CHOOSE(m_identity,SHETL!AN133, SPTL!AN133, 'NGET TO (Base)'!AN133, 0, 'NGGT TO (Base)'!AN133, 0, East!AN133, London!AN133, 'North West'!AN133, 'West Midlands'!AN133, Northern!AN133, Scotland!AN133, Southern!AN133, 'Wales & West'!AN133) -> 1 | AO133: =CHOOSE(m_identity,SHETL!AO133, SPTL!AO133, 'NGET TO (Base)'!AO133, 0, 'NGGT TO (Base)'!AO133, 0, East!AO133, London!AO133, 'North West'!AO133, 'West Midlands'!AO133, Northern!AO133, Scotland!AO133, Southern!AO133, 'Wales & West'!AO133) -> 1
E134: Uncertain costs (Connection charging boundary) allocation to controllable opex | G134: % | AH134: =CHOOSE(m_identity,SHETL!AH134, SPTL!AH134, 'NGET TO (Base)'!AH134, 0, 'NGGT TO (Base)'!AH134, 0, East!AH134, London!AH134, 'North West'!AH134, 'West Midlands'!AH134, Northern!AH134, Scotland!AH134, Southern!AH134, 'Wales & West'!AH134) -> 0 | AI134: =CHOOSE(m_identity,SHETL!AI134, SPTL!AI134, 'NGET TO (Base)'!AI134, 0, 'NGGT TO (Base)'!AI134, 0, East!AI134, London!AI134, 'North West'!AI134, 'West Midlands'!AI134, Northern!AI134, Scotland!AI134, Southern!AI134, 'Wales & West'!AI134) -> 0 | AJ134: =CHOOSE(m_identity,SHETL!AJ134, SPTL!AJ134, 'NGET TO (Base)'!AJ134, 0, 'NGGT TO (Base)'!AJ134, 0, East!AJ134, London!AJ134, 'North West'!AJ134, 'West Midlands'!AJ134, Northern!AJ134, Scotland!AJ134, Southern!AJ134, 'Wales & West'!AJ134) -> 0 | AK134: =CHOOSE(m_identity,SHETL!AK134, SPTL!AK134, 'NGET TO (Base)'!AK134, 0, 'NGGT TO (Base)'!AK134, 0, East!AK134, London!AK134, 'North West'!AK134, 'West Midlands'!AK134, Northern!AK134, Scotland!AK134, Southern!AK134, 'Wales & West'!AK134) -> 0 | AL134: =CHOOSE(m_identity,SHETL!AL134, SPTL!AL134, 'NGET TO (Base)'!AL134, 0, 'NGGT TO (Base)'!AL134, 0, East!AL134, London!AL134, 'North West'!AL134, 'West Midlands'!AL134, Northern!AL134, Scotland!AL134, Southern!AL134, 'Wales & West'!AL134) -> 0 | AM134: =CHOOSE(m_identity,SHETL!AM134, SPTL!AM134, 'NGET TO (Base)'!AM134, 0, 'NGGT TO (Base)'!AM134, 0, East!AM134, London!AM134, 'North West'!AM134, 'West Midlands'!AM134, Northern!AM134, Scotland!AM134, Southern!AM134, 'Wales & West'!AM134) -> 0 | AN134: =CHOOSE(m_identity,SHETL!AN134, SPTL!AN134, 'NGET TO (Base)'!AN134, 0, 'NGGT TO (Base)'!AN134, 0, East!AN134, London!AN134, 'North West'!AN134, 'West Midlands'!AN134, Northern!AN134, Scotland!AN134, Southern!AN134, 'Wales & West'!AN134) -> 0 | AO134: =CHOOSE(m_identity,SHETL!AO134, SPTL!AO134, 'NGET TO (Base)'!AO134, 0, 'NGGT TO (Base)'!AO134, 0, East!AO134, London!AO134, 'North West'!AO134, 'West Midlands'!AO134, Northern!AO134, Scotland!AO134, Southern!AO134, 'Wales & West'!AO134) -> 0
E135: Uncertain costs (Connection charging boundary) allocation to repex | G135: % | AH135: =CHOOSE(m_identity,SHETL!AH135, SPTL!AH135, 'NGET TO (Base)'!AH135, 0, 'NGGT TO (Base)'!AH135, 0, East!AH135, London!AH135, 'North West'!AH135, 'West Midlands'!AH135, Northern!AH135, Scotland!AH135, Southern!AH135, 'Wales & West'!AH135) -> 0 | AI135: =CHOOSE(m_identity,SHETL!AI135, SPTL!AI135, 'NGET TO (Base)'!AI135, 0, 'NGGT TO (Base)'!AI135, 0, East!AI135, London!AI135, 'North West'!AI135, 'West Midlands'!AI135, Northern!AI135, Scotland!AI135, Southern!AI135, 'Wales & West'!AI135) -> 0 | AJ135: =CHOOSE(m_identity,SHETL!AJ135, SPTL!AJ135, 'NGET TO (Base)'!AJ135, 0, 'NGGT TO (Base)'!AJ135, 0, East!AJ135, London!AJ135, 'North West'!AJ135, 'West Midlands'!AJ135, Northern!AJ135, Scotland!AJ135, Southern!AJ135, 'Wales & West'!AJ135) -> 0 | AK135: =CHOOSE(m_identity,SHETL!AK135, SPTL!AK135, 'NGET TO (Base)'!AK135, 0, 'NGGT TO (Base)'!AK135, 0, East!AK135, London!AK135, 'North West'!AK135, 'West Midlands'!AK135, Northern!AK135, Scotland!AK135, Southern!AK135, 'Wales & West'!AK135) -> 0 | AL135: =CHOOSE(m_identity,SHETL!AL135, SPTL!AL135, 'NGET TO (Base)'!AL135, 0, 'NGGT TO (Base)'!AL135, 0, East!AL135, London!AL135, 'North West'!AL135, 'West Midlands'!AL135, Northern!AL135, Scotland!AL135, Southern!AL135, 'Wales & West'!AL135) -> 0 | AM135: =CHOOSE(m_identity,SHETL!AM135, SPTL!AM135, 'NGET TO (Base)'!AM135, 0, 'NGGT TO (Base)'!AM135, 0, East!AM135, London!AM135, 'North West'!AM135, 'West Midlands'!AM135, Northern!AM135, Scotland!AM135, Southern!AM135, 'Wales & West'!AM135) -> 0 | AN135: =CHOOSE(m_identity,SHETL!AN135, SPTL!AN135, 'NGET TO (Base)'!AN135, 0, 'NGGT TO (Base)'!AN135, 0, East!AN135, London!AN135, 'North West'!AN135, 'West Midlands'!AN135, Northern!AN135, Scotland!AN135, Southern!AN135, 'Wales & West'!AN135) -> 0 | AO135: =CHOOSE(m_identity,SHETL!AO135, SPTL!AO135, 'NGET TO (Base)'!AO135, 0, 'NGGT TO (Base)'!AO135, 0, East!AO135, London!AO135, 'North West'!AO135, 'West Midlands'!AO135, Northern!AO135, Scotland!AO135, Southern!AO135, 'Wales & West'!AO135) -> 0
E136: Uncertain costs (Connection charging boundary) allocation to non-operational capex | G136: % | AH136: =CHOOSE(m_identity,SHETL!AH136, SPTL!AH136, 'NGET TO (Base)'!AH136, 0, 'NGGT TO (Base)'!AH136, 0, East!AH136, London!AH136, 'North West'!AH136, 'West Midlands'!AH136, Northern!AH136, Scotland!AH136, Southern!AH136, 'Wales & West'!AH136) -> 0 | AI136: =CHOOSE(m_identity,SHETL!AI136, SPTL!AI136, 'NGET TO (Base)'!AI136, 0, 'NGGT TO (Base)'!AI136, 0, East!AI136, London!AI136, 'North West'!AI136, 'West Midlands'!AI136, Northern!AI136, Scotland!AI136, Southern!AI136, 'Wales & West'!AI136) -> 0 | AJ136: =CHOOSE(m_identity,SHETL!AJ136, SPTL!AJ136, 'NGET TO (Base)'!AJ136, 0, 'NGGT TO (Base)'!AJ136, 0, East!AJ136, London!AJ136, 'North West'!AJ136, 'West Midlands'!AJ136, Northern!AJ136, Scotland!AJ136, Southern!AJ136, 'Wales & West'!AJ136) -> 0 | AK136: =CHOOSE(m_identity,SHETL!AK136, SPTL!AK136, 'NGET TO (Base)'!AK136, 0, 'NGGT TO (Base)'!AK136, 0, East!AK136, London!AK136, 'North West'!AK136, 'West Midlands'!AK136, Northern!AK136, Scotland!AK136, Southern!AK136, 'Wales & West'!AK136) -> 0 | AL136: =CHOOSE(m_identity,SHETL!AL136, SPTL!AL136, 'NGET TO (Base)'!AL136, 0, 'NGGT TO (Base)'!AL136, 0, East!AL136, London!AL136, 'North West'!AL136, 'West Midlands'!AL136, Northern!AL136, Scotland!AL136, Southern!AL136, 'Wales & West'!AL136) -> 0 | AM136: =CHOOSE(m_identity,SHETL!AM136, SPTL!AM136, 'NGET TO (Base)'!AM136, 0, 'NGGT TO (Base)'!AM136, 0, East!AM136, London!AM136, 'North West'!AM136, 'West Midlands'!AM136, Northern!AM136, Scotland!AM136, Southern!AM136, 'Wales & West'!AM136) -> 0 | AN136: =CHOOSE(m_identity,SHETL!AN136, SPTL!AN136, 'NGET TO (Base)'!AN136, 0, 'NGGT TO (Base)'!AN136, 0, East!AN136, London!AN136, 'North West'!AN136, 'West Midlands'!AN136, Northern!AN136, Scotland!AN136, Southern!AN136, 'Wales & West'!AN136) -> 0 | AO136: =CHOOSE(m_identity,SHETL!AO136, SPTL!AO136, 'NGET TO (Base)'!AO136, 0, 'NGGT TO (Base)'!AO136, 0, East!AO136, London!AO136, 'North West'!AO136, 'West Midlands'!AO136, Northern!AO136, Scotland!AO136, Southern!AO136, 'Wales & West'!AO136) -> 0
E137: Uncertain costs (Connection charging boundary) allocation to totex contributions | G137: % | AH137: =CHOOSE(m_identity,SHETL!AH137, SPTL!AH137, 'NGET TO (Base)'!AH137, 0, 'NGGT TO (Base)'!AH137, 0, East!AH137, London!AH137, 'North West'!AH137, 'West Midlands'!AH137, Northern!AH137, Scotland!AH137, Southern!AH137, 'Wales & West'!AH137) -> 0 | AI137: =CHOOSE(m_identity,SHETL!AI137, SPTL!AI137, 'NGET TO (Base)'!AI137, 0, 'NGGT TO (Base)'!AI137, 0, East!AI137, London!AI137, 'North West'!AI137, 'West Midlands'!AI137, Northern!AI137, Scotland!AI137, Southern!AI137, 'Wales & West'!AI137) -> 0 | AJ137: =CHOOSE(m_identity,SHETL!AJ137, SPTL!AJ137, 'NGET TO (Base)'!AJ137, 0, 'NGGT TO (Base)'!AJ137, 0, East!AJ137, London!AJ137, 'North West'!AJ137, 'West Midlands'!AJ137, Northern!AJ137, Scotland!AJ137, Southern!AJ137, 'Wales & West'!AJ137) -> 0 | AK137: =CHOOSE(m_identity,SHETL!AK137, SPTL!AK137, 'NGET TO (Base)'!AK137, 0, 'NGGT TO (Base)'!AK137, 0, East!AK137, London!AK137, 'North West'!AK137, 'West Midlands'!AK137, Northern!AK137, Scotland!AK137, Southern!AK137, 'Wales & West'!AK137) -> 0 | AL137: =CHOOSE(m_identity,SHETL!AL137, SPTL!AL137, 'NGET TO (Base)'!AL137, 0, 'NGGT TO (Base)'!AL137, 0, East!AL137, London!AL137, 'North West'!AL137, 'West Midlands'!AL137, Northern!AL137, Scotland!AL137, Southern!AL137, 'Wales & West'!AL137) -> 0 | AM137: =CHOOSE(m_identity,SHETL!AM137, SPTL!AM137, 'NGET TO (Base)'!AM137, 0, 'NGGT TO (Base)'!AM137, 0, East!AM137, London!AM137, 'North West'!AM137, 'West Midlands'!AM137, Northern!AM137, Scotland!AM137, Southern!AM137, 'Wales & West'!AM137) -> 0 | AN137: =CHOOSE(m_identity,SHETL!AN137, SPTL!AN137, 'NGET TO (Base)'!AN137, 0, 'NGGT TO (Base)'!AN137, 0, East!AN137, London!AN137, 'North West'!AN137, 'West Midlands'!AN137, Northern!AN137, Scotland!AN137, Southern!AN137, 'Wales & West'!AN137) -> 0 | AO137: =CHOOSE(m_identity,SHETL!AO137, SPTL!AO137, 'NGET TO (Base)'!AO137, 0, 'NGGT TO (Base)'!AO137, 0, East!AO137, London!AO137, 'North West'!AO137, 'West Midlands'!AO137, Northern!AO137, Scotland!AO137, Southern!AO137, 'Wales & West'!AO137) -> 0
E139: Allowed GD Uncertain costs (Review of the fuel poor network extension scheme) | G139: £m 09/10 prices | AH139: =AH19 -> 1.334497073 | AI139: =AI19 -> 1.334497073 | AJ139: 1.321152103 | AK139: 1.307940582 | AL139: 1.026865518 | AM139: 1.016596863 | AN139: 1.006430894 | AO139: 0.996366585
E140: Uncertain costs (Review of the fuel poor network extension scheme) allocation to load related capex | G140: % | AH140: =CHOOSE(m_identity,SHETL!AH140, SPTL!AH140, 'NGET TO (Base)'!AH140, 0, 'NGGT TO (Base)'!AH140, 0, East!AH140, London!AH140, 'North West'!AH140, 'West Midlands'!AH140, Northern!AH140, Scotland!AH140, Southern!AH140, 'Wales & West'!AH140) -> 1 | AI140: =CHOOSE(m_identity,SHETL!AI140, SPTL!AI140, 'NGET TO (Base)'!AI140, 0, 'NGGT TO (Base)'!AI140, 0, East!AI140, London!AI140, 'North West'!AI140, 'West Midlands'!AI140, Northern!AI140, Scotland!AI140, Southern!AI140, 'Wales & West'!AI140) -> 1 | AJ140: =CHOOSE(m_identity,SHETL!AJ140, SPTL!AJ140, 'NGET TO (Base)'!AJ140, 0, 'NGGT TO (Base)'!AJ140, 0, East!AJ140, London!AJ140, 'North West'!AJ140, 'West Midlands'!AJ140, Northern!AJ140, Scotland!AJ140, Southern!AJ140, 'Wales & West'!AJ140) -> 1 | AK140: =CHOOSE(m_identity,SHETL!AK140, SPTL!AK140, 'NGET TO (Base)'!AK140, 0, 'NGGT TO (Base)'!AK140, 0, East!AK140, London!AK140, 'North West'!AK140, 'West Midlands'!AK140, Northern!AK140, Scotland!AK140, Southern!AK140, 'Wales & West'!AK140) -> 1 | AL140: =CHOOSE(m_identity,SHETL!AL140, SPTL!AL140, 'NGET TO (Base)'!AL140, 0, 'NGGT TO (Base)'!AL140, 0, East!AL140, London!AL140, 'North West'!AL140, 'West Midlands'!AL140, Northern!AL140, Scotland!AL140, Southern!AL140, 'Wales & West'!AL140) -> 1 | AM140: =CHOOSE(m_identity,SHETL!AM140, SPTL!AM140, 'NGET TO (Base)'!AM140, 0, 'NGGT TO (Base)'!AM140, 0, East!AM140, London!AM140, 'North West'!AM140, 'West Midlands'!AM140, Northern!AM140, Scotland!AM140, Southern!AM140, 'Wales & West'!AM140) -> 1 | AN140: =CHOOSE(m_identity,SHETL!AN140, SPTL!AN140, 'NGET TO (Base)'!AN140, 0, 'NGGT TO (Base)'!AN140, 0, East!AN140, London!AN140, 'North West'!AN140, 'West Midlands'!AN140, Northern!AN140, Scotland!AN140, Southern!AN140, 'Wales & West'!AN140) -> 1 | AO140: =CHOOSE(m_identity,SHETL!AO140, SPTL!AO140, 'NGET TO (Base)'!AO140, 0, 'NGGT TO (Base)'!AO140, 0, East!AO140, London!AO140, 'North West'!AO140, 'West Midlands'!AO140, Northern!AO140, Scotland!AO140, Southern!AO140, 'Wales & West'!AO140) -> 1
E141: Uncertain costs (Review of the fuel poor network extension scheme) allocation to non-load related capex - asset replacement | G141: % | AH141: =CHOOSE(m_identity,SHETL!AH141, SPTL!AH141, 'NGET TO (Base)'!AH141, 0, 'NGGT TO (Base)'!AH141, 0, East!AH141, London!AH141, 'North West'!AH141, 'West Midlands'!AH141, Northern!AH141, Scotland!AH141, Southern!AH141, 'Wales & West'!AH141) -> 0 | AI141: =CHOOSE(m_identity,SHETL!AI141, SPTL!AI141, 'NGET TO (Base)'!AI141, 0, 'NGGT TO (Base)'!AI141, 0, East!AI141, London!AI141, 'North West'!AI141, 'West Midlands'!AI141, Northern!AI141, Scotland!AI141, Southern!AI141, 'Wales & West'!AI141) -> 0 | AJ141: =CHOOSE(m_identity,SHETL!AJ141, SPTL!AJ141, 'NGET TO (Base)'!AJ141, 0, 'NGGT TO (Base)'!AJ141, 0, East!AJ141, London!AJ141, 'North West'!AJ141, 'West Midlands'!AJ141, Northern!AJ141, Scotland!AJ141, Southern!AJ141, 'Wales & West'!AJ141) -> 0 | AK141: =CHOOSE(m_identity,SHETL!AK141, SPTL!AK141, 'NGET TO (Base)'!AK141, 0, 'NGGT TO (Base)'!AK141, 0, East!AK141, London!AK141, 'North West'!AK141, 'West Midlands'!AK141, Northern!AK141, Scotland!AK141, Southern!AK141, 'Wales & West'!AK141) -> 0 | AL141: =CHOOSE(m_identity,SHETL!AL141, SPTL!AL141, 'NGET TO (Base)'!AL141, 0, 'NGGT TO (Base)'!AL141, 0, East!AL141, London!AL141, 'North West'!AL141, 'West Midlands'!AL141, Northern!AL141, Scotland!AL141, Southern!AL141, 'Wales & West'!AL141) -> 0 | AM141: =CHOOSE(m_identity,SHETL!AM141, SPTL!AM141, 'NGET TO (Base)'!AM141, 0, 'NGGT TO (Base)'!AM141, 0, East!AM141, London!AM141, 'North West'!AM141, 'West Midlands'!AM141, Northern!AM141, Scotland!AM141, Southern!AM141, 'Wales & West'!AM141) -> 0 | AN141: =CHOOSE(m_identity,SHETL!AN141, SPTL!AN141, 'NGET TO (Base)'!AN141, 0, 'NGGT TO (Base)'!AN141, 0, East!AN141, London!AN141, 'North West'!AN141, 'West Midlands'!AN141, Northern!AN141, Scotland!AN141, Southern!AN141, 'Wales & West'!AN141) -> 0 | AO141: =CHOOSE(m_identity,SHETL!AO141, SPTL!AO141, 'NGET TO (Base)'!AO141, 0, 'NGGT TO (Base)'!AO141, 0, East!AO141, London!AO141, 'North West'!AO141, 'West Midlands'!AO141, Northern!AO141, Scotland!AO141, Southern!AO141, 'Wales & West'!AO141) -> 0
E142: Uncertain costs (Review of the fuel poor network extension scheme) allocation to non-load related capex - other | G142: % | AH142: =CHOOSE(m_identity,SHETL!AH142, SPTL!AH142, 'NGET TO (Base)'!AH142, 0, 'NGGT TO (Base)'!AH142, 0, East!AH142, London!AH142, 'North West'!AH142, 'West Midlands'!AH142, Northern!AH142, Scotland!AH142, Southern!AH142, 'Wales & West'!AH142) -> 0 | AI142: =CHOOSE(m_identity,SHETL!AI142, SPTL!AI142, 'NGET TO (Base)'!AI142, 0, 'NGGT TO (Base)'!AI142, 0, East!AI142, London!AI142, 'North West'!AI142, 'West Midlands'!AI142, Northern!AI142, Scotland!AI142, Southern!AI142, 'Wales & West'!AI142) -> 0 | AJ142: =CHOOSE(m_identity,SHETL!AJ142, SPTL!AJ142, 'NGET TO (Base)'!AJ142, 0, 'NGGT TO (Base)'!AJ142, 0, East!AJ142, London!AJ142, 'North West'!AJ142, 'West Midlands'!AJ142, Northern!AJ142, Scotland!AJ142, Southern!AJ142, 'Wales & West'!AJ142) -> 0 | AK142: =CHOOSE(m_identity,SHETL!AK142, SPTL!AK142, 'NGET TO (Base)'!AK142, 0, 'NGGT TO (Base)'!AK142, 0, East!AK142, London!AK142, 'North West'!AK142, 'West Midlands'!AK142, Northern!AK142, Scotland!AK142, Southern!AK142, 'Wales & West'!AK142) -> 0 | AL142: =CHOOSE(m_identity,SHETL!AL142, SPTL!AL142, 'NGET TO (Base)'!AL142, 0, 'NGGT TO (Base)'!AL142, 0, East!AL142, London!AL142, 'North West'!AL142, 'West Midlands'!AL142, Northern!AL142, Scotland!AL142, Southern!AL142, 'Wales & West'!AL142) -> 0 | AM142: =CHOOSE(m_identity,SHETL!AM142, SPTL!AM142, 'NGET TO (Base)'!AM142, 0, 'NGGT TO (Base)'!AM142, 0, East!AM142, London!AM142, 'North West'!AM142, 'West Midlands'!AM142, Northern!AM142, Scotland!AM142, Southern!AM142, 'Wales & West'!AM142) -> 0 | AN142: =CHOOSE(m_identity,SHETL!AN142, SPTL!AN142, 'NGET TO (Base)'!AN142, 0, 'NGGT TO (Base)'!AN142, 0, East!AN142, London!AN142, 'North West'!AN142, 'West Midlands'!AN142, Northern!AN142, Scotland!AN142, Southern!AN142, 'Wales & West'!AN142) -> 0 | AO142: =CHOOSE(m_identity,SHETL!AO142, SPTL!AO142, 'NGET TO (Base)'!AO142, 0, 'NGGT TO (Base)'!AO142, 0, East!AO142, London!AO142, 'North West'!AO142, 'West Midlands'!AO142, Northern!AO142, Scotland!AO142, Southern!AO142, 'Wales & West'!AO142) -> 0
E143: Uncertain costs (Review of the fuel poor network extension scheme) allocation to controllable opex | G143: % | AH143: =CHOOSE(m_identity,SHETL!AH143, SPTL!AH143, 'NGET TO (Base)'!AH143, 0, 'NGGT TO (Base)'!AH143, 0, East!AH143, London!AH143, 'North West'!AH143, 'West Midlands'!AH143, Northern!AH143, Scotland!AH143, Southern!AH143, 'Wales & West'!AH143) -> 0 | AI143: =CHOOSE(m_identity,SHETL!AI143, SPTL!AI143, 'NGET TO (Base)'!AI143, 0, 'NGGT TO (Base)'!AI143, 0, East!AI143, London!AI143, 'North West'!AI143, 'West Midlands'!AI143, Northern!AI143, Scotland!AI143, Southern!AI143, 'Wales & West'!AI143) -> 0 | AJ143: =CHOOSE(m_identity,SHETL!AJ143, SPTL!AJ143, 'NGET TO (Base)'!AJ143, 0, 'NGGT TO (Base)'!AJ143, 0, East!AJ143, London!AJ143, 'North West'!AJ143, 'West Midlands'!AJ143, Northern!AJ143, Scotland!AJ143, Southern!AJ143, 'Wales & West'!AJ143) -> 0 | AK143: =CHOOSE(m_identity,SHETL!AK143, SPTL!AK143, 'NGET TO (Base)'!AK143, 0, 'NGGT TO (Base)'!AK143, 0, East!AK143, London!AK143, 'North West'!AK143, 'West Midlands'!AK143, Northern!AK143, Scotland!AK143, Southern!AK143, 'Wales & West'!AK143) -> 0 | AL143: =CHOOSE(m_identity,SHETL!AL143, SPTL!AL143, 'NGET TO (Base)'!AL143, 0, 'NGGT TO (Base)'!AL143, 0, East!AL143, London!AL143, 'North West'!AL143, 'West Midlands'!AL143, Northern!AL143, Scotland!AL143, Southern!AL143, 'Wales & West'!AL143) -> 0 | AM143: =CHOOSE(m_identity,SHETL!AM143, SPTL!AM143, 'NGET TO (Base)'!AM143, 0, 'NGGT TO (Base)'!AM143, 0, East!AM143, London!AM143, 'North West'!AM143, 'West Midlands'!AM143, Northern!AM143, Scotland!AM143, Southern!AM143, 'Wales & West'!AM143) -> 0 | AN143: =CHOOSE(m_identity,SHETL!AN143, SPTL!AN143, 'NGET TO (Base)'!AN143, 0, 'NGGT TO (Base)'!AN143, 0, East!AN143, London!AN143, 'North West'!AN143, 'West Midlands'!AN143, Northern!AN143, Scotland!AN143, Southern!AN143, 'Wales & West'!AN143) -> 0 | AO143: =CHOOSE(m_identity,SHETL!AO143, SPTL!AO143, 'NGET TO (Base)'!AO143, 0, 'NGGT TO (Base)'!AO143, 0, East!AO143, London!AO143, 'North West'!AO143, 'West Midlands'!AO143, Northern!AO143, Scotland!AO143, Southern!AO143, 'Wales & West'!AO143) -> 0
E144: Uncertain costs (Review of the fuel poor network extension scheme) allocation to repex | G144: % | AH144: =CHOOSE(m_identity,SHETL!AH144, SPTL!AH144, 'NGET TO (Base)'!AH144, 0, 'NGGT TO (Base)'!AH144, 0, East!AH144, London!AH144, 'North West'!AH144, 'West Midlands'!AH144, Northern!AH144, Scotland!AH144, Southern!AH144, 'Wales & West'!AH144) -> 0 | AI144: =CHOOSE(m_identity,SHETL!AI144, SPTL!AI144, 'NGET TO (Base)'!AI144, 0, 'NGGT TO (Base)'!AI144, 0, East!AI144, London!AI144, 'North West'!AI144, 'West Midlands'!AI144, Northern!AI144, Scotland!AI144, Southern!AI144, 'Wales & West'!AI144) -> 0 | AJ144: =CHOOSE(m_identity,SHETL!AJ144, SPTL!AJ144, 'NGET TO (Base)'!AJ144, 0, 'NGGT TO (Base)'!AJ144, 0, East!AJ144, London!AJ144, 'North West'!AJ144, 'West Midlands'!AJ144, Northern!AJ144, Scotland!AJ144, Southern!AJ144, 'Wales & West'!AJ144) -> 0 | AK144: =CHOOSE(m_identity,SHETL!AK144, SPTL!AK144, 'NGET TO (Base)'!AK144, 0, 'NGGT TO (Base)'!AK144, 0, East!AK144, London!AK144, 'North West'!AK144, 'West Midlands'!AK144, Northern!AK144, Scotland!AK144, Southern!AK144, 'Wales & West'!AK144) -> 0 | AL144: =CHOOSE(m_identity,SHETL!AL144, SPTL!AL144, 'NGET TO (Base)'!AL144, 0, 'NGGT TO (Base)'!AL144, 0, East!AL144, London!AL144, 'North West'!AL144, 'West Midlands'!AL144, Northern!AL144, Scotland!AL144, Southern!AL144, 'Wales & West'!AL144) -> 0 | AM144: =CHOOSE(m_identity,SHETL!AM144, SPTL!AM144, 'NGET TO (Base)'!AM144, 0, 'NGGT TO (Base)'!AM144, 0, East!AM144, London!AM144, 'North West'!AM144, 'West Midlands'!AM144, Northern!AM144, Scotland!AM144, Southern!AM144, 'Wales & West'!AM144) -> 0 | AN144: =CHOOSE(m_identity,SHETL!AN144, SPTL!AN144, 'NGET TO (Base)'!AN144, 0, 'NGGT TO (Base)'!AN144, 0, East!AN144, London!AN144, 'North West'!AN144, 'West Midlands'!AN144, Northern!AN144, Scotland!AN144, Southern!AN144, 'Wales & West'!AN144) -> 0 | AO144: =CHOOSE(m_identity,SHETL!AO144, SPTL!AO144, 'NGET TO (Base)'!AO144, 0, 'NGGT TO (Base)'!AO144, 0, East!AO144, London!AO144, 'North West'!AO144, 'West Midlands'!AO144, Northern!AO144, Scotland!AO144, Southern!AO144, 'Wales & West'!AO144) -> 0
E145: Uncertain costs (Review of the fuel poor network extension scheme) allocation to non-operational capex | G145: % | AH145: =CHOOSE(m_identity,SHETL!AH145, SPTL!AH145, 'NGET TO (Base)'!AH145, 0, 'NGGT TO (Base)'!AH145, 0, East!AH145, London!AH145, 'North West'!AH145, 'West Midlands'!AH145, Northern!AH145, Scotland!AH145, Southern!AH145, 'Wales & West'!AH145) -> 0 | AI145: =CHOOSE(m_identity,SHETL!AI145, SPTL!AI145, 'NGET TO (Base)'!AI145, 0, 'NGGT TO (Base)'!AI145, 0, East!AI145, London!AI145, 'North West'!AI145, 'West Midlands'!AI145, Northern!AI145, Scotland!AI145, Southern!AI145, 'Wales & West'!AI145) -> 0 | AJ145: =CHOOSE(m_identity,SHETL!AJ145, SPTL!AJ145, 'NGET TO (Base)'!AJ145, 0, 'NGGT TO (Base)'!AJ145, 0, East!AJ145, London!AJ145, 'North West'!AJ145, 'West Midlands'!AJ145, Northern!AJ145, Scotland!AJ145, Southern!AJ145, 'Wales & West'!AJ145) -> 0 | AK145: =CHOOSE(m_identity,SHETL!AK145, SPTL!AK145, 'NGET TO (Base)'!AK145, 0, 'NGGT TO (Base)'!AK145, 0, East!AK145, London!AK145, 'North West'!AK145, 'West Midlands'!AK145, Northern!AK145, Scotland!AK145, Southern!AK145, 'Wales & West'!AK145) -> 0 | AL145: =CHOOSE(m_identity,SHETL!AL145, SPTL!AL145, 'NGET TO (Base)'!AL145, 0, 'NGGT TO (Base)'!AL145, 0, East!AL145, London!AL145, 'North West'!AL145, 'West Midlands'!AL145, Northern!AL145, Scotland!AL145, Southern!AL145, 'Wales & West'!AL145) -> 0 | AM145: =CHOOSE(m_identity,SHETL!AM145, SPTL!AM145, 'NGET TO (Base)'!AM145, 0, 'NGGT TO (Base)'!AM145, 0, East!AM145, London!AM145, 'North West'!AM145, 'West Midlands'!AM145, Northern!AM145, Scotland!AM145, Southern!AM145, 'Wales & West'!AM145) -> 0 | AN145: =CHOOSE(m_identity,SHETL!AN145, SPTL!AN145, 'NGET TO (Base)'!AN145, 0, 'NGGT TO (Base)'!AN145, 0, East!AN145, London!AN145, 'North West'!AN145, 'West Midlands'!AN145, Northern!AN145, Scotland!AN145, Southern!AN145, 'Wales & West'!AN145) -> 0 | AO145: =CHOOSE(m_identity,SHETL!AO145, SPTL!AO145, 'NGET TO (Base)'!AO145, 0, 'NGGT TO (Base)'!AO145, 0, East!AO145, London!AO145, 'North West'!AO145, 'West Midlands'!AO145, Northern!AO145, Scotland!AO145, Southern!AO145, 'Wales & West'!AO145) -> 0
E146: Uncertain costs (Review of the fuel poor network extension scheme) allocation to totex contributions | G146: % | AH146: =CHOOSE(m_identity,SHETL!AH146, SPTL!AH146, 'NGET TO (Base)'!AH146, 0, 'NGGT TO (Base)'!AH146, 0, East!AH146, London!AH146, 'North West'!AH146, 'West Midlands'!AH146, Northern!AH146, Scotland!AH146, Southern!AH146, 'Wales & West'!AH146) -> 0 | AI146: =CHOOSE(m_identity,SHETL!AI146, SPTL!AI146, 'NGET TO (Base)'!AI146, 0, 'NGGT TO (Base)'!AI146, 0, East!AI146, London!AI146, 'North West'!AI146, 'West Midlands'!AI146, Northern!AI146, Scotland!AI146, Southern!AI146, 'Wales & West'!AI146) -> 0 | AJ146: =CHOOSE(m_identity,SHETL!AJ146, SPTL!AJ146, 'NGET TO (Base)'!AJ146, 0, 'NGGT TO (Base)'!AJ146, 0, East!AJ146, London!AJ146, 'North West'!AJ146, 'West Midlands'!AJ146, Northern!AJ146, Scotland!AJ146, Southern!AJ146, 'Wales & West'!AJ146) -> 0 | AK146: =CHOOSE(m_identity,SHETL!AK146, SPTL!AK146, 'NGET TO (Base)'!AK146, 0, 'NGGT TO (Base)'!AK146, 0, East!AK146, London!AK146, 'North West'!AK146, 'West Midlands'!AK146, Northern!AK146, Scotland!AK146, Southern!AK146, 'Wales & West'!AK146) -> 0 | AL146: =CHOOSE(m_identity,SHETL!AL146, SPTL!AL146, 'NGET TO (Base)'!AL146, 0, 'NGGT TO (Base)'!AL146, 0, East!AL146, London!AL146, 'North West'!AL146, 'West Midlands'!AL146, Northern!AL146, Scotland!AL146, Southern!AL146, 'Wales & West'!AL146) -> 0 | AM146: =CHOOSE(m_identity,SHETL!AM146, SPTL!AM146, 'NGET TO (Base)'!AM146, 0, 'NGGT TO (Base)'!AM146, 0, East!AM146, London!AM146, 'North West'!AM146, 'West Midlands'!AM146, Northern!AM146, Scotland!AM146, Southern!AM146, 'Wales & West'!AM146) -> 0 | AN146: =CHOOSE(m_identity,SHETL!AN146, SPTL!AN146, 'NGET TO (Base)'!AN146, 0, 'NGGT TO (Base)'!AN146, 0, East!AN146, London!AN146, 'North West'!AN146, 'West Midlands'!AN146, Northern!AN146, Scotland!AN146, Southern!AN146, 'Wales & West'!AN146) -> 0 | AO146: =CHOOSE(m_identity,SHETL!AO146, SPTL!AO146, 'NGET TO (Base)'!AO146, 0, 'NGGT TO (Base)'!AO146, 0, East!AO146, London!AO146, 'North West'!AO146, 'West Midlands'!AO146, Northern!AO146, Scotland!AO146, Southern!AO146, 'Wales & West'!AO146) -> 0
E148: Allowed GD & GT Uncertain (Review of xoserve costs) costs | G148: £m 09/10 prices | AH148: =AH20 -> 0 | AI148: 0 | AJ148: 0 | AK148: 0 | AL148: 0 | AM148: 0 | AN148: 0 | AO148: 0
E149: Uncertain costs (Review of xoserve costs) allocation to load related capex | G149: % | AH149: =CHOOSE(m_identity,SHETL!AH149, SPTL!AH149, 'NGET TO (Base)'!AH149, 0, 'NGGT TO (Base)'!AH149, 0, East!AH149, London!AH149, 'North West'!AH149, 'West Midlands'!AH149, Northern!AH149, Scotland!AH149, Southern!AH149, 'Wales & West'!AH149) -> 0 | AI149: =CHOOSE(m_identity,SHETL!AI149, SPTL!AI149, 'NGET TO (Base)'!AI149, 0, 'NGGT TO (Base)'!AI149, 0, East!AI149, London!AI149, 'North West'!AI149, 'West Midlands'!AI149, Northern!AI149, Scotland!AI149, Southern!AI149, 'Wales & West'!AI149) -> 0 | AJ149: =CHOOSE(m_identity,SHETL!AJ149, SPTL!AJ149, 'NGET TO (Base)'!AJ149, 0, 'NGGT TO (Base)'!AJ149, 0, East!AJ149, London!AJ149, 'North West'!AJ149, 'West Midlands'!AJ149, Northern!AJ149, Scotland!AJ149, Southern!AJ149, 'Wales & West'!AJ149) -> 0 | AK149: =CHOOSE(m_identity,SHETL!AK149, SPTL!AK149, 'NGET TO (Base)'!AK149, 0, 'NGGT TO (Base)'!AK149, 0, East!AK149, London!AK149, 'North West'!AK149, 'West Midlands'!AK149, Northern!AK149, Scotland!AK149, Southern!AK149, 'Wales & West'!AK149) -> 0 | AL149: =CHOOSE(m_identity,SHETL!AL149, SPTL!AL149, 'NGET TO (Base)'!AL149, 0, 'NGGT TO (Base)'!AL149, 0, East!AL149, London!AL149, 'North West'!AL149, 'West Midlands'!AL149, Northern!AL149, Scotland!AL149, Southern!AL149, 'Wales & West'!AL149) -> 0 | AM149: =CHOOSE(m_identity,SHETL!AM149, SPTL!AM149, 'NGET TO (Base)'!AM149, 0, 'NGGT TO (Base)'!AM149, 0, East!AM149, London!AM149, 'North West'!AM149, 'West Midlands'!AM149, Northern!AM149, Scotland!AM149, Southern!AM149, 'Wales & West'!AM149) -> 0 | AN149: =CHOOSE(m_identity,SHETL!AN149, SPTL!AN149, 'NGET TO (Base)'!AN149, 0, 'NGGT TO (Base)'!AN149, 0, East!AN149, London!AN149, 'North West'!AN149, 'West Midlands'!AN149, Northern!AN149, Scotland!AN149, Southern!AN149, 'Wales & West'!AN149) -> 0 | AO149: =CHOOSE(m_identity,SHETL!AO149, SPTL!AO149, 'NGET TO (Base)'!AO149, 0, 'NGGT TO (Base)'!AO149, 0, East!AO149, London!AO149, 'North West'!AO149, 'West Midlands'!AO149, Northern!AO149, Scotland!AO149, Southern!AO149, 'Wales & West'!AO149) -> 0
E150: Uncertain costs (Review of xoserve costs) allocation to non-load related capex - asset replacement | G150: % | AH150: =CHOOSE(m_identity,SHETL!AH150, SPTL!AH150, 'NGET TO (Base)'!AH150, 0, 'NGGT TO (Base)'!AH150, 0, East!AH150, London!AH150, 'North West'!AH150, 'West Midlands'!AH150, Northern!AH150, Scotland!AH150, Southern!AH150, 'Wales & West'!AH150) -> 0 | AI150: =CHOOSE(m_identity,SHETL!AI150, SPTL!AI150, 'NGET TO (Base)'!AI150, 0, 'NGGT TO (Base)'!AI150, 0, East!AI150, London!AI150, 'North West'!AI150, 'West Midlands'!AI150, Northern!AI150, Scotland!AI150, Southern!AI150, 'Wales & West'!AI150) -> 0 | AJ150: =CHOOSE(m_identity,SHETL!AJ150, SPTL!AJ150, 'NGET TO (Base)'!AJ150, 0, 'NGGT TO (Base)'!AJ150, 0, East!AJ150, London!AJ150, 'North West'!AJ150, 'West Midlands'!AJ150, Northern!AJ150, Scotland!AJ150, Southern!AJ150, 'Wales & West'!AJ150) -> 0 | AK150: =CHOOSE(m_identity,SHETL!AK150, SPTL!AK150, 'NGET TO (Base)'!AK150, 0, 'NGGT TO (Base)'!AK150, 0, East!AK150, London!AK150, 'North West'!AK150, 'West Midlands'!AK150, Northern!AK150, Scotland!AK150, Southern!AK150, 'Wales & West'!AK150) -> 0 | AL150: =CHOOSE(m_identity,SHETL!AL150, SPTL!AL150, 'NGET TO (Base)'!AL150, 0, 'NGGT TO (Base)'!AL150, 0, East!AL150, London!AL150, 'North West'!AL150, 'West Midlands'!AL150, Northern!AL150, Scotland!AL150, Southern!AL150, 'Wales & West'!AL150) -> 0 | AM150: =CHOOSE(m_identity,SHETL!AM150, SPTL!AM150, 'NGET TO (Base)'!AM150, 0, 'NGGT TO (Base)'!AM150, 0, East!AM150, London!AM150, 'North West'!AM150, 'West Midlands'!AM150, Northern!AM150, Scotland!AM150, Southern!AM150, 'Wales & West'!AM150) -> 0 | AN150: =CHOOSE(m_identity,SHETL!AN150, SPTL!AN150, 'NGET TO (Base)'!AN150, 0, 'NGGT TO (Base)'!AN150, 0, East!AN150, London!AN150, 'North West'!AN150, 'West Midlands'!AN150, Northern!AN150, Scotland!AN150, Southern!AN150, 'Wales & West'!AN150) -> 0 | AO150: =CHOOSE(m_identity,SHETL!AO150, SPTL!AO150, 'NGET TO (Base)'!AO150, 0, 'NGGT TO (Base)'!AO150, 0, East!AO150, London!AO150, 'North West'!AO150, 'West Midlands'!AO150, Northern!AO150, Scotland!AO150, Southern!AO150, 'Wales & West'!AO150) -> 0
E151: Uncertain costs (Review of xoserve costs) allocation to non-load related capex - other | G151: % | AH151: =CHOOSE(m_identity,SHETL!AH151, SPTL!AH151, 'NGET TO (Base)'!AH151, 0, 'NGGT TO (Base)'!AH151, 0, East!AH151, London!AH151, 'North West'!AH151, 'West Midlands'!AH151, Northern!AH151, Scotland!AH151, Southern!AH151, 'Wales & West'!AH151) -> 1 | AI151: =CHOOSE(m_identity,SHETL!AI151, SPTL!AI151, 'NGET TO (Base)'!AI151, 0, 'NGGT TO (Base)'!AI151, 0, East!AI151, London!AI151, 'North West'!AI151, 'West Midlands'!AI151, Northern!AI151, Scotland!AI151, Southern!AI151, 'Wales & West'!AI151) -> 1 | AJ151: =CHOOSE(m_identity,SHETL!AJ151, SPTL!AJ151, 'NGET TO (Base)'!AJ151, 0, 'NGGT TO (Base)'!AJ151, 0, East!AJ151, London!AJ151, 'North West'!AJ151, 'West Midlands'!AJ151, Northern!AJ151, Scotland!AJ151, Southern!AJ151, 'Wales & West'!AJ151) -> 1 | AK151: =CHOOSE(m_identity,SHETL!AK151, SPTL!AK151, 'NGET TO (Base)'!AK151, 0, 'NGGT TO (Base)'!AK151, 0, East!AK151, London!AK151, 'North West'!AK151, 'West Midlands'!AK151, Northern!AK151, Scotland!AK151, Southern!AK151, 'Wales & West'!AK151) -> 1 | AL151: =CHOOSE(m_identity,SHETL!AL151, SPTL!AL151, 'NGET TO (Base)'!AL151, 0, 'NGGT TO (Base)'!AL151, 0, East!AL151, London!AL151, 'North West'!AL151, 'West Midlands'!AL151, Northern!AL151, Scotland!AL151, Southern!AL151, 'Wales & West'!AL151) -> 1 | AM151: =CHOOSE(m_identity,SHETL!AM151, SPTL!AM151, 'NGET TO (Base)'!AM151, 0, 'NGGT TO (Base)'!AM151, 0, East!AM151, London!AM151, 'North West'!AM151, 'West Midlands'!AM151, Northern!AM151, Scotland!AM151, Southern!AM151, 'Wales & West'!AM151) -> 1 | AN151: =CHOOSE(m_identity,SHETL!AN151, SPTL!AN151, 'NGET TO (Base)'!AN151, 0, 'NGGT TO (Base)'!AN151, 0, East!AN151, London!AN151, 'North West'!AN151, 'West Midlands'!AN151, Northern!AN151, Scotland!AN151, Southern!AN151, 'Wales & West'!AN151) -> 1 | AO151: =CHOOSE(m_identity,SHETL!AO151, SPTL!AO151, 'NGET TO (Base)'!AO151, 0, 'NGGT TO (Base)'!AO151, 0, East!AO151, London!AO151, 'North West'!AO151, 'West Midlands'!AO151, Northern!AO151, Scotland!AO151, Southern!AO151, 'Wales & West'!AO151) -> 1
E152: Uncertain costs (Review of xoserve costs) allocation to controllable opex | G152: % | AH152: =CHOOSE(m_identity,SHETL!AH152, SPTL!AH152, 'NGET TO (Base)'!AH152, 0, 'NGGT TO (Base)'!AH152, 0, East!AH152, London!AH152, 'North West'!AH152, 'West Midlands'!AH152, Northern!AH152, Scotland!AH152, Southern!AH152, 'Wales & West'!AH152) -> 0 | AI152: =CHOOSE(m_identity,SHETL!AI152, SPTL!AI152, 'NGET TO (Base)'!AI152, 0, 'NGGT TO (Base)'!AI152, 0, East!AI152, London!AI152, 'North West'!AI152, 'West Midlands'!AI152, Northern!AI152, Scotland!AI152, Southern!AI152, 'Wales & West'!AI152) -> 0 | AJ152: =CHOOSE(m_identity,SHETL!AJ152, SPTL!AJ152, 'NGET TO (Base)'!AJ152, 0, 'NGGT TO (Base)'!AJ152, 0, East!AJ152, London!AJ152, 'North West'!AJ152, 'West Midlands'!AJ152, Northern!AJ152, Scotland!AJ152, Southern!AJ152, 'Wales & West'!AJ152) -> 0 | AK152: =CHOOSE(m_identity,SHETL!AK152, SPTL!AK152, 'NGET TO (Base)'!AK152, 0, 'NGGT TO (Base)'!AK152, 0, East!AK152, London!AK152, 'North West'!AK152, 'West Midlands'!AK152, Northern!AK152, Scotland!AK152, Southern!AK152, 'Wales & West'!AK152) -> 0 | AL152: =CHOOSE(m_identity,SHETL!AL152, SPTL!AL152, 'NGET TO (Base)'!AL152, 0, 'NGGT TO (Base)'!AL152, 0, East!AL152, London!AL152, 'North West'!AL152, 'West Midlands'!AL152, Northern!AL152, Scotland!AL152, Southern!AL152, 'Wales & West'!AL152) -> 0 | AM152: =CHOOSE(m_identity,SHETL!AM152, SPTL!AM152, 'NGET TO (Base)'!AM152, 0, 'NGGT TO (Base)'!AM152, 0, East!AM152, London!AM152, 'North West'!AM152, 'West Midlands'!AM152, Northern!AM152, Scotland!AM152, Southern!AM152, 'Wales & West'!AM152) -> 0 | AN152: =CHOOSE(m_identity,SHETL!AN152, SPTL!AN152, 'NGET TO (Base)'!AN152, 0, 'NGGT TO (Base)'!AN152, 0, East!AN152, London!AN152, 'North West'!AN152, 'West Midlands'!AN152, Northern!AN152, Scotland!AN152, Southern!AN152, 'Wales & West'!AN152) -> 0 | AO152: =CHOOSE(m_identity,SHETL!AO152, SPTL!AO152, 'NGET TO (Base)'!AO152, 0, 'NGGT TO (Base)'!AO152, 0, East!AO152, London!AO152, 'North West'!AO152, 'West Midlands'!AO152, Northern!AO152, Scotland!AO152, Southern!AO152, 'Wales & West'!AO152) -> 0
E153: Uncertain costs (Review of xoserve costs) allocation to repex | G153: % | AH153: =CHOOSE(m_identity,SHETL!AH153, SPTL!AH153, 'NGET TO (Base)'!AH153, 0, 'NGGT TO (Base)'!AH153, 0, East!AH153, London!AH153, 'North West'!AH153, 'West Midlands'!AH153, Northern!AH153, Scotland!AH153, Southern!AH153, 'Wales & West'!AH153) -> 0 | AI153: =CHOOSE(m_identity,SHETL!AI153, SPTL!AI153, 'NGET TO (Base)'!AI153, 0, 'NGGT TO (Base)'!AI153, 0, East!AI153, London!AI153, 'North West'!AI153, 'West Midlands'!AI153, Northern!AI153, Scotland!AI153, Southern!AI153, 'Wales & West'!AI153) -> 0 | AJ153: =CHOOSE(m_identity,SHETL!AJ153, SPTL!AJ153, 'NGET TO (Base)'!AJ153, 0, 'NGGT TO (Base)'!AJ153, 0, East!AJ153, London!AJ153, 'North West'!AJ153, 'West Midlands'!AJ153, Northern!AJ153, Scotland!AJ153, Southern!AJ153, 'Wales & West'!AJ153) -> 0 | AK153: =CHOOSE(m_identity,SHETL!AK153, SPTL!AK153, 'NGET TO (Base)'!AK153, 0, 'NGGT TO (Base)'!AK153, 0, East!AK153, London!AK153, 'North West'!AK153, 'West Midlands'!AK153, Northern!AK153, Scotland!AK153, Southern!AK153, 'Wales & West'!AK153) -> 0 | AL153: =CHOOSE(m_identity,SHETL!AL153, SPTL!AL153, 'NGET TO (Base)'!AL153, 0, 'NGGT TO (Base)'!AL153, 0, East!AL153, London!AL153, 'North West'!AL153, 'West Midlands'!AL153, Northern!AL153, Scotland!AL153, Southern!AL153, 'Wales & West'!AL153) -> 0 | AM153: =CHOOSE(m_identity,SHETL!AM153, SPTL!AM153, 'NGET TO (Base)'!AM153, 0, 'NGGT TO (Base)'!AM153, 0, East!AM153, London!AM153, 'North West'!AM153, 'West Midlands'!AM153, Northern!AM153, Scotland!AM153, Southern!AM153, 'Wales & West'!AM153) -> 0 | AN153: =CHOOSE(m_identity,SHETL!AN153, SPTL!AN153, 'NGET TO (Base)'!AN153, 0, 'NGGT TO (Base)'!AN153, 0, East!AN153, London!AN153, 'North West'!AN153, 'West Midlands'!AN153, Northern!AN153, Scotland!AN153, Southern!AN153, 'Wales & West'!AN153) -> 0 | AO153: =CHOOSE(m_identity,SHETL!AO153, SPTL!AO153, 'NGET TO (Base)'!AO153, 0, 'NGGT TO (Base)'!AO153, 0, East!AO153, London!AO153, 'North West'!AO153, 'West Midlands'!AO153, Northern!AO153, Scotland!AO153, Southern!AO153, 'Wales & West'!AO153) -> 0
E154: Uncertain costs (Review of xoserve costs) allocation to non-operational capex | G154: % | AH154: =CHOOSE(m_identity,SHETL!AH154, SPTL!AH154, 'NGET TO (Base)'!AH154, 0, 'NGGT TO (Base)'!AH154, 0, East!AH154, London!AH154, 'North West'!AH154, 'West Midlands'!AH154, Northern!AH154, Scotland!AH154, Southern!AH154, 'Wales & West'!AH154) -> 0 | AI154: =CHOOSE(m_identity,SHETL!AI154, SPTL!AI154, 'NGET TO (Base)'!AI154, 0, 'NGGT TO (Base)'!AI154, 0, East!AI154, London!AI154, 'North West'!AI154, 'West Midlands'!AI154, Northern!AI154, Scotland!AI154, Southern!AI154, 'Wales & West'!AI154) -> 0 | AJ154: =CHOOSE(m_identity,SHETL!AJ154, SPTL!AJ154, 'NGET TO (Base)'!AJ154, 0, 'NGGT TO (Base)'!AJ154, 0, East!AJ154, London!AJ154, 'North West'!AJ154, 'West Midlands'!AJ154, Northern!AJ154, Scotland!AJ154, Southern!AJ154, 'Wales & West'!AJ154) -> 0 | AK154: =CHOOSE(m_identity,SHETL!AK154, SPTL!AK154, 'NGET TO (Base)'!AK154, 0, 'NGGT TO (Base)'!AK154, 0, East!AK154, London!AK154, 'North West'!AK154, 'West Midlands'!AK154, Northern!AK154, Scotland!AK154, Southern!AK154, 'Wales & West'!AK154) -> 0 | AL154: =CHOOSE(m_identity,SHETL!AL154, SPTL!AL154, 'NGET TO (Base)'!AL154, 0, 'NGGT TO (Base)'!AL154, 0, East!AL154, London!AL154, 'North West'!AL154, 'West Midlands'!AL154, Northern!AL154, Scotland!AL154, Southern!AL154, 'Wales & West'!AL154) -> 0 | AM154: =CHOOSE(m_identity,SHETL!AM154, SPTL!AM154, 'NGET TO (Base)'!AM154, 0, 'NGGT TO (Base)'!AM154, 0, East!AM154, London!AM154, 'North West'!AM154, 'West Midlands'!AM154, Northern!AM154, Scotland!AM154, Southern!AM154, 'Wales & West'!AM154) -> 0 | AN154: =CHOOSE(m_identity,SHETL!AN154, SPTL!AN154, 'NGET TO (Base)'!AN154, 0, 'NGGT TO (Base)'!AN154, 0, East!AN154, London!AN154, 'North West'!AN154, 'West Midlands'!AN154, Northern!AN154, Scotland!AN154, Southern!AN154, 'Wales & West'!AN154) -> 0 | AO154: =CHOOSE(m_identity,SHETL!AO154, SPTL!AO154, 'NGET TO (Base)'!AO154, 0, 'NGGT TO (Base)'!AO154, 0, East!AO154, London!AO154, 'North West'!AO154, 'West Midlands'!AO154, Northern!AO154, Scotland!AO154, Southern!AO154, 'Wales & West'!AO154) -> 0
E155: Uncertain costs (Review of xoserve costs) allocation to totex contributions | G155: % | AH155: =CHOOSE(m_identity,SHETL!AH155, SPTL!AH155, 'NGET TO (Base)'!AH155, 0, 'NGGT TO (Base)'!AH155, 0, East!AH155, London!AH155, 'North West'!AH155, 'West Midlands'!AH155, Northern!AH155, Scotland!AH155, Southern!AH155, 'Wales & West'!AH155) -> 0 | AI155: =CHOOSE(m_identity,SHETL!AI155, SPTL!AI155, 'NGET TO (Base)'!AI155, 0, 'NGGT TO (Base)'!AI155, 0, East!AI155, London!AI155, 'North West'!AI155, 'West Midlands'!AI155, Northern!AI155, Scotland!AI155, Southern!AI155, 'Wales & West'!AI155) -> 0 | AJ155: =CHOOSE(m_identity,SHETL!AJ155, SPTL!AJ155, 'NGET TO (Base)'!AJ155, 0, 'NGGT TO (Base)'!AJ155, 0, East!AJ155, London!AJ155, 'North West'!AJ155, 'West Midlands'!AJ155, Northern!AJ155, Scotland!AJ155, Southern!AJ155, 'Wales & West'!AJ155) -> 0 | AK155: =CHOOSE(m_identity,SHETL!AK155, SPTL!AK155, 'NGET TO (Base)'!AK155, 0, 'NGGT TO (Base)'!AK155, 0, East!AK155, London!AK155, 'North West'!AK155, 'West Midlands'!AK155, Northern!AK155, Scotland!AK155, Southern!AK155, 'Wales & West'!AK155) -> 0 | AL155: =CHOOSE(m_identity,SHETL!AL155, SPTL!AL155, 'NGET TO (Base)'!AL155, 0, 'NGGT TO (Base)'!AL155, 0, East!AL155, London!AL155, 'North West'!AL155, 'West Midlands'!AL155, Northern!AL155, Scotland!AL155, Southern!AL155, 'Wales & West'!AL155) -> 0 | AM155: =CHOOSE(m_identity,SHETL!AM155, SPTL!AM155, 'NGET TO (Base)'!AM155, 0, 'NGGT TO (Base)'!AM155, 0, East!AM155, London!AM155, 'North West'!AM155, 'West Midlands'!AM155, Northern!AM155, Scotland!AM155, Southern!AM155, 'Wales & West'!AM155) -> 0 | AN155: =CHOOSE(m_identity,SHETL!AN155, SPTL!AN155, 'NGET TO (Base)'!AN155, 0, 'NGGT TO (Base)'!AN155, 0, East!AN155, London!AN155, 'North West'!AN155, 'West Midlands'!AN155, Northern!AN155, Scotland!AN155, Southern!AN155, 'Wales & West'!AN155) -> 0 | AO155: =CHOOSE(m_identity,SHETL!AO155, SPTL!AO155, 'NGET TO (Base)'!AO155, 0, 'NGGT TO (Base)'!AO155, 0, East!AO155, London!AO155, 'North West'!AO155, 'West Midlands'!AO155, Northern!AO155, Scotland!AO155, Southern!AO155, 'Wales & West'!AO155) -> 0
E157: Allowed GD Uncertain costs (Smart metering) | G157: £m 09/10 prices | AH157: =AH21 -> 0 | AI157: 0 | AJ157: 0 | AK157: 0 | AL157: 0 | AM157: 0 | AN157: 0 | AO157: 0
E158: Uncertain costs (Smart metering) allocation to load related capex | G158: % | AH158: =CHOOSE(m_identity,SHETL!AH158, SPTL!AH158, 'NGET TO (Base)'!AH158, 0, 'NGGT TO (Base)'!AH158, 0, East!AH158, London!AH158, 'North West'!AH158, 'West Midlands'!AH158, Northern!AH158, Scotland!AH158, Southern!AH158, 'Wales & West'!AH158) -> 0 | AI158: =CHOOSE(m_identity,SHETL!AI158, SPTL!AI158, 'NGET TO (Base)'!AI158, 0, 'NGGT TO (Base)'!AI158, 0, East!AI158, London!AI158, 'North West'!AI158, 'West Midlands'!AI158, Northern!AI158, Scotland!AI158, Southern!AI158, 'Wales & West'!AI158) -> 0 | AJ158: =CHOOSE(m_identity,SHETL!AJ158, SPTL!AJ158, 'NGET TO (Base)'!AJ158, 0, 'NGGT TO (Base)'!AJ158, 0, East!AJ158, London!AJ158, 'North West'!AJ158, 'West Midlands'!AJ158, Northern!AJ158, Scotland!AJ158, Southern!AJ158, 'Wales & West'!AJ158) -> 0 | AK158: =CHOOSE(m_identity,SHETL!AK158, SPTL!AK158, 'NGET TO (Base)'!AK158, 0, 'NGGT TO (Base)'!AK158, 0, East!AK158, London!AK158, 'North West'!AK158, 'West Midlands'!AK158, Northern!AK158, Scotland!AK158, Southern!AK158, 'Wales & West'!AK158) -> 0 | AL158: =CHOOSE(m_identity,SHETL!AL158, SPTL!AL158, 'NGET TO (Base)'!AL158, 0, 'NGGT TO (Base)'!AL158, 0, East!AL158, London!AL158, 'North West'!AL158, 'West Midlands'!AL158, Northern!AL158, Scotland!AL158, Southern!AL158, 'Wales & West'!AL158) -> 0 | AM158: =CHOOSE(m_identity,SHETL!AM158, SPTL!AM158, 'NGET TO (Base)'!AM158, 0, 'NGGT TO (Base)'!AM158, 0, East!AM158, London!AM158, 'North West'!AM158, 'West Midlands'!AM158, Northern!AM158, Scotland!AM158, Southern!AM158, 'Wales & West'!AM158) -> 0 | AN158: =CHOOSE(m_identity,SHETL!AN158, SPTL!AN158, 'NGET TO (Base)'!AN158, 0, 'NGGT TO (Base)'!AN158, 0, East!AN158, London!AN158, 'North West'!AN158, 'West Midlands'!AN158, Northern!AN158, Scotland!AN158, Southern!AN158, 'Wales & West'!AN158) -> 0 | AO158: =CHOOSE(m_identity,SHETL!AO158, SPTL!AO158, 'NGET TO (Base)'!AO158, 0, 'NGGT TO (Base)'!AO158, 0, East!AO158, London!AO158, 'North West'!AO158, 'West Midlands'!AO158, Northern!AO158, Scotland!AO158, Southern!AO158, 'Wales & West'!AO158) -> 0
E159: Uncertain costs (Smart metering) allocation to non-load related capex - asset replacement | G159: % | AH159: =CHOOSE(m_identity,SHETL!AH159, SPTL!AH159, 'NGET TO (Base)'!AH159, 0, 'NGGT TO (Base)'!AH159, 0, East!AH159, London!AH159, 'North West'!AH159, 'West Midlands'!AH159, Northern!AH159, Scotland!AH159, Southern!AH159, 'Wales & West'!AH159) -> 0 | AI159: =CHOOSE(m_identity,SHETL!AI159, SPTL!AI159, 'NGET TO (Base)'!AI159, 0, 'NGGT TO (Base)'!AI159, 0, East!AI159, London!AI159, 'North West'!AI159, 'West Midlands'!AI159, Northern!AI159, Scotland!AI159, Southern!AI159, 'Wales & West'!AI159) -> 0 | AJ159: =CHOOSE(m_identity,SHETL!AJ159, SPTL!AJ159, 'NGET TO (Base)'!AJ159, 0, 'NGGT TO (Base)'!AJ159, 0, East!AJ159, London!AJ159, 'North West'!AJ159, 'West Midlands'!AJ159, Northern!AJ159, Scotland!AJ159, Southern!AJ159, 'Wales & West'!AJ159) -> 0 | AK159: =CHOOSE(m_identity,SHETL!AK159, SPTL!AK159, 'NGET TO (Base)'!AK159, 0, 'NGGT TO (Base)'!AK159, 0, East!AK159, London!AK159, 'North West'!AK159, 'West Midlands'!AK159, Northern!AK159, Scotland!AK159, Southern!AK159, 'Wales & West'!AK159) -> 0 | AL159: =CHOOSE(m_identity,SHETL!AL159, SPTL!AL159, 'NGET TO (Base)'!AL159, 0, 'NGGT TO (Base)'!AL159, 0, East!AL159, London!AL159, 'North West'!AL159, 'West Midlands'!AL159, Northern!AL159, Scotland!AL159, Southern!AL159, 'Wales & West'!AL159) -> 0 | AM159: =CHOOSE(m_identity,SHETL!AM159, SPTL!AM159, 'NGET TO (Base)'!AM159, 0, 'NGGT TO (Base)'!AM159, 0, East!AM159, London!AM159, 'North West'!AM159, 'West Midlands'!AM159, Northern!AM159, Scotland!AM159, Southern!AM159, 'Wales & West'!AM159) -> 0 | AN159: =CHOOSE(m_identity,SHETL!AN159, SPTL!AN159, 'NGET TO (Base)'!AN159, 0, 'NGGT TO (Base)'!AN159, 0, East!AN159, London!AN159, 'North West'!AN159, 'West Midlands'!AN159, Northern!AN159, Scotland!AN159, Southern!AN159, 'Wales & West'!AN159) -> 0 | AO159: =CHOOSE(m_identity,SHETL!AO159, SPTL!AO159, 'NGET TO (Base)'!AO159, 0, 'NGGT TO (Base)'!AO159, 0, East!AO159, London!AO159, 'North West'!AO159, 'West Midlands'!AO159, Northern!AO159, Scotland!AO159, Southern!AO159, 'Wales & West'!AO159) -> 0
E160: Uncertain costs (Smart metering) allocation to non-load related capex - other | G160: % | AH160: =CHOOSE(m_identity,SHETL!AH160, SPTL!AH160, 'NGET TO (Base)'!AH160, 0, 'NGGT TO (Base)'!AH160, 0, East!AH160, London!AH160, 'North West'!AH160, 'West Midlands'!AH160, Northern!AH160, Scotland!AH160, Southern!AH160, 'Wales & West'!AH160) -> 0 | AI160: =CHOOSE(m_identity,SHETL!AI160, SPTL!AI160, 'NGET TO (Base)'!AI160, 0, 'NGGT TO (Base)'!AI160, 0, East!AI160, London!AI160, 'North West'!AI160, 'West Midlands'!AI160, Northern!AI160, Scotland!AI160, Southern!AI160, 'Wales & West'!AI160) -> 0 | AJ160: =CHOOSE(m_identity,SHETL!AJ160, SPTL!AJ160, 'NGET TO (Base)'!AJ160, 0, 'NGGT TO (Base)'!AJ160, 0, East!AJ160, London!AJ160, 'North West'!AJ160, 'West Midlands'!AJ160, Northern!AJ160, Scotland!AJ160, Southern!AJ160, 'Wales & West'!AJ160) -> 0 | AK160: =CHOOSE(m_identity,SHETL!AK160, SPTL!AK160, 'NGET TO (Base)'!AK160, 0, 'NGGT TO (Base)'!AK160, 0, East!AK160, London!AK160, 'North West'!AK160, 'West Midlands'!AK160, Northern!AK160, Scotland!AK160, Southern!AK160, 'Wales & West'!AK160) -> 0 | AL160: =CHOOSE(m_identity,SHETL!AL160, SPTL!AL160, 'NGET TO (Base)'!AL160, 0, 'NGGT TO (Base)'!AL160, 0, East!AL160, London!AL160, 'North West'!AL160, 'West Midlands'!AL160, Northern!AL160, Scotland!AL160, Southern!AL160, 'Wales & West'!AL160) -> 0 | AM160: =CHOOSE(m_identity,SHETL!AM160, SPTL!AM160, 'NGET TO (Base)'!AM160, 0, 'NGGT TO (Base)'!AM160, 0, East!AM160, London!AM160, 'North West'!AM160, 'West Midlands'!AM160, Northern!AM160, Scotland!AM160, Southern!AM160, 'Wales & West'!AM160) -> 0 | AN160: =CHOOSE(m_identity,SHETL!AN160, SPTL!AN160, 'NGET TO (Base)'!AN160, 0, 'NGGT TO (Base)'!AN160, 0, East!AN160, London!AN160, 'North West'!AN160, 'West Midlands'!AN160, Northern!AN160, Scotland!AN160, Southern!AN160, 'Wales & West'!AN160) -> 0 | AO160: =CHOOSE(m_identity,SHETL!AO160, SPTL!AO160, 'NGET TO (Base)'!AO160, 0, 'NGGT TO (Base)'!AO160, 0, East!AO160, London!AO160, 'North West'!AO160, 'West Midlands'!AO160, Northern!AO160, Scotland!AO160, Southern!AO160, 'Wales & West'!AO160) -> 0
E161: Uncertain costs (Smart metering) allocation to controllable opex | G161: % | AH161: =CHOOSE(m_identity,SHETL!AH161, SPTL!AH161, 'NGET TO (Base)'!AH161, 0, 'NGGT TO (Base)'!AH161, 0, East!AH161, London!AH161, 'North West'!AH161, 'West Midlands'!AH161, Northern!AH161, Scotland!AH161, Southern!AH161, 'Wales & West'!AH161) -> 0 | AI161: =CHOOSE(m_identity,SHETL!AI161, SPTL!AI161, 'NGET TO (Base)'!AI161, 0, 'NGGT TO (Base)'!AI161, 0, East!AI161, London!AI161, 'North West'!AI161, 'West Midlands'!AI161, Northern!AI161, Scotland!AI161, Southern!AI161, 'Wales & West'!AI161) -> 0 | AJ161: =CHOOSE(m_identity,SHETL!AJ161, SPTL!AJ161, 'NGET TO (Base)'!AJ161, 0, 'NGGT TO (Base)'!AJ161, 0, East!AJ161, London!AJ161, 'North West'!AJ161, 'West Midlands'!AJ161, Northern!AJ161, Scotland!AJ161, Southern!AJ161, 'Wales & West'!AJ161) -> 0 | AK161: =CHOOSE(m_identity,SHETL!AK161, SPTL!AK161, 'NGET TO (Base)'!AK161, 0, 'NGGT TO (Base)'!AK161, 0, East!AK161, London!AK161, 'North West'!AK161, 'West Midlands'!AK161, Northern!AK161, Scotland!AK161, Southern!AK161, 'Wales & West'!AK161) -> 0 | AL161: =CHOOSE(m_identity,SHETL!AL161, SPTL!AL161, 'NGET TO (Base)'!AL161, 0, 'NGGT TO (Base)'!AL161, 0, East!AL161, London!AL161, 'North West'!AL161, 'West Midlands'!AL161, Northern!AL161, Scotland!AL161, Southern!AL161, 'Wales & West'!AL161) -> 0 | AM161: =CHOOSE(m_identity,SHETL!AM161, SPTL!AM161, 'NGET TO (Base)'!AM161, 0, 'NGGT TO (Base)'!AM161, 0, East!AM161, London!AM161, 'North West'!AM161, 'West Midlands'!AM161, Northern!AM161, Scotland!AM161, Southern!AM161, 'Wales & West'!AM161) -> 0 | AN161: =CHOOSE(m_identity,SHETL!AN161, SPTL!AN161, 'NGET TO (Base)'!AN161, 0, 'NGGT TO (Base)'!AN161, 0, East!AN161, London!AN161, 'North West'!AN161, 'West Midlands'!AN161, Northern!AN161, Scotland!AN161, Southern!AN161, 'Wales & West'!AN161) -> 0 | AO161: =CHOOSE(m_identity,SHETL!AO161, SPTL!AO161, 'NGET TO (Base)'!AO161, 0, 'NGGT TO (Base)'!AO161, 0, East!AO161, London!AO161, 'North West'!AO161, 'West Midlands'!AO161, Northern!AO161, Scotland!AO161, Southern!AO161, 'Wales & West'!AO161) -> 0
